Workbook

Sheet Kitchen
A1: Range | S1: Enter % | T1: Total Cost Ex Vat | U1: RRP Ex Vat | V1: Cash Margin | W1: Margin %
A2: Cabinet Colour | R2: My Furniture Discount | S2: 0.4 | T2: =SUM(T12:T895) -> 75 | U2: =D9/1.2 -> 75 | V2: =U2-T2 -> 0 | W2: =V2/U2 -> 0
A3: Drawer Box | B3: Customer Name | R3: Add Retail Discount | S3: 0
A4: Rigid | B4: Order Ref
A5: Home Delivery | B5: Other Comments | R5: Additional Margin
R6: Lights | S6: 0.3
E7: =VLOOKUP('Data Validation Lists'!B1,'Data Validation Lists'!A2:D186,4,FALSE) -> 4 Week Lead Time
B8: Qty | C8: RRP | D8: Total RRP | E8: Part Code | H8: Drw Boxes
B9: 1 | D9: =SUM(D10:D1067) -> 90 | G9: Rigid | H9: STD | I9: Pan | J9: Low | R9: Other | S9: 0.3
A11: Base Units
A13: 150 HL Pull Out Base VS SUB | C13: =IF($E13="Not Available","",VLOOKUP(E13,'Prices Furniture'!A:F,6,FALSE)*(1-$S$3)) -> 427 | D13: =IF(B13="","",B13*C13) ->  | E13: =VLOOKUP(A13,Codes!$B:$BC,'Data Validation Lists'!$B$1+2,FALSE) -> @LK-JWT-BP15TW | G13: =IF(AND(B13>0,'Data Validation Lists'!$I$1=1),B13,"") ->  | R13: Furniture | T13: =IF(B13="","",SUM(D13/1.2)*(1-$S$2)/(1-$S$3)) -> 
A14: 300 HL Pull Out Base VS SUB | C14: =IF($E14="Not Available","",VLOOKUP(E14,'Prices Furniture'!A:F,6,FALSE)*(1-$S$3)) -> 685.01 | D14: =IF(B14="","",B14*C14) ->  | E14: =VLOOKUP(A14,Codes!$B:$BC,'Data Validation Lists'!$B$1+2,FALSE) -> @LK-JWT-BP3TY | G14: =IF(AND(B14>0,'Data Validation Lists'!$I$1=1),B14,"") ->  | R14: Furniture | T14: =IF(B14="","",SUM(D14/1.2)*(1-$S$2)/(1-$S$3)) -> 
R15: Furniture
A16: 150 HL Base Unit LHH | C16: =IF($E16="Not Available","",VLOOKUP(E16,'Prices Furniture'!A:F,6,FALSE)*(1-$S$3)) -> 253.01 | D16: =IF(B16="","",B16*C16) ->  | E16: =VLOOKUP(A16,Codes!$B:$BC,'Data Validation Lists'!$B$1+2,FALSE) -> @LK-JWT-BH15L | G16: =IF(AND(B16>0,'Data Validation Lists'!$I$1=1),B16,"") ->  | R16: Furniture | T16: =IF(B16="","",SUM(D16/1.2)*(1-$S$2)/(1-$S$3)) -> 
A17: 150 HL Base Unit RHH | C17: =IF($E17="Not Available","",VLOOKUP(E17,'Prices Furniture'!A:F,6,FALSE)*(1-$S$3)) -> 253.01 | D17: =IF(B17="","",B17*C17) ->  | E17: =VLOOKUP(A17,Codes!$B:$BC,'Data Validation Lists'!$B$1+2,FALSE) -> @LK-JWT-BH15R | G17: =IF(AND(B17>0,'Data Validation Lists'!$I$1=1),B17,"") ->  | R17: Furniture
A18: 300 HL Base Unit LHH | C18: =IF($E18="Not Available","",VLOOKUP(E18,'Prices Furniture'!A:F,6,FALSE)*(1-$S$3)) -> 289.01 | E18: =VLOOKUP(A18,Codes!$B:$BC,'Data Validation Lists'!$B$1+2,FALSE) -> @LK-JWT-BH30L | G18: =IF(AND(B18>0,'Data Validation Lists'!$I$1=1),B18,"") ->  | R18: Furniture
A19: 300 HL Base Unit RHH | C19: =IF($E19="Not Available","",VLOOKUP(E19,'Prices Furniture'!A:F,6,FALSE)*(1-$S$3)) -> 289.01 | E19: =VLOOKUP(A19,Codes!$B:$BC,'Data Validation Lists'!$B$1+2,FALSE) -> @LK-JWT-BH30R | G19: =IF(AND(B19>0,'Data Validation Lists'!$I$1=1),B19,"") ->  | R19: Furniture
A20: 350 HL Base Unit LHH | C20: =IF($E20="Not Available","",VLOOKUP(E20,'Prices Furniture'!A:F,6,FALSE)*(1-$S$3)) -> 294.01 | E20: =VLOOKUP(A20,Codes!$B:$BC,'Data Validation Lists'!$B$1+2,FALSE) -> @LK-JWT-BH35L | G20: =IF(AND(B20>0,'Data Validation Lists'!$I$1=1),B20,"") ->  | R20: Furniture
A21: 350 HL Base Unit RHH | C21: =IF($E21="Not Available","",VLOOKUP(E21,'Prices Furniture'!A:F,6,FALSE)*(1-$S$3)) -> 294.01 | E21: =VLOOKUP(A21,Codes!$B:$BC,'Data Validation Lists'!$B$1+2,FALSE) -> @LK-JWT-BH35R | G21: =IF(AND(B21>0,'Data Validation Lists'!$I$1=1),B21,"") ->  | R21: Furniture
A22: 400 HL Base Unit LHH | C22: =IF($E22="Not Available","",VLOOKUP(E22,'Prices Furniture'!A:F,6,FALSE)*(1-$S$3)) -> 300.01 | E22: =VLOOKUP(A22,Codes!$B:$BC,'Data Validation Lists'!$B$1+2,FALSE) -> @LK-JWT-BH40L | G22: =IF(AND(B22>0,'Data Validation Lists'!$I$1=1),B22,"") ->  | R22: Furniture
A23: 400 HL Base Unit RHH | C23: =IF($E23="Not Available","",VLOOKUP(E23,'Prices Furniture'!A:F,6,FALSE)*(1-$S$3)) -> 300.01 | E23: =VLOOKUP(A23,Codes!$B:$BC,'Data Validation Lists'!$B$1+2,FALSE) -> @LK-JWT-BH40R | G23: =IF(AND(B23>0,'Data Validation Lists'!$I$1=1),B23,"") ->  | R23: Furniture
A24: 450 HL Base Unit LHH | C24: =IF($E24="Not Available","",VLOOKUP(E24,'Prices Furniture'!A:F,6,FALSE)*(1-$S$3)) -> 321.01 | E24: =VLOOKUP(A24,Codes!$B:$BC,'Data Validation Lists'!$B$1+2,FALSE) -> @LK-JWT-BH45L | G24: =IF(AND(B24>0,'Data Validation Lists'!$I$1=1),B24,"") ->  | R24: Furniture
A25: 450 HL Base Unit RHH | C25: =IF($E25="Not Available","",VLOOKUP(E25,'Prices Furniture'!A:F,6,FALSE)*(1-$S$3)) -> 321.01 | E25: =VLOOKUP(A25,Codes!$B:$BC,'Data Validation Lists'!$B$1+2,FALSE) -> @LK-JWT-BH45R | G25: =IF(AND(B25>0,'Data Validation Lists'!$I$1=1),B25,"") ->  | R25: Furniture
A26: 500 HL Base Unit LHH | C26: =IF($E26="Not Available","",VLOOKUP(E26,'Prices Furniture'!A:F,6,FALSE)*(1-$S$3)) -> 328.01 | E26: =VLOOKUP(A26,Codes!$B:$BC,'Data Validation Lists'!$B$1+2,FALSE) -> @LK-JWT-BH50L | G26: =IF(AND(B26>0,'Data Validation Lists'!$I$1=1),B26,"") ->  | R26: Furniture
A27: 500 HL Base Unit RHH | C27: =IF($E27="Not Available","",VLOOKUP(E27,'Prices Furniture'!A:F,6,FALSE)*(1-$S$3)) -> 328.01 | E27: =VLOOKUP(A27,Codes!$B:$BC,'Data Validation Lists'!$B$1+2,FALSE) -> @LK-JWT-BH50R | G27: =IF(AND(B27>0,'Data Validation Lists'!$I$1=1),B27,"") ->  | R27: Furniture
A28: 500 HL Sink Base Unit (Inc Liner) LHH | C28: =IF($E28="Not Available","",VLOOKUP(E28,'Prices Furniture'!A:F,6,FALSE)*(1-$S$3)) -> 358.01 | E28: =VLOOKUP(A28,Codes!$B:$BC,'Data Validation Lists'!$B$1+2,FALSE) -> @LK-JWT-BH50SL | G28: =IF(AND(B28>0,'Data Validation Lists'!$I$1=1),B28,"") ->  | R28: Furniture
A29: 500 HL Sink Base Unit (Inc Liner) RHH | C29: =IF($E29="Not Available","",VLOOKUP(E29,'Prices Furniture'!A:F,6,FALSE)*(1-$S$3)) -> 358.01 | E29: =VLOOKUP(A29,Codes!$B:$BC,'Data Validation Lists'!$B$1+2,FALSE) -> @LK-JWT-BH50SR | G29: =IF(AND(B29>0,'Data Validation Lists'!$I$1=1),B29,"") ->  | R29: Furniture
A30: 600 HL Base Unit LHH | C30: =IF($E30="Not Available","",VLOOKUP(E30,'Prices Furniture'!A:F,6,FALSE)*(1-$S$3)) -> 358.01 | E30: =VLOOKUP(A30,Codes!$B:$BC,'Data Validation Lists'!$B$1+2,FALSE) -> @LK-JWT-BH60L | G30: =IF(AND(B30>0,'Data Validation Lists'!$I$1=1),B30,"") ->  | R30: Furniture
A31: 600 HL Base Unit RHH | C31: =IF($E31="Not Available","",VLOOKUP(E31,'Prices Furniture'!A:F,6,FALSE)*(1-$S$3)) -> 358.01 | E31: =VLOOKUP(A31,Codes!$B:$BC,'Data Validation Lists'!$B$1+2,FALSE) -> @LK-JWT-BH60R | G31: =IF(AND(B31>0,'Data Validation Lists'!$I$1=1),B31,"") ->  | R31: Furniture
A32: 600 HL Sink Base Unit (Inc Liner) LHH | C32: =IF($E32="Not Available","",VLOOKUP(E32,'Prices Furniture'!A:F,6,FALSE)*(1-$S$3)) -> 404 | E32: =VLOOKUP(A32,Codes!$B:$BC,'Data Validation Lists'!$B$1+2,FALSE) -> @LK-JWT-BH60SL | G32: =IF(AND(B32>0,'Data Validation Lists'!$I$1=1),B32,"") ->  | R32: Furniture
A33: 600 HL Sink Base Unit (Inc Liner) RHH | C33: =IF($E33="Not Available","",VLOOKUP(E33,'Prices Furniture'!A:F,6,FALSE)*(1-$S$3)) -> 404 | E33: =VLOOKUP(A33,Codes!$B:$BC,'Data Validation Lists'!$B$1+2,FALSE) -> @LK-JWT-BH60SR | G33: =IF(AND(B33>0,'Data Validation Lists'!$I$1=1),B33,"") ->  | R33: Furniture
A34: 700 HL Base Unit | C34: =IF($E34="Not Available","",VLOOKUP(E34,'Prices Furniture'!A:F,6,FALSE)*(1-$S$3)) -> 486.01 | E34: =VLOOKUP(A34,Codes!$B:$BC,'Data Validation Lists'!$B$1+2,FALSE) -> @LK-JWT-BH70 | G34: =IF(AND(B34>0,'Data Validation Lists'!$I$1=1),B34,"") ->  | R34: Furniture
A35: 800 HL Base Unit | C35: =IF($E35="Not Available","",VLOOKUP(E35,'Prices Furniture'!A:F,6,FALSE)*(1-$S$3)) -> 496.02 | D35: =IF(B35="","",B35*C35) ->  | E35: =VLOOKUP(A35,Codes!$B:$BC,'Data Validation Lists'!$B$1+2,FALSE) -> @LK-JWT-BH80 | G35: =IF(AND(B35>0,'Data Validation Lists'!$I$1=1),B35,"") ->  | R35: Furniture
A36: 800 HL Sink Base Unit (Inc Liner) | C36: =IF($E36="Not Available","",VLOOKUP(E36,'Prices Furniture'!A:F,6,FALSE)*(1-$S$3)) -> 542.02 | E36: =VLOOKUP(A36,Codes!$B:$BC,'Data Validation Lists'!$B$1+2,FALSE) -> @LK-JWT-BH80S | G36: =IF(AND(B36>0,'Data Validation Lists'!$I$1=1),B36,"") ->  | R36: Furniture
A37: 900 HL Base Unit | C37: =IF($E37="Not Available","",VLOOKUP(E37,'Prices Furniture'!A:F,6,FALSE)*(1-$S$3)) -> 516.01 | E37: =VLOOKUP(A37,Codes!$B:$BC,'Data Validation Lists'!$B$1+2,FALSE) -> @LK-JWT-BH90 | G37: =IF(AND(B37>0,'Data Validation Lists'!$I$1=1),B37,"") ->  | R37: Furniture
A38: 900 HL Sink Base Unit (Inc Liner) | C38: =IF($E38="Not Available","",VLOOKUP(E38,'Prices Furniture'!A:F,6,FALSE)*(1-$S$3)) -> 562.01 | E38: =VLOOKUP(A38,Codes!$B:$BC,'Data Validation Lists'!$B$1+2,FALSE) -> @LK-JWT-BH90S | G38: =IF(AND(B38>0,'Data Validation Lists'!$I$1=1),B38,"") ->  | R38: Furniture
A39: 1000 HL Base Unit | C39: =IF($E39="Not Available","",VLOOKUP(E39,'Prices Furniture'!A:F,6,FALSE)*(1-$S$3)) -> 529.01 | E39: =VLOOKUP(A39,Codes!$B:$BC,'Data Validation Lists'!$B$1+2,FALSE) -> @LK-JWT-BH100 | G39: =IF(AND(B39>0,'Data Validation Lists'!$I$1=1),B39,"") ->  | R39: Furniture
A40: 1000 HL Sink Base Unit (Inc Liner) | C40: =IF($E40="Not Available","",VLOOKUP(E40,'Prices Furniture'!A:F,6,FALSE)*(1-$S$3)) -> 575 | E40: =VLOOKUP(A40,Codes!$B:$BC,'Data Validation Lists'!$B$1+2,FALSE) -> @LK-JWT-BH10S | G40: =IF(AND(B40>0,'Data Validation Lists'!$I$1=1),B40,"") ->  | R40: Furniture
R41: Furniture
A42: 300 HL Base Unit & Bin | C42: =IF($E42="Not Available","",VLOOKUP(E42,'Prices Furniture'!A:F,6,FALSE)*(1-$S$3)) -> 638 | D42: =IF(B42="","",B42*C42) ->  | E42: =VLOOKUP(A42,Codes!$B:$BC,'Data Validation Lists'!$B$1+2,FALSE) -> @LK-JWT-BH3B | G42: =IF(AND(B42>0,'Data Validation Lists'!$I$1=1),B42,"") ->  | R42: Furniture | T42: =IF(B42="","",SUM(D42/1.2)*(1-$S$2)/(1-$S$3)) -> 
A43: 400 HL Base Unit & Bin | C43: =IF($E43="Not Available","",VLOOKUP(E43,'Prices Furniture'!A:F,6,FALSE)*(1-$S$3)) -> 711 | E43: =VLOOKUP(A43,Codes!$B:$BC,'Data Validation Lists'!$B$1+2,FALSE) -> @LK-JWT-BH4B | G43: =IF(AND(B43>0,'Data Validation Lists'!$I$1=1),B43,"") ->  | R43: Furniture
A44: 450 HL Base Unit & Bin | C44: =IF($E44="Not Available","",VLOOKUP(E44,'Prices Furniture'!A:F,6,FALSE)*(1-$S$3)) -> 737 | E44: =VLOOKUP(A44,Codes!$B:$BC,'Data Validation Lists'!$B$1+2,FALSE) -> @LK-JWT-BH45B | G44: =IF(AND(B44>0,'Data Validation Lists'!$I$1=1),B44,"") ->  | R44: Furniture
A45: 500 HL Base Unit & Bin | C45: =IF($E45="Not Available","",VLOOKUP(E45,'Prices Furniture'!A:F,6,FALSE)*(1-$S$3)) -> 750 | E45: =VLOOKUP(A45,Codes!$B:$BC,'Data Validation Lists'!$B$1+2,FALSE) -> @LK-JWT-BH5B | G45: =IF(AND(B45>0,'Data Validation Lists'!$I$1=1),B45,"") ->  | R45: Furniture
A46: 600 HL Base Unit & Bin (4 Bins) | C46: =IF($E46="Not Available","",VLOOKUP(E46,'Prices Furniture'!A:F,6,FALSE)*(1-$S$3)) -> 864 | E46: =VLOOKUP(A46,Codes!$B:$BC,'Data Validation Lists'!$B$1+2,FALSE) -> @LK-JWT-BH6B4 | G46: =IF(AND(B46>0,'Data Validation Lists'!$I$1=1),B46,"") ->  | R46: Furniture
A47: 600 HL Base Unit & Bin (2 Bins) | C47: =IF($E47="Not Available","",VLOOKUP(E47,'Prices Furniture'!A:F,6,FALSE)*(1-$S$3)) -> 815 | E47: =VLOOKUP(A47,Codes!$B:$BC,'Data Validation Lists'!$B$1+2,FALSE) -> @LK-JWT-BH6B2 | G47: =IF(AND(B47>0,'Data Validation Lists'!$I$1=1),B47,"") ->  | R47: Furniture
A49: 800 HL Cnr Base (300 Door) LHH | C49: =IF($E49="Not Available","",VLOOKUP(E49,'Prices Furniture'!A:F,6,FALSE)*(1-$S$3)) -> 511 | D49: =IF(B49="","",B49*C49) ->  | E49: =VLOOKUP(A49,Codes!$B:$BC,'Data Validation Lists'!$B$1+2,FALSE) -> @LK-JWT-BC83L | G49: =IF(AND(B49>0,'Data Validation Lists'!$I$1=1),B49,"") ->  | R49: Furniture | T49: =IF(B49="","",SUM(D49/1.2)*(1-$S$2)/(1-$S$3)) -> 
A50: 800 HL Cnr Base (300 Door) RHH | C50: =IF($E50="Not Available","",VLOOKUP(E50,'Prices Furniture'!A:F,6,FALSE)*(1-$S$3)) -> 511 | E50: =VLOOKUP(A50,Codes!$B:$BC,'Data Validation Lists'!$B$1+2,FALSE) -> @LK-JWT-BC83R | G50: =IF(AND(B50>0,'Data Validation Lists'!$I$1=1),B50,"") ->  | R50: Furniture
A51: 800 HL Cnr Base Unit (400 Door) LHH | C51: =IF($E51="Not Available","",VLOOKUP(E51,'Prices Furniture'!A:F,6,FALSE)*(1-$S$3)) -> 518 | E51: =VLOOKUP(A51,Codes!$B:$BC,'Data Validation Lists'!$B$1+2,FALSE) -> @LK-JWT-BC84L | G51: =IF(AND(B51>0,'Data Validation Lists'!$I$1=1),B51,"") ->  | R51: Furniture
A52: 800 HL Cnr Base Unit (400 Door) RHH | C52: =IF($E52="Not Available","",VLOOKUP(E52,'Prices Furniture'!A:F,6,FALSE)*(1-$S$3)) -> 518 | E52: =VLOOKUP(A52,Codes!$B:$BC,'Data Validation Lists'!$B$1+2,FALSE) -> @LK-JWT-BC84R | G52: =IF(AND(B52>0,'Data Validation Lists'!$I$1=1),B52,"") ->  | R52: Furniture
A53: 800 HL Cnr Base (450 Door) LHH | C53: =IF($E53="Not Available","",VLOOKUP(E53,'Prices Furniture'!A:F,6,FALSE)*(1-$S$3)) -> 528 | E53: =VLOOKUP(A53,Codes!$B:$BC,'Data Validation Lists'!$B$1+2,FALSE) -> @LK-JWT-BC845L | G53: =IF(AND(B53>0,'Data Validation Lists'!$I$1=1),B53,"") ->  | R53: Furniture
A54: 800 HL Cnr Base (450 Door) RHH | C54: =IF($E54="Not Available","",VLOOKUP(E54,'Prices Furniture'!A:F,6,FALSE)*(1-$S$3)) -> 528 | E54: =VLOOKUP(A54,Codes!$B:$BC,'Data Validation Lists'!$B$1+2,FALSE) -> @LK-JWT-BC845R | G54: =IF(AND(B54>0,'Data Validation Lists'!$I$1=1),B54,"") ->  | R54: Furniture
A55: 900 HL Cnr Base (450 Door) LHH | C55: =IF($E55="Not Available","",VLOOKUP(E55,'Prices Furniture'!A:F,6,FALSE)*(1-$S$3)) -> 526.01 | E55: =VLOOKUP(A55,Codes!$B:$BC,'Data Validation Lists'!$B$1+2,FALSE) -> @LK-JWT-BC945L | G55: =IF(AND(B55>0,'Data Validation Lists'!$I$1=1),B55,"") ->  | R55: Furniture
A56: 900 HL Cnr Base (450 Door) RHH | C56: =IF($E56="Not Available","",VLOOKUP(E56,'Prices Furniture'!A:F,6,FALSE)*(1-$S$3)) -> 526.01 | D56: =IF(B56="","",B56*C56) ->  | E56: =VLOOKUP(A56,Codes!$B:$BC,'Data Validation Lists'!$B$1+2,FALSE) -> @LK-JWT-BC945R | G56: =IF(AND(B56>0,'Data Validation Lists'!$I$1=1),B56,"") ->  | R56: Furniture
A57: 1000 HL Cnr Base (450 Door) LHH | C57: =IF($E57="Not Available","",VLOOKUP(E57,'Prices Furniture'!A:F,6,FALSE)*(1-$S$3)) -> 533 | E57: =VLOOKUP(A57,Codes!$B:$BC,'Data Validation Lists'!$B$1+2,FALSE) -> @LK-JWT-BC145L | G57: =IF(AND(B57>0,'Data Validation Lists'!$I$1=1),B57,"") ->  | R57: Furniture
A58: 1000 HL Cnr Base (450 Door) RHH | C58: =IF($E58="Not Available","",VLOOKUP(E58,'Prices Furniture'!A:F,6,FALSE)*(1-$S$3)) -> 533 | E58: =VLOOKUP(A58,Codes!$B:$BC,'Data Validation Lists'!$B$1+2,FALSE) -> @LK-JWT-BC145R | G58: =IF(AND(B58>0,'Data Validation Lists'!$I$1=1),B58,"") ->  | R58: Furniture
A59: 1000 HL Cnr Base (500 Door) LHH | C59: =IF($E59="Not Available","",VLOOKUP(E59,'Prices Furniture'!A:F,6,FALSE)*(1-$S$3)) -> 537 | E59: =VLOOKUP(A59,Codes!$B:$BC,'Data Validation Lists'!$B$1+2,FALSE) -> @LK-JWT-BC15L | G59: =IF(AND(B59>0,'Data Validation Lists'!$I$1=1),B59,"") ->  | R59: Furniture
A60: 1000 HL Cnr Base (500 Door) RHH | C60: =IF($E60="Not Available","",VLOOKUP(E60,'Prices Furniture'!A:F,6,FALSE)*(1-$S$3)) -> 537 | E60: =VLOOKUP(A60,Codes!$B:$BC,'Data Validation Lists'!$B$1+2,FALSE) -> @LK-JWT-BC15R | G60: =IF(AND(B60>0,'Data Validation Lists'!$I$1=1),B60,"") ->  | R60: Furniture
A61: 1000 HL Cnr Base (600 Door) LHH | C61: =IF($E61="Not Available","",VLOOKUP(E61,'Prices Furniture'!A:F,6,FALSE)*(1-$S$3)) -> 547.01 | E61: =VLOOKUP(A61,Codes!$B:$BC,'Data Validation Lists'!$B$1+2,FALSE) -> @LK-JWT-BC16L | G61: =IF(AND(B61>0,'Data Validation Lists'!$I$1=1),B61,"") ->  | R61: Furniture
A62: 1000 HL Cnr Base (600 Door) RHH | C62: =IF($E62="Not Available","",VLOOKUP(E62,'Prices Furniture'!A:F,6,FALSE)*(1-$S$3)) -> 547.01 | E62: =VLOOKUP(A62,Codes!$B:$BC,'Data Validation Lists'!$B$1+2,FALSE) -> @LK-JWT-BC16R | G62: =IF(AND(B62>0,'Data Validation Lists'!$I$1=1),B62,"") ->  | R62: Furniture
A63: 1000 Cnr Base CORNERSTONE MAXX LH - 500 door | C63: =IF($E63="Not Available","",VLOOKUP(E63,'Prices Furniture'!A:F,6,FALSE)*(1-$S$3)) -> 1402 | E63: =VLOOKUP(A63,Codes!$B:$BC,'Data Validation Lists'!$B$1+2,FALSE) -> @LK-JWT-BCL15L | F63: Note: This unit is handed by the Wirework | G63: =IF(AND(B63>0,'Data Validation Lists'!$I$1=1),B63,"") ->  | R63: Furniture
A64: 1000 Cnr Base CORNERSTONE MAXX RH - 500 door | C64: =IF($E64="Not Available","",VLOOKUP(E64,'Prices Furniture'!A:F,6,FALSE)*(1-$S$3)) -> 1402 | E64: =VLOOKUP(A64,Codes!$B:$BC,'Data Validation Lists'!$B$1+2,FALSE) -> @LK-JWT-BCL15R | F64: Note: This unit is handed by the Wirework | G64: =IF(AND(B64>0,'Data Validation Lists'!$I$1=1),B64,"") ->  | R64: Furniture
A65: 1000 Cnr Base CORNERSTONE MAXX LH - 600 door | C65: =IF($E65="Not Available","",VLOOKUP(E65,'Prices Furniture'!A:F,6,FALSE)*(1-$S$3)) -> 1475 | E65: =VLOOKUP(A65,Codes!$B:$BC,'Data Validation Lists'!$B$1+2,FALSE) -> @LK-JWT-BCL16L | F65: Note: This unit is handed by the Wirework | G65: =IF(AND(B65>0,'Data Validation Lists'!$I$1=1),B65,"") ->  | R65: Furniture
A66: 1000 Cnr Base CORNERSTONE MAXX RH - 600 door | C66: =IF($E66="Not Available","",VLOOKUP(E66,'Prices Furniture'!A:F,6,FALSE)*(1-$S$3)) -> 1475 | E66: =VLOOKUP(A66,Codes!$B:$BC,'Data Validation Lists'!$B$1+2,FALSE) -> @LK-JWT-BCL16R | F66: Note: This unit is handed by the Wirework | G66: =IF(AND(B66>0,'Data Validation Lists'!$I$1=1),B66,"") ->  | R66: Furniture
A67: 900 Corner Base VS COR FLEX - 450 door LHH | C67: =IF($E67="Not Available","",VLOOKUP(E67,'Prices Furniture'!A:F,6,FALSE)*(1-$S$3)) -> 1536.01 | E67: =VLOOKUP(A67,Codes!$B:$BC,'Data Validation Lists'!$B$1+2,FALSE) -> @LK-JWT-BCO945L | G67: =IF(AND(B67>0,'Data Validation Lists'!$I$1=1),B67,"") ->  | R67: Furniture | T67: =IF(B67="","",SUM(D67/1.2)*(1-$S$2)/(1-$S$3)) -> 
A68: 900 Corner Base VS COR FLEX - 450 door RHH | C68: =IF($E68="Not Available","",VLOOKUP(E68,'Prices Furniture'!A:F,6,FALSE)*(1-$S$3)) -> 1536.01 | E68: =VLOOKUP(A68,Codes!$B:$BC,'Data Validation Lists'!$B$1+2,FALSE) -> @LK-JWT-BCO945R | G68: =IF(AND(B68>0,'Data Validation Lists'!$I$1=1),B68,"") ->  | R68: Furniture
A69: 1000 Corner Base VS COR FLEX - 450 door LHH | C69: =IF($E69="Not Available","",VLOOKUP(E69,'Prices Furniture'!A:F,6,FALSE)*(1-$S$3)) -> 1543.01 | E69: =VLOOKUP(A69,Codes!$B:$BC,'Data Validation Lists'!$B$1+2,FALSE) -> @LK-JWT-BCO145L | G69: =IF(AND(B69>0,'Data Validation Lists'!$I$1=1),B69,"") ->  | R69: Furniture
A70: 1000 Corner Base VS COR FLEX - 450 door RHH | C70: =IF($E70="Not Available","",VLOOKUP(E70,'Prices Furniture'!A:F,6,FALSE)*(1-$S$3)) -> 1543.01 | E70: =VLOOKUP(A70,Codes!$B:$BC,'Data Validation Lists'!$B$1+2,FALSE) -> @LK-JWT-BCO145R | G70: =IF(AND(B70>0,'Data Validation Lists'!$I$1=1),B70,"") ->  | R70: Furniture
A71: 1000 Corner Base VS COR FLEX - 500 door LHH | C71: =IF($E71="Not Available","",VLOOKUP(E71,'Prices Furniture'!A:F,6,FALSE)*(1-$S$3)) -> 1547 | D71: =IF(B71="","",B71*C71) ->  | E71: =VLOOKUP(A71,Codes!$B:$BC,'Data Validation Lists'!$B$1+2,FALSE) -> @LK-JWT-BCO15L | G71: =IF(AND(B71>0,'Data Validation Lists'!$I$1=1),B71,"") ->  | R71: Furniture
A72: 1000 Corner Base VS COR FLEX - 500 door RHH | C72: =IF($E72="Not Available","",VLOOKUP(E72,'Prices Furniture'!A:F,6,FALSE)*(1-$S$3)) -> 1547 | E72: =VLOOKUP(A72,Codes!$B:$BC,'Data Validation Lists'!$B$1+2,FALSE) -> @LK-JWT-BCO15R | G72: =IF(AND(B72>0,'Data Validation Lists'!$I$1=1),B72,"") ->  | R72: Furniture
A73: 1000 Corner Base VS COR FLEX - 600 door LHH | C73: =IF($E73="Not Available","",VLOOKUP(E73,'Prices Furniture'!A:F,6,FALSE)*(1-$S$3)) -> 1557.01 | E73: =VLOOKUP(A73,Codes!$B:$BC,'Data Validation Lists'!$B$1+2,FALSE) -> @LK-JWT-BCO16L | G73: =IF(AND(B73>0,'Data Validation Lists'!$I$1=1),B73,"") ->  | R73: Furniture
A74: 1000 Corner Base VS COR FLEX - 600 door RHH | C74: =IF($E74="Not Available","",VLOOKUP(E74,'Prices Furniture'!A:F,6,FALSE)*(1-$S$3)) -> 1557.01 | E74: =VLOOKUP(A74,Codes!$B:$BC,'Data Validation Lists'!$B$1+2,FALSE) -> @LK-JWT-BCO16R | G74: =IF(AND(B74>0,'Data Validation Lists'!$I$1=1),B74,"") ->  | R74: Furniture
A75: 950 HL Cnr L Base | C75: =IF($E75="Not Available","",VLOOKUP(E75,'Prices Furniture'!A:F,6,FALSE)*(1-$S$3)) -> 834.98 | E75: =VLOOKUP(A75,Codes!$B:$BC,'Data Validation Lists'!$B$1+2,FALSE) -> @LK-JWT-BCL9 | R75: Furniture
R76: Furniture
A77: 600 Belfast Sink Unit (495mm High) LHH | C77: =IF($E77="Not Available","",VLOOKUP(E77,'Prices Furniture'!A:F,6,FALSE)*(1-$S$3)) -> 316.01 | D77: =IF(B77="","",B77*C77) ->  | E77: =VLOOKUP(A77,Codes!$B:$BC,'Data Validation Lists'!$B$1+2,FALSE) -> @LK-JWT-BSU6495L | R77: Furniture | T77: =IF(B77="","",SUM(D77/1.2)*(1-$S$2)/(1-$S$3)) -> 
A78: 600 Belfast Sink Unit (495mm High) RHH | C78: =IF($E78="Not Available","",VLOOKUP(E78,'Prices Furniture'!A:F,6,FALSE)*(1-$S$3)) -> 316.01 | E78: =VLOOKUP(A78,Codes!$B:$BC,'Data Validation Lists'!$B$1+2,FALSE) -> @LK-JWT-BSU6495R | R78: Furniture
A79: 600 Belfast Sink Unit (450mm High) LHH | C79: =IF($E79="Not Available","",VLOOKUP(E79,'Prices Furniture'!A:F,6,FALSE)*(1-$S$3)) -> 311 | E79: =VLOOKUP(A79,Codes!$B:$BC,'Data Validation Lists'!$B$1+2,FALSE) -> @LK-JWT-BSU6450L | R79: Furniture
A80: 600 Belfast Sink Unit (450mm High) RHH | C80: =IF($E80="Not Available","",VLOOKUP(E80,'Prices Furniture'!A:F,6,FALSE)*(1-$S$3)) -> 311 | E80: =VLOOKUP(A80,Codes!$B:$BC,'Data Validation Lists'!$B$1+2,FALSE) -> @LK-JWT-BSU6450R | R80: Furniture
R81: Furniture
A82: 300 HL Pan Drawer Unit with 2 Internal Drawers | C82: =IF($E82="Not Available","",VLOOKUP(E82,'Prices Furniture'!A:F,6,FALSE)*(1-$S$3)) -> 678.01 | D82: =IF(B82="","",B82*C82) ->  | E82: =VLOOKUP(A82,Codes!$B:$BC,'Data Validation Lists'!$B$1+2,FALSE) -> @LK-JWT-BHD3 | G82: =IF(AND(B82>0,'Data Validation Lists'!$I$1=1),B82,"") ->  | H82: =IF(AND($B82>0,'Data Validation Lists'!$I$6>1),SUM($B82*2),"") ->  | I82: =IF(AND($B82>0,'Data Validation Lists'!$I$6>1),SUM($B82*1),"") ->  | R82: Furniture | T82: =IF(B82="","",SUM(D82/1.2)*(1-$S$2)/(1-$S$3)) -> 
A83: 400 HL Pan Drawer Unit with 2 Internal Drawers | C83: =IF($E83="Not Available","",VLOOKUP(E83,'Prices Furniture'!A:F,6,FALSE)*(1-$S$3)) -> 728.02 | D83: =IF(B83="","",B83*C83) ->  | E83: =VLOOKUP(A83,Codes!$B:$BC,'Data Validation Lists'!$B$1+2,FALSE) -> @LK-JWT-BHD4 | G83: =IF(AND(B83>0,'Data Validation Lists'!$I$1=1),B83,"") ->  | H83: =IF(AND($B83>0,'Data Validation Lists'!$I$6>1),SUM($B83*2),"") ->  | I83: =IF(AND($B83>0,'Data Validation Lists'!$I$6>1),SUM($B83*1),"") ->  | R83: Furniture | T83: =IF(B83="","",SUM(D83/1.2)*(1-$S$2)/(1-$S$3)) -> 
A84: 500 HL Pan Drawer Unit with 2 Internal Drawers | C84: =IF($E84="Not Available","",VLOOKUP(E84,'Prices Furniture'!A:F,6,FALSE)*(1-$S$3)) -> 785 | E84: =VLOOKUP(A84,Codes!$B:$BC,'Data Validation Lists'!$B$1+2,FALSE) -> @LK-JWT-BHD5 | G84: =IF(AND(B84>0,'Data Validation Lists'!$I$1=1),B84,"") ->  | H84: =IF(AND($B84>0,'Data Validation Lists'!$I$6>1),SUM($B84*2),"") ->  | I84: =IF(AND($B84>0,'Data Validation Lists'!$I$6>1),SUM($B84*1),"") ->  | R84: Furniture
A85: 600 HL Pan Drawer Unit with 2 Internal Drawers | C85: =IF($E85="Not Available","",VLOOKUP(E85,'Prices Furniture'!A:F,6,FALSE)*(1-$S$3)) -> 835.01 | E85: =VLOOKUP(A85,Codes!$B:$BC,'Data Validation Lists'!$B$1+2,FALSE) -> @LK-JWT-BHD6 | G85: =IF(AND(B85>0,'Data Validation Lists'!$I$1=1),B85,"") ->  | H85: =IF(AND($B85>0,'Data Validation Lists'!$I$6>1),SUM($B85*2),"") ->  | I85: =IF(AND($B85>0,'Data Validation Lists'!$I$6>1),SUM($B85*1),"") ->  | R85: Furniture
R86: Furniture
A87: 500 4 Drw Base Unit | C87: =IF($E87="Not Available","",VLOOKUP(E87,'Prices Furniture'!A:F,6,FALSE)*(1-$S$3)) -> 910.03 | D87: =IF(B87="","",B87*C87) ->  | E87: =VLOOKUP(A87,Codes!$B:$BC,'Data Validation Lists'!$B$1+2,FALSE) -> @LK-JWT-BD54 | G87: =IF(AND(B87>0,'Data Validation Lists'!$I$1=1),B87,"") ->  | H87: =IF(AND($B87>0,'Data Validation Lists'!$I$6>1),SUM($B87*3),"") ->  | I87: =IF(AND($B87>0,'Data Validation Lists'!$I$6>1),SUM($B87*1),"") ->  | R87: Furniture | T87: =IF(B87="","",SUM(D87/1.2)*(1-$S$2)/(1-$S$3)) -> 
R88: Furniture
A89: 500 3 Drw Base Unit | C89: =IF($E89="Not Available","",VLOOKUP(E89,'Prices Furniture'!A:F,6,FALSE)*(1-$S$3)) -> 787.02 | D89: =IF(B89="","",B89*C89) ->  | E89: =VLOOKUP(A89,Codes!$B:$BC,'Data Validation Lists'!$B$1+2,FALSE) -> @LK-JWT-BD53 | G89: =IF(AND(B89>0,'Data Validation Lists'!$I$1=1),B89,"") ->  | H89: =IF(AND($B89>0,'Data Validation Lists'!$I$6>1),SUM($B89*1),"") ->  | I89: =IF(AND($B89>0,'Data Validation Lists'!$I$6>1),SUM($B89*2),"") ->  | R89: Furniture | T89: =IF(B89="","",SUM(D89/1.2)*(1-$S$2)/(1-$S$3)) -> 
A90: 600 3 Drw Base Unit | C90: =IF($E90="Not Available","",VLOOKUP(E90,'Prices Furniture'!A:F,6,FALSE)*(1-$S$3)) -> 873 | E90: =VLOOKUP(A90,Codes!$B:$BC,'Data Validation Lists'!$B$1+2,FALSE) -> @LK-JWT-BD63 | G90: =IF(AND(B90>0,'Data Validation Lists'!$I$1=1),B90,"") ->  | H90: =IF(AND($B90>0,'Data Validation Lists'!$I$6>1),SUM($B90*1),"") ->  | I90: =IF(AND($B90>0,'Data Validation Lists'!$I$6>1),SUM($B90*2),"") ->  | R90: Furniture | T90: =IF(B90="","",SUM(D90/1.2)*(1-$S$2)/(1-$S$3)) -> 
A91: 800 3 Drw Base Unit | C91: =IF($E91="Not Available","",VLOOKUP(E91,'Prices Furniture'!A:F,6,FALSE)*(1-$S$3)) -> 935.02 | E91: =VLOOKUP(A91,Codes!$B:$BC,'Data Validation Lists'!$B$1+2,FALSE) -> @LK-JWT-BD83 | G91: =IF(AND(B91>0,'Data Validation Lists'!$I$1=1),B91,"") ->  | H91: =IF(AND($B91>0,'Data Validation Lists'!$I$6>1),SUM($B91*1),"") ->  | I91: =IF(AND($B91>0,'Data Validation Lists'!$I$6>1),SUM($B91*2),"") ->  | R91: Furniture | T91: =IF(B91="","",SUM(D91/1.2)*(1-$S$2)/(1-$S$3)) -> 
A92: 900 3 Drw Base Unit | C92: =IF($E92="Not Available","",VLOOKUP(E92,'Prices Furniture'!A:F,6,FALSE)*(1-$S$3)) -> 985 | E92: =VLOOKUP(A92,Codes!$B:$BC,'Data Validation Lists'!$B$1+2,FALSE) -> @LK-JWT-BD93 | G92: =IF(AND(B92>0,'Data Validation Lists'!$I$1=1),B92,"") ->  | H92: =IF(AND($B92>0,'Data Validation Lists'!$I$6>1),SUM($B92*1),"") ->  | I92: =IF(AND($B92>0,'Data Validation Lists'!$I$6>1),SUM($B92*2),"") ->  | R92: Furniture | T92: =IF(B92="","",SUM(D92/1.2)*(1-$S$2)/(1-$S$3)) -> 
A93: 1000 3 Drw Base Unit | C93: =IF($E93="Not Available","",VLOOKUP(E93,'Prices Furniture'!A:F,6,FALSE)*(1-$S$3)) -> 1014.01 | E93: =VLOOKUP(A93,Codes!$B:$BC,'Data Validation Lists'!$B$1+2,FALSE) -> @LK-JWT-BD13 | G93: =IF(AND(B93>0,'Data Validation Lists'!$I$1=1),B93,"") ->  | H93: =IF(AND($B93>0,'Data Validation Lists'!$I$6>1),SUM($B93*1),"") ->  | I93: =IF(AND($B93>0,'Data Validation Lists'!$I$6>1),SUM($B93*2),"") ->  | R93: Furniture | T93: =IF(B93="","",SUM(D93/1.2)*(1-$S$2)/(1-$S$3)) -> 
R94: Furniture
A95: 600 2 Pan Drw Unit | C95: =IF($E95="Not Available","",VLOOKUP(E95,'Prices Furniture'!A:F,6,FALSE)*(1-$S$3)) -> 697.01 | D95: =IF(B95="","",B95*C95) ->  | E95: =VLOOKUP(A95,Codes!$B:$BC,'Data Validation Lists'!$B$1+2,FALSE) -> @LK-JWT-BD62 | G95: =IF(AND(B95>0,'Data Validation Lists'!$I$1=1),B95,"") ->  | I95: =IF(AND($B95>0,'Data Validation Lists'!$I$6>1),SUM($B95*2),"") ->  | R95: Furniture | T95: =IF(B95="","",SUM(D95/1.2)*(1-$S$2)/(1-$S$3)) -> 
A96: 800 2 Pan Drw Unit | C96: =IF($E96="Not Available","",VLOOKUP(E96,'Prices Furniture'!A:F,6,FALSE)*(1-$S$3)) -> 720 | D96: =IF(B96="","",B96*C96) ->  | E96: =VLOOKUP(A96,Codes!$B:$BC,'Data Validation Lists'!$B$1+2,FALSE) -> @LK-JWT-BD82 | G96: =IF(AND(B96>0,'Data Validation Lists'!$I$1=1),B96,"") ->  | I96: =IF(AND($B96>0,'Data Validation Lists'!$I$6>1),SUM($B96*2),"") ->  | R96: Furniture | T96: =IF(B96="","",SUM(D96/1.2)*(1-$S$2)/(1-$S$3)) -> 
A97: 900 2 Pan Drw Unit | C97: =IF($E97="Not Available","",VLOOKUP(E97,'Prices Furniture'!A:F,6,FALSE)*(1-$S$3)) -> 798 | D97: =IF(B97="","",B97*C97) ->  | E97: =VLOOKUP(A97,Codes!$B:$BC,'Data Validation Lists'!$B$1+2,FALSE) -> @LK-JWT-BD92 | G97: =IF(AND(B97>0,'Data Validation Lists'!$I$1=1),B97,"") ->  | I97: =IF(AND($B97>0,'Data Validation Lists'!$I$6>1),SUM($B97*2),"") ->  | R97: Furniture | T97: =IF(B97="","",SUM(D97/1.2)*(1-$S$2)/(1-$S$3)) -> 
A98: 1000 2 Pan Drw Unit | C98: =IF($E98="Not Available","",VLOOKUP(E98,'Prices Furniture'!A:F,6,FALSE)*(1-$S$3)) -> 820 | D98: =IF(B98="","",B98*C98) ->  | E98: =VLOOKUP(A98,Codes!$B:$BC,'Data Validation Lists'!$B$1+2,FALSE) -> @LK-JWT-BD12 | G98: =IF(AND(B98>0,'Data Validation Lists'!$I$1=1),B98,"") ->  | I98: =IF(AND($B98>0,'Data Validation Lists'!$I$6>1),SUM($B98*2),"") ->  | R98: Furniture | T98: =IF(B98="","",SUM(D98/1.2)*(1-$S$2)/(1-$S$3)) -> 
R99: Furniture
A100: 600 2 Pan Drw Unit + 1 Internal | C100: =IF($E100="Not Available","",VLOOKUP(E100,'Prices Furniture'!A:F,6,FALSE)*(1-$S$3)) -> 873.01 | D100: =IF(B100="","",B100*C100) ->  | E100: =VLOOKUP(A100,Codes!$B:$BC,'Data Validation Lists'!$B$1+2,FALSE) -> @LK-JWT-BD62I | G100: =IF(AND(B100>0,'Data Validation Lists'!$I$1=1),B100,"") ->  | H100: =IF(AND($B100>0,'Data Validation Lists'!$I$6>1),SUM($B100*1),"") ->  | I100: =IF(AND($B100>0,'Data Validation Lists'!$I$6>1),SUM($B100*2),"") ->  | R100: Furniture | T100: =IF(B100="","",SUM(D100/1.2)*(1-$S$2)/(1-$S$3)) -> 
A101: 800 2 Pan Drw Unit + 1 Internal | C101: =IF($E101="Not Available","",VLOOKUP(E101,'Prices Furniture'!A:F,6,FALSE)*(1-$S$3)) -> 913.01 | D101: =IF(B101="","",B101*C101) ->  | E101: =VLOOKUP(A101,Codes!$B:$BC,'Data Validation Lists'!$B$1+2,FALSE) -> @LK-JWT-BD82I | G101: =IF(AND(B101>0,'Data Validation Lists'!$I$1=1),B101,"") ->  | H101: =IF(AND($B101>0,'Data Validation Lists'!$I$6>1),SUM($B101*1),"") ->  | I101: =IF(AND($B101>0,'Data Validation Lists'!$I$6>1),SUM($B101*2),"") ->  | R101: Furniture | T101: =IF(B101="","",SUM(D101/1.2)*(1-$S$2)/(1-$S$3)) -> 
A102: 900 2 Pan Drw Unit + 1 Internal | C102: =IF($E102="Not Available","",VLOOKUP(E102,'Prices Furniture'!A:F,6,FALSE)*(1-$S$3)) -> 999 | D102: =IF(B102="","",B102*C102) ->  | E102: =VLOOKUP(A102,Codes!$B:$BC,'Data Validation Lists'!$B$1+2,FALSE) -> @LK-JWT-BD92I | G102: =IF(AND(B102>0,'Data Validation Lists'!$I$1=1),B102,"") ->  | H102: =IF(AND($B102>0,'Data Validation Lists'!$I$6>1),SUM($B102*1),"") ->  | I102: =IF(AND($B102>0,'Data Validation Lists'!$I$6>1),SUM($B102*2),"") ->  | R102: Furniture | T102: =IF(B102="","",SUM(D102/1.2)*(1-$S$2)/(1-$S$3)) -> 
A103: 1000 2 Pan Drw Unit + 1 Internal | C103: =IF($E103="Not Available","",VLOOKUP(E103,'Prices Furniture'!A:F,6,FALSE)*(1-$S$3)) -> 1026 | D103: =IF(B103="","",B103*C103) ->  | E103: =VLOOKUP(A103,Codes!$B:$BC,'Data Validation Lists'!$B$1+2,FALSE) -> @LK-JWT-BD12I | G103: =IF(AND(B103>0,'Data Validation Lists'!$I$1=1),B103,"") ->  | H103: =IF(AND($B103>0,'Data Validation Lists'!$I$6>1),SUM($B103*1),"") ->  | I103: =IF(AND($B103>0,'Data Validation Lists'!$I$6>1),SUM($B103*2),"") ->  | R103: Furniture | T103: =IF(B103="","",SUM(D103/1.2)*(1-$S$2)/(1-$S$3)) -> 
R104: Furniture
A105: 600 Low Single Drawer unit 360 high | C105: =IF($E105="Not Available","",VLOOKUP(E105,'Prices Furniture'!A:F,6,FALSE)*(1-$S$3)) -> 391.01 | D105: =IF(B105="","",B105*C105) ->  | E105: =VLOOKUP(A105,Codes!$B:$BC,'Data Validation Lists'!$B$1+2,FALSE) -> @LK-JWT-BD635L | G105: =IF(AND(B105>0,'Data Validation Lists'!$I$1=1),B105,"") ->  | J105: =IF(AND($B105>0,'Data Validation Lists'!$I$6>1),SUM($B105*1),"") ->  | R105: Furniture | T105: =IF(B105="","",SUM(D105/1.2)*(1-$S$2)/(1-$S$3)) -> 
R106: Furniture
A107: Wall Units (575mm High) | G107: =IF(AND(B107>0,'Data Validation Lists'!$I$1=1),B107,"") ->  | R107: Furniture | T107: =IF(B107="","",SUM(D107/1.2)*(1-$S$2)/(1-$S$3)) -> 
G108: =IF(AND(B108>0,'Data Validation Lists'!$I$1=1),B108,"") ->  | R108: Furniture
A109: 300 Wall Unit (575mm High) LHH | C109: =IF($E109="Not Available","",VLOOKUP(E109,'Prices Furniture'!A:F,6,FALSE)*(1-$S$3)) -> 215.02 | D109: =IF(B109="","",B109*C109) ->  | E109: =VLOOKUP(A109,Codes!$B:$BC,'Data Validation Lists'!$B$1+2,FALSE) -> @LK-JWT-W357L | G109: =IF(AND(B109>0,'Data Validation Lists'!$I$1=1),B109,"") ->  | R109: Furniture
A110: 300 Wall Unit (575mm High) RHH | C110: =IF($E110="Not Available","",VLOOKUP(E110,'Prices Furniture'!A:F,6,FALSE)*(1-$S$3)) -> 215.02 | E110: =VLOOKUP(A110,Codes!$B:$BC,'Data Validation Lists'!$B$1+2,FALSE) -> @LK-JWT-W357R | G110: =IF(AND(B110>0,'Data Validation Lists'!$I$1=1),B110,"") ->  | R110: Furniture
A111: 400 Wall Unit (575mm High) LHH | C111: =IF($E111="Not Available","",VLOOKUP(E111,'Prices Furniture'!A:F,6,FALSE)*(1-$S$3)) -> 245 | E111: =VLOOKUP(A111,Codes!$B:$BC,'Data Validation Lists'!$B$1+2,FALSE) -> @LK-JWT-W457L | G111: =IF(AND(B111>0,'Data Validation Lists'!$I$1=1),B111,"") ->  | R111: Furniture
A112: 400 Wall Unit (575mm High) RHH | C112: =IF($E112="Not Available","",VLOOKUP(E112,'Prices Furniture'!A:F,6,FALSE)*(1-$S$3)) -> 245 | E112: =VLOOKUP(A112,Codes!$B:$BC,'Data Validation Lists'!$B$1+2,FALSE) -> @LK-JWT-W457R | G112: =IF(AND(B112>0,'Data Validation Lists'!$I$1=1),B112,"") ->  | R112: Furniture
A113: 450 Wall Unit (575mm High) LHH | C113: =IF($E113="Not Available","",VLOOKUP(E113,'Prices Furniture'!A:F,6,FALSE)*(1-$S$3)) -> 261.01 | E113: =VLOOKUP(A113,Codes!$B:$BC,'Data Validation Lists'!$B$1+2,FALSE) -> @LK-JWT-W4557L | G113: =IF(AND(B113>0,'Data Validation Lists'!$I$1=1),B113,"") ->  | R113: Furniture
A114: 450 Wall Unit (575mm High) RHH | C114: =IF($E114="Not Available","",VLOOKUP(E114,'Prices Furniture'!A:F,6,FALSE)*(1-$S$3)) -> 261.01 | E114: =VLOOKUP(A114,Codes!$B:$BC,'Data Validation Lists'!$B$1+2,FALSE) -> @LK-JWT-W4557R | G114: =IF(AND(B114>0,'Data Validation Lists'!$I$1=1),B114,"") ->  | R114: Furniture
A115: 500 Wall Unit (575mm High) LHH | C115: =IF($E115="Not Available","",VLOOKUP(E115,'Prices Furniture'!A:F,6,FALSE)*(1-$S$3)) -> 277.01 | E115: =VLOOKUP(A115,Codes!$B:$BC,'Data Validation Lists'!$B$1+2,FALSE) -> @LK-JWT-W557L | G115: =IF(AND(B115>0,'Data Validation Lists'!$I$1=1),B115,"") ->  | R115: Furniture
A116: 500 Wall Unit (575mm High) RHH | C116: =IF($E116="Not Available","",VLOOKUP(E116,'Prices Furniture'!A:F,6,FALSE)*(1-$S$3)) -> 277.01 | E116: =VLOOKUP(A116,Codes!$B:$BC,'Data Validation Lists'!$B$1+2,FALSE) -> @LK-JWT-W557R | G116: =IF(AND(B116>0,'Data Validation Lists'!$I$1=1),B116,"") ->  | R116: Furniture
A117: 600 Wall Unit (575mm High) LHH | C117: =IF($E117="Not Available","",VLOOKUP(E117,'Prices Furniture'!A:F,6,FALSE)*(1-$S$3)) -> 290.02 | E117: =VLOOKUP(A117,Codes!$B:$BC,'Data Validation Lists'!$B$1+2,FALSE) -> @LK-JWT-W657L | G117: =IF(AND(B117>0,'Data Validation Lists'!$I$1=1),B117,"") ->  | R117: Furniture
A118: 600 Wall Unit (575mm High) RHH | C118: =IF($E118="Not Available","",VLOOKUP(E118,'Prices Furniture'!A:F,6,FALSE)*(1-$S$3)) -> 290.02 | E118: =VLOOKUP(A118,Codes!$B:$BC,'Data Validation Lists'!$B$1+2,FALSE) -> @LK-JWT-W657R | G118: =IF(AND(B118>0,'Data Validation Lists'!$I$1=1),B118,"") ->  | R118: Furniture
A119: 800 Wall Unit (575mm High) | C119: =IF($E119="Not Available","",VLOOKUP(E119,'Prices Furniture'!A:F,6,FALSE)*(1-$S$3)) -> 409.02 | E119: =VLOOKUP(A119,Codes!$B:$BC,'Data Validation Lists'!$B$1+2,FALSE) -> @LK-JWT-W857 | G119: =IF(AND(B119>0,'Data Validation Lists'!$I$1=1),B119,"") ->  | R119: Furniture
A120: 900 Wall Unit (575mm High) | C120: =IF($E120="Not Available","",VLOOKUP(E120,'Prices Furniture'!A:F,6,FALSE)*(1-$S$3)) -> 427.02 | E120: =VLOOKUP(A120,Codes!$B:$BC,'Data Validation Lists'!$B$1+2,FALSE) -> @LK-JWT-W957 | G120: =IF(AND(B120>0,'Data Validation Lists'!$I$1=1),B120,"") ->  | R120: Furniture
A121: 1000 Wall Unit (575mm High) | C121: =IF($E121="Not Available","",VLOOKUP(E121,'Prices Furniture'!A:F,6,FALSE)*(1-$S$3)) -> 456.01 | E121: =VLOOKUP(A121,Codes!$B:$BC,'Data Validation Lists'!$B$1+2,FALSE) -> @LK-JWT-W157 | G121: =IF(AND(B121>0,'Data Validation Lists'!$I$1=1),B121,"") ->  | R121: Furniture
A122: Wall Units (720mm High) | G122: =IF(AND(B122>0,'Data Validation Lists'!$I$1=1),B122,"") ->  | R122: Furniture | T122: =IF(B122="","",SUM(D122/1.2)*(1-$S$2)/(1-$S$3)) -> 
G123: =IF(AND(B123>0,'Data Validation Lists'!$I$1=1),B123,"") ->  | R123: Furniture
A124: 150 Wall Unit (720mm High) LHH | C124: =IF($E124="Not Available","",VLOOKUP(E124,'Prices Furniture'!A:F,6,FALSE)*(1-$S$3)) -> 224.02 | D124: =IF(B124="","",B124*C124) ->  | E124: =VLOOKUP(A124,Codes!$B:$BC,'Data Validation Lists'!$B$1+2,FALSE) -> @LK-JWT-W15L | F124: Available While Stocks Last | G124: =IF(AND(B124>0,'Data Validation Lists'!$I$1=1),B124,"") ->  | R124: Furniture
A125: 150 Wall Unit (720mm High) RHH | C125: =IF($E125="Not Available","",VLOOKUP(E125,'Prices Furniture'!A:F,6,FALSE)*(1-$S$3)) -> 224.02 | E125: =VLOOKUP(A125,Codes!$B:$BC,'Data Validation Lists'!$B$1+2,FALSE) -> @LK-JWT-W15R | F125: Available While Stocks Last | G125: =IF(AND(B125>0,'Data Validation Lists'!$I$1=1),B125,"") ->  | R125: Furniture
A126: 260 Wall Unit (720mm High) LHH | C126: =IF($E126="Not Available","",VLOOKUP(E126,'Prices Furniture'!A:F,6,FALSE)*(1-$S$3)) -> 261.01 | E126: =VLOOKUP(A126,Codes!$B:$BC,'Data Validation Lists'!$B$1+2,FALSE) -> @LK-JWT-W26L | F126: Available While Stocks Last | G126: =IF(AND(B126>0,'Data Validation Lists'!$I$1=1),B126,"") ->  | R126: Furniture
A127: 260 Wall Unit (720mm High) RHH | C127: =IF($E127="Not Available","",VLOOKUP(E127,'Prices Furniture'!A:F,6,FALSE)*(1-$S$3)) -> 261.01 | E127: =VLOOKUP(A127,Codes!$B:$BC,'Data Validation Lists'!$B$1+2,FALSE) -> @LK-JWT-W26R | F127: Available While Stocks Last | G127: =IF(AND(B127>0,'Data Validation Lists'!$I$1=1),B127,"") ->  | R127: Furniture
A128: 300 Wall Unit (720mm High) LHH | C128: =IF($E128="Not Available","",VLOOKUP(E128,'Prices Furniture'!A:F,6,FALSE)*(1-$S$3)) -> 271.01 | E128: =VLOOKUP(A128,Codes!$B:$BC,'Data Validation Lists'!$B$1+2,FALSE) -> @LK-JWT-W30L | G128: =IF(AND(B128>0,'Data Validation Lists'!$I$1=1),B128,"") ->  | R128: Furniture
A129: 300 Wall Unit (720mm High) RHH | C129: =IF($E129="Not Available","",VLOOKUP(E129,'Prices Furniture'!A:F,6,FALSE)*(1-$S$3)) -> 271.01 | E129: =VLOOKUP(A129,Codes!$B:$BC,'Data Validation Lists'!$B$1+2,FALSE) -> @LK-JWT-W30R | G129: =IF(AND(B129>0,'Data Validation Lists'!$I$1=1),B129,"") ->  | R129: Furniture
A130: 350 Wall Unit (720mm High) LHH | C130: =IF($E130="Not Available","",VLOOKUP(E130,'Prices Furniture'!A:F,6,FALSE)*(1-$S$3)) -> 276.01 | E130: =VLOOKUP(A130,Codes!$B:$BC,'Data Validation Lists'!$B$1+2,FALSE) -> @LK-JWT-W35L | G130: =IF(AND(B130>0,'Data Validation Lists'!$I$1=1),B130,"") ->  | R130: Furniture
A131: 350 Wall Unit (720mm High) RHH | C131: =IF($E131="Not Available","",VLOOKUP(E131,'Prices Furniture'!A:F,6,FALSE)*(1-$S$3)) -> 276.01 | E131: =VLOOKUP(A131,Codes!$B:$BC,'Data Validation Lists'!$B$1+2,FALSE) -> @LK-JWT-W35R | G131: =IF(AND(B131>0,'Data Validation Lists'!$I$1=1),B131,"") ->  | R131: Furniture
A132: 400 Wall Unit (720mm High) LHH | C132: =IF($E132="Not Available","",VLOOKUP(E132,'Prices Furniture'!A:F,6,FALSE)*(1-$S$3)) -> 286.01 | D132: =IF(B132="","",B132*C132) ->  | E132: =VLOOKUP(A132,Codes!$B:$BC,'Data Validation Lists'!$B$1+2,FALSE) -> @LK-JWT-W40L | G132: =IF(AND(B132>0,'Data Validation Lists'!$I$1=1),B132,"") ->  | R132: Furniture
A133: 400 Wall Unit (720mm High) RHH | C133: =IF($E133="Not Available","",VLOOKUP(E133,'Prices Furniture'!A:F,6,FALSE)*(1-$S$3)) -> 286.01 | E133: =VLOOKUP(A133,Codes!$B:$BC,'Data Validation Lists'!$B$1+2,FALSE) -> @LK-JWT-W40R | G133: =IF(AND(B133>0,'Data Validation Lists'!$I$1=1),B133,"") ->  | R133: Furniture
A134: 450 Wall Unit (720mm High) LHH | C134: =IF($E134="Not Available","",VLOOKUP(E134,'Prices Furniture'!A:F,6,FALSE)*(1-$S$3)) -> 301.01 | E134: =VLOOKUP(A134,Codes!$B:$BC,'Data Validation Lists'!$B$1+2,FALSE) -> @LK-JWT-W45L | G134: =IF(AND(B134>0,'Data Validation Lists'!$I$1=1),B134,"") ->  | R134: Furniture
A135: 450 Wall Unit (720mm High) RHH | C135: =IF($E135="Not Available","",VLOOKUP(E135,'Prices Furniture'!A:F,6,FALSE)*(1-$S$3)) -> 301.01 | E135: =VLOOKUP(A135,Codes!$B:$BC,'Data Validation Lists'!$B$1+2,FALSE) -> @LK-JWT-W45R | G135: =IF(AND(B135>0,'Data Validation Lists'!$I$1=1),B135,"") ->  | R135: Furniture
A136: 500 Wall Unit (720mm High) LHH | C136: =IF($E136="Not Available","",VLOOKUP(E136,'Prices Furniture'!A:F,6,FALSE)*(1-$S$3)) -> 311 | E136: =VLOOKUP(A136,Codes!$B:$BC,'Data Validation Lists'!$B$1+2,FALSE) -> @LK-JWT-W50L | G136: =IF(AND(B136>0,'Data Validation Lists'!$I$1=1),B136,"") ->  | R136: Furniture
A137: 500 Wall Unit (720mm High) RHH | C137: =IF($E137="Not Available","",VLOOKUP(E137,'Prices Furniture'!A:F,6,FALSE)*(1-$S$3)) -> 311 | E137: =VLOOKUP(A137,Codes!$B:$BC,'Data Validation Lists'!$B$1+2,FALSE) -> @LK-JWT-W50R | G137: =IF(AND(B137>0,'Data Validation Lists'!$I$1=1),B137,"") ->  | R137: Furniture
A138: 600 Wall Unit (720mm High) LHH | C138: =IF($E138="Not Available","",VLOOKUP(E138,'Prices Furniture'!A:F,6,FALSE)*(1-$S$3)) -> 329.02 | E138: =VLOOKUP(A138,Codes!$B:$BC,'Data Validation Lists'!$B$1+2,FALSE) -> @LK-JWT-W60L | G138: =IF(AND(B138>0,'Data Validation Lists'!$I$1=1),B138,"") ->  | R138: Furniture
A139: 600 Wall Unit (720mm High) RHH | C139: =IF($E139="Not Available","",VLOOKUP(E139,'Prices Furniture'!A:F,6,FALSE)*(1-$S$3)) -> 329.02 | E139: =VLOOKUP(A139,Codes!$B:$BC,'Data Validation Lists'!$B$1+2,FALSE) -> @LK-JWT-W60R | G139: =IF(AND(B139>0,'Data Validation Lists'!$I$1=1),B139,"") ->  | R139: Furniture
A140: 700 Wall Unit (720mm High) | C140: =IF($E140="Not Available","",VLOOKUP(E140,'Prices Furniture'!A:F,6,FALSE)*(1-$S$3)) -> 481.02 | E140: =VLOOKUP(A140,Codes!$B:$BC,'Data Validation Lists'!$B$1+2,FALSE) -> @LK-JWT-W70 | G140: =IF(AND(B140>0,'Data Validation Lists'!$I$1=1),B140,"") ->  | R140: Furniture
A141: 800 Wall Unit (720mm High) | C141: =IF($E141="Not Available","",VLOOKUP(E141,'Prices Furniture'!A:F,6,FALSE)*(1-$S$3)) -> 491.03 | E141: =VLOOKUP(A141,Codes!$B:$BC,'Data Validation Lists'!$B$1+2,FALSE) -> @LK-JWT-W80 | G141: =IF(AND(B141>0,'Data Validation Lists'!$I$1=1),B141,"") ->  | R141: Furniture
A142: 900 Wall Unit (720mm High) | C142: =IF($E142="Not Available","",VLOOKUP(E142,'Prices Furniture'!A:F,6,FALSE)*(1-$S$3)) -> 507.01 | D142: =IF(B142="","",B142*C142) ->  | E142: =VLOOKUP(A142,Codes!$B:$BC,'Data Validation Lists'!$B$1+2,FALSE) -> @LK-JWT-W90 | G142: =IF(AND(B142>0,'Data Validation Lists'!$I$1=1),B142,"") ->  | R142: Furniture
A143: 1000 Wall Unit (720mm High) | C143: =IF($E143="Not Available","",VLOOKUP(E143,'Prices Furniture'!A:F,6,FALSE)*(1-$S$3)) -> 524 | D143: =IF(B143="","",B143*C143) ->  | E143: =VLOOKUP(A143,Codes!$B:$BC,'Data Validation Lists'!$B$1+2,FALSE) -> @LK-JWT-W100 | G143: =IF(AND(B143>0,'Data Validation Lists'!$I$1=1),B143,"") ->  | R143: Furniture
R144: Furniture
A145: 650 L Cnr Wall Unit (720mm High) | C145: =IF($E145="Not Available","",VLOOKUP(E145,'Prices Furniture'!A:F,6,FALSE)*(1-$S$3)) -> 764.99 | D145: =IF(B145="","",B145*C145) ->  | E145: =VLOOKUP(A145,Codes!$B:$BC,'Data Validation Lists'!$B$1+2,FALSE) -> @LK-JWT-WCL65 | G145: =IF(AND(B145>0,'Data Validation Lists'!$I$1=1),B145,"") ->  | R145: Furniture | T145: =IF(B145="","",SUM(D145/1.2)*(1-$S$2)/(1-$S$3)) -> 
R146: Furniture
A147: 600 Wall Microwave Unit | C147: =IF($E147="Not Available","",VLOOKUP(E147,'Prices Furniture'!A:F,6,FALSE)*(1-$S$3)) -> 444.01 | D147: =IF(B147="","",B147*C147) ->  | E147: =VLOOKUP(A147,Codes!$B:$BC,'Data Validation Lists'!$B$1+2,FALSE) -> @LK-JWT-WM60 | G147: =IF(AND(B147>0,'Data Validation Lists'!$I$1=1),B147,"") ->  | R147: Furniture | T147: =IF(B147="","",SUM(D147/1.2)*(1-$S$2)/(1-$S$3)) -> 
A148: 600 Boiler Housing LHH | C148: =IF($E148="Not Available","",VLOOKUP(E148,'Prices Furniture'!A:F,6,FALSE)*(1-$S$3)) -> 345.01 | D148: =IF(B148="","",B148*C148) ->  | E148: =VLOOKUP(A148,Codes!$B:$BC,'Data Validation Lists'!$B$1+2,FALSE) -> @LK-JWT-WBHUL | G148: =IF(AND(B148>0,'Data Validation Lists'!$I$1=1),B148,"") ->  | R148: Furniture | T148: =IF(B148="","",SUM(D148/1.2)*(1-$S$2)/(1-$S$3)) -> 
A149: 600 Boiler Housing RHH | C149: =IF($E149="Not Available","",VLOOKUP(E149,'Prices Furniture'!A:F,6,FALSE)*(1-$S$3)) -> 345.01 | D149: =IF(B149="","",B149*C149) ->  | E149: =VLOOKUP(A149,Codes!$B:$BC,'Data Validation Lists'!$B$1+2,FALSE) -> @LK-JWT-WBHUR | G149: =IF(AND(B149>0,'Data Validation Lists'!$I$1=1),B149,"") ->  | R149: Furniture | T149: =IF(B149="","",SUM(D149/1.2)*(1-$S$2)/(1-$S$3)) -> 
R150: Furniture
A151: Smoked Glass Wall Unit - 500mm | C151: =IF($E151="Not Available","",VLOOKUP(E151,'Prices Furniture'!A:F,6,FALSE)*(1-$S$3)) -> 434 | D151: =IF(B151="","",B151*C151) ->  | E151: =VLOOKUP(A151,Codes!$B:$BC,'Data Validation Lists'!$B$1+2,FALSE) -> @LK-JWT-WGS5 | G151: =IF(AND(B151>0,'Data Validation Lists'!$I$1=1),B151,"") ->  | R151: Furniture | T151: =IF(B151="","",SUM(D151/1.2)*(1-$S$2)/(1-$S$3)) -> 
A152: Smoked Glass Wall Unit - 600mm | C152: =IF($E152="Not Available","",VLOOKUP(E152,'Prices Furniture'!A:F,6,FALSE)*(1-$S$3)) -> 476.02 | E152: =VLOOKUP(A152,Codes!$B:$BC,'Data Validation Lists'!$B$1+2,FALSE) -> @LK-JWT-WGS6 | G152: =IF(AND(B152>0,'Data Validation Lists'!$I$1=1),B152,"") ->  | R152: Furniture
A153: Reeded Glass Wall Unit - 500mm | C153: =IF($E153="Not Available","",VLOOKUP(E153,'Prices Furniture'!A:F,6,FALSE)*(1-$S$3)) -> 434 | D153: =IF(B153="","",B153*C153) ->  | E153: =VLOOKUP(A153,Codes!$B:$BC,'Data Validation Lists'!$B$1+2,FALSE) -> @LK-JWT-WGR5 | G153: =IF(AND(B153>0,'Data Validation Lists'!$I$1=1),B153,"") ->  | R153: Furniture
A154: Reeded Glass Wall Unit - 600mm | C154: =IF($E154="Not Available","",VLOOKUP(E154,'Prices Furniture'!A:F,6,FALSE)*(1-$S$3)) -> 476.02 | E154: =VLOOKUP(A154,Codes!$B:$BC,'Data Validation Lists'!$B$1+2,FALSE) -> @LK-JWT-WGR6 | G154: =IF(AND(B154>0,'Data Validation Lists'!$I$1=1),B154,"") ->  | R154: Furniture
A155: Glass Shelf 500 x 8mm | C155: =IF($E155="Not Available","",VLOOKUP(E155,'Prices Furniture'!A:F,6,FALSE)*(1-$S$3)) -> 69.996 | E155: =VLOOKUP(A155,Codes!$B:$BC,'Data Validation Lists'!$B$1+2,FALSE) -> LK-FC-GLSHLF5 | F155: Don't forget to order your glass shelves! | R155: Furniture
A156: Glass Shelf 600 x 8mm | C156: =IF($E156="Not Available","",VLOOKUP(E156,'Prices Furniture'!A:F,6,FALSE)*(1-$S$3)) -> 69.996 | E156: =VLOOKUP(A156,Codes!$B:$BC,'Data Validation Lists'!$B$1+2,FALSE) -> LK-FC-GLSHLF6 | F156: Don't forget to order your glass shelves! | R156: Furniture
R157: Furniture
A158: 600 285 Bridging Unit | C158: =IF($E158="Not Available","",VLOOKUP(E158,'Prices Furniture'!A:F,6,FALSE)*(1-$S$3)) -> 301.01 | D158: =IF(B158="","",B158*C158) ->  | E158: =VLOOKUP(A158,Codes!$B:$BC,'Data Validation Lists'!$B$1+2,FALSE) -> @LK-JWT-WB62 | G158: =IF(AND(B158>0,'Data Validation Lists'!$I$1=1),B158,"") ->  | R158: Furniture | T158: =IF(B158="","",SUM(D158/1.2)*(1-$S$2)/(1-$S$3)) -> 
A159: 800 285 Bridging Unit | C159: =IF($E159="Not Available","",VLOOKUP(E159,'Prices Furniture'!A:F,6,FALSE)*(1-$S$3)) -> 359 | D159: =IF(B159="","",B159*C159) ->  | E159: =VLOOKUP(A159,Codes!$B:$BC,'Data Validation Lists'!$B$1+2,FALSE) -> @LK-JWT-WB82 | G159: =IF(AND(B159>0,'Data Validation Lists'!$I$1=1),B159,"") ->  | R159: Furniture | T159: =IF(B159="","",SUM(D159/1.2)*(1-$S$2)/(1-$S$3)) -> 
A160: 900 285 Bridging Unit | C160: =IF($E160="Not Available","",VLOOKUP(E160,'Prices Furniture'!A:F,6,FALSE)*(1-$S$3)) -> 378.01 | D160: =IF(B160="","",B160*C160) ->  | E160: =VLOOKUP(A160,Codes!$B:$BC,'Data Validation Lists'!$B$1+2,FALSE) -> @LK-JWT-WB92 | G160: =IF(AND(B160>0,'Data Validation Lists'!$I$1=1),B160,"") ->  | R160: Furniture | T160: =IF(B160="","",SUM(D160/1.2)*(1-$S$2)/(1-$S$3)) -> 
A161: 1000 285 Bridging Unit | C161: =IF($E161="Not Available","",VLOOKUP(E161,'Prices Furniture'!A:F,6,FALSE)*(1-$S$3)) -> 389 | D161: =IF(B161="","",B161*C161) ->  | E161: =VLOOKUP(A161,Codes!$B:$BC,'Data Validation Lists'!$B$1+2,FALSE) -> @LK-JWT-WB12 | G161: =IF(AND(B161>0,'Data Validation Lists'!$I$1=1),B161,"") ->  | R161: Furniture | T161: =IF(B161="","",SUM(D161/1.2)*(1-$S$2)/(1-$S$3)) -> 
R162: Furniture
A163: 600 355mm Bridging Unit | C163: =IF($E163="Not Available","",VLOOKUP(E163,'Prices Furniture'!A:F,6,FALSE)*(1-$S$3)) -> 330.01 | D163: =IF(B163="","",B163*C163) ->  | E163: =VLOOKUP(A163,Codes!$B:$BC,'Data Validation Lists'!$B$1+2,FALSE) -> @LK-JWT-WB63 | G163: =IF(AND(B163>0,'Data Validation Lists'!$I$1=1),B163,"") ->  | R163: Furniture | T163: =IF(B163="","",SUM(D163/1.2)*(1-$S$2)/(1-$S$3)) -> 
A164: 800 355mm Bridging Unit | C164: =IF($E164="Not Available","",VLOOKUP(E164,'Prices Furniture'!A:F,6,FALSE)*(1-$S$3)) -> 396.01 | D164: =IF(B164="","",B164*C164) ->  | E164: =VLOOKUP(A164,Codes!$B:$BC,'Data Validation Lists'!$B$1+2,FALSE) -> @LK-JWT-WB83 | G164: =IF(AND(B164>0,'Data Validation Lists'!$I$1=1),B164,"") ->  | R164: Furniture | T164: =IF(B164="","",SUM(D164/1.2)*(1-$S$2)/(1-$S$3)) -> 
A165: 900 355mm Bridging Unit | C165: =IF($E165="Not Available","",VLOOKUP(E165,'Prices Furniture'!A:F,6,FALSE)*(1-$S$3)) -> 413 | D165: =IF(B165="","",B165*C165) ->  | E165: =VLOOKUP(A165,Codes!$B:$BC,'Data Validation Lists'!$B$1+2,FALSE) -> @LK-JWT-WB93 | G165: =IF(AND(B165>0,'Data Validation Lists'!$I$1=1),B165,"") ->  | R165: Furniture | T165: =IF(B165="","",SUM(D165/1.2)*(1-$S$2)/(1-$S$3)) -> 
A166: 1000 355mm Bridging Unit | C166: =IF($E166="Not Available","",VLOOKUP(E166,'Prices Furniture'!A:F,6,FALSE)*(1-$S$3)) -> 426 | D166: =IF(B166="","",B166*C166) ->  | E166: =VLOOKUP(A166,Codes!$B:$BC,'Data Validation Lists'!$B$1+2,FALSE) -> @LK-JWT-WB13 | G166: =IF(AND(B166>0,'Data Validation Lists'!$I$1=1),B166,"") ->  | R166: Furniture | T166: =IF(B166="","",SUM(D166/1.2)*(1-$S$2)/(1-$S$3)) -> 
R167: Furniture
A168: Tall Wall Units (900mm High) | R168: Furniture | T168: =IF(B168="","",SUM(D168/1.2)*(1-$S$2)/(1-$S$3)) -> 
R169: Furniture
A170: 300 Tall Wall Unit (900mm High) LHH | C170: =IF($E170="Not Available","",VLOOKUP(E170,'Prices Furniture'!A:F,6,FALSE)*(1-$S$3)) -> 337.01 | D170: =IF(B170="","",B170*C170) ->  | E170: =VLOOKUP(A170,Codes!$B:$BC,'Data Validation Lists'!$B$1+2,FALSE) -> @LK-JWT-TW30L | G170: =IF(AND(B170>0,'Data Validation Lists'!$I$1=1),B170,"") ->  | R170: Furniture
A171: 300 Tall Wall Unit (900mm High) RHH | C171: =IF($E171="Not Available","",VLOOKUP(E171,'Prices Furniture'!A:F,6,FALSE)*(1-$S$3)) -> 337.01 | E171: =VLOOKUP(A171,Codes!$B:$BC,'Data Validation Lists'!$B$1+2,FALSE) -> @LK-JWT-TW30R | G171: =IF(AND(B171>0,'Data Validation Lists'!$I$1=1),B171,"") ->  | R171: Furniture
A172: 400 Tall Wall Unit (900mm High) LHH | C172: =IF($E172="Not Available","",VLOOKUP(E172,'Prices Furniture'!A:F,6,FALSE)*(1-$S$3)) -> 353 | E172: =VLOOKUP(A172,Codes!$B:$BC,'Data Validation Lists'!$B$1+2,FALSE) -> @LK-JWT-TW40L | G172: =IF(AND(B172>0,'Data Validation Lists'!$I$1=1),B172,"") ->  | R172: Furniture
A173: 400 Tall Wall Unit (900mm High) RHH | C173: =IF($E173="Not Available","",VLOOKUP(E173,'Prices Furniture'!A:F,6,FALSE)*(1-$S$3)) -> 353 | E173: =VLOOKUP(A173,Codes!$B:$BC,'Data Validation Lists'!$B$1+2,FALSE) -> @LK-JWT-TW40R | G173: =IF(AND(B173>0,'Data Validation Lists'!$I$1=1),B173,"") ->  | R173: Furniture
A174: 450 Tall Wall Unit (900mm High) LHH | C174: =IF($E174="Not Available","",VLOOKUP(E174,'Prices Furniture'!A:F,6,FALSE)*(1-$S$3)) -> 366.01 | E174: =VLOOKUP(A174,Codes!$B:$BC,'Data Validation Lists'!$B$1+2,FALSE) -> @LK-JWT-TW45L | G174: =IF(AND(B174>0,'Data Validation Lists'!$I$1=1),B174,"") ->  | R174: Furniture
A175: 450 Tall Wall Unit (900mm High) RHH | C175: =IF($E175="Not Available","",VLOOKUP(E175,'Prices Furniture'!A:F,6,FALSE)*(1-$S$3)) -> 366.01 | D175: =IF(B175="","",B175*C175) ->  | E175: =VLOOKUP(A175,Codes!$B:$BC,'Data Validation Lists'!$B$1+2,FALSE) -> @LK-JWT-TW45R | G175: =IF(AND(B175>0,'Data Validation Lists'!$I$1=1),B175,"") ->  | R175: Furniture
A176: 500 Tall Wall Unit (900mm High) LHH | C176: =IF($E176="Not Available","",VLOOKUP(E176,'Prices Furniture'!A:F,6,FALSE)*(1-$S$3)) -> 387.01 | E176: =VLOOKUP(A176,Codes!$B:$BC,'Data Validation Lists'!$B$1+2,FALSE) -> @LK-JWT-TW50L | G176: =IF(AND(B176>0,'Data Validation Lists'!$I$1=1),B176,"") ->  | R176: Furniture
A177: 500 Tall Wall Unit (900mm High) RHH | C177: =IF($E177="Not Available","",VLOOKUP(E177,'Prices Furniture'!A:F,6,FALSE)*(1-$S$3)) -> 387.01 | E177: =VLOOKUP(A177,Codes!$B:$BC,'Data Validation Lists'!$B$1+2,FALSE) -> @LK-JWT-TW50R | G177: =IF(AND(B177>0,'Data Validation Lists'!$I$1=1),B177,"") ->  | R177: Furniture
A178: 600 Tall Wall Unit (900mm High) LHH | C178: =IF($E178="Not Available","",VLOOKUP(E178,'Prices Furniture'!A:F,6,FALSE)*(1-$S$3)) -> 375.01 | E178: =VLOOKUP(A178,Codes!$B:$BC,'Data Validation Lists'!$B$1+2,FALSE) -> @LK-JWT-TW60L | G178: =IF(AND(B178>0,'Data Validation Lists'!$I$1=1),B178,"") ->  | R178: Furniture
A179: 600 Tall Wall Unit (900mm High) RHH | C179: =IF($E179="Not Available","",VLOOKUP(E179,'Prices Furniture'!A:F,6,FALSE)*(1-$S$3)) -> 375.01 | E179: =VLOOKUP(A179,Codes!$B:$BC,'Data Validation Lists'!$B$1+2,FALSE) -> @LK-JWT-TW60R | G179: =IF(AND(B179>0,'Data Validation Lists'!$I$1=1),B179,"") ->  | R179: Furniture
A180: 800 Tall Wall Unit (900mm High) | C180: =IF($E180="Not Available","",VLOOKUP(E180,'Prices Furniture'!A:F,6,FALSE)*(1-$S$3)) -> 588.01 | E180: =VLOOKUP(A180,Codes!$B:$BC,'Data Validation Lists'!$B$1+2,FALSE) -> @LK-JWT-TW80 | G180: =IF(AND(B180>0,'Data Validation Lists'!$I$1=1),B180,"") ->  | R180: Furniture
A181: 900 Tall Wall Unit (900mm High) | C181: =IF($E181="Not Available","",VLOOKUP(E181,'Prices Furniture'!A:F,6,FALSE)*(1-$S$3)) -> 606.02 | D181: =IF(B181="","",B181*C181) ->  | E181: =VLOOKUP(A181,Codes!$B:$BC,'Data Validation Lists'!$B$1+2,FALSE) -> @LK-JWT-TW90 | G181: =IF(AND(B181>0,'Data Validation Lists'!$I$1=1),B181,"") ->  | R181: Furniture
A182: 1000 Tall Wall Unit (900mm High) | C182: =IF($E182="Not Available","",VLOOKUP(E182,'Prices Furniture'!A:F,6,FALSE)*(1-$S$3)) -> 638.02 | E182: =VLOOKUP(A182,Codes!$B:$BC,'Data Validation Lists'!$B$1+2,FALSE) -> @LK-JWT-TW100 | G182: =IF(AND(B182>0,'Data Validation Lists'!$I$1=1),B182,"") ->  | R182: Furniture
R183: Furniture
A184: Over Counter Corner Appliance Housings (1248/1250mm High) | R184: Furniture | T184: =IF(B184="","",SUM(D184/1.2)*(1-$S$2)/(1-$S$3)) -> 
R185: Furniture
A186: 600 Corner Single Oven Housing LHH | C186: =IF($E186="Not Available","",VLOOKUP(E186,'Prices Furniture'!A:F,6,FALSE)*(1-$S$3)) -> 708 | D186: =IF(B186="","",B186*C186) ->  | E186: =VLOOKUP(A186,Codes!$B:$BC,'Data Validation Lists'!$B$1+2,FALSE) -> @LK-JWT-CH-SOL | R186: Furniture
A187: 600 Corner Single Oven Housing RHH | C187: =IF($E187="Not Available","",VLOOKUP(E187,'Prices Furniture'!A:F,6,FALSE)*(1-$S$3)) -> 708 | E187: =VLOOKUP(A187,Codes!$B:$BC,'Data Validation Lists'!$B$1+2,FALSE) -> @LK-JWT-CH-SOR | R187: Furniture
A188: 600 Corner Compact App/Micro Housing LHH | C188: =IF($E188="Not Available","",VLOOKUP(E188,'Prices Furniture'!A:F,6,FALSE)*(1-$S$3)) -> 777 | E188: =VLOOKUP(A188,Codes!$B:$BC,'Data Validation Lists'!$B$1+2,FALSE) -> @LK-JWT-CH-MWL | H188: =IF(AND($B188>0,'Data Validation Lists'!$I$6>1),SUM($B188*1),"") ->  | R188: Furniture
A189: 600 Corner Compact App/Micro Housing RHH | C189: =IF($E189="Not Available","",VLOOKUP(E189,'Prices Furniture'!A:F,6,FALSE)*(1-$S$3)) -> 777 | E189: =VLOOKUP(A189,Codes!$B:$BC,'Data Validation Lists'!$B$1+2,FALSE) -> @LK-JWT-CH-MWR | H189: =IF(AND($B189>0,'Data Validation Lists'!$I$6>1),SUM($B189*1),"") ->  | R189: Furniture
A190: 600 Corner Storage Unit LHH | C190: =IF($E190="Not Available","",VLOOKUP(E190,'Prices Furniture'!A:F,6,FALSE)*(1-$S$3)) -> 985.99 | E190: =VLOOKUP(A190,Codes!$B:$BC,'Data Validation Lists'!$B$1+2,FALSE) -> @LK-JWT-CH-STL | H190: =IF(AND($B190>0,'Data Validation Lists'!$I$6>1),SUM($B190*1),"") ->  | R190: Furniture
A191: 600 Corner Storage Unit RHH | C191: =IF($E191="Not Available","",VLOOKUP(E191,'Prices Furniture'!A:F,6,FALSE)*(1-$S$3)) -> 985.99 | E191: =VLOOKUP(A191,Codes!$B:$BC,'Data Validation Lists'!$B$1+2,FALSE) -> @LK-JWT-CH-STR | H191: =IF(AND($B191>0,'Data Validation Lists'!$I$6>1),SUM($B191*1),"") ->  | R191: Furniture
R192: Furniture
A193: Appliance Housings (1968mm High) | R193: Furniture | T193: =IF(B193="","",SUM(D193/1.2)*(1-$S$2)/(1-$S$3)) -> 
R194: Furniture | T194: =IF(B194="","",SUM(D194/1.2)*(1-$S$2)/(1-$S$3)) -> 
A195: 600 50/50 FF Housing Unit | C195: =IF($E195="Not Available","",VLOOKUP(E195,'Prices Furniture'!A:F,6,FALSE)*(1-$S$3)) -> 863.03 | D195: =IF(B195="","",B195*C195) ->  | E195: =VLOOKUP(A195,Codes!$B:$BC,'Data Validation Lists'!$B$1+2,FALSE) -> @LK-JWT-AH-F55 | R195: Furniture | T195: =IF(B195="","",SUM(D195/1.2)*(1-$S$2)/(1-$S$3)) -> 
A196: 600 70/30 FF Housing Unit LHH | C196: =IF($E196="Not Available","",VLOOKUP(E196,'Prices Furniture'!A:F,6,FALSE)*(1-$S$3)) -> 837.02 | D196: =IF(B196="","",B196*C196) ->  | E196: =VLOOKUP(A196,Codes!$B:$BC,'Data Validation Lists'!$B$1+2,FALSE) -> @LK-JWT-AH-F73L | R196: Furniture | T196: =IF(B196="","",SUM(D196/1.2)*(1-$S$2)/(1-$S$3)) -> 
A197: 600 70/30 FF Housing Unit RHH | C197: =IF($E197="Not Available","",VLOOKUP(E197,'Prices Furniture'!A:F,6,FALSE)*(1-$S$3)) -> 837.02 | D197: =IF(B197="","",B197*C197) ->  | E197: =VLOOKUP(A197,Codes!$B:$BC,'Data Validation Lists'!$B$1+2,FALSE) -> @LK-JWT-AH-F73R | R197: Furniture | T197: =IF(B197="","",SUM(D197/1.2)*(1-$S$2)/(1-$S$3)) -> 
R198: Furniture
A199: 600 Dble Oven Housing LHH | C199: =IF($E199="Not Available","",VLOOKUP(E199,'Prices Furniture'!A:F,6,FALSE)*(1-$S$3)) -> 764.03 | D199: =IF(B199="","",B199*C199) ->  | E199: =VLOOKUP(A199,Codes!$B:$BC,'Data Validation Lists'!$B$1+2,FALSE) -> @LK-JWT-AH-DOL | R199: Furniture | T199: =IF(B199="","",SUM(D199/1.2)*(1-$S$2)/(1-$S$3)) -> 
A200: 600 Dble Oven Housing RHH | C200: =IF($E200="Not Available","",VLOOKUP(E200,'Prices Furniture'!A:F,6,FALSE)*(1-$S$3)) -> 764.03 | D200: =IF(B200="","",B200*C200) ->  | E200: =VLOOKUP(A200,Codes!$B:$BC,'Data Validation Lists'!$B$1+2,FALSE) -> @LK-JWT-AH-DOR | R200: Furniture
A201: 600 Dble Oven & 2 Drws LHH | C201: =IF($E201="Not Available","",VLOOKUP(E201,'Prices Furniture'!A:F,6,FALSE)*(1-$S$3)) -> 1133.02 | D201: =IF(B201="","",B201*C201) ->  | E201: =VLOOKUP(A201,Codes!$B:$BC,'Data Validation Lists'!$B$1+2,FALSE) -> @LK-JWT-AH-DO2DL | I201: =IF(AND($B201>0,'Data Validation Lists'!$I$6>1),SUM($B201*2),"") ->  | R201: Furniture
A202: 600 Dble Oven & 2 Drws RHH | C202: =IF($E202="Not Available","",VLOOKUP(E202,'Prices Furniture'!A:F,6,FALSE)*(1-$S$3)) -> 1133.02 | D202: =IF(B202="","",B202*C202) ->  | E202: =VLOOKUP(A202,Codes!$B:$BC,'Data Validation Lists'!$B$1+2,FALSE) -> @LK-JWT-AH-DO2DR | I202: =IF(AND($B202>0,'Data Validation Lists'!$I$6>1),SUM($B202*2),"") ->  | R202: Furniture
A203: 600 Double Oven & MW unit | C203: =IF($E203="Not Available","",VLOOKUP(E203,'Prices Furniture'!A:F,6,FALSE)*(1-$S$3)) -> 1032.01 | D203: =IF(B203="","",B203*C203) ->  | E203: =VLOOKUP(A203,Codes!$B:$BC,'Data Validation Lists'!$B$1+2,FALSE) -> @LK-JWT-AH-DMW | I203: =IF(AND($B203>0,'Data Validation Lists'!$I$6>1),SUM($B203*1),"") ->  | R203: Furniture
... 649 more rows

Sheet Summary
A2: YOUR LOGO HERE
B3: Summary Quote
A6: Your Company Name | B6: =TODAY() -> 2025-11-11
A7: Your Address
A8: Your Address
A9: Your Address
A11: Your Telephone
A12: Your Email
A13: Customer Name:
A14: Customer Address:
A18: Tel. Home:
A19: Tel. Mobile:
A20: Email:
A21: Range | B21: Sales Person
A22: LochAnna Kitchens | B22: NAME
A23: =VLOOKUP('Data Validation Lists'!B1,'Data Validation Lists'!A2:B150,2,FALSE) -> PG5 Profile Matt White
A25: Description | B25: Sub Total
A26: Furniture | B26: =SUMIF(Kitchen!R:R,Summary!A26,Kitchen!D:D) -> 0
A27: Carron Sinks & Taps | B27: =SUMIF(Kitchen!R:R,Summary!A27,Kitchen!D:D) -> 0
A28: Quooker | B28: =SUMIF(Kitchen!R:R,Summary!A28,Kitchen!D:D) -> 0
A29: Lighting | B29: =SUMIF(Kitchen!R:R,Summary!A29,Kitchen!D:D) -> 0
A30: Eco Slabstone Splashbacks | B30: =SUMIF(Kitchen!R:R,Summary!A30,Kitchen!D:D) -> 0
A31: Worktops | B31: =SUMIF(Kitchen!R:R,Summary!A31,Kitchen!D:D) -> 0
A32: Other Items | B32: =SUMIF(Kitchen!R:R,Summary!A32,Kitchen!D:D) -> 0
A33: Delivery | B33: =Kitchen!D876 -> 90
A34: Installation
B37: Total (inc VAT)
B38: =SUM(B26:B35) -> 90
A43: This quote is indicative and subject to change. Upon acceptance of this quote a survey will be carried out and any changes required may result in a change to the final costs. The price quoted includes VAT (unless otherwise stated). VAT will be charged at the rate applying at the time of delivery.
A49: To accept this quotation, sign here and return: __________________________________________________________________

Sheet Data Validation Lists (hidden)
B1: 13 | H1: Rigid | I1: 1
A2: 1 | B2: PG5 Profile Cashmere Gloss | C2: 0 | D2: 4 Week Lead Time | H2: 1 | I2: Yes | Q2: Please Select
A3: 2 | B3: PG5 Profile Dove Grey Gloss | C3: 0 | D3: 4 Week Lead Time | H3: 2 | I3: No | N3: LK-ES-VCTB-6M | O3: 600 x 750 Eco Slabstone Splash Back | P3: Victorian Teal Blue Matt | Q3: =_xlfn.CONCAT(O3," ",P3) -> 600 x 750 Eco Slabstone Splash Back Victorian Teal Blue Matt
A4: 3 | B4: PG5 Profile Dust Grey Gloss | C4: 0 | D4: 4 Week Lead Time | N4: LK-ES-VCTB-9M | O4: 900 x 750 Eco Slabstone Splash Back | P4: Victorian Teal Blue Matt | Q4: 900 x 750 Eco Slabstone Splash Back Victorian Teal Blue Matt
A5: 4 | B5: PG5 Profile Porcelain Gloss | C5: 0 | D5: 4 Week Lead Time | N5: LK-ES-VCTB-1M | O5: 1000 x 750 Eco Slabstone Splash Back | P5: Victorian Teal Blue Matt | Q5: 1000 x 750 Eco Slabstone Splash Back Victorian Teal Blue Matt
A6: 5 | B6: PG5 Profile White Gloss | C6: 0 | D6: 4 Week Lead Time | H6: D Box Upgrade | I6: 3 | N6: LK-ES-VCSB-6M | O6: 600 x 750 Eco Slabstone Splash Back | P6: Victorian Soot Black Matt | Q6: 600 x 750 Eco Slabstone Splash Back Victorian Soot Black Matt
A7: 6 | B7: PG5 Profile Graphite Gloss | C7: 0 | D7: 4 Week Lead Time | H7: 1 | I7: Excel | N7: LK-ES-VCSB-9M | O7: 900 x 750 Eco Slabstone Splash Back | P7: Victorian Soot Black Matt | Q7: 900 x 750 Eco Slabstone Splash Back Victorian Soot Black Matt
A8: 7 | B8: PG5 Profile Matt Atlantic | C8: 0 | D8: 4 Week Lead Time | H8: 2 | I8: Legrabox | N8: LK-ES-VCSB-1M | O8: 1000 x 750 Eco Slabstone Splash Back | P8: Victorian Soot Black Matt | Q8: 1000 x 750 Eco Slabstone Splash Back Victorian Soot Black Matt
A9: 8 | B9: PG5 Profile Matt Cashmere | C9: 0 | D9: 4 Week Lead Time | H9: 3 | I9: Oak | N9: LK-ES-VCPG-6M | O9: 600 x 750 Eco Slabstone Splash Back | P9: Victorian Pencil Grey Matt | Q9: 600 x 750 Eco Slabstone Splash Back Victorian Pencil Grey Matt
A10: 9 | B10: PG5 Profile Matt Dove Grey | C10: 0 | D10: 4 Week Lead Time | N10: LK-ES-VCPG-9M | O10: 900 x 750 Eco Slabstone Splash Back | P10: Victorian Pencil Grey Matt | Q10: 900 x 750 Eco Slabstone Splash Back Victorian Pencil Grey Matt
A11: 10 | B11: PG5 Profile Matt Dust Grey | C11: 0 | D11: 4 Week Lead Time | N11: LK-ES-VCPG-1M | O11: 1000 x 750 Eco Slabstone Splash Back | P11: Victorian Pencil Grey Matt | Q11: 1000 x 750 Eco Slabstone Splash Back Victorian Pencil Grey Matt
A12: 11 | B12: PG5 Profile Matt Graphite | C12: 0 | D12: 4 Week Lead Time | H12: Home Delivery | I12: 1 | N12: LK-ES-VCOG-6M | O12: 600 x 750 Eco Slabstone Splash Back | P12: Victorian Olive Green Matt | Q12: 600 x 750 Eco Slabstone Splash Back Victorian Olive Green Matt
A13: 12 | B13: PG5 Profile Matt Porcelain | C13: 0 | D13: 4 Week Lead Time | H13: 1 | I13: Yes | N13: LK-ES-VCOG-9M | O13: 900 x 750 Eco Slabstone Splash Back | P13: Victorian Olive Green Matt | Q13: 900 x 750 Eco Slabstone Splash Back Victorian Olive Green Matt
A14: 13 | B14: PG5 Profile Matt White | C14: 0 | D14: 4 Week Lead Time | H14: 2 | I14: No | N14: LK-ES-VCOG-1M | O14: 1000 x 750 Eco Slabstone Splash Back | P14: Victorian Olive Green Matt | Q14: 1000 x 750 Eco Slabstone Splash Back Victorian Olive Green Matt
A15: 14 | B15: PG7A Profile Matt Aegean | D15: 5 Week Lead Time | N15: LK-ES-VCTO-6M | O15: 600 x 750 Eco Slabstone Splash Back | P15: Victorian Terracotta Orange Matt | Q15: 600 x 750 Eco Slabstone Splash Back Victorian Terracotta Orange Matt
A16: 15 | B16: PG7A Profile Matt Auburn | D16: 5 Week Lead Time | N16: LK-ES-VCTO-9M | O16: 900 x 750 Eco Slabstone Splash Back | P16: Victorian Terracotta Orange Matt | Q16: 900 x 750 Eco Slabstone Splash Back Victorian Terracotta Orange Matt
A17: 16 | B17: PG7A Profile Matt Breeze | D17: 5 Week Lead Time | H17: Cab Colour | I17: 4 | N17: LK-ES-VCTO-1M | O17: 1000 x 750 Eco Slabstone Splash Back | P17: Victorian Terracotta Orange Matt | Q17: 1000 x 750 Eco Slabstone Splash Back Victorian Terracotta Orange Matt
A18: 17 | B18: PG7A Profile Matt Brigade | D18: 5 Week Lead Time | I18: Default | N18: LK-ES-VCYB-6M | O18: 600 x 750 Eco Slabstone Splash Back | P18: Victorian Yale Blue Matt | Q18: 600 x 750 Eco Slabstone Splash Back Victorian Yale Blue Matt
A19: 18 | B19: PG7A Profile Matt Damson | D19: 5 Week Lead Time | I19: Anthracite Linen | N19: LK-ES-VCYB-9M | O19: 900 x 750 Eco Slabstone Splash Back | P19: Victorian Yale Blue Matt | Q19: 900 x 750 Eco Slabstone Splash Back Victorian Yale Blue Matt
A20: 19 | B20: PG7A Profile Matt Desert Pink | D20: 5 Week Lead Time | I20: Grey Linen | N20: LK-ES-VCYB-1M | O20: 1000 x 750 Eco Slabstone Splash Back | P20: Victorian Yale Blue Matt | Q20: 1000 x 750 Eco Slabstone Splash Back Victorian Yale Blue Matt
A21: 20 | B21: PG7A Profile Matt Heather Green | D21: 5 Week Lead Time | I21: Oak | N21: LK-ES-HARE-6M | O21: 600 x 750 Eco Slabstone Splash Back | P21: Hare Buttermilk Cream Matt | Q21: 600 x 750 Eco Slabstone Splash Back Hare Buttermilk Cream Matt
A22: 21 | B22: PG7A Profile Matt Indigo | D22: 5 Week Lead Time | I22: Stone Grey | N22: LK-ES-HARE-9M | O22: 900 x 750 Eco Slabstone Splash Back | P22: Hare Buttermilk Cream Matt | Q22: 900 x 750 Eco Slabstone Splash Back Hare Buttermilk Cream Matt
A23: 22 | B23: PG7A Profile Matt Ivory | D23: 5 Week Lead Time | I23: Walnut | N23: LK-ES-HARE-1M | O23: 1000 x 750 Eco Slabstone Splash Back | P23: Hare Buttermilk Cream Matt | Q23: 1000 x 750 Eco Slabstone Splash Back Hare Buttermilk Cream Matt
A24: 23 | B24: PG7A Profile Matt Laurel Green | D24: 5 Week Lead Time | I24: White | N24: LK-ES-MWSB-6M | O24: 600 x 750 Eco Slabstone Splash Back | P24: Meadow Steel Blue Matt | Q24: 600 x 750 Eco Slabstone Splash Back Meadow Steel Blue Matt
A25: 24 | B25: PG7A Profile Matt Meadow | D25: 5 Week Lead Time | N25: LK-ES-MWSB-9M | O25: 900 x 750 Eco Slabstone Splash Back | P25: Meadow Steel Blue Matt | Q25: 900 x 750 Eco Slabstone Splash Back Meadow Steel Blue Matt
A26: 25 | B26: PG7A Profile Matt Midnight | D26: 5 Week Lead Time | H26: Minerva | I26: 6 | N26: LK-ES-MWSB-1M | O26: 1000 x 750 Eco Slabstone Splash Back | P26: Meadow Steel Blue Matt | Q26: 1000 x 750 Eco Slabstone Splash Back Meadow Steel Blue Matt
A27: 26 | B27: PG7A Profile Matt Mussel | D27: 5 Week Lead Time | H27: 1 | I27: None | N27: LK-ES-MWSG-6M | O27: 600 x 750 Eco Slabstone Splash Back | P27: Meadow Sage Matt | Q27: 600 x 750 Eco Slabstone Splash Back Meadow Sage Matt
A28: 27 | B28: PG7A Profile Matt Olive | D28: 5 Week Lead Time | H28: 2 | I28: Blue Venato PG3 | N28: LK-ES-MWSG-9M | O28: 900 x 750 Eco Slabstone Splash Back | P28: Meadow Sage Matt | Q28: 900 x 750 Eco Slabstone Splash Back Meadow Sage Matt
A29: 28 | B29: PG7A Profile Matt Pale Teal | D29: 5 Week Lead Time | H29: 3 | I29: Calcutta White PG4 | N29: LK-ES-MWSG-1M | O29: 1000 x 750 Eco Slabstone Splash Back | P29: Meadow Sage Matt | Q29: 1000 x 750 Eco Slabstone Splash Back Meadow Sage Matt
A30: 29 | B30: PG7A Profile Matt Pearl | D30: 5 Week Lead Time | H30: 4 | I30: Caramel Crunch PG2 | N30: LK-ES-SFBC-6M | O30: 600 x 750 Eco Slabstone Splash Back | P30: Star Flower Buttermilk Cream Matt | Q30: 600 x 750 Eco Slabstone Splash Back Star Flower Buttermilk Cream Matt
A31: 30 | B31: PG7A Profile Matt Pebble Grey | D31: 5 Week Lead Time | H31: 5 | I31: Carrara White PG3 | N31: LK-ES-SFBC-9M | O31: 900 x 750 Eco Slabstone Splash Back | P31: Star Flower Buttermilk Cream Matt | Q31: 900 x 750 Eco Slabstone Splash Back Star Flower Buttermilk Cream Matt
A32: 31 | B32: PG7A Profile Matt Sage | D32: 5 Week Lead Time | H32: 6 | I32: Chalk Venato PG3 | N32: LK-ES-SFBC-1M | O32: 1000 x 750 Eco Slabstone Splash Back | P32: Star Flower Buttermilk Cream Matt | Q32: 1000 x 750 Eco Slabstone Splash Back Star Flower Buttermilk Cream Matt
A33: 32 | B33: PG7A Profile Matt Sapphire | D33: 5 Week Lead Time | H33: 7 | I33: Concrete Haze PG3 | N33: LK-ES-SFPB-6M | O33: 600 x 750 Eco Slabstone Splash Back | P33: Star Flower Pastel Blue Matt | Q33: 600 x 750 Eco Slabstone Splash Back Star Flower Pastel Blue Matt
A34: 33 | B34: PG7A Profile Matt Soft Black | D34: 5 Week Lead Time | H34: 8 | I34: Copper Fleck PG3 | N34: LK-ES-SFPB-9M | O34: 900 x 750 Eco Slabstone Splash Back | P34: Star Flower Pastel Blue Matt | Q34: 900 x 750 Eco Slabstone Splash Back Star Flower Pastel Blue Matt
A35: 34 | B35: PG7A Profile Matt Soot | D35: 5 Week Lead Time | H35: 9 | I35: Grey Crystal PG2 | N35: LK-ES-SFPB-1M | O35: 1000 x 750 Eco Slabstone Splash Back | P35: Star Flower Pastel Blue Matt | Q35: 1000 x 750 Eco Slabstone Splash Back Star Flower Pastel Blue Matt
A36: 35 | B36: PG7A Profile Matt Steel Grey | D36: 5 Week Lead Time | H36: 10 | I36: Grey Storm PG3 | N36: LK-ES-CYBB-6M | O36: 600 x 750 Eco Slabstone Splash Back | P36: Canterbury Baltic Blue Matt | Q36: 600 x 750 Eco Slabstone Splash Back Canterbury Baltic Blue Matt
A37: 36 | B37: PG7A Profile Matt Stone | D37: 5 Week Lead Time | H37: 11 | I37: Ice Blue PG2 | N37: LK-ES-CYBB-9M | O37: 900 x 750 Eco Slabstone Splash Back | P37: Canterbury Baltic Blue Matt | Q37: 900 x 750 Eco Slabstone Splash Back Canterbury Baltic Blue Matt
A38: 37 | B38: PG7A Profile Matt Taupe | D38: 5 Week Lead Time | H38: 12 | I38: Ice Crystal PG2 | N38: LK-ES-CYBB-1M | O38: 1000 x 750 Eco Slabstone Splash Back | P38: Canterbury Baltic Blue Matt | Q38: 1000 x 750 Eco Slabstone Splash Back Canterbury Baltic Blue Matt
A39: 38 | B39: PG7A Profile Matt Thicket | D39: 5 Week Lead Time | H39: 13 | I39: Marble Wash PG3 | N39: LK-ES-CYCG-6M | O39: 600 x 750 Eco Slabstone Splash Back | P39: Canterbury Charcoal Grey Matt | Q39: 600 x 750 Eco Slabstone Splash Back Canterbury Charcoal Grey Matt
A40: 39 | B40: PG7A Profile Matt Warm Earth | D40: 5 Week Lead Time | H40: 14 | I40: Nimbus Grey PG2 | N40: LK-ES-CYCG-9M | O40: 900 x 750 Eco Slabstone Splash Back | P40: Canterbury Charcoal Grey Matt | Q40: 900 x 750 Eco Slabstone Splash Back Canterbury Charcoal Grey Matt
H41: 15 | I41: Peak Stone PG2 | N41: LK-ES-CYCG-1M | O41: 1000 x 750 Eco Slabstone Splash Back | P41: Canterbury Charcoal Grey Matt | Q41: 1000 x 750 Eco Slabstone Splash Back Canterbury Charcoal Grey Matt
H42: 16 | I42: Silver Haze PG3 | N42: LK-ES-HBPC-6M | O42: 600 x 750 Eco Slabstone Splash Back | P42: Herringbone Porcelain Cream Matt | Q42: 600 x 750 Eco Slabstone Splash Back Herringbone Porcelain Cream Matt
H43: 17 | I43: Sparkling White PG3 | N43: LK-ES-HBPC-9M | O43: 900 x 750 Eco Slabstone Splash Back | P43: Herringbone Porcelain Cream Matt | Q43: 900 x 750 Eco Slabstone Splash Back Herringbone Porcelain Cream Matt
H44: 18 | I44: Travertine Haze PG3 | N44: LK-ES-HBPC-1M | O44: 1000 x 750 Eco Slabstone Splash Back | P44: Herringbone Porcelain Cream Matt | Q44: 1000 x 750 Eco Slabstone Splash Back Herringbone Porcelain Cream Matt
H45: 19 | I45: White PG1 | N45: LK-ES-HBCP-6M | O45: 600 x 750 Eco Slabstone Splash Back | P45: Herringbone Cashmere Pink Matt | Q45: 600 x 750 Eco Slabstone Splash Back Herringbone Cashmere Pink Matt
N46: LK-ES-HBCP-9M | O46: 900 x 750 Eco Slabstone Splash Back | P46: Herringbone Cashmere Pink Matt | Q46: 900 x 750 Eco Slabstone Splash Back Herringbone Cashmere Pink Matt
H47: Solutions Open Units | N47: LK-ES-HBCP-1M | O47: 1000 x 750 Eco Slabstone Splash Back | P47: Herringbone Cashmere Pink Matt | Q47: 1000 x 750 Eco Slabstone Splash Back Herringbone Cashmere Pink Matt
N48: LK-ES-HBIB-6M | O48: 600 x 750 Eco Slabstone Splash Back | P48: Herringbone Indigo Blue Matt | Q48: 600 x 750 Eco Slabstone Splash Back Herringbone Indigo Blue Matt
H49: 1 | I49: Select Range | J49: =VLOOKUP(Kitchen!$A697,$I50:$J53,2,FALSE) ->  | K49: =VLOOKUP(Kitchen!$A701,$I50:$J53,2,FALSE) ->  | L49: =VLOOKUP(Kitchen!$A705,$I50:$J53,2,FALSE) ->  | N49: LK-ES-HBIB-9M | O49: 900 x 750 Eco Slabstone Splash Back | P49: Herringbone Indigo Blue Matt | Q49: 900 x 750 Eco Slabstone Splash Back Herringbone Indigo Blue Matt
H50: 2 | I50: Natural Oak Open Unit | J50: HNO | N50: LK-ES-HBIB-1M | O50: 1000 x 750 Eco Slabstone Splash Back | P50: Herringbone Indigo Blue Matt | Q50: 1000 x 750 Eco Slabstone Splash Back Herringbone Indigo Blue Matt
H51: 3 | I51: Tobacco Oak Open Unit | J51: HTO | N51: LK-ES-HBMG-6M | O51: 600 x 750 Eco Slabstone Splash Back | P51: Herringbone Marble Grey Matt | Q51: 600 x 750 Eco Slabstone Splash Back Herringbone Marble Grey Matt
H52: 4 | I52: White Oak Open Unit | J52: HWO | N52: LK-ES-HBMG-9M | O52: 900 x 750 Eco Slabstone Splash Back | P52: Herringbone Marble Grey Matt | Q52: 900 x 750 Eco Slabstone Splash Back Herringbone Marble Grey Matt
N53: LK-ES-HBMG-1M | O53: 1000 x 750 Eco Slabstone Splash Back | P53: Herringbone Marble Grey Matt | Q53: 1000 x 750 Eco Slabstone Splash Back Herringbone Marble Grey Matt
N54: LK-ES-HBJG-6M | O54: 600 x 750 Eco Slabstone Splash Back | P54: Herringbone Jade Green Matt | Q54: 600 x 750 Eco Slabstone Splash Back Herringbone Jade Green Matt
H55: 1 | I55: 2 | J55: 3 | K55: 4 | L55: 5 | N55: LK-ES-HBJG-9M | O55: 900 x 750 Eco Slabstone Splash Back | P55: Herringbone Jade Green Matt | Q55: 900 x 750 Eco Slabstone Splash Back Herringbone Jade Green Matt
G56: Sizes | H56: 286 | I56: 360 | J56: 720 | K56: 900 | L56: 1960 | N56: LK-ES-HBJG-1M | O56: 1000 x 750 Eco Slabstone Splash Back | P56: Herringbone Jade Green Matt | Q56: 1000 x 750 Eco Slabstone Splash Back Herringbone Jade Green Matt
F57: 1 | G57: 150 | H57: 255 | I57: 255 | J57: 281 | K57: 309 | L57: 566
F58: 2 | G58: 300 | H58: 255 | I58: 255 | J58: 281 | K58: 309 | L58: 566 | Q58: Please Select
F59: 3 | G59: 400 | H59: 255 | I59: 255 | J59: 281 | K59: 309 | L59: 566 | N59: LK-ES-VCTB-6G | O59: 600 x 750 Eco Slabstone Splash Back | P59: Victorian Teal Blue Gloss | Q59: =_xlfn.CONCAT(O59," ",P59) -> 600 x 750 Eco Slabstone Splash Back Victorian Teal Blue Gloss
F60: 4 | G60: 500 | H60: 255 | I60: 255 | J60: 281 | K60: 309 | L60: 566 | N60: LK-ES-VCTB-9G | O60: 900 x 750 Eco Slabstone Splash Back | P60: Victorian Teal Blue Gloss | Q60: 900 x 750 Eco Slabstone Splash Back Victorian Teal Blue Gloss
F61: 5 | G61: 600 | H61: 255 | I61: 255 | J61: 281 | K61: 309 | L61: 618 | N61: LK-ES-VCTB-1G | O61: 1000 x 750 Eco Slabstone Splash Back | P61: Victorian Teal Blue Gloss | Q61: 1000 x 750 Eco Slabstone Splash Back Victorian Teal Blue Gloss
F62: 6 | G62: 700 | H62: 281 | I62: 281 | J62: 309 | K62: 330 | L62: Not Available | N62: LK-ES-VCSB-6G | O62: 600 x 750 Eco Slabstone Splash Back | P62: Victorian Soot Black Gloss | Q62: 600 x 750 Eco Slabstone Splash Back Victorian Soot Black Gloss
F63: 7 | G63: 800 | H63: 281 | I63: 281 | J63: 309 | K63: 330 | L63: Not Available | N63: LK-ES-VCSB-9G | O63: 900 x 750 Eco Slabstone Splash Back | P63: Victorian Soot Black Gloss | Q63: 900 x 750 Eco Slabstone Splash Back Victorian Soot Black Gloss
F64: 8 | G64: 900 | H64: 281 | I64: 281 | J64: 309 | K64: 330 | L64: Not Available | N64: LK-ES-VCSB-1G | O64: 1000 x 750 Eco Slabstone Splash Back | P64: Victorian Soot Black Gloss | Q64: 1000 x 750 Eco Slabstone Splash Back Victorian Soot Black Gloss
F65: 9 | G65: 1000 | H65: 281 | I65: 281 | J65: 309 | K65: 330 | L65: Not Available | N65: LK-ES-VCPG-6G | O65: 600 x 750 Eco Slabstone Splash Back | P65: Victorian Pencil Grey Gloss | Q65: 600 x 750 Eco Slabstone Splash Back Victorian Pencil Grey Gloss
F66: 10 | G66: 1200 | H66: 309 | I66: 309 | J66: Not Available | K66: Not Available | L66: Not Available | N66: LK-ES-VCPG-9G | O66: 900 x 750 Eco Slabstone Splash Back | P66: Victorian Pencil Grey Gloss | Q66: 900 x 750 Eco Slabstone Splash Back Victorian Pencil Grey Gloss
N67: LK-ES-VCPG-1G | O67: 1000 x 750 Eco Slabstone Splash Back | P67: Victorian Pencil Grey Gloss | Q67: 1000 x 750 Eco Slabstone Splash Back Victorian Pencil Grey Gloss
N68: LK-ES-VCOG-6G | O68: 600 x 750 Eco Slabstone Splash Back | P68: Victorian Olive Green Gloss | Q68: 600 x 750 Eco Slabstone Splash Back Victorian Olive Green Gloss
N69: LK-ES-VCOG-9G | O69: 900 x 750 Eco Slabstone Splash Back | P69: Victorian Olive Green Gloss | Q69: 900 x 750 Eco Slabstone Splash Back Victorian Olive Green Gloss
H70: Open Unit 1 | J70: Height | K70: =IFERROR(INDEX($H$55:$L$55,MATCH(I71,$H$56:$L$56,1)),1) -> 1 | N70: LK-ES-VCOG-1G | O70: 1000 x 750 Eco Slabstone Splash Back | P70: Victorian Olive Green Gloss | Q70: 1000 x 750 Eco Slabstone Splash Back Victorian Olive Green Gloss
H71: Chosen Height | I71: =Kitchen!A698 -> ENTER HEIGHT HERE | J71: Width | K71: =IFERROR(INDEX($F$57:$F$66,MATCH(I72,$G$57:$G$66,1)),1) -> 1 | N71: LK-ES-VCTO-6G | O71: 600 x 750 Eco Slabstone Splash Back | P71: Victorian Terracotta Orange Gloss | Q71: 600 x 750 Eco Slabstone Splash Back Victorian Terracotta Orange Gloss
H72: Chosen Width | I72: =Kitchen!A699 -> ENTER WIDTH HERE | J72: Price | K72: =IFERROR(VLOOKUP(K71,$F$57:$L$66,MATCH(K70,$F$55:$L$55,0),0),"") -> 255 | N72: LK-ES-VCTO-9G | O72: 900 x 750 Eco Slabstone Splash Back | P72: Victorian Terracotta Orange Gloss | Q72: 900 x 750 Eco Slabstone Splash Back Victorian Terracotta Orange Gloss
N73: LK-ES-VCTO-1G | O73: 1000 x 750 Eco Slabstone Splash Back | P73: Victorian Terracotta Orange Gloss | Q73: 1000 x 750 Eco Slabstone Splash Back Victorian Terracotta Orange Gloss
H74: Open Unit 2 | J74: Height | K74: =IFERROR(INDEX($H$55:$L$55,MATCH(I75,$H$56:$L$56,1)),1) -> 1 | N74: LK-ES-VCYB-6G | O74: 600 x 750 Eco Slabstone Splash Back | P74: Victorian Yale Blue Gloss | Q74: 600 x 750 Eco Slabstone Splash Back Victorian Yale Blue Gloss
H75: Chosen Height | I75: =Kitchen!A702 -> ENTER HEIGHT HERE | J75: Width | K75: =IFERROR(INDEX($F$57:$F$66,MATCH(I76,$G$57:$G$66,1)),1) -> 1 | N75: LK-ES-VCYB-9G | O75: 900 x 750 Eco Slabstone Splash Back | P75: Victorian Yale Blue Gloss | Q75: 900 x 750 Eco Slabstone Splash Back Victorian Yale Blue Gloss
H76: Chosen Width | I76: =Kitchen!A703 -> ENTER WIDTH HERE | J76: Price | K76: =IFERROR(VLOOKUP(K75,$F$57:$L$66,MATCH(K74,$F$55:$L$55,0),0),"") -> 255 | N76: LK-ES-VCYB-1G | O76: 1000 x 750 Eco Slabstone Splash Back | P76: Victorian Yale Blue Gloss | Q76: 1000 x 750 Eco Slabstone Splash Back Victorian Yale Blue Gloss
N77: LK-ES-HARE-6G | O77: 600 x 750 Eco Slabstone Splash Back | P77: Hare Buttermilk Cream Gloss | Q77: 600 x 750 Eco Slabstone Splash Back Hare Buttermilk Cream Gloss
H78: Open Unit 3 | J78: Height | K78: =IFERROR(INDEX($H$55:$L$55,MATCH(I79,$H$56:$L$56,1)),1) -> 1 | N78: LK-ES-HARE-9G | O78: 900 x 750 Eco Slabstone Splash Back | P78: Hare Buttermilk Cream Gloss | Q78: 900 x 750 Eco Slabstone Splash Back Hare Buttermilk Cream Gloss
H79: Chosen Height | I79: =Kitchen!A706 -> ENTER HEIGHT HERE | J79: Width | K79: =IFERROR(INDEX($F$57:$F$66,MATCH(I80,$G$57:$G$66,1)),1) -> 1 | N79: LK-ES-HARE-1G | O79: 1000 x 750 Eco Slabstone Splash Back | P79: Hare Buttermilk Cream Gloss | Q79: 1000 x 750 Eco Slabstone Splash Back Hare Buttermilk Cream Gloss
H80: Chosen Width | I80: =Kitchen!A707 -> ENTER WIDTH HERE | J80: Price | K80: =IFERROR(VLOOKUP(K79,$F$57:$L$66,MATCH(K78,$F$55:$L$55,0),0),"") -> 255 | N80: LK-ES-MWSB-6G | O80: 600 x 750 Eco Slabstone Splash Back | P80: Meadow Steel Blue Gloss | Q80: 600 x 750 Eco Slabstone Splash Back Meadow Steel Blue Gloss
N81: LK-ES-MWSB-9G | O81: 900 x 750 Eco Slabstone Splash Back | P81: Meadow Steel Blue Gloss | Q81: 900 x 750 Eco Slabstone Splash Back Meadow Steel Blue Gloss
N82: LK-ES-MWSB-1G | O82: 1000 x 750 Eco Slabstone Splash Back | P82: Meadow Steel Blue Gloss | Q82: 1000 x 750 Eco Slabstone Splash Back Meadow Steel Blue Gloss
N83: LK-ES-MWSG-6G | O83: 600 x 750 Eco Slabstone Splash Back | P83: Meadow Sage Gloss | Q83: 600 x 750 Eco Slabstone Splash Back Meadow Sage Gloss
H84: 1 | I84: 2 | J84: 3 | K84: 4 | N84: LK-ES-MWSG-9G | O84: 900 x 750 Eco Slabstone Splash Back | P84: Meadow Sage Gloss | Q84: 900 x 750 Eco Slabstone Splash Back Meadow Sage Gloss
H85: 286 | I85: 720 | J85: 900 | K85: 1960 | N85: LK-ES-MWSG-1G | O85: 1000 x 750 Eco Slabstone Splash Back | P85: Meadow Sage Gloss | Q85: 1000 x 750 Eco Slabstone Splash Back Meadow Sage Gloss
F86: 1 | G86: 150 | H86: 255 | I86: 281 | J86: 309 | K86: 330 | N86: LK-ES-SFBC-6G | O86: 600 x 750 Eco Slabstone Splash Back | P86: Star Flower Buttermilk Cream Gloss | Q86: 600 x 750 Eco Slabstone Splash Back Star Flower Buttermilk Cream Gloss
F87: 2 | G87: 300 | H87: 255 | I87: 281 | J87: 309 | K87: 566 | N87: LK-ES-SFBC-9G | O87: 900 x 750 Eco Slabstone Splash Back | P87: Star Flower Buttermilk Cream Gloss | Q87: 900 x 750 Eco Slabstone Splash Back Star Flower Buttermilk Cream Gloss
N88: LK-ES-SFBC-1G | O88: 1000 x 750 Eco Slabstone Splash Back | P88: Star Flower Buttermilk Cream Gloss | Q88: 1000 x 750 Eco Slabstone Splash Back Star Flower Buttermilk Cream Gloss
N89: LK-ES-SFPB-6G | O89: 600 x 750 Eco Slabstone Splash Back | P89: Star Flower Pastel Blue Gloss | Q89: 600 x 750 Eco Slabstone Splash Back Star Flower Pastel Blue Gloss
H90: Wine Rack 1 | J90: Height | K90: =IFERROR(INDEX($H$84:$K$84,MATCH(I91,$H$85:$K$85,1)),1) -> 1 | N90: LK-ES-SFPB-9G | O90: 900 x 750 Eco Slabstone Splash Back | P90: Star Flower Pastel Blue Gloss | Q90: 900 x 750 Eco Slabstone Splash Back Star Flower Pastel Blue Gloss
H91: Chosen Height | I91: =Kitchen!A711 -> ENTER HEIGHT HERE | J91: Width | K91: =IFERROR(INDEX($F$87:$F$87,MATCH(I92,$G$87:$G$87,1)),1) -> 1 | N91: LK-ES-SFPB-1G | O91: 1000 x 750 Eco Slabstone Splash Back | P91: Star Flower Pastel Blue Gloss | Q91: 1000 x 750 Eco Slabstone Splash Back Star Flower Pastel Blue Gloss
H92: Chosen Width | I92: =Kitchen!A712 -> ENTER WIDTH HERE | J92: Price | K92: =IFERROR(VLOOKUP(K91,$F$86:$K$87,MATCH(K90,$F$84:$K$84,0),0),"") -> 255 | N92: LK-ES-CYBB-6G | O92: 600 x 750 Eco Slabstone Splash Back | P92: Canterbury Baltic Blue Gloss | Q92: 600 x 750 Eco Slabstone Splash Back Canterbury Baltic Blue Gloss
N93: LK-ES-CYBB-9G | O93: 900 x 750 Eco Slabstone Splash Back | P93: Canterbury Baltic Blue Gloss | Q93: 900 x 750 Eco Slabstone Splash Back Canterbury Baltic Blue Gloss
H94: Wine Rack 2 | J94: Height | K94: =IFERROR(INDEX($H$84:$K$84,MATCH(I95,$H$85:$K$85,1)),1) -> 1 | N94: LK-ES-CYBB-1G | O94: 1000 x 750 Eco Slabstone Splash Back | P94: Canterbury Baltic Blue Gloss | Q94: 1000 x 750 Eco Slabstone Splash Back Canterbury Baltic Blue Gloss
H95: Chosen Height | I95: =Kitchen!A715 -> ENTER HEIGHT HERE | J95: Width | K95: =IFERROR(INDEX($F$87:$F$87,MATCH(I96,$G$87:$G$87,1)),1) -> 1 | N95: LK-ES-CYCG-6G | O95: 600 x 750 Eco Slabstone Splash Back | P95: Canterbury Charcoal Grey Gloss | Q95: 600 x 750 Eco Slabstone Splash Back Canterbury Charcoal Grey Gloss
H96: Chosen Width | I96: =Kitchen!A716 -> ENTER WIDTH HERE | J96: Price | K96: =IFERROR(VLOOKUP(K95,$F$86:$K$87,MATCH(K94,$F$84:$K$84,0),0),"") -> 255 | N96: LK-ES-CYCG-9G | O96: 900 x 750 Eco Slabstone Splash Back | P96: Canterbury Charcoal Grey Gloss | Q96: 900 x 750 Eco Slabstone Splash Back Canterbury Charcoal Grey Gloss
N97: LK-ES-CYCG-1G | O97: 1000 x 750 Eco Slabstone Splash Back | P97: Canterbury Charcoal Grey Gloss | Q97: 1000 x 750 Eco Slabstone Splash Back Canterbury Charcoal Grey Gloss
H98: Wine Rack 3 | J98: Height | K98: =IFERROR(INDEX($H$84:$K$84,MATCH(I99,$H$85:$K$85,1)),1) -> 1 | N98: LK-ES-HBPC-6G | O98: 600 x 750 Eco Slabstone Splash Back | P98: Herringbone Porcelain Cream Gloss | Q98: 600 x 750 Eco Slabstone Splash Back Herringbone Porcelain Cream Gloss
H99: Chosen Height | I99: =Kitchen!A719 -> ENTER HEIGHT HERE | J99: Width | K99: =IFERROR(INDEX($F$87:$F$87,MATCH(I100,$G$87:$G$87,1)),1) -> 1 | N99: LK-ES-HBPC-9G | O99: 900 x 750 Eco Slabstone Splash Back | P99: Herringbone Porcelain Cream Gloss | Q99: 900 x 750 Eco Slabstone Splash Back Herringbone Porcelain Cream Gloss
H100: Chosen Width | I100: =Kitchen!A720 -> ENTER WIDTH HERE | J100: Price | K100: =IFERROR(VLOOKUP(K99,$F$86:$K$87,MATCH(K98,$F$84:$K$84,0),0),"") -> 255 | N100: LK-ES-HBPC-1G | O100: 1000 x 750 Eco Slabstone Splash Back | P100: Herringbone Porcelain Cream Gloss | Q100: 1000 x 750 Eco Slabstone Splash Back Herringbone Porcelain Cream Gloss
N101: LK-ES-HBCP-6G | O101: 600 x 750 Eco Slabstone Splash Back | P101: Herringbone Cashmere Pink Gloss | Q101: 600 x 750 Eco Slabstone Splash Back Herringbone Cashmere Pink Gloss
N102: LK-ES-HBCP-9G | O102: 900 x 750 Eco Slabstone Splash Back | P102: Herringbone Cashmere Pink Gloss | Q102: 900 x 750 Eco Slabstone Splash Back Herringbone Cashmere Pink Gloss
N103: LK-ES-HBCP-1G | O103: 1000 x 750 Eco Slabstone Splash Back | P103: Herringbone Cashmere Pink Gloss | Q103: 1000 x 750 Eco Slabstone Splash Back Herringbone Cashmere Pink Gloss
H104: Solutions Wine Racks | N104: LK-ES-HBIB-6G | O104: 600 x 750 Eco Slabstone Splash Back | P104: Herringbone Indigo Blue Gloss | Q104: 600 x 750 Eco Slabstone Splash Back Herringbone Indigo Blue Gloss
N105: LK-ES-HBIB-9G | O105: 900 x 750 Eco Slabstone Splash Back | P105: Herringbone Indigo Blue Gloss | Q105: 900 x 750 Eco Slabstone Splash Back Herringbone Indigo Blue Gloss
H106: 1 | I106: Select Range | J106: =VLOOKUP(Kitchen!$A710,$I107:$J110,2,FALSE) ->  | K106: =VLOOKUP(Kitchen!$A714,$I107:$J110,2,FALSE) ->  | L106: =VLOOKUP(Kitchen!$A718,$I107:$J110,2,FALSE) ->  | N106: LK-ES-HBIB-1G | O106: 1000 x 750 Eco Slabstone Splash Back | P106: Herringbone Indigo Blue Gloss | Q106: 1000 x 750 Eco Slabstone Splash Back Herringbone Indigo Blue Gloss
H107: 2 | I107: Natural Oak Wine Rack | J107: HNO | N107: LK-ES-HBMG-6G | O107: 600 x 750 Eco Slabstone Splash Back | P107: Herringbone Marble Grey Gloss | Q107: 600 x 750 Eco Slabstone Splash Back Herringbone Marble Grey Gloss
H108: 3 | I108: Tobacco Oak Wine Rack | J108: HTO | N108: LK-ES-HBMG-9G | O108: 900 x 750 Eco Slabstone Splash Back | P108: Herringbone Marble Grey Gloss | Q108: 900 x 750 Eco Slabstone Splash Back Herringbone Marble Grey Gloss
H109: 4 | I109: White Oak Wine Rack | J109: HWO | N109: LK-ES-HBMG-1G | O109: 1000 x 750 Eco Slabstone Splash Back | P109: Herringbone Marble Grey Gloss | Q109: 1000 x 750 Eco Slabstone Splash Back Herringbone Marble Grey Gloss
N110: LK-ES-HBJG-6G | O110: 600 x 750 Eco Slabstone Splash Back | P110: Herringbone Jade Green Gloss | Q110: 600 x 750 Eco Slabstone Splash Back Herringbone Jade Green Gloss
N111: LK-ES-HBJG-9G | O111: 900 x 750 Eco Slabstone Splash Back | P111: Herringbone Jade Green Gloss | Q111: 900 x 750 Eco Slabstone Splash Back Herringbone Jade Green Gloss
H112: Eterna Open Units | N112: LK-ES-HBJG-1G | O112: 1000 x 750 Eco Slabstone Splash Back | P112: Herringbone Jade Green Gloss | Q112: 1000 x 750 Eco Slabstone Splash Back Herringbone Jade Green Gloss
H114: 1 | I114: Select Range | J114: =VLOOKUP(Kitchen!$A724,$I115:$J122,2,FALSE) ->  | K114: =VLOOKUP(Kitchen!$A728,$I115:$J122,2,FALSE) ->  | L114: =VLOOKUP(Kitchen!$A732,$I115:$J122,2,FALSE) -> 
H115: 2 | I115: Ossido Grigio Open Unit | J115: EOG
H116: 3 | I116: Ossido Marrone Open Unit | J116: EOM
H117: 4 | I117: Patagonia Marble Open Unit | J117: EPM
H118: 5 | I118: Venato Marble Open Unit | J118: EVM
H119: 6 | I119: Nero Marble Open Unit | J119: ENM
H120: 7 | I120: Laguna Grey Aged Oak Open Unit | J120: ELA
H121: 8 | I121: Laguna Dark Oak Open Unit | J121: ELD
H122: 9 | I122: Chalet Light Walnut Open Unit | J122: ELW
H124: Eterna Wine Racks
H125: 1 | I125: Select Range | J125: =VLOOKUP(Kitchen!$A737,$I126:$J133,2,FALSE) ->  | K125: =VLOOKUP(Kitchen!$A741,$I126:$J133,2,FALSE) ->  | L125: =VLOOKUP(Kitchen!$A745,$I126:$J133,2,FALSE) -> 
H126: 2 | I126: Ossido Grigio Wine Rack | J126: EOG
H127: 3 | I127: Ossido Marrone Wine Rack | J127: EOM
H128: 4 | I128: Patagonia Marble Wine Rack | J128: EPM
H129: 5 | I129: Venato Marble Wine Rack | J129: EVM
H130: 6 | I130: Nero Marble Wine Rack | J130: ENM
H131: 7 | I131: Laguna Grey Aged Oak Wine Rack | J131: ELA
H132: 8 | I132: Laguna Dark Oak Wine Rack | J132: ELD
H133: 9 | I133: Chalet Light Walnut Wine Rack | J133: ELW
H137: 1 | I137: 2 | J137: 3 | K137: 4 | L137: 5
G138: Sizes | H138: 286 | I138: 360 | J138: 720 | K138: 900 | L138: 1960
F139: 1 | G139: 150 | H139: 228 | I139: 228 | J139: 254 | K139: 280 | L139: 648
F140: 2 | G140: 300 | H140: 228 | I140: 228 | J140: 254 | K140: 280 | L140: 648
F141: 3 | G141: 400 | H141: 252 | I141: 252 | J141: 268 | K141: 292 | L141: 662
F142: 4 | G142: 500 | H142: 254 | I142: 254 | J142: 287 | K142: 312 | L142: 707
F143: 5 | G143: 600 | H143: 274 | I143: 274 | J143: 305 | K143: 338 | L143: 771
F144: 6 | G144: 700 | H144: 330 | I144: 330 | J144: 369 | K144: 401 | L144: Not Available
F145: 7 | G145: 800 | H145: 344 | I145: 344 | J145: 381 | K145: 419 | L145: Not Available
F146: 8 | G146: 900 | H146: 356 | I146: 356 | J146: 394 | K146: 440 | L146: Not Available
F147: 9 | G147: 1000 | H147: 369 | I147: 369 | J147: 407 | K147: 444 | L147: Not Available
F148: 10 | G148: 1200 | H148: 394 | I148: 394 | J148: Not Available | K148: Not Available | L148: Not Available
H152: Open Unit 1 | J152: Height | K152: =IFERROR(INDEX($H$137:$L$137,MATCH(I153,$H$138:$L$138,1)),1) -> 1
H153: Chosen Height | I153: =Kitchen!A725 -> ENTER HEIGHT HERE | J153: Width | K153: =IFERROR(INDEX($F$139:$F$148,MATCH(I154,$G$139:$G$148,1)),1) -> 1
H154: Chosen Width | I154: =Kitchen!A726 -> ENTER WIDTH HERE | J154: Price | K154: =IFERROR(VLOOKUP(K153,$F$139:$L$148,MATCH(K152,$F$137:$L$137,0),0),"") -> 228
H156: Open Unit 2 | J156: Height | K156: =IFERROR(INDEX($H$137:$L$137,MATCH($I157,$H$138:$L$138,1)),1) -> 1
H157: Chosen Height | I157: =Kitchen!A729 -> ENTER HEIGHT HERE | J157: Width | K157: =IFERROR(INDEX($F$139:$F$148,MATCH($I158,$G$139:$G$148,1)),1) -> 1
H158: Chosen Width | I158: =Kitchen!A730 -> ENTER WIDTH HERE | J158: Price | K158: =IFERROR(VLOOKUP(K157,$F$139:$L$148,MATCH(K156,$F$137:$L$137,0),0),"") -> 228
H160: Open Unit 3 | J160: Height | K160: =IFERROR(INDEX($H$137:$L$137,MATCH($I161,$H$138:$L$138,1)),1) -> 1
H161: Chosen Height | I161: =Kitchen!A733 -> ENTER HEIGHT HERE | J161: Width | K161: =IFERROR(INDEX($F$139:$F$148,MATCH($I162,$G$139:$G$148,1)),1) -> 1
H162: Chosen Width | I162: =Kitchen!A734 -> ENTER WIDTH HERE | J162: Price | K162: =IFERROR(VLOOKUP(K161,$F$139:$L$148,MATCH(K160,$F$137:$L$137,0),0),"") -> 228
H166: 1 | I166: 2 | J166: 3 | K166: 4
H167: 286 | I167: 720 | J167: 900 | K167: 1960
F168: 1 | G168: 150 | H168: 254 | I168: 344 | J168: 381 | K168: 762
F169: 2 | G169: 300 | H169: 330 | I169: 496 | J169: 585 | K169: 1017
H172: Wine Rack 1 | J172: Height | K172: =IFERROR(INDEX($H$166:$K$166,MATCH(I173,$H$167:$K$167,1)),1) -> 1
H173: Chosen Height | I173: =Kitchen!A738 -> ENTER HEIGHT HERE | J173: Width | K173: =IFERROR(INDEX($F$168:$F$169,MATCH(I174,$G$168:$G$169,1)),1) -> 1
H174: Chosen Width | I174: =Kitchen!A739 -> ENTER WIDTH HERE | J174: Price | K174: =IFERROR(VLOOKUP(K173,$F$168:$K$169,MATCH(K172,$F$166:$K$166,0),0),"") -> 254
H176: Wine Rack 2 | J176: Height | K176: =IFERROR(INDEX($H$166:$K$166,MATCH(I177,$H$167:$K$167,1)),1) -> 1
H177: Chosen Height | I177: =Kitchen!A742 -> ENTER HEIGHT HERE | J177: Width | K177: =IFERROR(INDEX($F$168:$F$169,MATCH(I178,$G$168:$G$169,1)),1) -> 1
H178: Chosen Width | I178: =Kitchen!A743 -> ENTER WIDTH HERE | J178: Price | K178: =IFERROR(VLOOKUP(K177,$F$168:$K$169,MATCH(K176,$F$166:$K$166,0),0),"") -> 254
H180: Wine Rack 3 | J180: Height | K180: =IFERROR(INDEX($H$166:$K$166,MATCH(I181,$H$167:$K$167,1)),1) -> 1
H181: Chosen Height | I181: =Kitchen!A746 -> ENTER HEIGHT HERE | J181: Width | K181: =IFERROR(INDEX($F$168:$F$169,MATCH(I182,$G$168:$G$169,1)),1) -> 1
H182: Chosen Width | I182: =Kitchen!A747 -> ENTER WIDTH HERE | J182: Price | K182: =IFERROR(VLOOKUP(K181,$F$168:$K$169,MATCH(K180,$F$166:$K$166,0),0),"") -> 254
H188: Assembled Talls | I188: 1
H189: 1 | I189: Yes
H190: 2 | I190: No

Sheet Codes (hidden)
B1: @LK- | C1: LK-C- | D1: 1 | E1: 2 | F1: 3 | G1: 4 | H1: 5 | I1: 6 | J1: 7 | K1: 8 | L1: 9 | M1: 10 | N1: 11 | O1: 12 | P1: 13 | Q1: 14 | R1: 15 | S1: 16 | T1: 17 | U1: 18 | V1: 19 | W1: 20 | X1: 21 | Y1: 22 | Z1: 23 | AA1: 24 | AB1: 25 | AC1: 26 | AD1: 27 | AE1: 28 | AF1: 29 | AG1: 30 | AH1: 31 | AI1: 32 | AJ1: 33 | AK1: 34 | AL1: 35 | AM1: 36 | AN1: 37 | AO1: 38 | AP1: 39
B2: LK-A- | D2: Profile Cashmere Gloss | E2: Profile Dove Grey Gloss | F2: Profile Dust Grey Gloss | G2: Profile Porcelain Gloss | H2: Profile White Gloss | I2: Profile Graphite Gloss | J2: Profile Matt Atlantic | K2: Profile Matt Cashmere | L2: Profile Matt Dove Grey | M2: Profile Matt Dust Grey | N2: Profile Matt Graphite | O2: Profile Matt Porcelain | P2: Profile Matt White | Q2: Profile Matt Aegean | R2: Profile Matt Auburn | S2: Profile Matt Breeze | T2: Profile Matt Brigade | U2: Profile Matt Damson | V2: Profile Matt Desert Pink | W2: Profile Matt Heather Green | X2: Profile Matt Indigo | Y2: Profile Matt Ivory | Z2: Profile Matt Laurel Green | AA2: Profile Matt Meadow | AB2: Profile Matt Midnight | AC2: Profile Matt Mussel | AD2: Profile Matt Olive | AE2: Profile Matt Pale Teal | AF2: Profile Matt Pearl | AG2: Profile Matt Pebble Grey | AH2: Profile Matt Sage | AI2: Profile Matt Sapphire | AJ2: Profile Matt Soft Black | AK2: Profile Matt Soot | AL2: Profile Matt Steel Grey | AM2: Profile Matt Stone | AN2: Profile Matt Taupe | AO2: Profile Matt Thicket | AP2: Profile Matt Warm Earth
B3: Product Description | C3: BOM / Prod ID | D3: CSJ- | E3: DGJ- | F3: DSJ- | G3: PGJ- | H3: WGJ- | I3: GPJ- | J3: MAJ- | K3: JMC- | L3: DMJ- | M3: DYJ- | N3: MGJ- | O3: PMJ- | P3: JWT- | Q3: JAG- | R3: JAB- | S3: JBR- | T3: JBG- | U3: JDM- | V3: JDP- | W3: JHG- | X3: JIN- | Y3: JIV- | Z3: JLN- | AA3: JMW- | AB3: JMN- | AC3: MMJ- | AD3: JOV- | AE3: JPT- | AF3: JPE- | AG3: JPG- | AH3: JSG- | AI3: JSP- | AJ3: JSB- | AK3: JSO- | AL3: JSY- | AM3: JST- | AN3: JTP- | AO3: JTK- | AP3: JWE-
B4: 150 HL Pull Out Base VS SUB | C4: BP15TW | D4: @LK-CSJ-BP15TW | E4: @LK-DGJ-BP15TW | F4: @LK-DSJ-BP15TW | G4: @LK-PGJ-BP15TW | H4: @LK-WGJ-BP15TW | I4: @LK-GPJ-BP15TW | J4: @LK-MAJ-BP15TW | K4: @LK-JMC-BP15TW | L4: @LK-DMJ-BP15TW | M4: @LK-DYJ-BP15TW | N4: @LK-MGJ-BP15TW | O4: @LK-PMJ-BP15TW | P4: @LK-JWT-BP15TW | Q4: @LK-JAG-BP15TW | R4: @LK-JAB-BP15TW | S4: @LK-JBR-BP15TW | T4: @LK-JBG-BP15TW | U4: @LK-JDM-BP15TW | V4: @LK-JDP-BP15TW | W4: @LK-JHG-BP15TW | X4: @LK-JIN-BP15TW | Y4: @LK-JIV-BP15TW | Z4: @LK-JLN-BP15TW | AA4: @LK-JMW-BP15TW | AB4: @LK-JMN-BP15TW | AC4: @LK-MMJ-BP15TW | AD4: @LK-JOV-BP15TW | AE4: @LK-JPT-BP15TW | AF4: @LK-JPE-BP15TW | AG4: @LK-JPG-BP15TW | AH4: @LK-JSG-BP15TW | AI4: @LK-JSP-BP15TW | AJ4: @LK-JSB-BP15TW | AK4: @LK-JSO-BP15TW | AL4: @LK-JSY-BP15TW | AM4: @LK-JST-BP15TW | AN4: @LK-JTP-BP15TW | AO4: @LK-JTK-BP15TW | AP4: @LK-JWE-BP15TW
B5: 300 HL Pull Out Base VS SUB | C5: BP3TY | D5: @LK-CSJ-BP3TY | E5: @LK-DGJ-BP3TY | F5: @LK-DSJ-BP3TY | G5: @LK-PGJ-BP3TY | H5: @LK-WGJ-BP3TY | I5: @LK-GPJ-BP3TY | J5: @LK-MAJ-BP3TY | K5: @LK-JMC-BP3TY | L5: @LK-DMJ-BP3TY | M5: @LK-DYJ-BP3TY | N5: @LK-MGJ-BP3TY | O5: @LK-PMJ-BP3TY | P5: @LK-JWT-BP3TY | Q5: @LK-JAG-BP3TY | R5: @LK-JAB-BP3TY | S5: @LK-JBR-BP3TY | T5: @LK-JBG-BP3TY | U5: @LK-JDM-BP3TY | V5: @LK-JDP-BP3TY | W5: @LK-JHG-BP3TY | X5: @LK-JIN-BP3TY | Y5: @LK-JIV-BP3TY | Z5: @LK-JLN-BP3TY | AA5: @LK-JMW-BP3TY | AB5: @LK-JMN-BP3TY | AC5: @LK-MMJ-BP3TY | AD5: @LK-JOV-BP3TY | AE5: @LK-JPT-BP3TY | AF5: @LK-JPE-BP3TY | AG5: @LK-JPG-BP3TY | AH5: @LK-JSG-BP3TY | AI5: @LK-JSP-BP3TY | AJ5: @LK-JSB-BP3TY | AK5: @LK-JSO-BP3TY | AL5: @LK-JSY-BP3TY | AM5: @LK-JST-BP3TY | AN5: @LK-JTP-BP3TY | AO5: @LK-JTK-BP3TY | AP5: @LK-JWE-BP3TY
B6: 150 HL Base Unit LHH | C6: BH15L | D6: @LK-CSJ-BH15L | E6: @LK-DGJ-BH15L | F6: @LK-DSJ-BH15L | G6: @LK-PGJ-BH15L | H6: @LK-WGJ-BH15L | I6: @LK-GPJ-BH15L | J6: @LK-MAJ-BH15L | K6: @LK-JMC-BH15L | L6: @LK-DMJ-BH15L | M6: @LK-DYJ-BH15L | N6: @LK-MGJ-BH15L | O6: @LK-PMJ-BH15L | P6: @LK-JWT-BH15L | Q6: @LK-JAG-BH15L | R6: @LK-JAB-BH15L | S6: @LK-JBR-BH15L | T6: @LK-JBG-BH15L | U6: @LK-JDM-BH15L | V6: @LK-JDP-BH15L | W6: @LK-JHG-BH15L | X6: @LK-JIN-BH15L | Y6: @LK-JIV-BH15L | Z6: @LK-JLN-BH15L | AA6: @LK-JMW-BH15L | AB6: @LK-JMN-BH15L | AC6: @LK-MMJ-BH15L | AD6: @LK-JOV-BH15L | AE6: @LK-JPT-BH15L | AF6: @LK-JPE-BH15L | AG6: @LK-JPG-BH15L | AH6: @LK-JSG-BH15L | AI6: @LK-JSP-BH15L | AJ6: @LK-JSB-BH15L | AK6: @LK-JSO-BH15L | AL6: @LK-JSY-BH15L | AM6: @LK-JST-BH15L | AN6: @LK-JTP-BH15L | AO6: @LK-JTK-BH15L | AP6: @LK-JWE-BH15L
B7: 150 HL Base Unit RHH | C7: BH15R | D7: @LK-CSJ-BH15R | E7: @LK-DGJ-BH15R | F7: @LK-DSJ-BH15R | G7: @LK-PGJ-BH15R | H7: @LK-WGJ-BH15R | I7: @LK-GPJ-BH15R | J7: @LK-MAJ-BH15R | K7: @LK-JMC-BH15R | L7: @LK-DMJ-BH15R | M7: @LK-DYJ-BH15R | N7: @LK-MGJ-BH15R | O7: @LK-PMJ-BH15R | P7: @LK-JWT-BH15R | Q7: @LK-JAG-BH15R | R7: @LK-JAB-BH15R | S7: @LK-JBR-BH15R | T7: @LK-JBG-BH15R | U7: @LK-JDM-BH15R | V7: @LK-JDP-BH15R | W7: @LK-JHG-BH15R | X7: @LK-JIN-BH15R | Y7: @LK-JIV-BH15R | Z7: @LK-JLN-BH15R | AA7: @LK-JMW-BH15R | AB7: @LK-JMN-BH15R | AC7: @LK-MMJ-BH15R | AD7: @LK-JOV-BH15R | AE7: @LK-JPT-BH15R | AF7: @LK-JPE-BH15R | AG7: @LK-JPG-BH15R | AH7: @LK-JSG-BH15R | AI7: @LK-JSP-BH15R | AJ7: @LK-JSB-BH15R | AK7: @LK-JSO-BH15R | AL7: @LK-JSY-BH15R | AM7: @LK-JST-BH15R | AN7: @LK-JTP-BH15R | AO7: @LK-JTK-BH15R | AP7: @LK-JWE-BH15R
B8: 300 HL Base Unit LHH | C8: BH30L | D8: @LK-CSJ-BH30L | E8: @LK-DGJ-BH30L | F8: @LK-DSJ-BH30L | G8: @LK-PGJ-BH30L | H8: @LK-WGJ-BH30L | I8: @LK-GPJ-BH30L | J8: @LK-MAJ-BH30L | K8: @LK-JMC-BH30L | L8: @LK-DMJ-BH30L | M8: @LK-DYJ-BH30L | N8: @LK-MGJ-BH30L | O8: @LK-PMJ-BH30L | P8: @LK-JWT-BH30L | Q8: @LK-JAG-BH30L | R8: @LK-JAB-BH30L | S8: @LK-JBR-BH30L | T8: @LK-JBG-BH30L | U8: @LK-JDM-BH30L | V8: @LK-JDP-BH30L | W8: @LK-JHG-BH30L | X8: @LK-JIN-BH30L | Y8: @LK-JIV-BH30L | Z8: @LK-JLN-BH30L | AA8: @LK-JMW-BH30L | AB8: @LK-JMN-BH30L | AC8: @LK-MMJ-BH30L | AD8: @LK-JOV-BH30L | AE8: @LK-JPT-BH30L | AF8: @LK-JPE-BH30L | AG8: @LK-JPG-BH30L | AH8: @LK-JSG-BH30L | AI8: @LK-JSP-BH30L | AJ8: @LK-JSB-BH30L | AK8: @LK-JSO-BH30L | AL8: @LK-JSY-BH30L | AM8: @LK-JST-BH30L | AN8: @LK-JTP-BH30L | AO8: @LK-JTK-BH30L | AP8: @LK-JWE-BH30L
B9: 300 HL Base Unit RHH | C9: BH30R | D9: @LK-CSJ-BH30R | E9: @LK-DGJ-BH30R | F9: @LK-DSJ-BH30R | G9: @LK-PGJ-BH30R | H9: @LK-WGJ-BH30R | I9: @LK-GPJ-BH30R | J9: @LK-MAJ-BH30R | K9: @LK-JMC-BH30R | L9: @LK-DMJ-BH30R | M9: @LK-DYJ-BH30R | N9: @LK-MGJ-BH30R | O9: @LK-PMJ-BH30R | P9: @LK-JWT-BH30R | Q9: @LK-JAG-BH30R | R9: @LK-JAB-BH30R | S9: @LK-JBR-BH30R | T9: @LK-JBG-BH30R | U9: @LK-JDM-BH30R | V9: @LK-JDP-BH30R | W9: @LK-JHG-BH30R | X9: @LK-JIN-BH30R | Y9: @LK-JIV-BH30R | Z9: @LK-JLN-BH30R | AA9: @LK-JMW-BH30R | AB9: @LK-JMN-BH30R | AC9: @LK-MMJ-BH30R | AD9: @LK-JOV-BH30R | AE9: @LK-JPT-BH30R | AF9: @LK-JPE-BH30R | AG9: @LK-JPG-BH30R | AH9: @LK-JSG-BH30R | AI9: @LK-JSP-BH30R | AJ9: @LK-JSB-BH30R | AK9: @LK-JSO-BH30R | AL9: @LK-JSY-BH30R | AM9: @LK-JST-BH30R | AN9: @LK-JTP-BH30R | AO9: @LK-JTK-BH30R | AP9: @LK-JWE-BH30R
B10: 300 HL Base Unit & Bin | C10: BH3B | D10: @LK-CSJ-BH3B | E10: @LK-DGJ-BH3B | F10: @LK-DSJ-BH3B | G10: @LK-PGJ-BH3B | H10: @LK-WGJ-BH3B | I10: @LK-GPJ-BH3B | J10: @LK-MAJ-BH3B | K10: @LK-JMC-BH3B | L10: @LK-DMJ-BH3B | M10: @LK-DYJ-BH3B | N10: @LK-MGJ-BH3B | O10: @LK-PMJ-BH3B | P10: @LK-JWT-BH3B | Q10: @LK-JAG-BH3B | R10: @LK-JAB-BH3B | S10: @LK-JBR-BH3B | T10: @LK-JBG-BH3B | U10: @LK-JDM-BH3B | V10: @LK-JDP-BH3B | W10: @LK-JHG-BH3B | X10: @LK-JIN-BH3B | Y10: @LK-JIV-BH3B | Z10: @LK-JLN-BH3B | AA10: @LK-JMW-BH3B | AB10: @LK-JMN-BH3B | AC10: @LK-MMJ-BH3B | AD10: @LK-JOV-BH3B | AE10: @LK-JPT-BH3B | AF10: @LK-JPE-BH3B | AG10: @LK-JPG-BH3B | AH10: @LK-JSG-BH3B | AI10: @LK-JSP-BH3B | AJ10: @LK-JSB-BH3B | AK10: @LK-JSO-BH3B | AL10: @LK-JSY-BH3B | AM10: @LK-JST-BH3B | AN10: @LK-JTP-BH3B | AO10: @LK-JTK-BH3B | AP10: @LK-JWE-BH3B
B11: 350 HL Base Unit LHH | C11: BH35L | D11: @LK-CSJ-BH35L | E11: @LK-DGJ-BH35L | F11: @LK-DSJ-BH35L | G11: @LK-PGJ-BH35L | H11: @LK-WGJ-BH35L | I11: @LK-GPJ-BH35L | J11: @LK-MAJ-BH35L | K11: @LK-JMC-BH35L | L11: @LK-DMJ-BH35L | M11: @LK-DYJ-BH35L | N11: @LK-MGJ-BH35L | O11: @LK-PMJ-BH35L | P11: @LK-JWT-BH35L | Q11: @LK-JAG-BH35L | R11: @LK-JAB-BH35L | S11: @LK-JBR-BH35L | T11: @LK-JBG-BH35L | U11: @LK-JDM-BH35L | V11: @LK-JDP-BH35L | W11: @LK-JHG-BH35L | X11: @LK-JIN-BH35L | Y11: @LK-JIV-BH35L | Z11: @LK-JLN-BH35L | AA11: @LK-JMW-BH35L | AB11: @LK-JMN-BH35L | AC11: @LK-MMJ-BH35L | AD11: @LK-JOV-BH35L | AE11: @LK-JPT-BH35L | AF11: @LK-JPE-BH35L | AG11: @LK-JPG-BH35L | AH11: @LK-JSG-BH35L | AI11: @LK-JSP-BH35L | AJ11: @LK-JSB-BH35L | AK11: @LK-JSO-BH35L | AL11: @LK-JSY-BH35L | AM11: @LK-JST-BH35L | AN11: @LK-JTP-BH35L | AO11: @LK-JTK-BH35L | AP11: @LK-JWE-BH35L
B12: 350 HL Base Unit RHH | C12: BH35R | D12: @LK-CSJ-BH35R | E12: @LK-DGJ-BH35R | F12: @LK-DSJ-BH35R | G12: @LK-PGJ-BH35R | H12: @LK-WGJ-BH35R | I12: @LK-GPJ-BH35R | J12: @LK-MAJ-BH35R | K12: @LK-JMC-BH35R | L12: @LK-DMJ-BH35R | M12: @LK-DYJ-BH35R | N12: @LK-MGJ-BH35R | O12: @LK-PMJ-BH35R | P12: @LK-JWT-BH35R | Q12: @LK-JAG-BH35R | R12: @LK-JAB-BH35R | S12: @LK-JBR-BH35R | T12: @LK-JBG-BH35R | U12: @LK-JDM-BH35R | V12: @LK-JDP-BH35R | W12: @LK-JHG-BH35R | X12: @LK-JIN-BH35R | Y12: @LK-JIV-BH35R | Z12: @LK-JLN-BH35R | AA12: @LK-JMW-BH35R | AB12: @LK-JMN-BH35R | AC12: @LK-MMJ-BH35R | AD12: @LK-JOV-BH35R | AE12: @LK-JPT-BH35R | AF12: @LK-JPE-BH35R | AG12: @LK-JPG-BH35R | AH12: @LK-JSG-BH35R | AI12: @LK-JSP-BH35R | AJ12: @LK-JSB-BH35R | AK12: @LK-JSO-BH35R | AL12: @LK-JSY-BH35R | AM12: @LK-JST-BH35R | AN12: @LK-JTP-BH35R | AO12: @LK-JTK-BH35R | AP12: @LK-JWE-BH35R
B13: 400 HL Base Unit LHH | C13: BH40L | D13: @LK-CSJ-BH40L | E13: @LK-DGJ-BH40L | F13: @LK-DSJ-BH40L | G13: @LK-PGJ-BH40L | H13: @LK-WGJ-BH40L | I13: @LK-GPJ-BH40L | J13: @LK-MAJ-BH40L | K13: @LK-JMC-BH40L | L13: @LK-DMJ-BH40L | M13: @LK-DYJ-BH40L | N13: @LK-MGJ-BH40L | O13: @LK-PMJ-BH40L | P13: @LK-JWT-BH40L | Q13: @LK-JAG-BH40L | R13: @LK-JAB-BH40L | S13: @LK-JBR-BH40L | T13: @LK-JBG-BH40L | U13: @LK-JDM-BH40L | V13: @LK-JDP-BH40L | W13: @LK-JHG-BH40L | X13: @LK-JIN-BH40L | Y13: @LK-JIV-BH40L | Z13: @LK-JLN-BH40L | AA13: @LK-JMW-BH40L | AB13: @LK-JMN-BH40L | AC13: @LK-MMJ-BH40L | AD13: @LK-JOV-BH40L | AE13: @LK-JPT-BH40L | AF13: @LK-JPE-BH40L | AG13: @LK-JPG-BH40L | AH13: @LK-JSG-BH40L | AI13: @LK-JSP-BH40L | AJ13: @LK-JSB-BH40L | AK13: @LK-JSO-BH40L | AL13: @LK-JSY-BH40L | AM13: @LK-JST-BH40L | AN13: @LK-JTP-BH40L | AO13: @LK-JTK-BH40L | AP13: @LK-JWE-BH40L
B14: 400 HL Base Unit RHH | C14: BH40R | D14: @LK-CSJ-BH40R | E14: @LK-DGJ-BH40R | F14: @LK-DSJ-BH40R | G14: @LK-PGJ-BH40R | H14: @LK-WGJ-BH40R | I14: @LK-GPJ-BH40R | J14: @LK-MAJ-BH40R | K14: @LK-JMC-BH40R | L14: @LK-DMJ-BH40R | M14: @LK-DYJ-BH40R | N14: @LK-MGJ-BH40R | O14: @LK-PMJ-BH40R | P14: @LK-JWT-BH40R | Q14: @LK-JAG-BH40R | R14: @LK-JAB-BH40R | S14: @LK-JBR-BH40R | T14: @LK-JBG-BH40R | U14: @LK-JDM-BH40R | V14: @LK-JDP-BH40R | W14: @LK-JHG-BH40R | X14: @LK-JIN-BH40R | Y14: @LK-JIV-BH40R | Z14: @LK-JLN-BH40R | AA14: @LK-JMW-BH40R | AB14: @LK-JMN-BH40R | AC14: @LK-MMJ-BH40R | AD14: @LK-JOV-BH40R | AE14: @LK-JPT-BH40R | AF14: @LK-JPE-BH40R | AG14: @LK-JPG-BH40R | AH14: @LK-JSG-BH40R | AI14: @LK-JSP-BH40R | AJ14: @LK-JSB-BH40R | AK14: @LK-JSO-BH40R | AL14: @LK-JSY-BH40R | AM14: @LK-JST-BH40R | AN14: @LK-JTP-BH40R | AO14: @LK-JTK-BH40R | AP14: @LK-JWE-BH40R
B15: 400 HL Base Unit & Bin | C15: BH4B | D15: @LK-CSJ-BH4B | E15: @LK-DGJ-BH4B | F15: @LK-DSJ-BH4B | G15: @LK-PGJ-BH4B | H15: @LK-WGJ-BH4B | I15: @LK-GPJ-BH4B | J15: @LK-MAJ-BH4B | K15: @LK-JMC-BH4B | L15: @LK-DMJ-BH4B | M15: @LK-DYJ-BH4B | N15: @LK-MGJ-BH4B | O15: @LK-PMJ-BH4B | P15: @LK-JWT-BH4B | Q15: @LK-JAG-BH4B | R15: @LK-JAB-BH4B | S15: @LK-JBR-BH4B | T15: @LK-JBG-BH4B | U15: @LK-JDM-BH4B | V15: @LK-JDP-BH4B | W15: @LK-JHG-BH4B | X15: @LK-JIN-BH4B | Y15: @LK-JIV-BH4B | Z15: @LK-JLN-BH4B | AA15: @LK-JMW-BH4B | AB15: @LK-JMN-BH4B | AC15: @LK-MMJ-BH4B | AD15: @LK-JOV-BH4B | AE15: @LK-JPT-BH4B | AF15: @LK-JPE-BH4B | AG15: @LK-JPG-BH4B | AH15: @LK-JSG-BH4B | AI15: @LK-JSP-BH4B | AJ15: @LK-JSB-BH4B | AK15: @LK-JSO-BH4B | AL15: @LK-JSY-BH4B | AM15: @LK-JST-BH4B | AN15: @LK-JTP-BH4B | AO15: @LK-JTK-BH4B | AP15: @LK-JWE-BH4B
B16: 450 HL Base Unit & Bin | C16: BH45B | D16: @LK-CSJ-BH45B | E16: @LK-DGJ-BH45B | F16: @LK-DSJ-BH45B | G16: @LK-PGJ-BH45B | H16: @LK-WGJ-BH45B | I16: @LK-GPJ-BH45B | J16: @LK-MAJ-BH45B | K16: @LK-JMC-BH45B | L16: @LK-DMJ-BH45B | M16: @LK-DYJ-BH45B | N16: @LK-MGJ-BH45B | O16: @LK-PMJ-BH45B | P16: @LK-JWT-BH45B | Q16: @LK-JAG-BH45B | R16: @LK-JAB-BH45B | S16: @LK-JBR-BH45B | T16: @LK-JBG-BH45B | U16: @LK-JDM-BH45B | V16: @LK-JDP-BH45B | W16: @LK-JHG-BH45B | X16: @LK-JIN-BH45B | Y16: @LK-JIV-BH45B | Z16: @LK-JLN-BH45B | AA16: @LK-JMW-BH45B | AB16: @LK-JMN-BH45B | AC16: @LK-MMJ-BH45B | AD16: @LK-JOV-BH45B | AE16: @LK-JPT-BH45B | AF16: @LK-JPE-BH45B | AG16: @LK-JPG-BH45B | AH16: @LK-JSG-BH45B | AI16: @LK-JSP-BH45B | AJ16: @LK-JSB-BH45B | AK16: @LK-JSO-BH45B | AL16: @LK-JSY-BH45B | AM16: @LK-JST-BH45B | AN16: @LK-JTP-BH45B | AO16: @LK-JTK-BH45B | AP16: @LK-JWE-BH45B
B17: 500 HL Base Unit & Bin | C17: BH5B | D17: @LK-CSJ-BH5B | E17: @LK-DGJ-BH5B | F17: @LK-DSJ-BH5B | G17: @LK-PGJ-BH5B | H17: @LK-WGJ-BH5B | I17: @LK-GPJ-BH5B | J17: @LK-MAJ-BH5B | K17: @LK-JMC-BH5B | L17: @LK-DMJ-BH5B | M17: @LK-DYJ-BH5B | N17: @LK-MGJ-BH5B | O17: @LK-PMJ-BH5B | P17: @LK-JWT-BH5B | Q17: @LK-JAG-BH5B | R17: @LK-JAB-BH5B | S17: @LK-JBR-BH5B | T17: @LK-JBG-BH5B | U17: @LK-JDM-BH5B | V17: @LK-JDP-BH5B | W17: @LK-JHG-BH5B | X17: @LK-JIN-BH5B | Y17: @LK-JIV-BH5B | Z17: @LK-JLN-BH5B | AA17: @LK-JMW-BH5B | AB17: @LK-JMN-BH5B | AC17: @LK-MMJ-BH5B | AD17: @LK-JOV-BH5B | AE17: @LK-JPT-BH5B | AF17: @LK-JPE-BH5B | AG17: @LK-JPG-BH5B | AH17: @LK-JSG-BH5B | AI17: @LK-JSP-BH5B | AJ17: @LK-JSB-BH5B | AK17: @LK-JSO-BH5B | AL17: @LK-JSY-BH5B | AM17: @LK-JST-BH5B | AN17: @LK-JTP-BH5B | AO17: @LK-JTK-BH5B | AP17: @LK-JWE-BH5B
B18: 450 HL Base Unit LHH | C18: BH45L | D18: @LK-CSJ-BH45L | E18: @LK-DGJ-BH45L | F18: @LK-DSJ-BH45L | G18: @LK-PGJ-BH45L | H18: @LK-WGJ-BH45L | I18: @LK-GPJ-BH45L | J18: @LK-MAJ-BH45L | K18: @LK-JMC-BH45L | L18: @LK-DMJ-BH45L | M18: @LK-DYJ-BH45L | N18: @LK-MGJ-BH45L | O18: @LK-PMJ-BH45L | P18: @LK-JWT-BH45L | Q18: @LK-JAG-BH45L | R18: @LK-JAB-BH45L | S18: @LK-JBR-BH45L | T18: @LK-JBG-BH45L | U18: @LK-JDM-BH45L | V18: @LK-JDP-BH45L | W18: @LK-JHG-BH45L | X18: @LK-JIN-BH45L | Y18: @LK-JIV-BH45L | Z18: @LK-JLN-BH45L | AA18: @LK-JMW-BH45L | AB18: @LK-JMN-BH45L | AC18: @LK-MMJ-BH45L | AD18: @LK-JOV-BH45L | AE18: @LK-JPT-BH45L | AF18: @LK-JPE-BH45L | AG18: @LK-JPG-BH45L | AH18: @LK-JSG-BH45L | AI18: @LK-JSP-BH45L | AJ18: @LK-JSB-BH45L | AK18: @LK-JSO-BH45L | AL18: @LK-JSY-BH45L | AM18: @LK-JST-BH45L | AN18: @LK-JTP-BH45L | AO18: @LK-JTK-BH45L | AP18: @LK-JWE-BH45L
B19: 450 HL Base Unit RHH | C19: BH45R | D19: @LK-CSJ-BH45R | E19: @LK-DGJ-BH45R | F19: @LK-DSJ-BH45R | G19: @LK-PGJ-BH45R | H19: @LK-WGJ-BH45R | I19: @LK-GPJ-BH45R | J19: @LK-MAJ-BH45R | K19: @LK-JMC-BH45R | L19: @LK-DMJ-BH45R | M19: @LK-DYJ-BH45R | N19: @LK-MGJ-BH45R | O19: @LK-PMJ-BH45R | P19: @LK-JWT-BH45R | Q19: @LK-JAG-BH45R | R19: @LK-JAB-BH45R | S19: @LK-JBR-BH45R | T19: @LK-JBG-BH45R | U19: @LK-JDM-BH45R | V19: @LK-JDP-BH45R | W19: @LK-JHG-BH45R | X19: @LK-JIN-BH45R | Y19: @LK-JIV-BH45R | Z19: @LK-JLN-BH45R | AA19: @LK-JMW-BH45R | AB19: @LK-JMN-BH45R | AC19: @LK-MMJ-BH45R | AD19: @LK-JOV-BH45R | AE19: @LK-JPT-BH45R | AF19: @LK-JPE-BH45R | AG19: @LK-JPG-BH45R | AH19: @LK-JSG-BH45R | AI19: @LK-JSP-BH45R | AJ19: @LK-JSB-BH45R | AK19: @LK-JSO-BH45R | AL19: @LK-JSY-BH45R | AM19: @LK-JST-BH45R | AN19: @LK-JTP-BH45R | AO19: @LK-JTK-BH45R | AP19: @LK-JWE-BH45R
B20: 500 HL Base Unit LHH | C20: BH50L | D20: @LK-CSJ-BH50L | E20: @LK-DGJ-BH50L | F20: @LK-DSJ-BH50L | G20: @LK-PGJ-BH50L | H20: @LK-WGJ-BH50L | I20: @LK-GPJ-BH50L | J20: @LK-MAJ-BH50L | K20: @LK-JMC-BH50L | L20: @LK-DMJ-BH50L | M20: @LK-DYJ-BH50L | N20: @LK-MGJ-BH50L | O20: @LK-PMJ-BH50L | P20: @LK-JWT-BH50L | Q20: @LK-JAG-BH50L | R20: @LK-JAB-BH50L | S20: @LK-JBR-BH50L | T20: @LK-JBG-BH50L | U20: @LK-JDM-BH50L | V20: @LK-JDP-BH50L | W20: @LK-JHG-BH50L | X20: @LK-JIN-BH50L | Y20: @LK-JIV-BH50L | Z20: @LK-JLN-BH50L | AA20: @LK-JMW-BH50L | AB20: @LK-JMN-BH50L | AC20: @LK-MMJ-BH50L | AD20: @LK-JOV-BH50L | AE20: @LK-JPT-BH50L | AF20: @LK-JPE-BH50L | AG20: @LK-JPG-BH50L | AH20: @LK-JSG-BH50L | AI20: @LK-JSP-BH50L | AJ20: @LK-JSB-BH50L | AK20: @LK-JSO-BH50L | AL20: @LK-JSY-BH50L | AM20: @LK-JST-BH50L | AN20: @LK-JTP-BH50L | AO20: @LK-JTK-BH50L | AP20: @LK-JWE-BH50L
B21: 500 HL Base Unit RHH | C21: BH50R | D21: @LK-CSJ-BH50R | E21: @LK-DGJ-BH50R | F21: @LK-DSJ-BH50R | G21: @LK-PGJ-BH50R | H21: @LK-WGJ-BH50R | I21: @LK-GPJ-BH50R | J21: @LK-MAJ-BH50R | K21: @LK-JMC-BH50R | L21: @LK-DMJ-BH50R | M21: @LK-DYJ-BH50R | N21: @LK-MGJ-BH50R | O21: @LK-PMJ-BH50R | P21: @LK-JWT-BH50R | Q21: @LK-JAG-BH50R | R21: @LK-JAB-BH50R | S21: @LK-JBR-BH50R | T21: @LK-JBG-BH50R | U21: @LK-JDM-BH50R | V21: @LK-JDP-BH50R | W21: @LK-JHG-BH50R | X21: @LK-JIN-BH50R | Y21: @LK-JIV-BH50R | Z21: @LK-JLN-BH50R | AA21: @LK-JMW-BH50R | AB21: @LK-JMN-BH50R | AC21: @LK-MMJ-BH50R | AD21: @LK-JOV-BH50R | AE21: @LK-JPT-BH50R | AF21: @LK-JPE-BH50R | AG21: @LK-JPG-BH50R | AH21: @LK-JSG-BH50R | AI21: @LK-JSP-BH50R | AJ21: @LK-JSB-BH50R | AK21: @LK-JSO-BH50R | AL21: @LK-JSY-BH50R | AM21: @LK-JST-BH50R | AN21: @LK-JTP-BH50R | AO21: @LK-JTK-BH50R | AP21: @LK-JWE-BH50R
B22: 500 HL Sink Base Unit (Inc Liner) LHH | C22: BH50SL | D22: @LK-CSJ-BH50SL | E22: @LK-DGJ-BH50SL | F22: @LK-DSJ-BH50SL | G22: @LK-PGJ-BH50SL | H22: @LK-WGJ-BH50SL | I22: @LK-GPJ-BH50SL | J22: @LK-MAJ-BH50SL | K22: @LK-JMC-BH50SL | L22: @LK-DMJ-BH50SL | M22: @LK-DYJ-BH50SL | N22: @LK-MGJ-BH50SL | O22: @LK-PMJ-BH50SL | P22: @LK-JWT-BH50SL | Q22: @LK-JAG-BH50SL | R22: @LK-JAB-BH50SL | S22: @LK-JBR-BH50SL | T22: @LK-JBG-BH50SL | U22: @LK-JDM-BH50SL | V22: @LK-JDP-BH50SL | W22: @LK-JHG-BH50SL | X22: @LK-JIN-BH50SL | Y22: @LK-JIV-BH50SL | Z22: @LK-JLN-BH50SL | AA22: @LK-JMW-BH50SL | AB22: @LK-JMN-BH50SL | AC22: @LK-MMJ-BH50SL | AD22: @LK-JOV-BH50SL | AE22: @LK-JPT-BH50SL | AF22: @LK-JPE-BH50SL | AG22: @LK-JPG-BH50SL | AH22: @LK-JSG-BH50SL | AI22: @LK-JSP-BH50SL | AJ22: @LK-JSB-BH50SL | AK22: @LK-JSO-BH50SL | AL22: @LK-JSY-BH50SL | AM22: @LK-JST-BH50SL | AN22: @LK-JTP-BH50SL | AO22: @LK-JTK-BH50SL | AP22: @LK-JWE-BH50SL
B23: 500 HL Sink Base Unit (Inc Liner) RHH | C23: BH50SR | D23: @LK-CSJ-BH50SR | E23: @LK-DGJ-BH50SR | F23: @LK-DSJ-BH50SR | G23: @LK-PGJ-BH50SR | H23: @LK-WGJ-BH50SR | I23: @LK-GPJ-BH50SR | J23: @LK-MAJ-BH50SR | K23: @LK-JMC-BH50SR | L23: @LK-DMJ-BH50SR | M23: @LK-DYJ-BH50SR | N23: @LK-MGJ-BH50SR | O23: @LK-PMJ-BH50SR | P23: @LK-JWT-BH50SR | Q23: @LK-JAG-BH50SR | R23: @LK-JAB-BH50SR | S23: @LK-JBR-BH50SR | T23: @LK-JBG-BH50SR | U23: @LK-JDM-BH50SR | V23: @LK-JDP-BH50SR | W23: @LK-JHG-BH50SR | X23: @LK-JIN-BH50SR | Y23: @LK-JIV-BH50SR | Z23: @LK-JLN-BH50SR | AA23: @LK-JMW-BH50SR | AB23: @LK-JMN-BH50SR | AC23: @LK-MMJ-BH50SR | AD23: @LK-JOV-BH50SR | AE23: @LK-JPT-BH50SR | AF23: @LK-JPE-BH50SR | AG23: @LK-JPG-BH50SR | AH23: @LK-JSG-BH50SR | AI23: @LK-JSP-BH50SR | AJ23: @LK-JSB-BH50SR | AK23: @LK-JSO-BH50SR | AL23: @LK-JSY-BH50SR | AM23: @LK-JST-BH50SR | AN23: @LK-JTP-BH50SR | AO23: @LK-JTK-BH50SR | AP23: @LK-JWE-BH50SR
B24: 600 HL Base Unit LHH | C24: BH60L | D24: @LK-CSJ-BH60L | E24: @LK-DGJ-BH60L | F24: @LK-DSJ-BH60L | G24: @LK-PGJ-BH60L | H24: @LK-WGJ-BH60L | I24: @LK-GPJ-BH60L | J24: @LK-MAJ-BH60L | K24: @LK-JMC-BH60L | L24: @LK-DMJ-BH60L | M24: @LK-DYJ-BH60L | N24: @LK-MGJ-BH60L | O24: @LK-PMJ-BH60L | P24: @LK-JWT-BH60L | Q24: @LK-JAG-BH60L | R24: @LK-JAB-BH60L | S24: @LK-JBR-BH60L | T24: @LK-JBG-BH60L | U24: @LK-JDM-BH60L | V24: @LK-JDP-BH60L | W24: @LK-JHG-BH60L | X24: @LK-JIN-BH60L | Y24: @LK-JIV-BH60L | Z24: @LK-JLN-BH60L | AA24: @LK-JMW-BH60L | AB24: @LK-JMN-BH60L | AC24: @LK-MMJ-BH60L | AD24: @LK-JOV-BH60L | AE24: @LK-JPT-BH60L | AF24: @LK-JPE-BH60L | AG24: @LK-JPG-BH60L | AH24: @LK-JSG-BH60L | AI24: @LK-JSP-BH60L | AJ24: @LK-JSB-BH60L | AK24: @LK-JSO-BH60L | AL24: @LK-JSY-BH60L | AM24: @LK-JST-BH60L | AN24: @LK-JTP-BH60L | AO24: @LK-JTK-BH60L | AP24: @LK-JWE-BH60L
B25: 600 HL Base Unit RHH | C25: BH60R | D25: @LK-CSJ-BH60R | E25: @LK-DGJ-BH60R | F25: @LK-DSJ-BH60R | G25: @LK-PGJ-BH60R | H25: @LK-WGJ-BH60R | I25: @LK-GPJ-BH60R | J25: @LK-MAJ-BH60R | K25: @LK-JMC-BH60R | L25: @LK-DMJ-BH60R | M25: @LK-DYJ-BH60R | N25: @LK-MGJ-BH60R | O25: @LK-PMJ-BH60R | P25: @LK-JWT-BH60R | Q25: @LK-JAG-BH60R | R25: @LK-JAB-BH60R | S25: @LK-JBR-BH60R | T25: @LK-JBG-BH60R | U25: @LK-JDM-BH60R | V25: @LK-JDP-BH60R | W25: @LK-JHG-BH60R | X25: @LK-JIN-BH60R | Y25: @LK-JIV-BH60R | Z25: @LK-JLN-BH60R | AA25: @LK-JMW-BH60R | AB25: @LK-JMN-BH60R | AC25: @LK-MMJ-BH60R | AD25: @LK-JOV-BH60R | AE25: @LK-JPT-BH60R | AF25: @LK-JPE-BH60R | AG25: @LK-JPG-BH60R | AH25: @LK-JSG-BH60R | AI25: @LK-JSP-BH60R | AJ25: @LK-JSB-BH60R | AK25: @LK-JSO-BH60R | AL25: @LK-JSY-BH60R | AM25: @LK-JST-BH60R | AN25: @LK-JTP-BH60R | AO25: @LK-JTK-BH60R | AP25: @LK-JWE-BH60R
B26: 600 HL Base Unit & Bin (4 bins) | C26: BH6B4 | D26: @LK-CSJ-BH6B4 | E26: @LK-DGJ-BH6B4 | F26: @LK-DSJ-BH6B4 | G26: @LK-PGJ-BH6B4 | H26: @LK-WGJ-BH6B4 | I26: @LK-GPJ-BH6B4 | J26: @LK-MAJ-BH6B4 | K26: @LK-JMC-BH6B4 | L26: @LK-DMJ-BH6B4 | M26: @LK-DYJ-BH6B4 | N26: @LK-MGJ-BH6B4 | O26: @LK-PMJ-BH6B4 | P26: @LK-JWT-BH6B4 | Q26: @LK-JAG-BH6B4 | R26: @LK-JAB-BH6B4 | S26: @LK-JBR-BH6B4 | T26: @LK-JBG-BH6B4 | U26: @LK-JDM-BH6B4 | V26: @LK-JDP-BH6B4 | W26: @LK-JHG-BH6B4 | X26: @LK-JIN-BH6B4 | Y26: @LK-JIV-BH6B4 | Z26: @LK-JLN-BH6B4 | AA26: @LK-JMW-BH6B4 | AB26: @LK-JMN-BH6B4 | AC26: @LK-MMJ-BH6B4 | AD26: @LK-JOV-BH6B4 | AE26: @LK-JPT-BH6B4 | AF26: @LK-JPE-BH6B4 | AG26: @LK-JPG-BH6B4 | AH26: @LK-JSG-BH6B4 | AI26: @LK-JSP-BH6B4 | AJ26: @LK-JSB-BH6B4 | AK26: @LK-JSO-BH6B4 | AL26: @LK-JSY-BH6B4 | AM26: @LK-JST-BH6B4 | AN26: @LK-JTP-BH6B4 | AO26: @LK-JTK-BH6B4 | AP26: @LK-JWE-BH6B4
B27: 600 HL Base Unit & Bin (2 bins) | C27: BH6B2 | D27: @LK-CSJ-BH6B2 | E27: @LK-DGJ-BH6B2 | F27: @LK-DSJ-BH6B2 | G27: @LK-PGJ-BH6B2 | H27: @LK-WGJ-BH6B2 | I27: @LK-GPJ-BH6B2 | J27: @LK-MAJ-BH6B2 | K27: @LK-JMC-BH6B2 | L27: @LK-DMJ-BH6B2 | M27: @LK-DYJ-BH6B2 | N27: @LK-MGJ-BH6B2 | O27: @LK-PMJ-BH6B2 | P27: @LK-JWT-BH6B2 | Q27: @LK-JAG-BH6B2 | R27: @LK-JAB-BH6B2 | S27: @LK-JBR-BH6B2 | T27: @LK-JBG-BH6B2 | U27: @LK-JDM-BH6B2 | V27: @LK-JDP-BH6B2 | W27: @LK-JHG-BH6B2 | X27: @LK-JIN-BH6B2 | Y27: @LK-JIV-BH6B2 | Z27: @LK-JLN-BH6B2 | AA27: @LK-JMW-BH6B2 | AB27: @LK-JMN-BH6B2 | AC27: @LK-MMJ-BH6B2 | AD27: @LK-JOV-BH6B2 | AE27: @LK-JPT-BH6B2 | AF27: @LK-JPE-BH6B2 | AG27: @LK-JPG-BH6B2 | AH27: @LK-JSG-BH6B2 | AI27: @LK-JSP-BH6B2 | AJ27: @LK-JSB-BH6B2 | AK27: @LK-JSO-BH6B2 | AL27: @LK-JSY-BH6B2 | AM27: @LK-JST-BH6B2 | AN27: @LK-JTP-BH6B2 | AO27: @LK-JTK-BH6B2 | AP27: @LK-JWE-BH6B2
B28: 600 HL Sink Base Unit (Inc Liner) LHH | C28: BH60SL | D28: @LK-CSJ-BH60SL | E28: @LK-DGJ-BH60SL | F28: @LK-DSJ-BH60SL | G28: @LK-PGJ-BH60SL | H28: @LK-WGJ-BH60SL | I28: @LK-GPJ-BH60SL | J28: @LK-MAJ-BH60SL | K28: @LK-JMC-BH60SL | L28: @LK-DMJ-BH60SL | M28: @LK-DYJ-BH60SL | N28: @LK-MGJ-BH60SL | O28: @LK-PMJ-BH60SL | P28: @LK-JWT-BH60SL | Q28: @LK-JAG-BH60SL | R28: @LK-JAB-BH60SL | S28: @LK-JBR-BH60SL | T28: @LK-JBG-BH60SL | U28: @LK-JDM-BH60SL | V28: @LK-JDP-BH60SL | W28: @LK-JHG-BH60SL | X28: @LK-JIN-BH60SL | Y28: @LK-JIV-BH60SL | Z28: @LK-JLN-BH60SL | AA28: @LK-JMW-BH60SL | AB28: @LK-JMN-BH60SL | AC28: @LK-MMJ-BH60SL | AD28: @LK-JOV-BH60SL | AE28: @LK-JPT-BH60SL | AF28: @LK-JPE-BH60SL | AG28: @LK-JPG-BH60SL | AH28: @LK-JSG-BH60SL | AI28: @LK-JSP-BH60SL | AJ28: @LK-JSB-BH60SL | AK28: @LK-JSO-BH60SL | AL28: @LK-JSY-BH60SL | AM28: @LK-JST-BH60SL | AN28: @LK-JTP-BH60SL | AO28: @LK-JTK-BH60SL | AP28: @LK-JWE-BH60SL
B29: 600 HL Sink Base Unit (Inc Liner) RHH | C29: BH60SR | D29: @LK-CSJ-BH60SR | E29: @LK-DGJ-BH60SR | F29: @LK-DSJ-BH60SR | G29: @LK-PGJ-BH60SR | H29: @LK-WGJ-BH60SR | I29: @LK-GPJ-BH60SR | J29: @LK-MAJ-BH60SR | K29: @LK-JMC-BH60SR | L29: @LK-DMJ-BH60SR | M29: @LK-DYJ-BH60SR | N29: @LK-MGJ-BH60SR | O29: @LK-PMJ-BH60SR | P29: @LK-JWT-BH60SR | Q29: @LK-JAG-BH60SR | R29: @LK-JAB-BH60SR | S29: @LK-JBR-BH60SR | T29: @LK-JBG-BH60SR | U29: @LK-JDM-BH60SR | V29: @LK-JDP-BH60SR | W29: @LK-JHG-BH60SR | X29: @LK-JIN-BH60SR | Y29: @LK-JIV-BH60SR | Z29: @LK-JLN-BH60SR | AA29: @LK-JMW-BH60SR | AB29: @LK-JMN-BH60SR | AC29: @LK-MMJ-BH60SR | AD29: @LK-JOV-BH60SR | AE29: @LK-JPT-BH60SR | AF29: @LK-JPE-BH60SR | AG29: @LK-JPG-BH60SR | AH29: @LK-JSG-BH60SR | AI29: @LK-JSP-BH60SR | AJ29: @LK-JSB-BH60SR | AK29: @LK-JSO-BH60SR | AL29: @LK-JSY-BH60SR | AM29: @LK-JST-BH60SR | AN29: @LK-JTP-BH60SR | AO29: @LK-JTK-BH60SR | AP29: @LK-JWE-BH60SR
B30: 700 HL Base Unit | C30: BH70 | D30: @LK-CSJ-BH70 | E30: @LK-DGJ-BH70 | F30: @LK-DSJ-BH70 | G30: @LK-PGJ-BH70 | H30: @LK-WGJ-BH70 | I30: @LK-GPJ-BH70 | J30: @LK-MAJ-BH70 | K30: @LK-JMC-BH70 | L30: @LK-DMJ-BH70 | M30: @LK-DYJ-BH70 | N30: @LK-MGJ-BH70 | O30: @LK-PMJ-BH70 | P30: @LK-JWT-BH70 | Q30: @LK-JAG-BH70 | R30: @LK-JAB-BH70 | S30: @LK-JBR-BH70 | T30: @LK-JBG-BH70 | U30: @LK-JDM-BH70 | V30: @LK-JDP-BH70 | W30: @LK-JHG-BH70 | X30: @LK-JIN-BH70 | Y30: @LK-JIV-BH70 | Z30: @LK-JLN-BH70 | AA30: @LK-JMW-BH70 | AB30: @LK-JMN-BH70 | AC30: @LK-MMJ-BH70 | AD30: @LK-JOV-BH70 | AE30: @LK-JPT-BH70 | AF30: @LK-JPE-BH70 | AG30: @LK-JPG-BH70 | AH30: @LK-JSG-BH70 | AI30: @LK-JSP-BH70 | AJ30: @LK-JSB-BH70 | AK30: @LK-JSO-BH70 | AL30: @LK-JSY-BH70 | AM30: @LK-JST-BH70 | AN30: @LK-JTP-BH70 | AO30: @LK-JTK-BH70 | AP30: @LK-JWE-BH70
B31: 800 HL Base Unit | C31: BH80 | D31: @LK-CSJ-BH80 | E31: @LK-DGJ-BH80 | F31: @LK-DSJ-BH80 | G31: @LK-PGJ-BH80 | H31: @LK-WGJ-BH80 | I31: @LK-GPJ-BH80 | J31: @LK-MAJ-BH80 | K31: @LK-JMC-BH80 | L31: @LK-DMJ-BH80 | M31: @LK-DYJ-BH80 | N31: @LK-MGJ-BH80 | O31: @LK-PMJ-BH80 | P31: @LK-JWT-BH80 | Q31: @LK-JAG-BH80 | R31: @LK-JAB-BH80 | S31: @LK-JBR-BH80 | T31: @LK-JBG-BH80 | U31: @LK-JDM-BH80 | V31: @LK-JDP-BH80 | W31: @LK-JHG-BH80 | X31: @LK-JIN-BH80 | Y31: @LK-JIV-BH80 | Z31: @LK-JLN-BH80 | AA31: @LK-JMW-BH80 | AB31: @LK-JMN-BH80 | AC31: @LK-MMJ-BH80 | AD31: @LK-JOV-BH80 | AE31: @LK-JPT-BH80 | AF31: @LK-JPE-BH80 | AG31: @LK-JPG-BH80 | AH31: @LK-JSG-BH80 | AI31: @LK-JSP-BH80 | AJ31: @LK-JSB-BH80 | AK31: @LK-JSO-BH80 | AL31: @LK-JSY-BH80 | AM31: @LK-JST-BH80 | AN31: @LK-JTP-BH80 | AO31: @LK-JTK-BH80 | AP31: @LK-JWE-BH80
B32: 800 HL Sink Base Unit (Inc Liner) | C32: BH80S | D32: @LK-CSJ-BH80S | E32: @LK-DGJ-BH80S | F32: @LK-DSJ-BH80S | G32: @LK-PGJ-BH80S | H32: @LK-WGJ-BH80S | I32: @LK-GPJ-BH80S | J32: @LK-MAJ-BH80S | K32: @LK-JMC-BH80S | L32: @LK-DMJ-BH80S | M32: @LK-DYJ-BH80S | N32: @LK-MGJ-BH80S | O32: @LK-PMJ-BH80S | P32: @LK-JWT-BH80S | Q32: @LK-JAG-BH80S | R32: @LK-JAB-BH80S | S32: @LK-JBR-BH80S | T32: @LK-JBG-BH80S | U32: @LK-JDM-BH80S | V32: @LK-JDP-BH80S | W32: @LK-JHG-BH80S | X32: @LK-JIN-BH80S | Y32: @LK-JIV-BH80S | Z32: @LK-JLN-BH80S | AA32: @LK-JMW-BH80S | AB32: @LK-JMN-BH80S | AC32: @LK-MMJ-BH80S | AD32: @LK-JOV-BH80S | AE32: @LK-JPT-BH80S | AF32: @LK-JPE-BH80S | AG32: @LK-JPG-BH80S | AH32: @LK-JSG-BH80S | AI32: @LK-JSP-BH80S | AJ32: @LK-JSB-BH80S | AK32: @LK-JSO-BH80S | AL32: @LK-JSY-BH80S | AM32: @LK-JST-BH80S | AN32: @LK-JTP-BH80S | AO32: @LK-JTK-BH80S | AP32: @LK-JWE-BH80S
B33: 900 HL Base Unit | C33: BH90 | D33: @LK-CSJ-BH90 | E33: @LK-DGJ-BH90 | F33: @LK-DSJ-BH90 | G33: @LK-PGJ-BH90 | H33: @LK-WGJ-BH90 | I33: @LK-GPJ-BH90 | J33: @LK-MAJ-BH90 | K33: @LK-JMC-BH90 | L33: @LK-DMJ-BH90 | M33: @LK-DYJ-BH90 | N33: @LK-MGJ-BH90 | O33: @LK-PMJ-BH90 | P33: @LK-JWT-BH90 | Q33: @LK-JAG-BH90 | R33: @LK-JAB-BH90 | S33: @LK-JBR-BH90 | T33: @LK-JBG-BH90 | U33: @LK-JDM-BH90 | V33: @LK-JDP-BH90 | W33: @LK-JHG-BH90 | X33: @LK-JIN-BH90 | Y33: @LK-JIV-BH90 | Z33: @LK-JLN-BH90 | AA33: @LK-JMW-BH90 | AB33: @LK-JMN-BH90 | AC33: @LK-MMJ-BH90 | AD33: @LK-JOV-BH90 | AE33: @LK-JPT-BH90 | AF33: @LK-JPE-BH90 | AG33: @LK-JPG-BH90 | AH33: @LK-JSG-BH90 | AI33: @LK-JSP-BH90 | AJ33: @LK-JSB-BH90 | AK33: @LK-JSO-BH90 | AL33: @LK-JSY-BH90 | AM33: @LK-JST-BH90 | AN33: @LK-JTP-BH90 | AO33: @LK-JTK-BH90 | AP33: @LK-JWE-BH90
B34: 900 HL Sink Base Unit (Inc Liner) | C34: BH90S | D34: @LK-CSJ-BH90S | E34: @LK-DGJ-BH90S | F34: @LK-DSJ-BH90S | G34: @LK-PGJ-BH90S | H34: @LK-WGJ-BH90S | I34: @LK-GPJ-BH90S | J34: @LK-MAJ-BH90S | K34: @LK-JMC-BH90S | L34: @LK-DMJ-BH90S | M34: @LK-DYJ-BH90S | N34: @LK-MGJ-BH90S | O34: @LK-PMJ-BH90S | P34: @LK-JWT-BH90S | Q34: @LK-JAG-BH90S | R34: @LK-JAB-BH90S | S34: @LK-JBR-BH90S | T34: @LK-JBG-BH90S | U34: @LK-JDM-BH90S | V34: @LK-JDP-BH90S | W34: @LK-JHG-BH90S | X34: @LK-JIN-BH90S | Y34: @LK-JIV-BH90S | Z34: @LK-JLN-BH90S | AA34: @LK-JMW-BH90S | AB34: @LK-JMN-BH90S | AC34: @LK-MMJ-BH90S | AD34: @LK-JOV-BH90S | AE34: @LK-JPT-BH90S | AF34: @LK-JPE-BH90S | AG34: @LK-JPG-BH90S | AH34: @LK-JSG-BH90S | AI34: @LK-JSP-BH90S | AJ34: @LK-JSB-BH90S | AK34: @LK-JSO-BH90S | AL34: @LK-JSY-BH90S | AM34: @LK-JST-BH90S | AN34: @LK-JTP-BH90S | AO34: @LK-JTK-BH90S | AP34: @LK-JWE-BH90S
B35: 1000 HL Base Unit | C35: BH100 | D35: @LK-CSJ-BH100 | E35: @LK-DGJ-BH100 | F35: @LK-DSJ-BH100 | G35: @LK-PGJ-BH100 | H35: @LK-WGJ-BH100 | I35: @LK-GPJ-BH100 | J35: @LK-MAJ-BH100 | K35: @LK-JMC-BH100 | L35: @LK-DMJ-BH100 | M35: @LK-DYJ-BH100 | N35: @LK-MGJ-BH100 | O35: @LK-PMJ-BH100 | P35: @LK-JWT-BH100 | Q35: @LK-JAG-BH100 | R35: @LK-JAB-BH100 | S35: @LK-JBR-BH100 | T35: @LK-JBG-BH100 | U35: @LK-JDM-BH100 | V35: @LK-JDP-BH100 | W35: @LK-JHG-BH100 | X35: @LK-JIN-BH100 | Y35: @LK-JIV-BH100 | Z35: @LK-JLN-BH100 | AA35: @LK-JMW-BH100 | AB35: @LK-JMN-BH100 | AC35: @LK-MMJ-BH100 | AD35: @LK-JOV-BH100 | AE35: @LK-JPT-BH100 | AF35: @LK-JPE-BH100 | AG35: @LK-JPG-BH100 | AH35: @LK-JSG-BH100 | AI35: @LK-JSP-BH100 | AJ35: @LK-JSB-BH100 | AK35: @LK-JSO-BH100 | AL35: @LK-JSY-BH100 | AM35: @LK-JST-BH100 | AN35: @LK-JTP-BH100 | AO35: @LK-JTK-BH100 | AP35: @LK-JWE-BH100
B36: 1000 HL Sink Base Unit (Inc Liner) | C36: BH10S | D36: @LK-CSJ-BH10S | E36: @LK-DGJ-BH10S | F36: @LK-DSJ-BH10S | G36: @LK-PGJ-BH10S | H36: @LK-WGJ-BH10S | I36: @LK-GPJ-BH10S | J36: @LK-MAJ-BH10S | K36: @LK-JMC-BH10S | L36: @LK-DMJ-BH10S | M36: @LK-DYJ-BH10S | N36: @LK-MGJ-BH10S | O36: @LK-PMJ-BH10S | P36: @LK-JWT-BH10S | Q36: @LK-JAG-BH10S | R36: @LK-JAB-BH10S | S36: @LK-JBR-BH10S | T36: @LK-JBG-BH10S | U36: @LK-JDM-BH10S | V36: @LK-JDP-BH10S | W36: @LK-JHG-BH10S | X36: @LK-JIN-BH10S | Y36: @LK-JIV-BH10S | Z36: @LK-JLN-BH10S | AA36: @LK-JMW-BH10S | AB36: @LK-JMN-BH10S | AC36: @LK-MMJ-BH10S | AD36: @LK-JOV-BH10S | AE36: @LK-JPT-BH10S | AF36: @LK-JPE-BH10S | AG36: @LK-JPG-BH10S | AH36: @LK-JSG-BH10S | AI36: @LK-JSP-BH10S | AJ36: @LK-JSB-BH10S | AK36: @LK-JSO-BH10S | AL36: @LK-JSY-BH10S | AM36: @LK-JST-BH10S | AN36: @LK-JTP-BH10S | AO36: @LK-JTK-BH10S | AP36: @LK-JWE-BH10S
B37: 800 HL Cnr Base (300 Door) LHH | C37: BC83L | D37: @LK-CSJ-BC83L | E37: @LK-DGJ-BC83L | F37: @LK-DSJ-BC83L | G37: @LK-PGJ-BC83L | H37: @LK-WGJ-BC83L | I37: @LK-GPJ-BC83L | J37: @LK-MAJ-BC83L | K37: @LK-JMC-BC83L | L37: @LK-DMJ-BC83L | M37: @LK-DYJ-BC83L | N37: @LK-MGJ-BC83L | O37: @LK-PMJ-BC83L | P37: @LK-JWT-BC83L | Q37: @LK-JAG-BC83L | R37: @LK-JAB-BC83L | S37: @LK-JBR-BC83L | T37: @LK-JBG-BC83L | U37: @LK-JDM-BC83L | V37: @LK-JDP-BC83L | W37: @LK-JHG-BC83L | X37: @LK-JIN-BC83L | Y37: @LK-JIV-BC83L | Z37: @LK-JLN-BC83L | AA37: @LK-JMW-BC83L | AB37: @LK-JMN-BC83L | AC37: @LK-MMJ-BC83L | AD37: @LK-JOV-BC83L | AE37: @LK-JPT-BC83L | AF37: @LK-JPE-BC83L | AG37: @LK-JPG-BC83L | AH37: @LK-JSG-BC83L | AI37: @LK-JSP-BC83L | AJ37: @LK-JSB-BC83L | AK37: @LK-JSO-BC83L | AL37: @LK-JSY-BC83L | AM37: @LK-JST-BC83L | AN37: @LK-JTP-BC83L | AO37: @LK-JTK-BC83L | AP37: @LK-JWE-BC83L
B38: 800 HL Cnr Base (300 Door) RHH | C38: BC83R | D38: @LK-CSJ-BC83R | E38: @LK-DGJ-BC83R | F38: @LK-DSJ-BC83R | G38: @LK-PGJ-BC83R | H38: @LK-WGJ-BC83R | I38: @LK-GPJ-BC83R | J38: @LK-MAJ-BC83R | K38: @LK-JMC-BC83R | L38: @LK-DMJ-BC83R | M38: @LK-DYJ-BC83R | N38: @LK-MGJ-BC83R | O38: @LK-PMJ-BC83R | P38: @LK-JWT-BC83R | Q38: @LK-JAG-BC83R | R38: @LK-JAB-BC83R | S38: @LK-JBR-BC83R | T38: @LK-JBG-BC83R | U38: @LK-JDM-BC83R | V38: @LK-JDP-BC83R | W38: @LK-JHG-BC83R | X38: @LK-JIN-BC83R | Y38: @LK-JIV-BC83R | Z38: @LK-JLN-BC83R | AA38: @LK-JMW-BC83R | AB38: @LK-JMN-BC83R | AC38: @LK-MMJ-BC83R | AD38: @LK-JOV-BC83R | AE38: @LK-JPT-BC83R | AF38: @LK-JPE-BC83R | AG38: @LK-JPG-BC83R | AH38: @LK-JSG-BC83R | AI38: @LK-JSP-BC83R | AJ38: @LK-JSB-BC83R | AK38: @LK-JSO-BC83R | AL38: @LK-JSY-BC83R | AM38: @LK-JST-BC83R | AN38: @LK-JTP-BC83R | AO38: @LK-JTK-BC83R | AP38: @LK-JWE-BC83R
B39: 800 HL Cnr Base Unit (400 Door) LHH | C39: BC84L | D39: @LK-CSJ-BC84L | E39: @LK-DGJ-BC84L | F39: @LK-DSJ-BC84L | G39: @LK-PGJ-BC84L | H39: @LK-WGJ-BC84L | I39: @LK-GPJ-BC84L | J39: @LK-MAJ-BC84L | K39: @LK-JMC-BC84L | L39: @LK-DMJ-BC84L | M39: @LK-DYJ-BC84L | N39: @LK-MGJ-BC84L | O39: @LK-PMJ-BC84L | P39: @LK-JWT-BC84L | Q39: @LK-JAG-BC84L | R39: @LK-JAB-BC84L | S39: @LK-JBR-BC84L | T39: @LK-JBG-BC84L | U39: @LK-JDM-BC84L | V39: @LK-JDP-BC84L | W39: @LK-JHG-BC84L | X39: @LK-JIN-BC84L | Y39: @LK-JIV-BC84L | Z39: @LK-JLN-BC84L | AA39: @LK-JMW-BC84L | AB39: @LK-JMN-BC84L | AC39: @LK-MMJ-BC84L | AD39: @LK-JOV-BC84L | AE39: @LK-JPT-BC84L | AF39: @LK-JPE-BC84L | AG39: @LK-JPG-BC84L | AH39: @LK-JSG-BC84L | AI39: @LK-JSP-BC84L | AJ39: @LK-JSB-BC84L | AK39: @LK-JSO-BC84L | AL39: @LK-JSY-BC84L | AM39: @LK-JST-BC84L | AN39: @LK-JTP-BC84L | AO39: @LK-JTK-BC84L | AP39: @LK-JWE-BC84L
B40: 800 HL Cnr Base Unit (400 Door) RHH | C40: BC84R | D40: @LK-CSJ-BC84R | E40: @LK-DGJ-BC84R | F40: @LK-DSJ-BC84R | G40: @LK-PGJ-BC84R | H40: @LK-WGJ-BC84R | I40: @LK-GPJ-BC84R | J40: @LK-MAJ-BC84R | K40: @LK-JMC-BC84R | L40: @LK-DMJ-BC84R | M40: @LK-DYJ-BC84R | N40: @LK-MGJ-BC84R | O40: @LK-PMJ-BC84R | P40: @LK-JWT-BC84R | Q40: @LK-JAG-BC84R | R40: @LK-JAB-BC84R | S40: @LK-JBR-BC84R | T40: @LK-JBG-BC84R | U40: @LK-JDM-BC84R | V40: @LK-JDP-BC84R | W40: @LK-JHG-BC84R | X40: @LK-JIN-BC84R | Y40: @LK-JIV-BC84R | Z40: @LK-JLN-BC84R | AA40: @LK-JMW-BC84R | AB40: @LK-JMN-BC84R | AC40: @LK-MMJ-BC84R | AD40: @LK-JOV-BC84R | AE40: @LK-JPT-BC84R | AF40: @LK-JPE-BC84R | AG40: @LK-JPG-BC84R | AH40: @LK-JSG-BC84R | AI40: @LK-JSP-BC84R | AJ40: @LK-JSB-BC84R | AK40: @LK-JSO-BC84R | AL40: @LK-JSY-BC84R | AM40: @LK-JST-BC84R | AN40: @LK-JTP-BC84R | AO40: @LK-JTK-BC84R | AP40: @LK-JWE-BC84R
B41: 800 HL Cnr Base (450 Door) LHH | C41: BC845L | D41: @LK-CSJ-BC845L | E41: @LK-DGJ-BC845L | F41: @LK-DSJ-BC845L | G41: @LK-PGJ-BC845L | H41: @LK-WGJ-BC845L | I41: @LK-GPJ-BC845L | J41: @LK-MAJ-BC845L | K41: @LK-JMC-BC845L | L41: @LK-DMJ-BC845L | M41: @LK-DYJ-BC845L | N41: @LK-MGJ-BC845L | O41: @LK-PMJ-BC845L | P41: @LK-JWT-BC845L | Q41: @LK-JAG-BC845L | R41: @LK-JAB-BC845L | S41: @LK-JBR-BC845L | T41: @LK-JBG-BC845L | U41: @LK-JDM-BC845L | V41: @LK-JDP-BC845L | W41: @LK-JHG-BC845L | X41: @LK-JIN-BC845L | Y41: @LK-JIV-BC845L | Z41: @LK-JLN-BC845L | AA41: @LK-JMW-BC845L | AB41: @LK-JMN-BC845L | AC41: @LK-MMJ-BC845L | AD41: @LK-JOV-BC845L | AE41: @LK-JPT-BC845L | AF41: @LK-JPE-BC845L | AG41: @LK-JPG-BC845L | AH41: @LK-JSG-BC845L | AI41: @LK-JSP-BC845L | AJ41: @LK-JSB-BC845L | AK41: @LK-JSO-BC845L | AL41: @LK-JSY-BC845L | AM41: @LK-JST-BC845L | AN41: @LK-JTP-BC845L | AO41: @LK-JTK-BC845L | AP41: @LK-JWE-BC845L
B42: 800 HL Cnr Base (450 Door) RHH | C42: BC845R | D42: @LK-CSJ-BC845R | E42: @LK-DGJ-BC845R | F42: @LK-DSJ-BC845R | G42: @LK-PGJ-BC845R | H42: @LK-WGJ-BC845R | I42: @LK-GPJ-BC845R | J42: @LK-MAJ-BC845R | K42: @LK-JMC-BC845R | L42: @LK-DMJ-BC845R | M42: @LK-DYJ-BC845R | N42: @LK-MGJ-BC845R | O42: @LK-PMJ-BC845R | P42: @LK-JWT-BC845R | Q42: @LK-JAG-BC845R | R42: @LK-JAB-BC845R | S42: @LK-JBR-BC845R | T42: @LK-JBG-BC845R | U42: @LK-JDM-BC845R | V42: @LK-JDP-BC845R | W42: @LK-JHG-BC845R | X42: @LK-JIN-BC845R | Y42: @LK-JIV-BC845R | Z42: @LK-JLN-BC845R | AA42: @LK-JMW-BC845R | AB42: @LK-JMN-BC845R | AC42: @LK-MMJ-BC845R | AD42: @LK-JOV-BC845R | AE42: @LK-JPT-BC845R | AF42: @LK-JPE-BC845R | AG42: @LK-JPG-BC845R | AH42: @LK-JSG-BC845R | AI42: @LK-JSP-BC845R | AJ42: @LK-JSB-BC845R | AK42: @LK-JSO-BC845R | AL42: @LK-JSY-BC845R | AM42: @LK-JST-BC845R | AN42: @LK-JTP-BC845R | AO42: @LK-JTK-BC845R | AP42: @LK-JWE-BC845R
B43: 900 HL Cnr Base (450 Door) LHH | C43: BC945L | D43: @LK-CSJ-BC945L | E43: @LK-DGJ-BC945L | F43: @LK-DSJ-BC945L | G43: @LK-PGJ-BC945L | H43: @LK-WGJ-BC945L | I43: @LK-GPJ-BC945L | J43: @LK-MAJ-BC945L | K43: @LK-JMC-BC945L | L43: @LK-DMJ-BC945L | M43: @LK-DYJ-BC945L | N43: @LK-MGJ-BC945L | O43: @LK-PMJ-BC945L | P43: @LK-JWT-BC945L | Q43: @LK-JAG-BC945L | R43: @LK-JAB-BC945L | S43: @LK-JBR-BC945L | T43: @LK-JBG-BC945L | U43: @LK-JDM-BC945L | V43: @LK-JDP-BC945L | W43: @LK-JHG-BC945L | X43: @LK-JIN-BC945L | Y43: @LK-JIV-BC945L | Z43: @LK-JLN-BC945L | AA43: @LK-JMW-BC945L | AB43: @LK-JMN-BC945L | AC43: @LK-MMJ-BC945L | AD43: @LK-JOV-BC945L | AE43: @LK-JPT-BC945L | AF43: @LK-JPE-BC945L | AG43: @LK-JPG-BC945L | AH43: @LK-JSG-BC945L | AI43: @LK-JSP-BC945L | AJ43: @LK-JSB-BC945L | AK43: @LK-JSO-BC945L | AL43: @LK-JSY-BC945L | AM43: @LK-JST-BC945L | AN43: @LK-JTP-BC945L | AO43: @LK-JTK-BC945L | AP43: @LK-JWE-BC945L
B44: 900 HL Cnr Base (450 Door) RHH | C44: BC945R | D44: @LK-CSJ-BC945R | E44: @LK-DGJ-BC945R | F44: @LK-DSJ-BC945R | G44: @LK-PGJ-BC945R | H44: @LK-WGJ-BC945R | I44: @LK-GPJ-BC945R | J44: @LK-MAJ-BC945R | K44: @LK-JMC-BC945R | L44: @LK-DMJ-BC945R | M44: @LK-DYJ-BC945R | N44: @LK-MGJ-BC945R | O44: @LK-PMJ-BC945R | P44: @LK-JWT-BC945R | Q44: @LK-JAG-BC945R | R44: @LK-JAB-BC945R | S44: @LK-JBR-BC945R | T44: @LK-JBG-BC945R | U44: @LK-JDM-BC945R | V44: @LK-JDP-BC945R | W44: @LK-JHG-BC945R | X44: @LK-JIN-BC945R | Y44: @LK-JIV-BC945R | Z44: @LK-JLN-BC945R | AA44: @LK-JMW-BC945R | AB44: @LK-JMN-BC945R | AC44: @LK-MMJ-BC945R | AD44: @LK-JOV-BC945R | AE44: @LK-JPT-BC945R | AF44: @LK-JPE-BC945R | AG44: @LK-JPG-BC945R | AH44: @LK-JSG-BC945R | AI44: @LK-JSP-BC945R | AJ44: @LK-JSB-BC945R | AK44: @LK-JSO-BC945R | AL44: @LK-JSY-BC945R | AM44: @LK-JST-BC945R | AN44: @LK-JTP-BC945R | AO44: @LK-JTK-BC945R | AP44: @LK-JWE-BC945R
B45: 1000 HL Cnr Base (450 Door) LHH | C45: BC145L | D45: @LK-CSJ-BC145L | E45: @LK-DGJ-BC145L | F45: @LK-DSJ-BC145L | G45: @LK-PGJ-BC145L | H45: @LK-WGJ-BC145L | I45: @LK-GPJ-BC145L | J45: @LK-MAJ-BC145L | K45: @LK-JMC-BC145L | L45: @LK-DMJ-BC145L | M45: @LK-DYJ-BC145L | N45: @LK-MGJ-BC145L | O45: @LK-PMJ-BC145L | P45: @LK-JWT-BC145L | Q45: @LK-JAG-BC145L | R45: @LK-JAB-BC145L | S45: @LK-JBR-BC145L | T45: @LK-JBG-BC145L | U45: @LK-JDM-BC145L | V45: @LK-JDP-BC145L | W45: @LK-JHG-BC145L | X45: @LK-JIN-BC145L | Y45: @LK-JIV-BC145L | Z45: @LK-JLN-BC145L | AA45: @LK-JMW-BC145L | AB45: @LK-JMN-BC145L | AC45: @LK-MMJ-BC145L | AD45: @LK-JOV-BC145L | AE45: @LK-JPT-BC145L | AF45: @LK-JPE-BC145L | AG45: @LK-JPG-BC145L | AH45: @LK-JSG-BC145L | AI45: @LK-JSP-BC145L | AJ45: @LK-JSB-BC145L | AK45: @LK-JSO-BC145L | AL45: @LK-JSY-BC145L | AM45: @LK-JST-BC145L | AN45: @LK-JTP-BC145L | AO45: @LK-JTK-BC145L | AP45: @LK-JWE-BC145L
B46: 1000 HL Cnr Base (450 Door) RHH | C46: BC145R | D46: @LK-CSJ-BC145R | E46: @LK-DGJ-BC145R | F46: @LK-DSJ-BC145R | G46: @LK-PGJ-BC145R | H46: @LK-WGJ-BC145R | I46: @LK-GPJ-BC145R | J46: @LK-MAJ-BC145R | K46: @LK-JMC-BC145R | L46: @LK-DMJ-BC145R | M46: @LK-DYJ-BC145R | N46: @LK-MGJ-BC145R | O46: @LK-PMJ-BC145R | P46: @LK-JWT-BC145R | Q46: @LK-JAG-BC145R | R46: @LK-JAB-BC145R | S46: @LK-JBR-BC145R | T46: @LK-JBG-BC145R | U46: @LK-JDM-BC145R | V46: @LK-JDP-BC145R | W46: @LK-JHG-BC145R | X46: @LK-JIN-BC145R | Y46: @LK-JIV-BC145R | Z46: @LK-JLN-BC145R | AA46: @LK-JMW-BC145R | AB46: @LK-JMN-BC145R | AC46: @LK-MMJ-BC145R | AD46: @LK-JOV-BC145R | AE46: @LK-JPT-BC145R | AF46: @LK-JPE-BC145R | AG46: @LK-JPG-BC145R | AH46: @LK-JSG-BC145R | AI46: @LK-JSP-BC145R | AJ46: @LK-JSB-BC145R | AK46: @LK-JSO-BC145R | AL46: @LK-JSY-BC145R | AM46: @LK-JST-BC145R | AN46: @LK-JTP-BC145R | AO46: @LK-JTK-BC145R | AP46: @LK-JWE-BC145R
B47: 1000 HL Cnr Base (500 Door) LHH | C47: BC15L | D47: @LK-CSJ-BC15L | E47: @LK-DGJ-BC15L | F47: @LK-DSJ-BC15L | G47: @LK-PGJ-BC15L | H47: @LK-WGJ-BC15L | I47: @LK-GPJ-BC15L | J47: @LK-MAJ-BC15L | K47: @LK-JMC-BC15L | L47: @LK-DMJ-BC15L | M47: @LK-DYJ-BC15L | N47: @LK-MGJ-BC15L | O47: @LK-PMJ-BC15L | P47: @LK-JWT-BC15L | Q47: @LK-JAG-BC15L | R47: @LK-JAB-BC15L | S47: @LK-JBR-BC15L | T47: @LK-JBG-BC15L | U47: @LK-JDM-BC15L | V47: @LK-JDP-BC15L | W47: @LK-JHG-BC15L | X47: @LK-JIN-BC15L | Y47: @LK-JIV-BC15L | Z47: @LK-JLN-BC15L | AA47: @LK-JMW-BC15L | AB47: @LK-JMN-BC15L | AC47: @LK-MMJ-BC15L | AD47: @LK-JOV-BC15L | AE47: @LK-JPT-BC15L | AF47: @LK-JPE-BC15L | AG47: @LK-JPG-BC15L | AH47: @LK-JSG-BC15L | AI47: @LK-JSP-BC15L | AJ47: @LK-JSB-BC15L | AK47: @LK-JSO-BC15L | AL47: @LK-JSY-BC15L | AM47: @LK-JST-BC15L | AN47: @LK-JTP-BC15L | AO47: @LK-JTK-BC15L | AP47: @LK-JWE-BC15L
B48: 1000 HL Cnr Base (500 Door) RHH | C48: BC15R | D48: @LK-CSJ-BC15R | E48: @LK-DGJ-BC15R | F48: @LK-DSJ-BC15R | G48: @LK-PGJ-BC15R | H48: @LK-WGJ-BC15R | I48: @LK-GPJ-BC15R | J48: @LK-MAJ-BC15R | K48: @LK-JMC-BC15R | L48: @LK-DMJ-BC15R | M48: @LK-DYJ-BC15R | N48: @LK-MGJ-BC15R | O48: @LK-PMJ-BC15R | P48: @LK-JWT-BC15R | Q48: @LK-JAG-BC15R | R48: @LK-JAB-BC15R | S48: @LK-JBR-BC15R | T48: @LK-JBG-BC15R | U48: @LK-JDM-BC15R | V48: @LK-JDP-BC15R | W48: @LK-JHG-BC15R | X48: @LK-JIN-BC15R | Y48: @LK-JIV-BC15R | Z48: @LK-JLN-BC15R | AA48: @LK-JMW-BC15R | AB48: @LK-JMN-BC15R | AC48: @LK-MMJ-BC15R | AD48: @LK-JOV-BC15R | AE48: @LK-JPT-BC15R | AF48: @LK-JPE-BC15R | AG48: @LK-JPG-BC15R | AH48: @LK-JSG-BC15R | AI48: @LK-JSP-BC15R | AJ48: @LK-JSB-BC15R | AK48: @LK-JSO-BC15R | AL48: @LK-JSY-BC15R | AM48: @LK-JST-BC15R | AN48: @LK-JTP-BC15R | AO48: @LK-JTK-BC15R | AP48: @LK-JWE-BC15R
B49: 1000 HL Cnr Base (600 Door) LHH | C49: BC16L | D49: @LK-CSJ-BC16L | E49: @LK-DGJ-BC16L | F49: @LK-DSJ-BC16L | G49: @LK-PGJ-BC16L | H49: @LK-WGJ-BC16L | I49: @LK-GPJ-BC16L | J49: @LK-MAJ-BC16L | K49: @LK-JMC-BC16L | L49: @LK-DMJ-BC16L | M49: @LK-DYJ-BC16L | N49: @LK-MGJ-BC16L | O49: @LK-PMJ-BC16L | P49: @LK-JWT-BC16L | Q49: @LK-JAG-BC16L | R49: @LK-JAB-BC16L | S49: @LK-JBR-BC16L | T49: @LK-JBG-BC16L | U49: @LK-JDM-BC16L | V49: @LK-JDP-BC16L | W49: @LK-JHG-BC16L | X49: @LK-JIN-BC16L | Y49: @LK-JIV-BC16L | Z49: @LK-JLN-BC16L | AA49: @LK-JMW-BC16L | AB49: @LK-JMN-BC16L | AC49: @LK-MMJ-BC16L | AD49: @LK-JOV-BC16L | AE49: @LK-JPT-BC16L | AF49: @LK-JPE-BC16L | AG49: @LK-JPG-BC16L | AH49: @LK-JSG-BC16L | AI49: @LK-JSP-BC16L | AJ49: @LK-JSB-BC16L | AK49: @LK-JSO-BC16L | AL49: @LK-JSY-BC16L | AM49: @LK-JST-BC16L | AN49: @LK-JTP-BC16L | AO49: @LK-JTK-BC16L | AP49: @LK-JWE-BC16L
B50: 1000 HL Cnr Base (600 Door) RHH | C50: BC16R | D50: @LK-CSJ-BC16R | E50: @LK-DGJ-BC16R | F50: @LK-DSJ-BC16R | G50: @LK-PGJ-BC16R | H50: @LK-WGJ-BC16R | I50: @LK-GPJ-BC16R | J50: @LK-MAJ-BC16R | K50: @LK-JMC-BC16R | L50: @LK-DMJ-BC16R | M50: @LK-DYJ-BC16R | N50: @LK-MGJ-BC16R | O50: @LK-PMJ-BC16R | P50: @LK-JWT-BC16R | Q50: @LK-JAG-BC16R | R50: @LK-JAB-BC16R | S50: @LK-JBR-BC16R | T50: @LK-JBG-BC16R | U50: @LK-JDM-BC16R | V50: @LK-JDP-BC16R | W50: @LK-JHG-BC16R | X50: @LK-JIN-BC16R | Y50: @LK-JIV-BC16R | Z50: @LK-JLN-BC16R | AA50: @LK-JMW-BC16R | AB50: @LK-JMN-BC16R | AC50: @LK-MMJ-BC16R | AD50: @LK-JOV-BC16R | AE50: @LK-JPT-BC16R | AF50: @LK-JPE-BC16R | AG50: @LK-JPG-BC16R | AH50: @LK-JSG-BC16R | AI50: @LK-JSP-BC16R | AJ50: @LK-JSB-BC16R | AK50: @LK-JSO-BC16R | AL50: @LK-JSY-BC16R | AM50: @LK-JST-BC16R | AN50: @LK-JTP-BC16R | AO50: @LK-JTK-BC16R | AP50: @LK-JWE-BC16R
B51: 1000 Cnr Base CORNERSTONE MAXX LH - 500 door | C51: BCL15L | D51: @LK-CSJ-BCL15L | E51: @LK-DGJ-BCL15L | F51: @LK-DSJ-BCL15L | G51: @LK-PGJ-BCL15L | H51: @LK-WGJ-BCL15L | I51: @LK-GPJ-BCL15L | J51: @LK-MAJ-BCL15L | K51: @LK-JMC-BCL15L | L51: @LK-DMJ-BCL15L | M51: @LK-DYJ-BCL15L | N51: @LK-MGJ-BCL15L | O51: @LK-PMJ-BCL15L | P51: @LK-JWT-BCL15L | Q51: @LK-JAG-BCL15L | R51: @LK-JAB-BCL15L | S51: @LK-JBR-BCL15L | T51: @LK-JBG-BCL15L | U51: @LK-JDM-BCL15L | V51: @LK-JDP-BCL15L | W51: @LK-JHG-BCL15L | X51: @LK-JIN-BCL15L | Y51: @LK-JIV-BCL15L | Z51: @LK-JLN-BCL15L | AA51: @LK-JMW-BCL15L | AB51: @LK-JMN-BCL15L | AC51: @LK-MMJ-BCL15L | AD51: @LK-JOV-BCL15L | AE51: @LK-JPT-BCL15L | AF51: @LK-JPE-BCL15L | AG51: @LK-JPG-BCL15L | AH51: @LK-JSG-BCL15L | AI51: @LK-JSP-BCL15L | AJ51: @LK-JSB-BCL15L | AK51: @LK-JSO-BCL15L | AL51: @LK-JSY-BCL15L | AM51: @LK-JST-BCL15L | AN51: @LK-JTP-BCL15L | AO51: @LK-JTK-BCL15L | AP51: @LK-JWE-BCL15L
B52: 1000 Cnr Base CORNERSTONE MAXX RH - 500 door | C52: BCL15R | D52: @LK-CSJ-BCL15R | E52: @LK-DGJ-BCL15R | F52: @LK-DSJ-BCL15R | G52: @LK-PGJ-BCL15R | H52: @LK-WGJ-BCL15R | I52: @LK-GPJ-BCL15R | J52: @LK-MAJ-BCL15R | K52: @LK-JMC-BCL15R | L52: @LK-DMJ-BCL15R | M52: @LK-DYJ-BCL15R | N52: @LK-MGJ-BCL15R | O52: @LK-PMJ-BCL15R | P52: @LK-JWT-BCL15R | Q52: @LK-JAG-BCL15R | R52: @LK-JAB-BCL15R | S52: @LK-JBR-BCL15R | T52: @LK-JBG-BCL15R | U52: @LK-JDM-BCL15R | V52: @LK-JDP-BCL15R | W52: @LK-JHG-BCL15R | X52: @LK-JIN-BCL15R | Y52: @LK-JIV-BCL15R | Z52: @LK-JLN-BCL15R | AA52: @LK-JMW-BCL15R | AB52: @LK-JMN-BCL15R | AC52: @LK-MMJ-BCL15R | AD52: @LK-JOV-BCL15R | AE52: @LK-JPT-BCL15R | AF52: @LK-JPE-BCL15R | AG52: @LK-JPG-BCL15R | AH52: @LK-JSG-BCL15R | AI52: @LK-JSP-BCL15R | AJ52: @LK-JSB-BCL15R | AK52: @LK-JSO-BCL15R | AL52: @LK-JSY-BCL15R | AM52: @LK-JST-BCL15R | AN52: @LK-JTP-BCL15R | AO52: @LK-JTK-BCL15R | AP52: @LK-JWE-BCL15R
B53: 1000 Cnr Base CORNERSTONE MAXX LH - 600 door | C53: BCL16L | D53: @LK-CSJ-BCL16L | E53: @LK-DGJ-BCL16L | F53: @LK-DSJ-BCL16L | G53: @LK-PGJ-BCL16L | H53: @LK-WGJ-BCL16L | I53: @LK-GPJ-BCL16L | J53: @LK-MAJ-BCL16L | K53: @LK-JMC-BCL16L | L53: @LK-DMJ-BCL16L | M53: @LK-DYJ-BCL16L | N53: @LK-MGJ-BCL16L | O53: @LK-PMJ-BCL16L | P53: @LK-JWT-BCL16L | Q53: @LK-JAG-BCL16L | R53: @LK-JAB-BCL16L | S53: @LK-JBR-BCL16L | T53: @LK-JBG-BCL16L | U53: @LK-JDM-BCL16L | V53: @LK-JDP-BCL16L | W53: @LK-JHG-BCL16L | X53: @LK-JIN-BCL16L | Y53: @LK-JIV-BCL16L | Z53: @LK-JLN-BCL16L | AA53: @LK-JMW-BCL16L | AB53: @LK-JMN-BCL16L | AC53: @LK-MMJ-BCL16L | AD53: @LK-JOV-BCL16L | AE53: @LK-JPT-BCL16L | AF53: @LK-JPE-BCL16L | AG53: @LK-JPG-BCL16L | AH53: @LK-JSG-BCL16L | AI53: @LK-JSP-BCL16L | AJ53: @LK-JSB-BCL16L | AK53: @LK-JSO-BCL16L | AL53: @LK-JSY-BCL16L | AM53: @LK-JST-BCL16L | AN53: @LK-JTP-BCL16L | AO53: @LK-JTK-BCL16L | AP53: @LK-JWE-BCL16L
B54: 1000 Cnr Base CORNERSTONE MAXX RH - 600 door | C54: BCL16R | D54: @LK-CSJ-BCL16R | E54: @LK-DGJ-BCL16R | F54: @LK-DSJ-BCL16R | G54: @LK-PGJ-BCL16R | H54: @LK-WGJ-BCL16R | I54: @LK-GPJ-BCL16R | J54: @LK-MAJ-BCL16R | K54: @LK-JMC-BCL16R | L54: @LK-DMJ-BCL16R | M54: @LK-DYJ-BCL16R | N54: @LK-MGJ-BCL16R | O54: @LK-PMJ-BCL16R | P54: @LK-JWT-BCL16R | Q54: @LK-JAG-BCL16R | R54: @LK-JAB-BCL16R | S54: @LK-JBR-BCL16R | T54: @LK-JBG-BCL16R | U54: @LK-JDM-BCL16R | V54: @LK-JDP-BCL16R | W54: @LK-JHG-BCL16R | X54: @LK-JIN-BCL16R | Y54: @LK-JIV-BCL16R | Z54: @LK-JLN-BCL16R | AA54: @LK-JMW-BCL16R | AB54: @LK-JMN-BCL16R | AC54: @LK-MMJ-BCL16R | AD54: @LK-JOV-BCL16R | AE54: @LK-JPT-BCL16R | AF54: @LK-JPE-BCL16R | AG54: @LK-JPG-BCL16R | AH54: @LK-JSG-BCL16R | AI54: @LK-JSP-BCL16R | AJ54: @LK-JSB-BCL16R | AK54: @LK-JSO-BCL16R | AL54: @LK-JSY-BCL16R | AM54: @LK-JST-BCL16R | AN54: @LK-JTP-BCL16R | AO54: @LK-JTK-BCL16R | AP54: @LK-JWE-BCL16R
B55: 900 Corner Base VS COR FLEX - 450 door LHH | C55: BCO945L | D55: @LK-CSJ-BCO945L | E55: @LK-DGJ-BCO945L | F55: @LK-DSJ-BCO945L | G55: @LK-PGJ-BCO945L | H55: @LK-WGJ-BCO945L | I55: @LK-GPJ-BCO945L | J55: @LK-MAJ-BCO945L | K55: @LK-JMC-BCO945L | L55: @LK-DMJ-BCO945L | M55: @LK-DYJ-BCO945L | N55: @LK-MGJ-BCO945L | O55: @LK-PMJ-BCO945L | P55: @LK-JWT-BCO945L | Q55: @LK-JAG-BCO945L | R55: @LK-JAB-BCO945L | S55: @LK-JBR-BCO945L | T55: @LK-JBG-BCO945L | U55: @LK-JDM-BCO945L | V55: @LK-JDP-BCO945L | W55: @LK-JHG-BCO945L | X55: @LK-JIN-BCO945L | Y55: @LK-JIV-BCO945L | Z55: @LK-JLN-BCO945L | AA55: @LK-JMW-BCO945L | AB55: @LK-JMN-BCO945L | AC55: @LK-MMJ-BCO945L | AD55: @LK-JOV-BCO945L | AE55: @LK-JPT-BCO945L | AF55: @LK-JPE-BCO945L | AG55: @LK-JPG-BCO945L | AH55: @LK-JSG-BCO945L | AI55: @LK-JSP-BCO945L | AJ55: @LK-JSB-BCO945L | AK55: @LK-JSO-BCO945L | AL55: @LK-JSY-BCO945L | AM55: @LK-JST-BCO945L | AN55: @LK-JTP-BCO945L | AO55: @LK-JTK-BCO945L | AP55: @LK-JWE-BCO945L
B56: 900 Corner Base VS COR FLEX - 450 door RHH | C56: BCO945R | D56: @LK-CSJ-BCO945R | E56: @LK-DGJ-BCO945R | F56: @LK-DSJ-BCO945R | G56: @LK-PGJ-BCO945R | H56: @LK-WGJ-BCO945R | I56: @LK-GPJ-BCO945R | J56: @LK-MAJ-BCO945R | K56: @LK-JMC-BCO945R | L56: @LK-DMJ-BCO945R | M56: @LK-DYJ-BCO945R | N56: @LK-MGJ-BCO945R | O56: @LK-PMJ-BCO945R | P56: @LK-JWT-BCO945R | Q56: @LK-JAG-BCO945R | R56: @LK-JAB-BCO945R | S56: @LK-JBR-BCO945R | T56: @LK-JBG-BCO945R | U56: @LK-JDM-BCO945R | V56: @LK-JDP-BCO945R | W56: @LK-JHG-BCO945R | X56: @LK-JIN-BCO945R | Y56: @LK-JIV-BCO945R | Z56: @LK-JLN-BCO945R | AA56: @LK-JMW-BCO945R | AB56: @LK-JMN-BCO945R | AC56: @LK-MMJ-BCO945R | AD56: @LK-JOV-BCO945R | AE56: @LK-JPT-BCO945R | AF56: @LK-JPE-BCO945R | AG56: @LK-JPG-BCO945R | AH56: @LK-JSG-BCO945R | AI56: @LK-JSP-BCO945R | AJ56: @LK-JSB-BCO945R | AK56: @LK-JSO-BCO945R | AL56: @LK-JSY-BCO945R | AM56: @LK-JST-BCO945R | AN56: @LK-JTP-BCO945R | AO56: @LK-JTK-BCO945R | AP56: @LK-JWE-BCO945R
B57: 1000 Corner Base VS COR FLEX - 450 door LHH | C57: BCO145L | D57: @LK-CSJ-BCO145L | E57: @LK-DGJ-BCO145L | F57: @LK-DSJ-BCO145L | G57: @LK-PGJ-BCO145L | H57: @LK-WGJ-BCO145L | I57: @LK-GPJ-BCO145L | J57: @LK-MAJ-BCO145L | K57: @LK-JMC-BCO145L | L57: @LK-DMJ-BCO145L | M57: @LK-DYJ-BCO145L | N57: @LK-MGJ-BCO145L | O57: @LK-PMJ-BCO145L | P57: @LK-JWT-BCO145L | Q57: @LK-JAG-BCO145L | R57: @LK-JAB-BCO145L | S57: @LK-JBR-BCO145L | T57: @LK-JBG-BCO145L | U57: @LK-JDM-BCO145L | V57: @LK-JDP-BCO145L | W57: @LK-JHG-BCO145L | X57: @LK-JIN-BCO145L | Y57: @LK-JIV-BCO145L | Z57: @LK-JLN-BCO145L | AA57: @LK-JMW-BCO145L | AB57: @LK-JMN-BCO145L | AC57: @LK-MMJ-BCO145L | AD57: @LK-JOV-BCO145L | AE57: @LK-JPT-BCO145L | AF57: @LK-JPE-BCO145L | AG57: @LK-JPG-BCO145L | AH57: @LK-JSG-BCO145L | AI57: @LK-JSP-BCO145L | AJ57: @LK-JSB-BCO145L | AK57: @LK-JSO-BCO145L | AL57: @LK-JSY-BCO145L | AM57: @LK-JST-BCO145L | AN57: @LK-JTP-BCO145L | AO57: @LK-JTK-BCO145L | AP57: @LK-JWE-BCO145L
B58: 1000 Corner Base VS COR FLEX - 450 door RHH | C58: BCO145R | D58: @LK-CSJ-BCO145R | E58: @LK-DGJ-BCO145R | F58: @LK-DSJ-BCO145R | G58: @LK-PGJ-BCO145R | H58: @LK-WGJ-BCO145R | I58: @LK-GPJ-BCO145R | J58: @LK-MAJ-BCO145R | K58: @LK-JMC-BCO145R | L58: @LK-DMJ-BCO145R | M58: @LK-DYJ-BCO145R | N58: @LK-MGJ-BCO145R | O58: @LK-PMJ-BCO145R | P58: @LK-JWT-BCO145R | Q58: @LK-JAG-BCO145R | R58: @LK-JAB-BCO145R | S58: @LK-JBR-BCO145R | T58: @LK-JBG-BCO145R | U58: @LK-JDM-BCO145R | V58: @LK-JDP-BCO145R | W58: @LK-JHG-BCO145R | X58: @LK-JIN-BCO145R | Y58: @LK-JIV-BCO145R | Z58: @LK-JLN-BCO145R | AA58: @LK-JMW-BCO145R | AB58: @LK-JMN-BCO145R | AC58: @LK-MMJ-BCO145R | AD58: @LK-JOV-BCO145R | AE58: @LK-JPT-BCO145R | AF58: @LK-JPE-BCO145R | AG58: @LK-JPG-BCO145R | AH58: @LK-JSG-BCO145R | AI58: @LK-JSP-BCO145R | AJ58: @LK-JSB-BCO145R | AK58: @LK-JSO-BCO145R | AL58: @LK-JSY-BCO145R | AM58: @LK-JST-BCO145R | AN58: @LK-JTP-BCO145R | AO58: @LK-JTK-BCO145R | AP58: @LK-JWE-BCO145R
B59: 1000 Corner Base VS COR FLEX - 500 door LHH | C59: BCO15L | D59: @LK-CSJ-BCO15L | E59: @LK-DGJ-BCO15L | F59: @LK-DSJ-BCO15L | G59: @LK-PGJ-BCO15L | H59: @LK-WGJ-BCO15L | I59: @LK-GPJ-BCO15L | J59: @LK-MAJ-BCO15L | K59: @LK-JMC-BCO15L | L59: @LK-DMJ-BCO15L | M59: @LK-DYJ-BCO15L | N59: @LK-MGJ-BCO15L | O59: @LK-PMJ-BCO15L | P59: @LK-JWT-BCO15L | Q59: @LK-JAG-BCO15L | R59: @LK-JAB-BCO15L | S59: @LK-JBR-BCO15L | T59: @LK-JBG-BCO15L | U59: @LK-JDM-BCO15L | V59: @LK-JDP-BCO15L | W59: @LK-JHG-BCO15L | X59: @LK-JIN-BCO15L | Y59: @LK-JIV-BCO15L | Z59: @LK-JLN-BCO15L | AA59: @LK-JMW-BCO15L | AB59: @LK-JMN-BCO15L | AC59: @LK-MMJ-BCO15L | AD59: @LK-JOV-BCO15L | AE59: @LK-JPT-BCO15L | AF59: @LK-JPE-BCO15L | AG59: @LK-JPG-BCO15L | AH59: @LK-JSG-BCO15L | AI59: @LK-JSP-BCO15L | AJ59: @LK-JSB-BCO15L | AK59: @LK-JSO-BCO15L | AL59: @LK-JSY-BCO15L | AM59: @LK-JST-BCO15L | AN59: @LK-JTP-BCO15L | AO59: @LK-JTK-BCO15L | AP59: @LK-JWE-BCO15L
B60: 1000 Corner Base VS COR FLEX - 500 door RHH | C60: BCO15R | D60: @LK-CSJ-BCO15R | E60: @LK-DGJ-BCO15R | F60: @LK-DSJ-BCO15R | G60: @LK-PGJ-BCO15R | H60: @LK-WGJ-BCO15R | I60: @LK-GPJ-BCO15R | J60: @LK-MAJ-BCO15R | K60: @LK-JMC-BCO15R | L60: @LK-DMJ-BCO15R | M60: @LK-DYJ-BCO15R | N60: @LK-MGJ-BCO15R | O60: @LK-PMJ-BCO15R | P60: @LK-JWT-BCO15R | Q60: @LK-JAG-BCO15R | R60: @LK-JAB-BCO15R | S60: @LK-JBR-BCO15R | T60: @LK-JBG-BCO15R | U60: @LK-JDM-BCO15R | V60: @LK-JDP-BCO15R | W60: @LK-JHG-BCO15R | X60: @LK-JIN-BCO15R | Y60: @LK-JIV-BCO15R | Z60: @LK-JLN-BCO15R | AA60: @LK-JMW-BCO15R | AB60: @LK-JMN-BCO15R | AC60: @LK-MMJ-BCO15R | AD60: @LK-JOV-BCO15R | AE60: @LK-JPT-BCO15R | AF60: @LK-JPE-BCO15R | AG60: @LK-JPG-BCO15R | AH60: @LK-JSG-BCO15R | AI60: @LK-JSP-BCO15R | AJ60: @LK-JSB-BCO15R | AK60: @LK-JSO-BCO15R | AL60: @LK-JSY-BCO15R | AM60: @LK-JST-BCO15R | AN60: @LK-JTP-BCO15R | AO60: @LK-JTK-BCO15R | AP60: @LK-JWE-BCO15R
B61: 1000 Corner Base VS COR FLEX - 600 door LHH | C61: BCO16L | D61: @LK-CSJ-BCO16L | E61: @LK-DGJ-BCO16L | F61: @LK-DSJ-BCO16L | G61: @LK-PGJ-BCO16L | H61: @LK-WGJ-BCO16L | I61: @LK-GPJ-BCO16L | J61: @LK-MAJ-BCO16L | K61: @LK-JMC-BCO16L | L61: @LK-DMJ-BCO16L | M61: @LK-DYJ-BCO16L | N61: @LK-MGJ-BCO16L | O61: @LK-PMJ-BCO16L | P61: @LK-JWT-BCO16L | Q61: @LK-JAG-BCO16L | R61: @LK-JAB-BCO16L | S61: @LK-JBR-BCO16L | T61: @LK-JBG-BCO16L | U61: @LK-JDM-BCO16L | V61: @LK-JDP-BCO16L | W61: @LK-JHG-BCO16L | X61: @LK-JIN-BCO16L | Y61: @LK-JIV-BCO16L | Z61: @LK-JLN-BCO16L | AA61: @LK-JMW-BCO16L | AB61: @LK-JMN-BCO16L | AC61: @LK-MMJ-BCO16L | AD61: @LK-JOV-BCO16L | AE61: @LK-JPT-BCO16L | AF61: @LK-JPE-BCO16L | AG61: @LK-JPG-BCO16L | AH61: @LK-JSG-BCO16L | AI61: @LK-JSP-BCO16L | AJ61: @LK-JSB-BCO16L | AK61: @LK-JSO-BCO16L | AL61: @LK-JSY-BCO16L | AM61: @LK-JST-BCO16L | AN61: @LK-JTP-BCO16L | AO61: @LK-JTK-BCO16L | AP61: @LK-JWE-BCO16L
B62: 1000 Corner Base VS COR FLEX - 600 door RHH | C62: BCO16R | D62: @LK-CSJ-BCO16R | E62: @LK-DGJ-BCO16R | F62: @LK-DSJ-BCO16R | G62: @LK-PGJ-BCO16R | H62: @LK-WGJ-BCO16R | I62: @LK-GPJ-BCO16R | J62: @LK-MAJ-BCO16R | K62: @LK-JMC-BCO16R | L62: @LK-DMJ-BCO16R | M62: @LK-DYJ-BCO16R | N62: @LK-MGJ-BCO16R | O62: @LK-PMJ-BCO16R | P62: @LK-JWT-BCO16R | Q62: @LK-JAG-BCO16R | R62: @LK-JAB-BCO16R | S62: @LK-JBR-BCO16R | T62: @LK-JBG-BCO16R | U62: @LK-JDM-BCO16R | V62: @LK-JDP-BCO16R | W62: @LK-JHG-BCO16R | X62: @LK-JIN-BCO16R | Y62: @LK-JIV-BCO16R | Z62: @LK-JLN-BCO16R | AA62: @LK-JMW-BCO16R | AB62: @LK-JMN-BCO16R | AC62: @LK-MMJ-BCO16R | AD62: @LK-JOV-BCO16R | AE62: @LK-JPT-BCO16R | AF62: @LK-JPE-BCO16R | AG62: @LK-JPG-BCO16R | AH62: @LK-JSG-BCO16R | AI62: @LK-JSP-BCO16R | AJ62: @LK-JSB-BCO16R | AK62: @LK-JSO-BCO16R | AL62: @LK-JSY-BCO16R | AM62: @LK-JST-BCO16R | AN62: @LK-JTP-BCO16R | AO62: @LK-JTK-BCO16R | AP62: @LK-JWE-BCO16R
B63: 950 HL Cnr L Base | C63: BCL9 | D63: @LK-CSJ-BCL9 | E63: @LK-DGJ-BCL9 | F63: @LK-DSJ-BCL9 | G63: @LK-PGJ-BCL9 | H63: @LK-WGJ-BCL9 | I63: @LK-GPJ-BCL9 | J63: @LK-MAJ-BCL9 | K63: @LK-JMC-BCL9 | L63: @LK-DMJ-BCL9 | M63: @LK-DYJ-BCL9 | N63: @LK-MGJ-BCL9 | O63: @LK-PMJ-BCL9 | P63: @LK-JWT-BCL9 | Q63: @LK-JAG-BCL9 | R63: @LK-JAB-BCL9 | S63: @LK-JBR-BCL9 | T63: @LK-JBG-BCL9 | U63: @LK-JDM-BCL9 | V63: @LK-JDP-BCL9 | W63: @LK-JHG-BCL9 | X63: @LK-JIN-BCL9 | Y63: @LK-JIV-BCL9 | Z63: @LK-JLN-BCL9 | AA63: @LK-JMW-BCL9 | AB63: @LK-JMN-BCL9 | AC63: @LK-MMJ-BCL9 | AD63: @LK-JOV-BCL9 | AE63: @LK-JPT-BCL9 | AF63: @LK-JPE-BCL9 | AG63: @LK-JPG-BCL9 | AH63: @LK-JSG-BCL9 | AI63: @LK-JSP-BCL9 | AJ63: @LK-JSB-BCL9 | AK63: @LK-JSO-BCL9 | AL63: @LK-JSY-BCL9 | AM63: @LK-JST-BCL9 | AN63: @LK-JTP-BCL9 | AO63: @LK-JTK-BCL9 | AP63: @LK-JWE-BCL9
B64: 600 Belfast Sink Unit (495mm High) LHH | C64: BSU6495L | D64: @LK-CSJ-BSU6495L | E64: @LK-DGJ-BSU6495L | F64: @LK-DSJ-BSU6495L | G64: @LK-PGJ-BSU6495L | H64: @LK-WGJ-BSU6495L | I64: @LK-GPJ-BSU6495L | J64: @LK-MAJ-BSU6495L | K64: @LK-JMC-BSU6495L | L64: @LK-DMJ-BSU6495L | M64: @LK-DYJ-BSU6495L | N64: @LK-MGJ-BSU6495L | O64: @LK-PMJ-BSU6495L | P64: @LK-JWT-BSU6495L | Q64: @LK-JAG-BSU6495L | R64: @LK-JAB-BSU6495L | S64: @LK-JBR-BSU6495L | T64: @LK-JBG-BSU6495L | U64: @LK-JDM-BSU6495L | V64: @LK-JDP-BSU6495L | W64: @LK-JHG-BSU6495L | X64: @LK-JIN-BSU6495L | Y64: @LK-JIV-BSU6495L | Z64: @LK-JLN-BSU6495L | AA64: @LK-JMW-BSU6495L | AB64: @LK-JMN-BSU6495L | AC64: @LK-MMJ-BSU6495L | AD64: @LK-JOV-BSU6495L | AE64: @LK-JPT-BSU6495L | AF64: @LK-JPE-BSU6495L | AG64: @LK-JPG-BSU6495L | AH64: @LK-JSG-BSU6495L | AI64: @LK-JSP-BSU6495L | AJ64: @LK-JSB-BSU6495L | AK64: @LK-JSO-BSU6495L | AL64: @LK-JSY-BSU6495L | AM64: @LK-JST-BSU6495L | AN64: @LK-JTP-BSU6495L | AO64: @LK-JTK-BSU6495L | AP64: @LK-JWE-BSU6495L
B65: 600 Belfast Sink Unit (495mm High) RHH | C65: BSU6495R | D65: @LK-CSJ-BSU6495R | E65: @LK-DGJ-BSU6495R | F65: @LK-DSJ-BSU6495R | G65: @LK-PGJ-BSU6495R | H65: @LK-WGJ-BSU6495R | I65: @LK-GPJ-BSU6495R | J65: @LK-MAJ-BSU6495R | K65: @LK-JMC-BSU6495R | L65: @LK-DMJ-BSU6495R | M65: @LK-DYJ-BSU6495R | N65: @LK-MGJ-BSU6495R | O65: @LK-PMJ-BSU6495R | P65: @LK-JWT-BSU6495R | Q65: @LK-JAG-BSU6495R | R65: @LK-JAB-BSU6495R | S65: @LK-JBR-BSU6495R | T65: @LK-JBG-BSU6495R | U65: @LK-JDM-BSU6495R | V65: @LK-JDP-BSU6495R | W65: @LK-JHG-BSU6495R | X65: @LK-JIN-BSU6495R | Y65: @LK-JIV-BSU6495R | Z65: @LK-JLN-BSU6495R | AA65: @LK-JMW-BSU6495R | AB65: @LK-JMN-BSU6495R | AC65: @LK-MMJ-BSU6495R | AD65: @LK-JOV-BSU6495R | AE65: @LK-JPT-BSU6495R | AF65: @LK-JPE-BSU6495R | AG65: @LK-JPG-BSU6495R | AH65: @LK-JSG-BSU6495R | AI65: @LK-JSP-BSU6495R | AJ65: @LK-JSB-BSU6495R | AK65: @LK-JSO-BSU6495R | AL65: @LK-JSY-BSU6495R | AM65: @LK-JST-BSU6495R | AN65: @LK-JTP-BSU6495R | AO65: @LK-JTK-BSU6495R | AP65: @LK-JWE-BSU6495R
B66: 600 Belfast Sink Unit (450mm High) LHH | C66: BSU6450L | D66: @LK-CSJ-BSU6450L | E66: @LK-DGJ-BSU6450L | F66: @LK-DSJ-BSU6450L | G66: @LK-PGJ-BSU6450L | H66: @LK-WGJ-BSU6450L | I66: @LK-GPJ-BSU6450L | J66: @LK-MAJ-BSU6450L | K66: @LK-JMC-BSU6450L | L66: @LK-DMJ-BSU6450L | M66: @LK-DYJ-BSU6450L | N66: @LK-MGJ-BSU6450L | O66: @LK-PMJ-BSU6450L | P66: @LK-JWT-BSU6450L | Q66: @LK-JAG-BSU6450L | R66: @LK-JAB-BSU6450L | S66: @LK-JBR-BSU6450L | T66: @LK-JBG-BSU6450L | U66: @LK-JDM-BSU6450L | V66: @LK-JDP-BSU6450L | W66: @LK-JHG-BSU6450L | X66: @LK-JIN-BSU6450L | Y66: @LK-JIV-BSU6450L | Z66: @LK-JLN-BSU6450L | AA66: @LK-JMW-BSU6450L | AB66: @LK-JMN-BSU6450L | AC66: @LK-MMJ-BSU6450L | AD66: @LK-JOV-BSU6450L | AE66: @LK-JPT-BSU6450L | AF66: @LK-JPE-BSU6450L | AG66: @LK-JPG-BSU6450L | AH66: @LK-JSG-BSU6450L | AI66: @LK-JSP-BSU6450L | AJ66: @LK-JSB-BSU6450L | AK66: @LK-JSO-BSU6450L | AL66: @LK-JSY-BSU6450L | AM66: @LK-JST-BSU6450L | AN66: @LK-JTP-BSU6450L | AO66: @LK-JTK-BSU6450L | AP66: @LK-JWE-BSU6450L
B67: 600 Belfast Sink Unit (450mm High) RHH | C67: BSU6450R | D67: @LK-CSJ-BSU6450R | E67: @LK-DGJ-BSU6450R | F67: @LK-DSJ-BSU6450R | G67: @LK-PGJ-BSU6450R | H67: @LK-WGJ-BSU6450R | I67: @LK-GPJ-BSU6450R | J67: @LK-MAJ-BSU6450R | K67: @LK-JMC-BSU6450R | L67: @LK-DMJ-BSU6450R | M67: @LK-DYJ-BSU6450R | N67: @LK-MGJ-BSU6450R | O67: @LK-PMJ-BSU6450R | P67: @LK-JWT-BSU6450R | Q67: @LK-JAG-BSU6450R | R67: @LK-JAB-BSU6450R | S67: @LK-JBR-BSU6450R | T67: @LK-JBG-BSU6450R | U67: @LK-JDM-BSU6450R | V67: @LK-JDP-BSU6450R | W67: @LK-JHG-BSU6450R | X67: @LK-JIN-BSU6450R | Y67: @LK-JIV-BSU6450R | Z67: @LK-JLN-BSU6450R | AA67: @LK-JMW-BSU6450R | AB67: @LK-JMN-BSU6450R | AC67: @LK-MMJ-BSU6450R | AD67: @LK-JOV-BSU6450R | AE67: @LK-JPT-BSU6450R | AF67: @LK-JPE-BSU6450R | AG67: @LK-JPG-BSU6450R | AH67: @LK-JSG-BSU6450R | AI67: @LK-JSP-BSU6450R | AJ67: @LK-JSB-BSU6450R | AK67: @LK-JSO-BSU6450R | AL67: @LK-JSY-BSU6450R | AM67: @LK-JST-BSU6450R | AN67: @LK-JTP-BSU6450R | AO67: @LK-JTK-BSU6450R | AP67: @LK-JWE-BSU6450R
B68: 300 HL Pan Drawer Unit with 2 Internal Drawers | C68: BHD3 | D68: @LK-CSJ-BHD3 | E68: @LK-DGJ-BHD3 | F68: @LK-DSJ-BHD3 | G68: @LK-PGJ-BHD3 | H68: @LK-WGJ-BHD3 | I68: @LK-GPJ-BHD3 | J68: @LK-MAJ-BHD3 | K68: @LK-JMC-BHD3 | L68: @LK-DMJ-BHD3 | M68: @LK-DYJ-BHD3 | N68: @LK-MGJ-BHD3 | O68: @LK-PMJ-BHD3 | P68: @LK-JWT-BHD3 | Q68: @LK-JAG-BHD3 | R68: @LK-JAB-BHD3 | S68: @LK-JBR-BHD3 | T68: @LK-JBG-BHD3 | U68: @LK-JDM-BHD3 | V68: @LK-JDP-BHD3 | W68: @LK-JHG-BHD3 | X68: @LK-JIN-BHD3 | Y68: @LK-JIV-BHD3 | Z68: @LK-JLN-BHD3 | AA68: @LK-JMW-BHD3 | AB68: @LK-JMN-BHD3 | AC68: @LK-MMJ-BHD3 | AD68: @LK-JOV-BHD3 | AE68: @LK-JPT-BHD3 | AF68: @LK-JPE-BHD3 | AG68: @LK-JPG-BHD3 | AH68: @LK-JSG-BHD3 | AI68: @LK-JSP-BHD3 | AJ68: @LK-JSB-BHD3 | AK68: @LK-JSO-BHD3 | AL68: @LK-JSY-BHD3 | AM68: @LK-JST-BHD3 | AN68: @LK-JTP-BHD3 | AO68: @LK-JTK-BHD3 | AP68: @LK-JWE-BHD3
B69: 400 HL Pan Drawer Unit with 2 Internal Drawers | C69: BHD4 | D69: @LK-CSJ-BHD4 | E69: @LK-DGJ-BHD4 | F69: @LK-DSJ-BHD4 | G69: @LK-PGJ-BHD4 | H69: @LK-WGJ-BHD4 | I69: @LK-GPJ-BHD4 | J69: @LK-MAJ-BHD4 | K69: @LK-JMC-BHD4 | L69: @LK-DMJ-BHD4 | M69: @LK-DYJ-BHD4 | N69: @LK-MGJ-BHD4 | O69: @LK-PMJ-BHD4 | P69: @LK-JWT-BHD4 | Q69: @LK-JAG-BHD4 | R69: @LK-JAB-BHD4 | S69: @LK-JBR-BHD4 | T69: @LK-JBG-BHD4 | U69: @LK-JDM-BHD4 | V69: @LK-JDP-BHD4 | W69: @LK-JHG-BHD4 | X69: @LK-JIN-BHD4 | Y69: @LK-JIV-BHD4 | Z69: @LK-JLN-BHD4 | AA69: @LK-JMW-BHD4 | AB69: @LK-JMN-BHD4 | AC69: @LK-MMJ-BHD4 | AD69: @LK-JOV-BHD4 | AE69: @LK-JPT-BHD4 | AF69: @LK-JPE-BHD4 | AG69: @LK-JPG-BHD4 | AH69: @LK-JSG-BHD4 | AI69: @LK-JSP-BHD4 | AJ69: @LK-JSB-BHD4 | AK69: @LK-JSO-BHD4 | AL69: @LK-JSY-BHD4 | AM69: @LK-JST-BHD4 | AN69: @LK-JTP-BHD4 | AO69: @LK-JTK-BHD4 | AP69: @LK-JWE-BHD4
B70: 500 HL Pan Drawer Unit with 2 Internal Drawers | C70: BHD5 | D70: @LK-CSJ-BHD5 | E70: @LK-DGJ-BHD5 | F70: @LK-DSJ-BHD5 | G70: @LK-PGJ-BHD5 | H70: @LK-WGJ-BHD5 | I70: @LK-GPJ-BHD5 | J70: @LK-MAJ-BHD5 | K70: @LK-JMC-BHD5 | L70: @LK-DMJ-BHD5 | M70: @LK-DYJ-BHD5 | N70: @LK-MGJ-BHD5 | O70: @LK-PMJ-BHD5 | P70: @LK-JWT-BHD5 | Q70: @LK-JAG-BHD5 | R70: @LK-JAB-BHD5 | S70: @LK-JBR-BHD5 | T70: @LK-JBG-BHD5 | U70: @LK-JDM-BHD5 | V70: @LK-JDP-BHD5 | W70: @LK-JHG-BHD5 | X70: @LK-JIN-BHD5 | Y70: @LK-JIV-BHD5 | Z70: @LK-JLN-BHD5 | AA70: @LK-JMW-BHD5 | AB70: @LK-JMN-BHD5 | AC70: @LK-MMJ-BHD5 | AD70: @LK-JOV-BHD5 | AE70: @LK-JPT-BHD5 | AF70: @LK-JPE-BHD5 | AG70: @LK-JPG-BHD5 | AH70: @LK-JSG-BHD5 | AI70: @LK-JSP-BHD5 | AJ70: @LK-JSB-BHD5 | AK70: @LK-JSO-BHD5 | AL70: @LK-JSY-BHD5 | AM70: @LK-JST-BHD5 | AN70: @LK-JTP-BHD5 | AO70: @LK-JTK-BHD5 | AP70: @LK-JWE-BHD5
B71: 600 HL Pan Drawer Unit with 2 Internal Drawers | C71: BHD6 | D71: @LK-CSJ-BHD6 | E71: @LK-DGJ-BHD6 | F71: @LK-DSJ-BHD6 | G71: @LK-PGJ-BHD6 | H71: @LK-WGJ-BHD6 | I71: @LK-GPJ-BHD6 | J71: @LK-MAJ-BHD6 | K71: @LK-JMC-BHD6 | L71: @LK-DMJ-BHD6 | M71: @LK-DYJ-BHD6 | N71: @LK-MGJ-BHD6 | O71: @LK-PMJ-BHD6 | P71: @LK-JWT-BHD6 | Q71: @LK-JAG-BHD6 | R71: @LK-JAB-BHD6 | S71: @LK-JBR-BHD6 | T71: @LK-JBG-BHD6 | U71: @LK-JDM-BHD6 | V71: @LK-JDP-BHD6 | W71: @LK-JHG-BHD6 | X71: @LK-JIN-BHD6 | Y71: @LK-JIV-BHD6 | Z71: @LK-JLN-BHD6 | AA71: @LK-JMW-BHD6 | AB71: @LK-JMN-BHD6 | AC71: @LK-MMJ-BHD6 | AD71: @LK-JOV-BHD6 | AE71: @LK-JPT-BHD6 | AF71: @LK-JPE-BHD6 | AG71: @LK-JPG-BHD6 | AH71: @LK-JSG-BHD6 | AI71: @LK-JSP-BHD6 | AJ71: @LK-JSB-BHD6 | AK71: @LK-JSO-BHD6 | AL71: @LK-JSY-BHD6 | AM71: @LK-JST-BHD6 | AN71: @LK-JTP-BHD6 | AO71: @LK-JTK-BHD6 | AP71: @LK-JWE-BHD6
B72: 500 4 Drw Base Unit | C72: BD54 | D72: @LK-CSJ-BD54 | E72: @LK-DGJ-BD54 | F72: @LK-DSJ-BD54 | G72: @LK-PGJ-BD54 | H72: @LK-WGJ-BD54 | I72: @LK-GPJ-BD54 | J72: @LK-MAJ-BD54 | K72: @LK-JMC-BD54 | L72: @LK-DMJ-BD54 | M72: @LK-DYJ-BD54 | N72: @LK-MGJ-BD54 | O72: @LK-PMJ-BD54 | P72: @LK-JWT-BD54 | Q72: @LK-JAG-BD54 | R72: @LK-JAB-BD54 | S72: @LK-JBR-BD54 | T72: @LK-JBG-BD54 | U72: @LK-JDM-BD54 | V72: @LK-JDP-BD54 | W72: @LK-JHG-BD54 | X72: @LK-JIN-BD54 | Y72: @LK-JIV-BD54 | Z72: @LK-JLN-BD54 | AA72: @LK-JMW-BD54 | AB72: @LK-JMN-BD54 | AC72: @LK-MMJ-BD54 | AD72: @LK-JOV-BD54 | AE72: @LK-JPT-BD54 | AF72: @LK-JPE-BD54 | AG72: @LK-JPG-BD54 | AH72: @LK-JSG-BD54 | AI72: @LK-JSP-BD54 | AJ72: @LK-JSB-BD54 | AK72: @LK-JSO-BD54 | AL72: @LK-JSY-BD54 | AM72: @LK-JST-BD54 | AN72: @LK-JTP-BD54 | AO72: @LK-JTK-BD54 | AP72: @LK-JWE-BD54
B73: 500 3 Drw Base Unit | C73: BD53 | D73: @LK-CSJ-BD53 | E73: @LK-DGJ-BD53 | F73: @LK-DSJ-BD53 | G73: @LK-PGJ-BD53 | H73: @LK-WGJ-BD53 | I73: @LK-GPJ-BD53 | J73: @LK-MAJ-BD53 | K73: @LK-JMC-BD53 | L73: @LK-DMJ-BD53 | M73: @LK-DYJ-BD53 | N73: @LK-MGJ-BD53 | O73: @LK-PMJ-BD53 | P73: @LK-JWT-BD53 | Q73: @LK-JAG-BD53 | R73: @LK-JAB-BD53 | S73: @LK-JBR-BD53 | T73: @LK-JBG-BD53 | U73: @LK-JDM-BD53 | V73: @LK-JDP-BD53 | W73: @LK-JHG-BD53 | X73: @LK-JIN-BD53 | Y73: @LK-JIV-BD53 | Z73: @LK-JLN-BD53 | AA73: @LK-JMW-BD53 | AB73: @LK-JMN-BD53 | AC73: @LK-MMJ-BD53 | AD73: @LK-JOV-BD53 | AE73: @LK-JPT-BD53 | AF73: @LK-JPE-BD53 | AG73: @LK-JPG-BD53 | AH73: @LK-JSG-BD53 | AI73: @LK-JSP-BD53 | AJ73: @LK-JSB-BD53 | AK73: @LK-JSO-BD53 | AL73: @LK-JSY-BD53 | AM73: @LK-JST-BD53 | AN73: @LK-JTP-BD53 | AO73: @LK-JTK-BD53 | AP73: @LK-JWE-BD53
B74: 600 3 Drw Base Unit | C74: BD63 | D74: @LK-CSJ-BD63 | E74: @LK-DGJ-BD63 | F74: @LK-DSJ-BD63 | G74: @LK-PGJ-BD63 | H74: @LK-WGJ-BD63 | I74: @LK-GPJ-BD63 | J74: @LK-MAJ-BD63 | K74: @LK-JMC-BD63 | L74: @LK-DMJ-BD63 | M74: @LK-DYJ-BD63 | N74: @LK-MGJ-BD63 | O74: @LK-PMJ-BD63 | P74: @LK-JWT-BD63 | Q74: @LK-JAG-BD63 | R74: @LK-JAB-BD63 | S74: @LK-JBR-BD63 | T74: @LK-JBG-BD63 | U74: @LK-JDM-BD63 | V74: @LK-JDP-BD63 | W74: @LK-JHG-BD63 | X74: @LK-JIN-BD63 | Y74: @LK-JIV-BD63 | Z74: @LK-JLN-BD63 | AA74: @LK-JMW-BD63 | AB74: @LK-JMN-BD63 | AC74: @LK-MMJ-BD63 | AD74: @LK-JOV-BD63 | AE74: @LK-JPT-BD63 | AF74: @LK-JPE-BD63 | AG74: @LK-JPG-BD63 | AH74: @LK-JSG-BD63 | AI74: @LK-JSP-BD63 | AJ74: @LK-JSB-BD63 | AK74: @LK-JSO-BD63 | AL74: @LK-JSY-BD63 | AM74: @LK-JST-BD63 | AN74: @LK-JTP-BD63 | AO74: @LK-JTK-BD63 | AP74: @LK-JWE-BD63
B75: 800 3 Drw Base Unit | C75: BD83 | D75: @LK-CSJ-BD83 | E75: @LK-DGJ-BD83 | F75: @LK-DSJ-BD83 | G75: @LK-PGJ-BD83 | H75: @LK-WGJ-BD83 | I75: @LK-GPJ-BD83 | J75: @LK-MAJ-BD83 | K75: @LK-JMC-BD83 | L75: @LK-DMJ-BD83 | M75: @LK-DYJ-BD83 | N75: @LK-MGJ-BD83 | O75: @LK-PMJ-BD83 | P75: @LK-JWT-BD83 | Q75: @LK-JAG-BD83 | R75: @LK-JAB-BD83 | S75: @LK-JBR-BD83 | T75: @LK-JBG-BD83 | U75: @LK-JDM-BD83 | V75: @LK-JDP-BD83 | W75: @LK-JHG-BD83 | X75: @LK-JIN-BD83 | Y75: @LK-JIV-BD83 | Z75: @LK-JLN-BD83 | AA75: @LK-JMW-BD83 | AB75: @LK-JMN-BD83 | AC75: @LK-MMJ-BD83 | AD75: @LK-JOV-BD83 | AE75: @LK-JPT-BD83 | AF75: @LK-JPE-BD83 | AG75: @LK-JPG-BD83 | AH75: @LK-JSG-BD83 | AI75: @LK-JSP-BD83 | AJ75: @LK-JSB-BD83 | AK75: @LK-JSO-BD83 | AL75: @LK-JSY-BD83 | AM75: @LK-JST-BD83 | AN75: @LK-JTP-BD83 | AO75: @LK-JTK-BD83 | AP75: @LK-JWE-BD83
B76: 900 3 Drw Base Unit | C76: BD93 | D76: @LK-CSJ-BD93 | E76: @LK-DGJ-BD93 | F76: @LK-DSJ-BD93 | G76: @LK-PGJ-BD93 | H76: @LK-WGJ-BD93 | I76: @LK-GPJ-BD93 | J76: @LK-MAJ-BD93 | K76: @LK-JMC-BD93 | L76: @LK-DMJ-BD93 | M76: @LK-DYJ-BD93 | N76: @LK-MGJ-BD93 | O76: @LK-PMJ-BD93 | P76: @LK-JWT-BD93 | Q76: @LK-JAG-BD93 | R76: @LK-JAB-BD93 | S76: @LK-JBR-BD93 | T76: @LK-JBG-BD93 | U76: @LK-JDM-BD93 | V76: @LK-JDP-BD93 | W76: @LK-JHG-BD93 | X76: @LK-JIN-BD93 | Y76: @LK-JIV-BD93 | Z76: @LK-JLN-BD93 | AA76: @LK-JMW-BD93 | AB76: @LK-JMN-BD93 | AC76: @LK-MMJ-BD93 | AD76: @LK-JOV-BD93 | AE76: @LK-JPT-BD93 | AF76: @LK-JPE-BD93 | AG76: @LK-JPG-BD93 | AH76: @LK-JSG-BD93 | AI76: @LK-JSP-BD93 | AJ76: @LK-JSB-BD93 | AK76: @LK-JSO-BD93 | AL76: @LK-JSY-BD93 | AM76: @LK-JST-BD93 | AN76: @LK-JTP-BD93 | AO76: @LK-JTK-BD93 | AP76: @LK-JWE-BD93
B77: 1000 3 Drw Base Unit | C77: BD13 | D77: @LK-CSJ-BD13 | E77: @LK-DGJ-BD13 | F77: @LK-DSJ-BD13 | G77: @LK-PGJ-BD13 | H77: @LK-WGJ-BD13 | I77: @LK-GPJ-BD13 | J77: @LK-MAJ-BD13 | K77: @LK-JMC-BD13 | L77: @LK-DMJ-BD13 | M77: @LK-DYJ-BD13 | N77: @LK-MGJ-BD13 | O77: @LK-PMJ-BD13 | P77: @LK-JWT-BD13 | Q77: @LK-JAG-BD13 | R77: @LK-JAB-BD13 | S77: @LK-JBR-BD13 | T77: @LK-JBG-BD13 | U77: @LK-JDM-BD13 | V77: @LK-JDP-BD13 | W77: @LK-JHG-BD13 | X77: @LK-JIN-BD13 | Y77: @LK-JIV-BD13 | Z77: @LK-JLN-BD13 | AA77: @LK-JMW-BD13 | AB77: @LK-JMN-BD13 | AC77: @LK-MMJ-BD13 | AD77: @LK-JOV-BD13 | AE77: @LK-JPT-BD13 | AF77: @LK-JPE-BD13 | AG77: @LK-JPG-BD13 | AH77: @LK-JSG-BD13 | AI77: @LK-JSP-BD13 | AJ77: @LK-JSB-BD13 | AK77: @LK-JSO-BD13 | AL77: @LK-JSY-BD13 | AM77: @LK-JST-BD13 | AN77: @LK-JTP-BD13 | AO77: @LK-JTK-BD13 | AP77: @LK-JWE-BD13
B78: 600 2 Pan Drw Unit | C78: BD62 | D78: @LK-CSJ-BD62 | E78: @LK-DGJ-BD62 | F78: @LK-DSJ-BD62 | G78: @LK-PGJ-BD62 | H78: @LK-WGJ-BD62 | I78: @LK-GPJ-BD62 | J78: @LK-MAJ-BD62 | K78: @LK-JMC-BD62 | L78: @LK-DMJ-BD62 | M78: @LK-DYJ-BD62 | N78: @LK-MGJ-BD62 | O78: @LK-PMJ-BD62 | P78: @LK-JWT-BD62 | Q78: @LK-JAG-BD62 | R78: @LK-JAB-BD62 | S78: @LK-JBR-BD62 | T78: @LK-JBG-BD62 | U78: @LK-JDM-BD62 | V78: @LK-JDP-BD62 | W78: @LK-JHG-BD62 | X78: @LK-JIN-BD62 | Y78: @LK-JIV-BD62 | Z78: @LK-JLN-BD62 | AA78: @LK-JMW-BD62 | AB78: @LK-JMN-BD62 | AC78: @LK-MMJ-BD62 | AD78: @LK-JOV-BD62 | AE78: @LK-JPT-BD62 | AF78: @LK-JPE-BD62 | AG78: @LK-JPG-BD62 | AH78: @LK-JSG-BD62 | AI78: @LK-JSP-BD62 | AJ78: @LK-JSB-BD62 | AK78: @LK-JSO-BD62 | AL78: @LK-JSY-BD62 | AM78: @LK-JST-BD62 | AN78: @LK-JTP-BD62 | AO78: @LK-JTK-BD62 | AP78: @LK-JWE-BD62
B79: 800 2 Pan Drw Unit | C79: BD82 | D79: @LK-CSJ-BD82 | E79: @LK-DGJ-BD82 | F79: @LK-DSJ-BD82 | G79: @LK-PGJ-BD82 | H79: @LK-WGJ-BD82 | I79: @LK-GPJ-BD82 | J79: @LK-MAJ-BD82 | K79: @LK-JMC-BD82 | L79: @LK-DMJ-BD82 | M79: @LK-DYJ-BD82 | N79: @LK-MGJ-BD82 | O79: @LK-PMJ-BD82 | P79: @LK-JWT-BD82 | Q79: @LK-JAG-BD82 | R79: @LK-JAB-BD82 | S79: @LK-JBR-BD82 | T79: @LK-JBG-BD82 | U79: @LK-JDM-BD82 | V79: @LK-JDP-BD82 | W79: @LK-JHG-BD82 | X79: @LK-JIN-BD82 | Y79: @LK-JIV-BD82 | Z79: @LK-JLN-BD82 | AA79: @LK-JMW-BD82 | AB79: @LK-JMN-BD82 | AC79: @LK-MMJ-BD82 | AD79: @LK-JOV-BD82 | AE79: @LK-JPT-BD82 | AF79: @LK-JPE-BD82 | AG79: @LK-JPG-BD82 | AH79: @LK-JSG-BD82 | AI79: @LK-JSP-BD82 | AJ79: @LK-JSB-BD82 | AK79: @LK-JSO-BD82 | AL79: @LK-JSY-BD82 | AM79: @LK-JST-BD82 | AN79: @LK-JTP-BD82 | AO79: @LK-JTK-BD82 | AP79: @LK-JWE-BD82
B80: 900 2 Pan Drw Unit | C80: BD92 | D80: @LK-CSJ-BD92 | E80: @LK-DGJ-BD92 | F80: @LK-DSJ-BD92 | G80: @LK-PGJ-BD92 | H80: @LK-WGJ-BD92 | I80: @LK-GPJ-BD92 | J80: @LK-MAJ-BD92 | K80: @LK-JMC-BD92 | L80: @LK-DMJ-BD92 | M80: @LK-DYJ-BD92 | N80: @LK-MGJ-BD92 | O80: @LK-PMJ-BD92 | P80: @LK-JWT-BD92 | Q80: @LK-JAG-BD92 | R80: @LK-JAB-BD92 | S80: @LK-JBR-BD92 | T80: @LK-JBG-BD92 | U80: @LK-JDM-BD92 | V80: @LK-JDP-BD92 | W80: @LK-JHG-BD92 | X80: @LK-JIN-BD92 | Y80: @LK-JIV-BD92 | Z80: @LK-JLN-BD92 | AA80: @LK-JMW-BD92 | AB80: @LK-JMN-BD92 | AC80: @LK-MMJ-BD92 | AD80: @LK-JOV-BD92 | AE80: @LK-JPT-BD92 | AF80: @LK-JPE-BD92 | AG80: @LK-JPG-BD92 | AH80: @LK-JSG-BD92 | AI80: @LK-JSP-BD92 | AJ80: @LK-JSB-BD92 | AK80: @LK-JSO-BD92 | AL80: @LK-JSY-BD92 | AM80: @LK-JST-BD92 | AN80: @LK-JTP-BD92 | AO80: @LK-JTK-BD92 | AP80: @LK-JWE-BD92
B81: 1000 2 Pan Drw Unit | C81: BD12 | D81: @LK-CSJ-BD12 | E81: @LK-DGJ-BD12 | F81: @LK-DSJ-BD12 | G81: @LK-PGJ-BD12 | H81: @LK-WGJ-BD12 | I81: @LK-GPJ-BD12 | J81: @LK-MAJ-BD12 | K81: @LK-JMC-BD12 | L81: @LK-DMJ-BD12 | M81: @LK-DYJ-BD12 | N81: @LK-MGJ-BD12 | O81: @LK-PMJ-BD12 | P81: @LK-JWT-BD12 | Q81: @LK-JAG-BD12 | R81: @LK-JAB-BD12 | S81: @LK-JBR-BD12 | T81: @LK-JBG-BD12 | U81: @LK-JDM-BD12 | V81: @LK-JDP-BD12 | W81: @LK-JHG-BD12 | X81: @LK-JIN-BD12 | Y81: @LK-JIV-BD12 | Z81: @LK-JLN-BD12 | AA81: @LK-JMW-BD12 | AB81: @LK-JMN-BD12 | AC81: @LK-MMJ-BD12 | AD81: @LK-JOV-BD12 | AE81: @LK-JPT-BD12 | AF81: @LK-JPE-BD12 | AG81: @LK-JPG-BD12 | AH81: @LK-JSG-BD12 | AI81: @LK-JSP-BD12 | AJ81: @LK-JSB-BD12 | AK81: @LK-JSO-BD12 | AL81: @LK-JSY-BD12 | AM81: @LK-JST-BD12 | AN81: @LK-JTP-BD12 | AO81: @LK-JTK-BD12 | AP81: @LK-JWE-BD12
B82: 600 2 Pan Drw Unit + 1 Internal | C82: BD62I | D82: @LK-CSJ-BD62I | E82: @LK-DGJ-BD62I | F82: @LK-DSJ-BD62I | G82: @LK-PGJ-BD62I | H82: @LK-WGJ-BD62I | I82: @LK-GPJ-BD62I | J82: @LK-MAJ-BD62I | K82: @LK-JMC-BD62I | L82: @LK-DMJ-BD62I | M82: @LK-DYJ-BD62I | N82: @LK-MGJ-BD62I | O82: @LK-PMJ-BD62I | P82: @LK-JWT-BD62I | Q82: @LK-JAG-BD62I | R82: @LK-JAB-BD62I | S82: @LK-JBR-BD62I | T82: @LK-JBG-BD62I | U82: @LK-JDM-BD62I | V82: @LK-JDP-BD62I | W82: @LK-JHG-BD62I | X82: @LK-JIN-BD62I | Y82: @LK-JIV-BD62I | Z82: @LK-JLN-BD62I | AA82: @LK-JMW-BD62I | AB82: @LK-JMN-BD62I | AC82: @LK-MMJ-BD62I | AD82: @LK-JOV-BD62I | AE82: @LK-JPT-BD62I | AF82: @LK-JPE-BD62I | AG82: @LK-JPG-BD62I | AH82: @LK-JSG-BD62I | AI82: @LK-JSP-BD62I | AJ82: @LK-JSB-BD62I | AK82: @LK-JSO-BD62I | AL82: @LK-JSY-BD62I | AM82: @LK-JST-BD62I | AN82: @LK-JTP-BD62I | AO82: @LK-JTK-BD62I | AP82: @LK-JWE-BD62I
B83: 800 2 Pan Drw Unit + 1 Internal | C83: BD82I | D83: @LK-CSJ-BD82I | E83: @LK-DGJ-BD82I | F83: @LK-DSJ-BD82I | G83: @LK-PGJ-BD82I | H83: @LK-WGJ-BD82I | I83: @LK-GPJ-BD82I | J83: @LK-MAJ-BD82I | K83: @LK-JMC-BD82I | L83: @LK-DMJ-BD82I | M83: @LK-DYJ-BD82I | N83: @LK-MGJ-BD82I | O83: @LK-PMJ-BD82I | P83: @LK-JWT-BD82I | Q83: @LK-JAG-BD82I | R83: @LK-JAB-BD82I | S83: @LK-JBR-BD82I | T83: @LK-JBG-BD82I | U83: @LK-JDM-BD82I | V83: @LK-JDP-BD82I | W83: @LK-JHG-BD82I | X83: @LK-JIN-BD82I | Y83: @LK-JIV-BD82I | Z83: @LK-JLN-BD82I | AA83: @LK-JMW-BD82I | AB83: @LK-JMN-BD82I | AC83: @LK-MMJ-BD82I | AD83: @LK-JOV-BD82I | AE83: @LK-JPT-BD82I | AF83: @LK-JPE-BD82I | AG83: @LK-JPG-BD82I | AH83: @LK-JSG-BD82I | AI83: @LK-JSP-BD82I | AJ83: @LK-JSB-BD82I | AK83: @LK-JSO-BD82I | AL83: @LK-JSY-BD82I | AM83: @LK-JST-BD82I | AN83: @LK-JTP-BD82I | AO83: @LK-JTK-BD82I | AP83: @LK-JWE-BD82I
B84: 900 2 Pan Drw Unit + 1 Internal | C84: BD92I | D84: @LK-CSJ-BD92I | E84: @LK-DGJ-BD92I | F84: @LK-DSJ-BD92I | G84: @LK-PGJ-BD92I | H84: @LK-WGJ-BD92I | I84: @LK-GPJ-BD92I | J84: @LK-MAJ-BD92I | K84: @LK-JMC-BD92I | L84: @LK-DMJ-BD92I | M84: @LK-DYJ-BD92I | N84: @LK-MGJ-BD92I | O84: @LK-PMJ-BD92I | P84: @LK-JWT-BD92I | Q84: @LK-JAG-BD92I | R84: @LK-JAB-BD92I | S84: @LK-JBR-BD92I | T84: @LK-JBG-BD92I | U84: @LK-JDM-BD92I | V84: @LK-JDP-BD92I | W84: @LK-JHG-BD92I | X84: @LK-JIN-BD92I | Y84: @LK-JIV-BD92I | Z84: @LK-JLN-BD92I | AA84: @LK-JMW-BD92I | AB84: @LK-JMN-BD92I | AC84: @LK-MMJ-BD92I | AD84: @LK-JOV-BD92I | AE84: @LK-JPT-BD92I | AF84: @LK-JPE-BD92I | AG84: @LK-JPG-BD92I | AH84: @LK-JSG-BD92I | AI84: @LK-JSP-BD92I | AJ84: @LK-JSB-BD92I | AK84: @LK-JSO-BD92I | AL84: @LK-JSY-BD92I | AM84: @LK-JST-BD92I | AN84: @LK-JTP-BD92I | AO84: @LK-JTK-BD92I | AP84: @LK-JWE-BD92I
B85: 1000 2 Pan Drw Unit + 1 Internal | C85: BD12I | D85: @LK-CSJ-BD12I | E85: @LK-DGJ-BD12I | F85: @LK-DSJ-BD12I | G85: @LK-PGJ-BD12I | H85: @LK-WGJ-BD12I | I85: @LK-GPJ-BD12I | J85: @LK-MAJ-BD12I | K85: @LK-JMC-BD12I | L85: @LK-DMJ-BD12I | M85: @LK-DYJ-BD12I | N85: @LK-MGJ-BD12I | O85: @LK-PMJ-BD12I | P85: @LK-JWT-BD12I | Q85: @LK-JAG-BD12I | R85: @LK-JAB-BD12I | S85: @LK-JBR-BD12I | T85: @LK-JBG-BD12I | U85: @LK-JDM-BD12I | V85: @LK-JDP-BD12I | W85: @LK-JHG-BD12I | X85: @LK-JIN-BD12I | Y85: @LK-JIV-BD12I | Z85: @LK-JLN-BD12I | AA85: @LK-JMW-BD12I | AB85: @LK-JMN-BD12I | AC85: @LK-MMJ-BD12I | AD85: @LK-JOV-BD12I | AE85: @LK-JPT-BD12I | AF85: @LK-JPE-BD12I | AG85: @LK-JPG-BD12I | AH85: @LK-JSG-BD12I | AI85: @LK-JSP-BD12I | AJ85: @LK-JSB-BD12I | AK85: @LK-JSO-BD12I | AL85: @LK-JSY-BD12I | AM85: @LK-JST-BD12I | AN85: @LK-JTP-BD12I | AO85: @LK-JTK-BD12I | AP85: @LK-JWE-BD12I
B86: 600 Low Single Drawer unit 360 high | C86: BD635L | D86: @LK-CSJ-BD635L | E86: @LK-DGJ-BD635L | F86: @LK-DSJ-BD635L | G86: @LK-PGJ-BD635L | H86: @LK-WGJ-BD635L | I86: @LK-GPJ-BD635L | J86: @LK-MAJ-BD635L | K86: @LK-JMC-BD635L | L86: @LK-DMJ-BD635L | M86: @LK-DYJ-BD635L | N86: @LK-MGJ-BD635L | O86: @LK-PMJ-BD635L | P86: @LK-JWT-BD635L | Q86: @LK-JAG-BD635L | R86: @LK-JAB-BD635L | S86: @LK-JBR-BD635L | T86: @LK-JBG-BD635L | U86: @LK-JDM-BD635L | V86: @LK-JDP-BD635L | W86: @LK-JHG-BD635L | X86: @LK-JIN-BD635L | Y86: @LK-JIV-BD635L | Z86: @LK-JLN-BD635L | AA86: @LK-JMW-BD635L | AB86: @LK-JMN-BD635L | AC86: @LK-MMJ-BD635L | AD86: @LK-JOV-BD635L | AE86: @LK-JPT-BD635L | AF86: @LK-JPE-BD635L | AG86: @LK-JPG-BD635L | AH86: @LK-JSG-BD635L | AI86: @LK-JSP-BD635L | AJ86: @LK-JSB-BD635L | AK86: @LK-JSO-BD635L | AL86: @LK-JSY-BD635L | AM86: @LK-JST-BD635L | AN86: @LK-JTP-BD635L | AO86: @LK-JTK-BD635L | AP86: @LK-JWE-BD635L
B87: 300 Wall Unit (575mm High) LHH | C87: W357L | D87: @LK-CSJ-W357L | E87: @LK-DGJ-W357L | F87: @LK-DSJ-W357L | G87: @LK-PGJ-W357L | H87: @LK-WGJ-W357L | I87: @LK-GPJ-W357L | J87: @LK-MAJ-W357L | K87: @LK-JMC-W357L | L87: @LK-DMJ-W357L | M87: @LK-DYJ-W357L | N87: @LK-MGJ-W357L | O87: @LK-PMJ-W357L | P87: @LK-JWT-W357L | Q87: @LK-JAG-W357L | R87: @LK-JAB-W357L | S87: @LK-JBR-W357L | T87: @LK-JBG-W357L | U87: @LK-JDM-W357L | V87: @LK-JDP-W357L | W87: @LK-JHG-W357L | X87: @LK-JIN-W357L | Y87: @LK-JIV-W357L | Z87: @LK-JLN-W357L | AA87: @LK-JMW-W357L | AB87: @LK-JMN-W357L | AC87: @LK-MMJ-W357L | AD87: @LK-JOV-W357L | AE87: @LK-JPT-W357L | AF87: @LK-JPE-W357L | AG87: @LK-JPG-W357L | AH87: @LK-JSG-W357L | AI87: @LK-JSP-W357L | AJ87: @LK-JSB-W357L | AK87: @LK-JSO-W357L | AL87: @LK-JSY-W357L | AM87: @LK-JST-W357L | AN87: @LK-JTP-W357L | AO87: @LK-JTK-W357L | AP87: @LK-JWE-W357L
B88: 300 Wall Unit (575mm High) RHH | C88: W357R | D88: @LK-CSJ-W357R | E88: @LK-DGJ-W357R | F88: @LK-DSJ-W357R | G88: @LK-PGJ-W357R | H88: @LK-WGJ-W357R | I88: @LK-GPJ-W357R | J88: @LK-MAJ-W357R | K88: @LK-JMC-W357R | L88: @LK-DMJ-W357R | M88: @LK-DYJ-W357R | N88: @LK-MGJ-W357R | O88: @LK-PMJ-W357R | P88: @LK-JWT-W357R | Q88: @LK-JAG-W357R | R88: @LK-JAB-W357R | S88: @LK-JBR-W357R | T88: @LK-JBG-W357R | U88: @LK-JDM-W357R | V88: @LK-JDP-W357R | W88: @LK-JHG-W357R | X88: @LK-JIN-W357R | Y88: @LK-JIV-W357R | Z88: @LK-JLN-W357R | AA88: @LK-JMW-W357R | AB88: @LK-JMN-W357R | AC88: @LK-MMJ-W357R | AD88: @LK-JOV-W357R | AE88: @LK-JPT-W357R | AF88: @LK-JPE-W357R | AG88: @LK-JPG-W357R | AH88: @LK-JSG-W357R | AI88: @LK-JSP-W357R | AJ88: @LK-JSB-W357R | AK88: @LK-JSO-W357R | AL88: @LK-JSY-W357R | AM88: @LK-JST-W357R | AN88: @LK-JTP-W357R | AO88: @LK-JTK-W357R | AP88: @LK-JWE-W357R
B89: 400 Wall Unit (575mm High) LHH | C89: W457L | D89: @LK-CSJ-W457L | E89: @LK-DGJ-W457L | F89: @LK-DSJ-W457L | G89: @LK-PGJ-W457L | H89: @LK-WGJ-W457L | I89: @LK-GPJ-W457L | J89: @LK-MAJ-W457L | K89: @LK-JMC-W457L | L89: @LK-DMJ-W457L | M89: @LK-DYJ-W457L | N89: @LK-MGJ-W457L | O89: @LK-PMJ-W457L | P89: @LK-JWT-W457L | Q89: @LK-JAG-W457L | R89: @LK-JAB-W457L | S89: @LK-JBR-W457L | T89: @LK-JBG-W457L | U89: @LK-JDM-W457L | V89: @LK-JDP-W457L | W89: @LK-JHG-W457L | X89: @LK-JIN-W457L | Y89: @LK-JIV-W457L | Z89: @LK-JLN-W457L | AA89: @LK-JMW-W457L | AB89: @LK-JMN-W457L | AC89: @LK-MMJ-W457L | AD89: @LK-JOV-W457L | AE89: @LK-JPT-W457L | AF89: @LK-JPE-W457L | AG89: @LK-JPG-W457L | AH89: @LK-JSG-W457L | AI89: @LK-JSP-W457L | AJ89: @LK-JSB-W457L | AK89: @LK-JSO-W457L | AL89: @LK-JSY-W457L | AM89: @LK-JST-W457L | AN89: @LK-JTP-W457L | AO89: @LK-JTK-W457L | AP89: @LK-JWE-W457L
B90: 400 Wall Unit (575mm High) RHH | C90: W457R | D90: @LK-CSJ-W457R | E90: @LK-DGJ-W457R | F90: @LK-DSJ-W457R | G90: @LK-PGJ-W457R | H90: @LK-WGJ-W457R | I90: @LK-GPJ-W457R | J90: @LK-MAJ-W457R | K90: @LK-JMC-W457R | L90: @LK-DMJ-W457R | M90: @LK-DYJ-W457R | N90: @LK-MGJ-W457R | O90: @LK-PMJ-W457R | P90: @LK-JWT-W457R | Q90: @LK-JAG-W457R | R90: @LK-JAB-W457R | S90: @LK-JBR-W457R | T90: @LK-JBG-W457R | U90: @LK-JDM-W457R | V90: @LK-JDP-W457R | W90: @LK-JHG-W457R | X90: @LK-JIN-W457R | Y90: @LK-JIV-W457R | Z90: @LK-JLN-W457R | AA90: @LK-JMW-W457R | AB90: @LK-JMN-W457R | AC90: @LK-MMJ-W457R | AD90: @LK-JOV-W457R | AE90: @LK-JPT-W457R | AF90: @LK-JPE-W457R | AG90: @LK-JPG-W457R | AH90: @LK-JSG-W457R | AI90: @LK-JSP-W457R | AJ90: @LK-JSB-W457R | AK90: @LK-JSO-W457R | AL90: @LK-JSY-W457R | AM90: @LK-JST-W457R | AN90: @LK-JTP-W457R | AO90: @LK-JTK-W457R | AP90: @LK-JWE-W457R
B91: 450 Wall Unit (575mm High) LHH | C91: W4557L | D91: @LK-CSJ-W4557L | E91: @LK-DGJ-W4557L | F91: @LK-DSJ-W4557L | G91: @LK-PGJ-W4557L | H91: @LK-WGJ-W4557L | I91: @LK-GPJ-W4557L | J91: @LK-MAJ-W4557L | K91: @LK-JMC-W4557L | L91: @LK-DMJ-W4557L | M91: @LK-DYJ-W4557L | N91: @LK-MGJ-W4557L | O91: @LK-PMJ-W4557L | P91: @LK-JWT-W4557L | Q91: @LK-JAG-W4557L | R91: @LK-JAB-W4557L | S91: @LK-JBR-W4557L | T91: @LK-JBG-W4557L | U91: @LK-JDM-W4557L | V91: @LK-JDP-W4557L | W91: @LK-JHG-W4557L | X91: @LK-JIN-W4557L | Y91: @LK-JIV-W4557L | Z91: @LK-JLN-W4557L | AA91: @LK-JMW-W4557L | AB91: @LK-JMN-W4557L | AC91: @LK-MMJ-W4557L | AD91: @LK-JOV-W4557L | AE91: @LK-JPT-W4557L | AF91: @LK-JPE-W4557L | AG91: @LK-JPG-W4557L | AH91: @LK-JSG-W4557L | AI91: @LK-JSP-W4557L | AJ91: @LK-JSB-W4557L | AK91: @LK-JSO-W4557L | AL91: @LK-JSY-W4557L | AM91: @LK-JST-W4557L | AN91: @LK-JTP-W4557L | AO91: @LK-JTK-W4557L | AP91: @LK-JWE-W4557L
B92: 450 Wall Unit (575mm High) RHH | C92: W4557R | D92: @LK-CSJ-W4557R | E92: @LK-DGJ-W4557R | F92: @LK-DSJ-W4557R | G92: @LK-PGJ-W4557R | H92: @LK-WGJ-W4557R | I92: @LK-GPJ-W4557R | J92: @LK-MAJ-W4557R | K92: @LK-JMC-W4557R | L92: @LK-DMJ-W4557R | M92: @LK-DYJ-W4557R | N92: @LK-MGJ-W4557R | O92: @LK-PMJ-W4557R | P92: @LK-JWT-W4557R | Q92: @LK-JAG-W4557R | R92: @LK-JAB-W4557R | S92: @LK-JBR-W4557R | T92: @LK-JBG-W4557R | U92: @LK-JDM-W4557R | V92: @LK-JDP-W4557R | W92: @LK-JHG-W4557R | X92: @LK-JIN-W4557R | Y92: @LK-JIV-W4557R | Z92: @LK-JLN-W4557R | AA92: @LK-JMW-W4557R | AB92: @LK-JMN-W4557R | AC92: @LK-MMJ-W4557R | AD92: @LK-JOV-W4557R | AE92: @LK-JPT-W4557R | AF92: @LK-JPE-W4557R | AG92: @LK-JPG-W4557R | AH92: @LK-JSG-W4557R | AI92: @LK-JSP-W4557R | AJ92: @LK-JSB-W4557R | AK92: @LK-JSO-W4557R | AL92: @LK-JSY-W4557R | AM92: @LK-JST-W4557R | AN92: @LK-JTP-W4557R | AO92: @LK-JTK-W4557R | AP92: @LK-JWE-W4557R
B93: 500 Wall Unit (575mm High) LHH | C93: W557L | D93: @LK-CSJ-W557L | E93: @LK-DGJ-W557L | F93: @LK-DSJ-W557L | G93: @LK-PGJ-W557L | H93: @LK-WGJ-W557L | I93: @LK-GPJ-W557L | J93: @LK-MAJ-W557L | K93: @LK-JMC-W557L | L93: @LK-DMJ-W557L | M93: @LK-DYJ-W557L | N93: @LK-MGJ-W557L | O93: @LK-PMJ-W557L | P93: @LK-JWT-W557L | Q93: @LK-JAG-W557L | R93: @LK-JAB-W557L | S93: @LK-JBR-W557L | T93: @LK-JBG-W557L | U93: @LK-JDM-W557L | V93: @LK-JDP-W557L | W93: @LK-JHG-W557L | X93: @LK-JIN-W557L | Y93: @LK-JIV-W557L | Z93: @LK-JLN-W557L | AA93: @LK-JMW-W557L | AB93: @LK-JMN-W557L | AC93: @LK-MMJ-W557L | AD93: @LK-JOV-W557L | AE93: @LK-JPT-W557L | AF93: @LK-JPE-W557L | AG93: @LK-JPG-W557L | AH93: @LK-JSG-W557L | AI93: @LK-JSP-W557L | AJ93: @LK-JSB-W557L | AK93: @LK-JSO-W557L | AL93: @LK-JSY-W557L | AM93: @LK-JST-W557L | AN93: @LK-JTP-W557L | AO93: @LK-JTK-W557L | AP93: @LK-JWE-W557L
B94: 500 Wall Unit (575mm High) RHH | C94: W557R | D94: @LK-CSJ-W557R | E94: @LK-DGJ-W557R | F94: @LK-DSJ-W557R | G94: @LK-PGJ-W557R | H94: @LK-WGJ-W557R | I94: @LK-GPJ-W557R | J94: @LK-MAJ-W557R | K94: @LK-JMC-W557R | L94: @LK-DMJ-W557R | M94: @LK-DYJ-W557R | N94: @LK-MGJ-W557R | O94: @LK-PMJ-W557R | P94: @LK-JWT-W557R | Q94: @LK-JAG-W557R | R94: @LK-JAB-W557R | S94: @LK-JBR-W557R | T94: @LK-JBG-W557R | U94: @LK-JDM-W557R | V94: @LK-JDP-W557R | W94: @LK-JHG-W557R | X94: @LK-JIN-W557R | Y94: @LK-JIV-W557R | Z94: @LK-JLN-W557R | AA94: @LK-JMW-W557R | AB94: @LK-JMN-W557R | AC94: @LK-MMJ-W557R | AD94: @LK-JOV-W557R | AE94: @LK-JPT-W557R | AF94: @LK-JPE-W557R | AG94: @LK-JPG-W557R | AH94: @LK-JSG-W557R | AI94: @LK-JSP-W557R | AJ94: @LK-JSB-W557R | AK94: @LK-JSO-W557R | AL94: @LK-JSY-W557R | AM94: @LK-JST-W557R | AN94: @LK-JTP-W557R | AO94: @LK-JTK-W557R | AP94: @LK-JWE-W557R
B95: 600 Wall Unit (575mm High) LHH | C95: W657L | D95: @LK-CSJ-W657L | E95: @LK-DGJ-W657L | F95: @LK-DSJ-W657L | G95: @LK-PGJ-W657L | H95: @LK-WGJ-W657L | I95: @LK-GPJ-W657L | J95: @LK-MAJ-W657L | K95: @LK-JMC-W657L | L95: @LK-DMJ-W657L | M95: @LK-DYJ-W657L | N95: @LK-MGJ-W657L | O95: @LK-PMJ-W657L | P95: @LK-JWT-W657L | Q95: @LK-JAG-W657L | R95: @LK-JAB-W657L | S95: @LK-JBR-W657L | T95: @LK-JBG-W657L | U95: @LK-JDM-W657L | V95: @LK-JDP-W657L | W95: @LK-JHG-W657L | X95: @LK-JIN-W657L | Y95: @LK-JIV-W657L | Z95: @LK-JLN-W657L | AA95: @LK-JMW-W657L | AB95: @LK-JMN-W657L | AC95: @LK-MMJ-W657L | AD95: @LK-JOV-W657L | AE95: @LK-JPT-W657L | AF95: @LK-JPE-W657L | AG95: @LK-JPG-W657L | AH95: @LK-JSG-W657L | AI95: @LK-JSP-W657L | AJ95: @LK-JSB-W657L | AK95: @LK-JSO-W657L | AL95: @LK-JSY-W657L | AM95: @LK-JST-W657L | AN95: @LK-JTP-W657L | AO95: @LK-JTK-W657L | AP95: @LK-JWE-W657L
B96: 600 Wall Unit (575mm High) RHH | C96: W657R | D96: @LK-CSJ-W657R | E96: @LK-DGJ-W657R | F96: @LK-DSJ-W657R | G96: @LK-PGJ-W657R | H96: @LK-WGJ-W657R | I96: @LK-GPJ-W657R | J96: @LK-MAJ-W657R | K96: @LK-JMC-W657R | L96: @LK-DMJ-W657R | M96: @LK-DYJ-W657R | N96: @LK-MGJ-W657R | O96: @LK-PMJ-W657R | P96: @LK-JWT-W657R | Q96: @LK-JAG-W657R | R96: @LK-JAB-W657R | S96: @LK-JBR-W657R | T96: @LK-JBG-W657R | U96: @LK-JDM-W657R | V96: @LK-JDP-W657R | W96: @LK-JHG-W657R | X96: @LK-JIN-W657R | Y96: @LK-JIV-W657R | Z96: @LK-JLN-W657R | AA96: @LK-JMW-W657R | AB96: @LK-JMN-W657R | AC96: @LK-MMJ-W657R | AD96: @LK-JOV-W657R | AE96: @LK-JPT-W657R | AF96: @LK-JPE-W657R | AG96: @LK-JPG-W657R | AH96: @LK-JSG-W657R | AI96: @LK-JSP-W657R | AJ96: @LK-JSB-W657R | AK96: @LK-JSO-W657R | AL96: @LK-JSY-W657R | AM96: @LK-JST-W657R | AN96: @LK-JTP-W657R | AO96: @LK-JTK-W657R | AP96: @LK-JWE-W657R
B97: 800 Wall Unit (575mm High) | C97: W857 | D97: @LK-CSJ-W857 | E97: @LK-DGJ-W857 | F97: @LK-DSJ-W857 | G97: @LK-PGJ-W857 | H97: @LK-WGJ-W857 | I97: @LK-GPJ-W857 | J97: @LK-MAJ-W857 | K97: @LK-JMC-W857 | L97: @LK-DMJ-W857 | M97: @LK-DYJ-W857 | N97: @LK-MGJ-W857 | O97: @LK-PMJ-W857 | P97: @LK-JWT-W857 | Q97: @LK-JAG-W857 | R97: @LK-JAB-W857 | S97: @LK-JBR-W857 | T97: @LK-JBG-W857 | U97: @LK-JDM-W857 | V97: @LK-JDP-W857 | W97: @LK-JHG-W857 | X97: @LK-JIN-W857 | Y97: @LK-JIV-W857 | Z97: @LK-JLN-W857 | AA97: @LK-JMW-W857 | AB97: @LK-JMN-W857 | AC97: @LK-MMJ-W857 | AD97: @LK-JOV-W857 | AE97: @LK-JPT-W857 | AF97: @LK-JPE-W857 | AG97: @LK-JPG-W857 | AH97: @LK-JSG-W857 | AI97: @LK-JSP-W857 | AJ97: @LK-JSB-W857 | AK97: @LK-JSO-W857 | AL97: @LK-JSY-W857 | AM97: @LK-JST-W857 | AN97: @LK-JTP-W857 | AO97: @LK-JTK-W857 | AP97: @LK-JWE-W857
B98: 900 Wall Unit (575mm High) | C98: W957 | D98: @LK-CSJ-W957 | E98: @LK-DGJ-W957 | F98: @LK-DSJ-W957 | G98: @LK-PGJ-W957 | H98: @LK-WGJ-W957 | I98: @LK-GPJ-W957 | J98: @LK-MAJ-W957 | K98: @LK-JMC-W957 | L98: @LK-DMJ-W957 | M98: @LK-DYJ-W957 | N98: @LK-MGJ-W957 | O98: @LK-PMJ-W957 | P98: @LK-JWT-W957 | Q98: @LK-JAG-W957 | R98: @LK-JAB-W957 | S98: @LK-JBR-W957 | T98: @LK-JBG-W957 | U98: @LK-JDM-W957 | V98: @LK-JDP-W957 | W98: @LK-JHG-W957 | X98: @LK-JIN-W957 | Y98: @LK-JIV-W957 | Z98: @LK-JLN-W957 | AA98: @LK-JMW-W957 | AB98: @LK-JMN-W957 | AC98: @LK-MMJ-W957 | AD98: @LK-JOV-W957 | AE98: @LK-JPT-W957 | AF98: @LK-JPE-W957 | AG98: @LK-JPG-W957 | AH98: @LK-JSG-W957 | AI98: @LK-JSP-W957 | AJ98: @LK-JSB-W957 | AK98: @LK-JSO-W957 | AL98: @LK-JSY-W957 | AM98: @LK-JST-W957 | AN98: @LK-JTP-W957 | AO98: @LK-JTK-W957 | AP98: @LK-JWE-W957
B99: 1000 Wall Unit (575mm High) | C99: W157 | D99: @LK-CSJ-W157 | E99: @LK-DGJ-W157 | F99: @LK-DSJ-W157 | G99: @LK-PGJ-W157 | H99: @LK-WGJ-W157 | I99: @LK-GPJ-W157 | J99: @LK-MAJ-W157 | K99: @LK-JMC-W157 | L99: @LK-DMJ-W157 | M99: @LK-DYJ-W157 | N99: @LK-MGJ-W157 | O99: @LK-PMJ-W157 | P99: @LK-JWT-W157 | Q99: @LK-JAG-W157 | R99: @LK-JAB-W157 | S99: @LK-JBR-W157 | T99: @LK-JBG-W157 | U99: @LK-JDM-W157 | V99: @LK-JDP-W157 | W99: @LK-JHG-W157 | X99: @LK-JIN-W157 | Y99: @LK-JIV-W157 | Z99: @LK-JLN-W157 | AA99: @LK-JMW-W157 | AB99: @LK-JMN-W157 | AC99: @LK-MMJ-W157 | AD99: @LK-JOV-W157 | AE99: @LK-JPT-W157 | AF99: @LK-JPE-W157 | AG99: @LK-JPG-W157 | AH99: @LK-JSG-W157 | AI99: @LK-JSP-W157 | AJ99: @LK-JSB-W157 | AK99: @LK-JSO-W157 | AL99: @LK-JSY-W157 | AM99: @LK-JST-W157 | AN99: @LK-JTP-W157 | AO99: @LK-JTK-W157 | AP99: @LK-JWE-W157
B100: 150 Wall Unit (720mm High) LHH | C100: W15L | D100: @LK-CSJ-W15L | E100: @LK-DGJ-W15L | F100: @LK-DSJ-W15L | G100: @LK-PGJ-W15L | H100: @LK-WGJ-W15L | I100: @LK-GPJ-W15L | J100: @LK-MAJ-W15L | K100: @LK-JMC-W15L | L100: @LK-DMJ-W15L | M100: @LK-DYJ-W15L | N100: @LK-MGJ-W15L | O100: @LK-PMJ-W15L | P100: @LK-JWT-W15L | Q100: @LK-JAG-W15L | R100: @LK-JAB-W15L | S100: @LK-JBR-W15L | T100: @LK-JBG-W15L | U100: @LK-JDM-W15L | V100: @LK-JDP-W15L | W100: @LK-JHG-W15L | X100: @LK-JIN-W15L | Y100: @LK-JIV-W15L | Z100: @LK-JLN-W15L | AA100: @LK-JMW-W15L | AB100: @LK-JMN-W15L | AC100: @LK-MMJ-W15L | AD100: @LK-JOV-W15L | AE100: @LK-JPT-W15L | AF100: @LK-JPE-W15L | AG100: @LK-JPG-W15L | AH100: @LK-JSG-W15L | AI100: @LK-JSP-W15L | AJ100: @LK-JSB-W15L | AK100: @LK-JSO-W15L | AL100: @LK-JSY-W15L | AM100: @LK-JST-W15L | AN100: @LK-JTP-W15L | AO100: @LK-JTK-W15L | AP100: @LK-JWE-W15L
B101: 150 Wall Unit (720mm High) RHH | C101: W15R | D101: @LK-CSJ-W15R | E101: @LK-DGJ-W15R | F101: @LK-DSJ-W15R | G101: @LK-PGJ-W15R | H101: @LK-WGJ-W15R | I101: @LK-GPJ-W15R | J101: @LK-MAJ-W15R | K101: @LK-JMC-W15R | L101: @LK-DMJ-W15R | M101: @LK-DYJ-W15R | N101: @LK-MGJ-W15R | O101: @LK-PMJ-W15R | P101: @LK-JWT-W15R | Q101: @LK-JAG-W15R | R101: @LK-JAB-W15R | S101: @LK-JBR-W15R | T101: @LK-JBG-W15R | U101: @LK-JDM-W15R | V101: @LK-JDP-W15R | W101: @LK-JHG-W15R | X101: @LK-JIN-W15R | Y101: @LK-JIV-W15R | Z101: @LK-JLN-W15R | AA101: @LK-JMW-W15R | AB101: @LK-JMN-W15R | AC101: @LK-MMJ-W15R | AD101: @LK-JOV-W15R | AE101: @LK-JPT-W15R | AF101: @LK-JPE-W15R | AG101: @LK-JPG-W15R | AH101: @LK-JSG-W15R | AI101: @LK-JSP-W15R | AJ101: @LK-JSB-W15R | AK101: @LK-JSO-W15R | AL101: @LK-JSY-W15R | AM101: @LK-JST-W15R | AN101: @LK-JTP-W15R | AO101: @LK-JTK-W15R | AP101: @LK-JWE-W15R
B102: 260 Wall Unit (720mm High) LHH | C102: W26L | D102: @LK-CSJ-W26L | E102: @LK-DGJ-W26L | F102: @LK-DSJ-W26L | G102: @LK-PGJ-W26L | H102: @LK-WGJ-W26L | I102: @LK-GPJ-W26L | J102: @LK-MAJ-W26L | K102: @LK-JMC-W26L | L102: @LK-DMJ-W26L | M102: @LK-DYJ-W26L | N102: @LK-MGJ-W26L | O102: @LK-PMJ-W26L | P102: @LK-JWT-W26L | Q102: @LK-JAG-W26L | R102: @LK-JAB-W26L | S102: @LK-JBR-W26L | T102: @LK-JBG-W26L | U102: @LK-JDM-W26L | V102: @LK-JDP-W26L | W102: @LK-JHG-W26L | X102: @LK-JIN-W26L | Y102: @LK-JIV-W26L | Z102: @LK-JLN-W26L | AA102: @LK-JMW-W26L | AB102: @LK-JMN-W26L | AC102: @LK-MMJ-W26L | AD102: @LK-JOV-W26L | AE102: @LK-JPT-W26L | AF102: @LK-JPE-W26L | AG102: @LK-JPG-W26L | AH102: @LK-JSG-W26L | AI102: @LK-JSP-W26L | AJ102: @LK-JSB-W26L | AK102: @LK-JSO-W26L | AL102: @LK-JSY-W26L | AM102: @LK-JST-W26L | AN102: @LK-JTP-W26L | AO102: @LK-JTK-W26L | AP102: @LK-JWE-W26L
B103: 260 Wall Unit (720mm High) RHH | C103: W26R | D103: @LK-CSJ-W26R | E103: @LK-DGJ-W26R | F103: @LK-DSJ-W26R | G103: @LK-PGJ-W26R | H103: @LK-WGJ-W26R | I103: @LK-GPJ-W26R | J103: @LK-MAJ-W26R | K103: @LK-JMC-W26R | L103: @LK-DMJ-W26R | M103: @LK-DYJ-W26R | N103: @LK-MGJ-W26R | O103: @LK-PMJ-W26R | P103: @LK-JWT-W26R | Q103: @LK-JAG-W26R | R103: @LK-JAB-W26R | S103: @LK-JBR-W26R | T103: @LK-JBG-W26R | U103: @LK-JDM-W26R | V103: @LK-JDP-W26R | W103: @LK-JHG-W26R | X103: @LK-JIN-W26R | Y103: @LK-JIV-W26R | Z103: @LK-JLN-W26R | AA103: @LK-JMW-W26R | AB103: @LK-JMN-W26R | AC103: @LK-MMJ-W26R | AD103: @LK-JOV-W26R | AE103: @LK-JPT-W26R | AF103: @LK-JPE-W26R | AG103: @LK-JPG-W26R | AH103: @LK-JSG-W26R | AI103: @LK-JSP-W26R | AJ103: @LK-JSB-W26R | AK103: @LK-JSO-W26R | AL103: @LK-JSY-W26R | AM103: @LK-JST-W26R | AN103: @LK-JTP-W26R | AO103: @LK-JTK-W26R | AP103: @LK-JWE-W26R
B104: 300 Wall Unit (720mm High) LHH | C104: W30L | D104: @LK-CSJ-W30L | E104: @LK-DGJ-W30L | F104: @LK-DSJ-W30L | G104: @LK-PGJ-W30L | H104: @LK-WGJ-W30L | I104: @LK-GPJ-W30L | J104: @LK-MAJ-W30L | K104: @LK-JMC-W30L | L104: @LK-DMJ-W30L | M104: @LK-DYJ-W30L | N104: @LK-MGJ-W30L | O104: @LK-PMJ-W30L | P104: @LK-JWT-W30L | Q104: @LK-JAG-W30L | R104: @LK-JAB-W30L | S104: @LK-JBR-W30L | T104: @LK-JBG-W30L | U104: @LK-JDM-W30L | V104: @LK-JDP-W30L | W104: @LK-JHG-W30L | X104: @LK-JIN-W30L | Y104: @LK-JIV-W30L | Z104: @LK-JLN-W30L | AA104: @LK-JMW-W30L | AB104: @LK-JMN-W30L | AC104: @LK-MMJ-W30L | AD104: @LK-JOV-W30L | AE104: @LK-JPT-W30L | AF104: @LK-JPE-W30L | AG104: @LK-JPG-W30L | AH104: @LK-JSG-W30L | AI104: @LK-JSP-W30L | AJ104: @LK-JSB-W30L | AK104: @LK-JSO-W30L | AL104: @LK-JSY-W30L | AM104: @LK-JST-W30L | AN104: @LK-JTP-W30L | AO104: @LK-JTK-W30L | AP104: @LK-JWE-W30L
B105: 300 Wall Unit (720mm High) RHH | C105: W30R | D105: @LK-CSJ-W30R | E105: @LK-DGJ-W30R | F105: @LK-DSJ-W30R | G105: @LK-PGJ-W30R | H105: @LK-WGJ-W30R | I105: @LK-GPJ-W30R | J105: @LK-MAJ-W30R | K105: @LK-JMC-W30R | L105: @LK-DMJ-W30R | M105: @LK-DYJ-W30R | N105: @LK-MGJ-W30R | O105: @LK-PMJ-W30R | P105: @LK-JWT-W30R | Q105: @LK-JAG-W30R | R105: @LK-JAB-W30R | S105: @LK-JBR-W30R | T105: @LK-JBG-W30R | U105: @LK-JDM-W30R | V105: @LK-JDP-W30R | W105: @LK-JHG-W30R | X105: @LK-JIN-W30R | Y105: @LK-JIV-W30R | Z105: @LK-JLN-W30R | AA105: @LK-JMW-W30R | AB105: @LK-JMN-W30R | AC105: @LK-MMJ-W30R | AD105: @LK-JOV-W30R | AE105: @LK-JPT-W30R | AF105: @LK-JPE-W30R | AG105: @LK-JPG-W30R | AH105: @LK-JSG-W30R | AI105: @LK-JSP-W30R | AJ105: @LK-JSB-W30R | AK105: @LK-JSO-W30R | AL105: @LK-JSY-W30R | AM105: @LK-JST-W30R | AN105: @LK-JTP-W30R | AO105: @LK-JTK-W30R | AP105: @LK-JWE-W30R
B106: 350 Wall Unit (720mm High) LHH | C106: W35L | D106: @LK-CSJ-W35L | E106: @LK-DGJ-W35L | F106: @LK-DSJ-W35L | G106: @LK-PGJ-W35L | H106: @LK-WGJ-W35L | I106: @LK-GPJ-W35L | J106: @LK-MAJ-W35L | K106: @LK-JMC-W35L | L106: @LK-DMJ-W35L | M106: @LK-DYJ-W35L | N106: @LK-MGJ-W35L | O106: @LK-PMJ-W35L | P106: @LK-JWT-W35L | Q106: @LK-JAG-W35L | R106: @LK-JAB-W35L | S106: @LK-JBR-W35L | T106: @LK-JBG-W35L | U106: @LK-JDM-W35L | V106: @LK-JDP-W35L | W106: @LK-JHG-W35L | X106: @LK-JIN-W35L | Y106: @LK-JIV-W35L | Z106: @LK-JLN-W35L | AA106: @LK-JMW-W35L | AB106: @LK-JMN-W35L | AC106: @LK-MMJ-W35L | AD106: @LK-JOV-W35L | AE106: @LK-JPT-W35L | AF106: @LK-JPE-W35L | AG106: @LK-JPG-W35L | AH106: @LK-JSG-W35L | AI106: @LK-JSP-W35L | AJ106: @LK-JSB-W35L | AK106: @LK-JSO-W35L | AL106: @LK-JSY-W35L | AM106: @LK-JST-W35L | AN106: @LK-JTP-W35L | AO106: @LK-JTK-W35L | AP106: @LK-JWE-W35L
B107: 350 Wall Unit (720mm High) RHH | C107: W35R | D107: @LK-CSJ-W35R | E107: @LK-DGJ-W35R | F107: @LK-DSJ-W35R | G107: @LK-PGJ-W35R | H107: @LK-WGJ-W35R | I107: @LK-GPJ-W35R | J107: @LK-MAJ-W35R | K107: @LK-JMC-W35R | L107: @LK-DMJ-W35R | M107: @LK-DYJ-W35R | N107: @LK-MGJ-W35R | O107: @LK-PMJ-W35R | P107: @LK-JWT-W35R | Q107: @LK-JAG-W35R | R107: @LK-JAB-W35R | S107: @LK-JBR-W35R | T107: @LK-JBG-W35R | U107: @LK-JDM-W35R | V107: @LK-JDP-W35R | W107: @LK-JHG-W35R | X107: @LK-JIN-W35R | Y107: @LK-JIV-W35R | Z107: @LK-JLN-W35R | AA107: @LK-JMW-W35R | AB107: @LK-JMN-W35R | AC107: @LK-MMJ-W35R | AD107: @LK-JOV-W35R | AE107: @LK-JPT-W35R | AF107: @LK-JPE-W35R | AG107: @LK-JPG-W35R | AH107: @LK-JSG-W35R | AI107: @LK-JSP-W35R | AJ107: @LK-JSB-W35R | AK107: @LK-JSO-W35R | AL107: @LK-JSY-W35R | AM107: @LK-JST-W35R | AN107: @LK-JTP-W35R | AO107: @LK-JTK-W35R | AP107: @LK-JWE-W35R
B108: 400 Wall Unit (720mm High) LHH | C108: W40L | D108: @LK-CSJ-W40L | E108: @LK-DGJ-W40L | F108: @LK-DSJ-W40L | G108: @LK-PGJ-W40L | H108: @LK-WGJ-W40L | I108: @LK-GPJ-W40L | J108: @LK-MAJ-W40L | K108: @LK-JMC-W40L | L108: @LK-DMJ-W40L | M108: @LK-DYJ-W40L | N108: @LK-MGJ-W40L | O108: @LK-PMJ-W40L | P108: @LK-JWT-W40L | Q108: @LK-JAG-W40L | R108: @LK-JAB-W40L | S108: @LK-JBR-W40L | T108: @LK-JBG-W40L | U108: @LK-JDM-W40L | V108: @LK-JDP-W40L | W108: @LK-JHG-W40L | X108: @LK-JIN-W40L | Y108: @LK-JIV-W40L | Z108: @LK-JLN-W40L | AA108: @LK-JMW-W40L | AB108: @LK-JMN-W40L | AC108: @LK-MMJ-W40L | AD108: @LK-JOV-W40L | AE108: @LK-JPT-W40L | AF108: @LK-JPE-W40L | AG108: @LK-JPG-W40L | AH108: @LK-JSG-W40L | AI108: @LK-JSP-W40L | AJ108: @LK-JSB-W40L | AK108: @LK-JSO-W40L | AL108: @LK-JSY-W40L | AM108: @LK-JST-W40L | AN108: @LK-JTP-W40L | AO108: @LK-JTK-W40L | AP108: @LK-JWE-W40L
B109: 400 Wall Unit (720mm High) RHH | C109: W40R | D109: @LK-CSJ-W40R | E109: @LK-DGJ-W40R | F109: @LK-DSJ-W40R | G109: @LK-PGJ-W40R | H109: @LK-WGJ-W40R | I109: @LK-GPJ-W40R | J109: @LK-MAJ-W40R | K109: @LK-JMC-W40R | L109: @LK-DMJ-W40R | M109: @LK-DYJ-W40R | N109: @LK-MGJ-W40R | O109: @LK-PMJ-W40R | P109: @LK-JWT-W40R | Q109: @LK-JAG-W40R | R109: @LK-JAB-W40R | S109: @LK-JBR-W40R | T109: @LK-JBG-W40R | U109: @LK-JDM-W40R | V109: @LK-JDP-W40R | W109: @LK-JHG-W40R | X109: @LK-JIN-W40R | Y109: @LK-JIV-W40R | Z109: @LK-JLN-W40R | AA109: @LK-JMW-W40R | AB109: @LK-JMN-W40R | AC109: @LK-MMJ-W40R | AD109: @LK-JOV-W40R | AE109: @LK-JPT-W40R | AF109: @LK-JPE-W40R | AG109: @LK-JPG-W40R | AH109: @LK-JSG-W40R | AI109: @LK-JSP-W40R | AJ109: @LK-JSB-W40R | AK109: @LK-JSO-W40R | AL109: @LK-JSY-W40R | AM109: @LK-JST-W40R | AN109: @LK-JTP-W40R | AO109: @LK-JTK-W40R | AP109: @LK-JWE-W40R
B110: 450 Wall Unit (720mm High) LHH | C110: W45L | D110: @LK-CSJ-W45L | E110: @LK-DGJ-W45L | F110: @LK-DSJ-W45L | G110: @LK-PGJ-W45L | H110: @LK-WGJ-W45L | I110: @LK-GPJ-W45L | J110: @LK-MAJ-W45L | K110: @LK-JMC-W45L | L110: @LK-DMJ-W45L | M110: @LK-DYJ-W45L | N110: @LK-MGJ-W45L | O110: @LK-PMJ-W45L | P110: @LK-JWT-W45L | Q110: @LK-JAG-W45L | R110: @LK-JAB-W45L | S110: @LK-JBR-W45L | T110: @LK-JBG-W45L | U110: @LK-JDM-W45L | V110: @LK-JDP-W45L | W110: @LK-JHG-W45L | X110: @LK-JIN-W45L | Y110: @LK-JIV-W45L | Z110: @LK-JLN-W45L | AA110: @LK-JMW-W45L | AB110: @LK-JMN-W45L | AC110: @LK-MMJ-W45L | AD110: @LK-JOV-W45L | AE110: @LK-JPT-W45L | AF110: @LK-JPE-W45L | AG110: @LK-JPG-W45L | AH110: @LK-JSG-W45L | AI110: @LK-JSP-W45L | AJ110: @LK-JSB-W45L | AK110: @LK-JSO-W45L | AL110: @LK-JSY-W45L | AM110: @LK-JST-W45L | AN110: @LK-JTP-W45L | AO110: @LK-JTK-W45L | AP110: @LK-JWE-W45L
B111: 450 Wall Unit (720mm High) RHH | C111: W45R | D111: @LK-CSJ-W45R | E111: @LK-DGJ-W45R | F111: @LK-DSJ-W45R | G111: @LK-PGJ-W45R | H111: @LK-WGJ-W45R | I111: @LK-GPJ-W45R | J111: @LK-MAJ-W45R | K111: @LK-JMC-W45R | L111: @LK-DMJ-W45R | M111: @LK-DYJ-W45R | N111: @LK-MGJ-W45R | O111: @LK-PMJ-W45R | P111: @LK-JWT-W45R | Q111: @LK-JAG-W45R | R111: @LK-JAB-W45R | S111: @LK-JBR-W45R | T111: @LK-JBG-W45R | U111: @LK-JDM-W45R | V111: @LK-JDP-W45R | W111: @LK-JHG-W45R | X111: @LK-JIN-W45R | Y111: @LK-JIV-W45R | Z111: @LK-JLN-W45R | AA111: @LK-JMW-W45R | AB111: @LK-JMN-W45R | AC111: @LK-MMJ-W45R | AD111: @LK-JOV-W45R | AE111: @LK-JPT-W45R | AF111: @LK-JPE-W45R | AG111: @LK-JPG-W45R | AH111: @LK-JSG-W45R | AI111: @LK-JSP-W45R | AJ111: @LK-JSB-W45R | AK111: @LK-JSO-W45R | AL111: @LK-JSY-W45R | AM111: @LK-JST-W45R | AN111: @LK-JTP-W45R | AO111: @LK-JTK-W45R | AP111: @LK-JWE-W45R
B112: 500 Wall Unit (720mm High) LHH | C112: W50L | D112: @LK-CSJ-W50L | E112: @LK-DGJ-W50L | F112: @LK-DSJ-W50L | G112: @LK-PGJ-W50L | H112: @LK-WGJ-W50L | I112: @LK-GPJ-W50L | J112: @LK-MAJ-W50L | K112: @LK-JMC-W50L | L112: @LK-DMJ-W50L | M112: @LK-DYJ-W50L | N112: @LK-MGJ-W50L | O112: @LK-PMJ-W50L | P112: @LK-JWT-W50L | Q112: @LK-JAG-W50L | R112: @LK-JAB-W50L | S112: @LK-JBR-W50L | T112: @LK-JBG-W50L | U112: @LK-JDM-W50L | V112: @LK-JDP-W50L | W112: @LK-JHG-W50L | X112: @LK-JIN-W50L | Y112: @LK-JIV-W50L | Z112: @LK-JLN-W50L | AA112: @LK-JMW-W50L | AB112: @LK-JMN-W50L | AC112: @LK-MMJ-W50L | AD112: @LK-JOV-W50L | AE112: @LK-JPT-W50L | AF112: @LK-JPE-W50L | AG112: @LK-JPG-W50L | AH112: @LK-JSG-W50L | AI112: @LK-JSP-W50L | AJ112: @LK-JSB-W50L | AK112: @LK-JSO-W50L | AL112: @LK-JSY-W50L | AM112: @LK-JST-W50L | AN112: @LK-JTP-W50L | AO112: @LK-JTK-W50L | AP112: @LK-JWE-W50L
B113: 500 Wall Unit (720mm High) RHH | C113: W50R | D113: @LK-CSJ-W50R | E113: @LK-DGJ-W50R | F113: @LK-DSJ-W50R | G113: @LK-PGJ-W50R | H113: @LK-WGJ-W50R | I113: @LK-GPJ-W50R | J113: @LK-MAJ-W50R | K113: @LK-JMC-W50R | L113: @LK-DMJ-W50R | M113: @LK-DYJ-W50R | N113: @LK-MGJ-W50R | O113: @LK-PMJ-W50R | P113: @LK-JWT-W50R | Q113: @LK-JAG-W50R | R113: @LK-JAB-W50R | S113: @LK-JBR-W50R | T113: @LK-JBG-W50R | U113: @LK-JDM-W50R | V113: @LK-JDP-W50R | W113: @LK-JHG-W50R | X113: @LK-JIN-W50R | Y113: @LK-JIV-W50R | Z113: @LK-JLN-W50R | AA113: @LK-JMW-W50R | AB113: @LK-JMN-W50R | AC113: @LK-MMJ-W50R | AD113: @LK-JOV-W50R | AE113: @LK-JPT-W50R | AF113: @LK-JPE-W50R | AG113: @LK-JPG-W50R | AH113: @LK-JSG-W50R | AI113: @LK-JSP-W50R | AJ113: @LK-JSB-W50R | AK113: @LK-JSO-W50R | AL113: @LK-JSY-W50R | AM113: @LK-JST-W50R | AN113: @LK-JTP-W50R | AO113: @LK-JTK-W50R | AP113: @LK-JWE-W50R
B114: 600 Wall Unit (720mm High) LHH | C114: W60L | D114: @LK-CSJ-W60L | E114: @LK-DGJ-W60L | F114: @LK-DSJ-W60L | G114: @LK-PGJ-W60L | H114: @LK-WGJ-W60L | I114: @LK-GPJ-W60L | J114: @LK-MAJ-W60L | K114: @LK-JMC-W60L | L114: @LK-DMJ-W60L | M114: @LK-DYJ-W60L | N114: @LK-MGJ-W60L | O114: @LK-PMJ-W60L | P114: @LK-JWT-W60L | Q114: @LK-JAG-W60L | R114: @LK-JAB-W60L | S114: @LK-JBR-W60L | T114: @LK-JBG-W60L | U114: @LK-JDM-W60L | V114: @LK-JDP-W60L | W114: @LK-JHG-W60L | X114: @LK-JIN-W60L | Y114: @LK-JIV-W60L | Z114: @LK-JLN-W60L | AA114: @LK-JMW-W60L | AB114: @LK-JMN-W60L | AC114: @LK-MMJ-W60L | AD114: @LK-JOV-W60L | AE114: @LK-JPT-W60L | AF114: @LK-JPE-W60L | AG114: @LK-JPG-W60L | AH114: @LK-JSG-W60L | AI114: @LK-JSP-W60L | AJ114: @LK-JSB-W60L | AK114: @LK-JSO-W60L | AL114: @LK-JSY-W60L | AM114: @LK-JST-W60L | AN114: @LK-JTP-W60L | AO114: @LK-JTK-W60L | AP114: @LK-JWE-W60L
B115: 600 Wall Unit (720mm High) RHH | C115: W60R | D115: @LK-CSJ-W60R | E115: @LK-DGJ-W60R | F115: @LK-DSJ-W60R | G115: @LK-PGJ-W60R | H115: @LK-WGJ-W60R | I115: @LK-GPJ-W60R | J115: @LK-MAJ-W60R | K115: @LK-JMC-W60R | L115: @LK-DMJ-W60R | M115: @LK-DYJ-W60R | N115: @LK-MGJ-W60R | O115: @LK-PMJ-W60R | P115: @LK-JWT-W60R | Q115: @LK-JAG-W60R | R115: @LK-JAB-W60R | S115: @LK-JBR-W60R | T115: @LK-JBG-W60R | U115: @LK-JDM-W60R | V115: @LK-JDP-W60R | W115: @LK-JHG-W60R | X115: @LK-JIN-W60R | Y115: @LK-JIV-W60R | Z115: @LK-JLN-W60R | AA115: @LK-JMW-W60R | AB115: @LK-JMN-W60R | AC115: @LK-MMJ-W60R | AD115: @LK-JOV-W60R | AE115: @LK-JPT-W60R | AF115: @LK-JPE-W60R | AG115: @LK-JPG-W60R | AH115: @LK-JSG-W60R | AI115: @LK-JSP-W60R | AJ115: @LK-JSB-W60R | AK115: @LK-JSO-W60R | AL115: @LK-JSY-W60R | AM115: @LK-JST-W60R | AN115: @LK-JTP-W60R | AO115: @LK-JTK-W60R | AP115: @LK-JWE-W60R
B116: 700 Wall Unit (720mm High) | C116: W70 | D116: @LK-CSJ-W70 | E116: @LK-DGJ-W70 | F116: @LK-DSJ-W70 | G116: @LK-PGJ-W70 | H116: @LK-WGJ-W70 | I116: @LK-GPJ-W70 | J116: @LK-MAJ-W70 | K116: @LK-JMC-W70 | L116: @LK-DMJ-W70 | M116: @LK-DYJ-W70 | N116: @LK-MGJ-W70 | O116: @LK-PMJ-W70 | P116: @LK-JWT-W70 | Q116: @LK-JAG-W70 | R116: @LK-JAB-W70 | S116: @LK-JBR-W70 | T116: @LK-JBG-W70 | U116: @LK-JDM-W70 | V116: @LK-JDP-W70 | W116: @LK-JHG-W70 | X116: @LK-JIN-W70 | Y116: @LK-JIV-W70 | Z116: @LK-JLN-W70 | AA116: @LK-JMW-W70 | AB116: @LK-JMN-W70 | AC116: @LK-MMJ-W70 | AD116: @LK-JOV-W70 | AE116: @LK-JPT-W70 | AF116: @LK-JPE-W70 | AG116: @LK-JPG-W70 | AH116: @LK-JSG-W70 | AI116: @LK-JSP-W70 | AJ116: @LK-JSB-W70 | AK116: @LK-JSO-W70 | AL116: @LK-JSY-W70 | AM116: @LK-JST-W70 | AN116: @LK-JTP-W70 | AO116: @LK-JTK-W70 | AP116: @LK-JWE-W70
B117: 800 Wall Unit (720mm High) | C117: W80 | D117: @LK-CSJ-W80 | E117: @LK-DGJ-W80 | F117: @LK-DSJ-W80 | G117: @LK-PGJ-W80 | H117: @LK-WGJ-W80 | I117: @LK-GPJ-W80 | J117: @LK-MAJ-W80 | K117: @LK-JMC-W80 | L117: @LK-DMJ-W80 | M117: @LK-DYJ-W80 | N117: @LK-MGJ-W80 | O117: @LK-PMJ-W80 | P117: @LK-JWT-W80 | Q117: @LK-JAG-W80 | R117: @LK-JAB-W80 | S117: @LK-JBR-W80 | T117: @LK-JBG-W80 | U117: @LK-JDM-W80 | V117: @LK-JDP-W80 | W117: @LK-JHG-W80 | X117: @LK-JIN-W80 | Y117: @LK-JIV-W80 | Z117: @LK-JLN-W80 | AA117: @LK-JMW-W80 | AB117: @LK-JMN-W80 | AC117: @LK-MMJ-W80 | AD117: @LK-JOV-W80 | AE117: @LK-JPT-W80 | AF117: @LK-JPE-W80 | AG117: @LK-JPG-W80 | AH117: @LK-JSG-W80 | AI117: @LK-JSP-W80 | AJ117: @LK-JSB-W80 | AK117: @LK-JSO-W80 | AL117: @LK-JSY-W80 | AM117: @LK-JST-W80 | AN117: @LK-JTP-W80 | AO117: @LK-JTK-W80 | AP117: @LK-JWE-W80
B118: 900 Wall Unit (720mm High) | C118: W90 | D118: @LK-CSJ-W90 | E118: @LK-DGJ-W90 | F118: @LK-DSJ-W90 | G118: @LK-PGJ-W90 | H118: @LK-WGJ-W90 | I118: @LK-GPJ-W90 | J118: @LK-MAJ-W90 | K118: @LK-JMC-W90 | L118: @LK-DMJ-W90 | M118: @LK-DYJ-W90 | N118: @LK-MGJ-W90 | O118: @LK-PMJ-W90 | P118: @LK-JWT-W90 | Q118: @LK-JAG-W90 | R118: @LK-JAB-W90 | S118: @LK-JBR-W90 | T118: @LK-JBG-W90 | U118: @LK-JDM-W90 | V118: @LK-JDP-W90 | W118: @LK-JHG-W90 | X118: @LK-JIN-W90 | Y118: @LK-JIV-W90 | Z118: @LK-JLN-W90 | AA118: @LK-JMW-W90 | AB118: @LK-JMN-W90 | AC118: @LK-MMJ-W90 | AD118: @LK-JOV-W90 | AE118: @LK-JPT-W90 | AF118: @LK-JPE-W90 | AG118: @LK-JPG-W90 | AH118: @LK-JSG-W90 | AI118: @LK-JSP-W90 | AJ118: @LK-JSB-W90 | AK118: @LK-JSO-W90 | AL118: @LK-JSY-W90 | AM118: @LK-JST-W90 | AN118: @LK-JTP-W90 | AO118: @LK-JTK-W90 | AP118: @LK-JWE-W90
B119: 1000 Wall Unit (720mm High) | C119: W100 | D119: @LK-CSJ-W100 | E119: @LK-DGJ-W100 | F119: @LK-DSJ-W100 | G119: @LK-PGJ-W100 | H119: @LK-WGJ-W100 | I119: @LK-GPJ-W100 | J119: @LK-MAJ-W100 | K119: @LK-JMC-W100 | L119: @LK-DMJ-W100 | M119: @LK-DYJ-W100 | N119: @LK-MGJ-W100 | O119: @LK-PMJ-W100 | P119: @LK-JWT-W100 | Q119: @LK-JAG-W100 | R119: @LK-JAB-W100 | S119: @LK-JBR-W100 | T119: @LK-JBG-W100 | U119: @LK-JDM-W100 | V119: @LK-JDP-W100 | W119: @LK-JHG-W100 | X119: @LK-JIN-W100 | Y119: @LK-JIV-W100 | Z119: @LK-JLN-W100 | AA119: @LK-JMW-W100 | AB119: @LK-JMN-W100 | AC119: @LK-MMJ-W100 | AD119: @LK-JOV-W100 | AE119: @LK-JPT-W100 | AF119: @LK-JPE-W100 | AG119: @LK-JPG-W100 | AH119: @LK-JSG-W100 | AI119: @LK-JSP-W100 | AJ119: @LK-JSB-W100 | AK119: @LK-JSO-W100 | AL119: @LK-JSY-W100 | AM119: @LK-JST-W100 | AN119: @LK-JTP-W100 | AO119: @LK-JTK-W100 | AP119: @LK-JWE-W100
B120: 650 L Cnr Wall Unit (720mm High) | C120: WCL65 | D120: @LK-CSJ-WCL65 | E120: @LK-DGJ-WCL65 | F120: @LK-DSJ-WCL65 | G120: @LK-PGJ-WCL65 | H120: @LK-WGJ-WCL65 | I120: @LK-GPJ-WCL65 | J120: @LK-MAJ-WCL65 | K120: @LK-JMC-WCL65 | L120: @LK-DMJ-WCL65 | M120: @LK-DYJ-WCL65 | N120: @LK-MGJ-WCL65 | O120: @LK-PMJ-WCL65 | P120: @LK-JWT-WCL65 | Q120: @LK-JAG-WCL65 | R120: @LK-JAB-WCL65 | S120: @LK-JBR-WCL65 | T120: @LK-JBG-WCL65 | U120: @LK-JDM-WCL65 | V120: @LK-JDP-WCL65 | W120: @LK-JHG-WCL65 | X120: @LK-JIN-WCL65 | Y120: @LK-JIV-WCL65 | Z120: @LK-JLN-WCL65 | AA120: @LK-JMW-WCL65 | AB120: @LK-JMN-WCL65 | AC120: @LK-MMJ-WCL65 | AD120: @LK-JOV-WCL65 | AE120: @LK-JPT-WCL65 | AF120: @LK-JPE-WCL65 | AG120: @LK-JPG-WCL65 | AH120: @LK-JSG-WCL65 | AI120: @LK-JSP-WCL65 | AJ120: @LK-JSB-WCL65 | AK120: @LK-JSO-WCL65 | AL120: @LK-JSY-WCL65 | AM120: @LK-JST-WCL65 | AN120: @LK-JTP-WCL65 | AO120: @LK-JTK-WCL65 | AP120: @LK-JWE-WCL65
B121: 600 Wall Microwave Unit | C121: WM60 | D121: @LK-CSJ-WM60 | E121: @LK-DGJ-WM60 | F121: @LK-DSJ-WM60 | G121: @LK-PGJ-WM60 | H121: @LK-WGJ-WM60 | I121: @LK-GPJ-WM60 | J121: @LK-MAJ-WM60 | K121: @LK-JMC-WM60 | L121: @LK-DMJ-WM60 | M121: @LK-DYJ-WM60 | N121: @LK-MGJ-WM60 | O121: @LK-PMJ-WM60 | P121: @LK-JWT-WM60 | Q121: @LK-JAG-WM60 | R121: @LK-JAB-WM60 | S121: @LK-JBR-WM60 | T121: @LK-JBG-WM60 | U121: @LK-JDM-WM60 | V121: @LK-JDP-WM60 | W121: @LK-JHG-WM60 | X121: @LK-JIN-WM60 | Y121: @LK-JIV-WM60 | Z121: @LK-JLN-WM60 | AA121: @LK-JMW-WM60 | AB121: @LK-JMN-WM60 | AC121: @LK-MMJ-WM60 | AD121: @LK-JOV-WM60 | AE121: @LK-JPT-WM60 | AF121: @LK-JPE-WM60 | AG121: @LK-JPG-WM60 | AH121: @LK-JSG-WM60 | AI121: @LK-JSP-WM60 | AJ121: @LK-JSB-WM60 | AK121: @LK-JSO-WM60 | AL121: @LK-JSY-WM60 | AM121: @LK-JST-WM60 | AN121: @LK-JTP-WM60 | AO121: @LK-JTK-WM60 | AP121: @LK-JWE-WM60
B122: 600 Boiler Housing LHH | C122: WBHUL | D122: @LK-CSJ-WBHUL | E122: @LK-DGJ-WBHUL | F122: @LK-DSJ-WBHUL | G122: @LK-PGJ-WBHUL | H122: @LK-WGJ-WBHUL | I122: @LK-GPJ-WBHUL | J122: @LK-MAJ-WBHUL | K122: @LK-JMC-WBHUL | L122: @LK-DMJ-WBHUL | M122: @LK-DYJ-WBHUL | N122: @LK-MGJ-WBHUL | O122: @LK-PMJ-WBHUL | P122: @LK-JWT-WBHUL | Q122: @LK-JAG-WBHUL | R122: @LK-JAB-WBHUL | S122: @LK-JBR-WBHUL | T122: @LK-JBG-WBHUL | U122: @LK-JDM-WBHUL | V122: @LK-JDP-WBHUL | W122: @LK-JHG-WBHUL | X122: @LK-JIN-WBHUL | Y122: @LK-JIV-WBHUL | Z122: @LK-JLN-WBHUL | AA122: @LK-JMW-WBHUL | AB122: @LK-JMN-WBHUL | AC122: @LK-MMJ-WBHUL | AD122: @LK-JOV-WBHUL | AE122: @LK-JPT-WBHUL | AF122: @LK-JPE-WBHUL | AG122: @LK-JPG-WBHUL | AH122: @LK-JSG-WBHUL | AI122: @LK-JSP-WBHUL | AJ122: @LK-JSB-WBHUL | AK122: @LK-JSO-WBHUL | AL122: @LK-JSY-WBHUL | AM122: @LK-JST-WBHUL | AN122: @LK-JTP-WBHUL | AO122: @LK-JTK-WBHUL | AP122: @LK-JWE-WBHUL
B123: 600 Boiler Housing RHH | C123: WBHUR | D123: @LK-CSJ-WBHUR | E123: @LK-DGJ-WBHUR | F123: @LK-DSJ-WBHUR | G123: @LK-PGJ-WBHUR | H123: @LK-WGJ-WBHUR | I123: @LK-GPJ-WBHUR | J123: @LK-MAJ-WBHUR | K123: @LK-JMC-WBHUR | L123: @LK-DMJ-WBHUR | M123: @LK-DYJ-WBHUR | N123: @LK-MGJ-WBHUR | O123: @LK-PMJ-WBHUR | P123: @LK-JWT-WBHUR | Q123: @LK-JAG-WBHUR | R123: @LK-JAB-WBHUR | S123: @LK-JBR-WBHUR | T123: @LK-JBG-WBHUR | U123: @LK-JDM-WBHUR | V123: @LK-JDP-WBHUR | W123: @LK-JHG-WBHUR | X123: @LK-JIN-WBHUR | Y123: @LK-JIV-WBHUR | Z123: @LK-JLN-WBHUR | AA123: @LK-JMW-WBHUR | AB123: @LK-JMN-WBHUR | AC123: @LK-MMJ-WBHUR | AD123: @LK-JOV-WBHUR | AE123: @LK-JPT-WBHUR | AF123: @LK-JPE-WBHUR | AG123: @LK-JPG-WBHUR | AH123: @LK-JSG-WBHUR | AI123: @LK-JSP-WBHUR | AJ123: @LK-JSB-WBHUR | AK123: @LK-JSO-WBHUR | AL123: @LK-JSY-WBHUR | AM123: @LK-JST-WBHUR | AN123: @LK-JTP-WBHUR | AO123: @LK-JTK-WBHUR | AP123: @LK-JWE-WBHUR
B124: Smoked Glass Wall Unit - 500mm | C124: WGS5 | D124: @LK-CSJ-WGS5 | E124: @LK-DGJ-WGS5 | F124: @LK-DSJ-WGS5 | G124: @LK-PGJ-WGS5 | H124: @LK-WGJ-WGS5 | I124: @LK-GPJ-WGS5 | J124: @LK-MAJ-WGS5 | K124: @LK-JMC-WGS5 | L124: @LK-DMJ-WGS5 | M124: @LK-DYJ-WGS5 | N124: @LK-MGJ-WGS5 | O124: @LK-PMJ-WGS5 | P124: @LK-JWT-WGS5 | Q124: @LK-JAG-WGS5 | R124: @LK-JAB-WGS5 | S124: @LK-JBR-WGS5 | T124: @LK-JBG-WGS5 | U124: @LK-JDM-WGS5 | V124: @LK-JDP-WGS5 | W124: @LK-JHG-WGS5 | X124: @LK-JIN-WGS5 | Y124: @LK-JIV-WGS5 | Z124: @LK-JLN-WGS5 | AA124: @LK-JMW-WGS5 | AB124: @LK-JMN-WGS5 | AC124: @LK-MMJ-WGS5 | AD124: @LK-JOV-WGS5 | AE124: @LK-JPT-WGS5 | AF124: @LK-JPE-WGS5 | AG124: @LK-JPG-WGS5 | AH124: @LK-JSG-WGS5 | AI124: @LK-JSP-WGS5 | AJ124: @LK-JSB-WGS5 | AK124: @LK-JSO-WGS5 | AL124: @LK-JSY-WGS5 | AM124: @LK-JST-WGS5 | AN124: @LK-JTP-WGS5 | AO124: @LK-JTK-WGS5 | AP124: @LK-JWE-WGS5
B125: Smoked Glass Wall Unit - 600mm | C125: WGS6 | D125: @LK-CSJ-WGS6 | E125: @LK-DGJ-WGS6 | F125: @LK-DSJ-WGS6 | G125: @LK-PGJ-WGS6 | H125: @LK-WGJ-WGS6 | I125: @LK-GPJ-WGS6 | J125: @LK-MAJ-WGS6 | K125: @LK-JMC-WGS6 | L125: @LK-DMJ-WGS6 | M125: @LK-DYJ-WGS6 | N125: @LK-MGJ-WGS6 | O125: @LK-PMJ-WGS6 | P125: @LK-JWT-WGS6 | Q125: @LK-JAG-WGS6 | R125: @LK-JAB-WGS6 | S125: @LK-JBR-WGS6 | T125: @LK-JBG-WGS6 | U125: @LK-JDM-WGS6 | V125: @LK-JDP-WGS6 | W125: @LK-JHG-WGS6 | X125: @LK-JIN-WGS6 | Y125: @LK-JIV-WGS6 | Z125: @LK-JLN-WGS6 | AA125: @LK-JMW-WGS6 | AB125: @LK-JMN-WGS6 | AC125: @LK-MMJ-WGS6 | AD125: @LK-JOV-WGS6 | AE125: @LK-JPT-WGS6 | AF125: @LK-JPE-WGS6 | AG125: @LK-JPG-WGS6 | AH125: @LK-JSG-WGS6 | AI125: @LK-JSP-WGS6 | AJ125: @LK-JSB-WGS6 | AK125: @LK-JSO-WGS6 | AL125: @LK-JSY-WGS6 | AM125: @LK-JST-WGS6 | AN125: @LK-JTP-WGS6 | AO125: @LK-JTK-WGS6 | AP125: @LK-JWE-WGS6
B126: Reeded Glass Wall Unit - 500mm | C126: WGR5 | D126: @LK-CSJ-WGR5 | E126: @LK-DGJ-WGR5 | F126: @LK-DSJ-WGR5 | G126: @LK-PGJ-WGR5 | H126: @LK-WGJ-WGR5 | I126: @LK-GPJ-WGR5 | J126: @LK-MAJ-WGR5 | K126: @LK-JMC-WGR5 | L126: @LK-DMJ-WGR5 | M126: @LK-DYJ-WGR5 | N126: @LK-MGJ-WGR5 | O126: @LK-PMJ-WGR5 | P126: @LK-JWT-WGR5 | Q126: @LK-JAG-WGR5 | R126: @LK-JAB-WGR5 | S126: @LK-JBR-WGR5 | T126: @LK-JBG-WGR5 | U126: @LK-JDM-WGR5 | V126: @LK-JDP-WGR5 | W126: @LK-JHG-WGR5 | X126: @LK-JIN-WGR5 | Y126: @LK-JIV-WGR5 | Z126: @LK-JLN-WGR5 | AA126: @LK-JMW-WGR5 | AB126: @LK-JMN-WGR5 | AC126: @LK-MMJ-WGR5 | AD126: @LK-JOV-WGR5 | AE126: @LK-JPT-WGR5 | AF126: @LK-JPE-WGR5 | AG126: @LK-JPG-WGR5 | AH126: @LK-JSG-WGR5 | AI126: @LK-JSP-WGR5 | AJ126: @LK-JSB-WGR5 | AK126: @LK-JSO-WGR5 | AL126: @LK-JSY-WGR5 | AM126: @LK-JST-WGR5 | AN126: @LK-JTP-WGR5 | AO126: @LK-JTK-WGR5 | AP126: @LK-JWE-WGR5
B127: Reeded Glass Wall Unit - 600mm | C127: WGR6 | D127: @LK-CSJ-WGR6 | E127: @LK-DGJ-WGR6 | F127: @LK-DSJ-WGR6 | G127: @LK-PGJ-WGR6 | H127: @LK-WGJ-WGR6 | I127: @LK-GPJ-WGR6 | J127: @LK-MAJ-WGR6 | K127: @LK-JMC-WGR6 | L127: @LK-DMJ-WGR6 | M127: @LK-DYJ-WGR6 | N127: @LK-MGJ-WGR6 | O127: @LK-PMJ-WGR6 | P127: @LK-JWT-WGR6 | Q127: @LK-JAG-WGR6 | R127: @LK-JAB-WGR6 | S127: @LK-JBR-WGR6 | T127: @LK-JBG-WGR6 | U127: @LK-JDM-WGR6 | V127: @LK-JDP-WGR6 | W127: @LK-JHG-WGR6 | X127: @LK-JIN-WGR6 | Y127: @LK-JIV-WGR6 | Z127: @LK-JLN-WGR6 | AA127: @LK-JMW-WGR6 | AB127: @LK-JMN-WGR6 | AC127: @LK-MMJ-WGR6 | AD127: @LK-JOV-WGR6 | AE127: @LK-JPT-WGR6 | AF127: @LK-JPE-WGR6 | AG127: @LK-JPG-WGR6 | AH127: @LK-JSG-WGR6 | AI127: @LK-JSP-WGR6 | AJ127: @LK-JSB-WGR6 | AK127: @LK-JSO-WGR6 | AL127: @LK-JSY-WGR6 | AM127: @LK-JST-WGR6 | AN127: @LK-JTP-WGR6 | AO127: @LK-JTK-WGR6 | AP127: @LK-JWE-WGR6
B128: 600 285 Bridging Unit | C128: WB62 | D128: @LK-CSJ-WB62 | E128: @LK-DGJ-WB62 | F128: @LK-DSJ-WB62 | G128: @LK-PGJ-WB62 | H128: @LK-WGJ-WB62 | I128: @LK-GPJ-WB62 | J128: @LK-MAJ-WB62 | K128: @LK-JMC-WB62 | L128: @LK-DMJ-WB62 | M128: @LK-DYJ-WB62 | N128: @LK-MGJ-WB62 | O128: @LK-PMJ-WB62 | P128: @LK-JWT-WB62 | Q128: @LK-JAG-WB62 | R128: @LK-JAB-WB62 | S128: @LK-JBR-WB62 | T128: @LK-JBG-WB62 | U128: @LK-JDM-WB62 | V128: @LK-JDP-WB62 | W128: @LK-JHG-WB62 | X128: @LK-JIN-WB62 | Y128: @LK-JIV-WB62 | Z128: @LK-JLN-WB62 | AA128: @LK-JMW-WB62 | AB128: @LK-JMN-WB62 | AC128: @LK-MMJ-WB62 | AD128: @LK-JOV-WB62 | AE128: @LK-JPT-WB62 | AF128: @LK-JPE-WB62 | AG128: @LK-JPG-WB62 | AH128: @LK-JSG-WB62 | AI128: @LK-JSP-WB62 | AJ128: @LK-JSB-WB62 | AK128: @LK-JSO-WB62 | AL128: @LK-JSY-WB62 | AM128: @LK-JST-WB62 | AN128: @LK-JTP-WB62 | AO128: @LK-JTK-WB62 | AP128: @LK-JWE-WB62
B129: 800 285 Bridging Unit | C129: WB82 | D129: @LK-CSJ-WB82 | E129: @LK-DGJ-WB82 | F129: @LK-DSJ-WB82 | G129: @LK-PGJ-WB82 | H129: @LK-WGJ-WB82 | I129: @LK-GPJ-WB82 | J129: @LK-MAJ-WB82 | K129: @LK-JMC-WB82 | L129: @LK-DMJ-WB82 | M129: @LK-DYJ-WB82 | N129: @LK-MGJ-WB82 | O129: @LK-PMJ-WB82 | P129: @LK-JWT-WB82 | Q129: @LK-JAG-WB82 | R129: @LK-JAB-WB82 | S129: @LK-JBR-WB82 | T129: @LK-JBG-WB82 | U129: @LK-JDM-WB82 | V129: @LK-JDP-WB82 | W129: @LK-JHG-WB82 | X129: @LK-JIN-WB82 | Y129: @LK-JIV-WB82 | Z129: @LK-JLN-WB82 | AA129: @LK-JMW-WB82 | AB129: @LK-JMN-WB82 | AC129: @LK-MMJ-WB82 | AD129: @LK-JOV-WB82 | AE129: @LK-JPT-WB82 | AF129: @LK-JPE-WB82 | AG129: @LK-JPG-WB82 | AH129: @LK-JSG-WB82 | AI129: @LK-JSP-WB82 | AJ129: @LK-JSB-WB82 | AK129: @LK-JSO-WB82 | AL129: @LK-JSY-WB82 | AM129: @LK-JST-WB82 | AN129: @LK-JTP-WB82 | AO129: @LK-JTK-WB82 | AP129: @LK-JWE-WB82
B130: 900 285 Bridging Unit | C130: WB92 | D130: @LK-CSJ-WB92 | E130: @LK-DGJ-WB92 | F130: @LK-DSJ-WB92 | G130: @LK-PGJ-WB92 | H130: @LK-WGJ-WB92 | I130: @LK-GPJ-WB92 | J130: @LK-MAJ-WB92 | K130: @LK-JMC-WB92 | L130: @LK-DMJ-WB92 | M130: @LK-DYJ-WB92 | N130: @LK-MGJ-WB92 | O130: @LK-PMJ-WB92 | P130: @LK-JWT-WB92 | Q130: @LK-JAG-WB92 | R130: @LK-JAB-WB92 | S130: @LK-JBR-WB92 | T130: @LK-JBG-WB92 | U130: @LK-JDM-WB92 | V130: @LK-JDP-WB92 | W130: @LK-JHG-WB92 | X130: @LK-JIN-WB92 | Y130: @LK-JIV-WB92 | Z130: @LK-JLN-WB92 | AA130: @LK-JMW-WB92 | AB130: @LK-JMN-WB92 | AC130: @LK-MMJ-WB92 | AD130: @LK-JOV-WB92 | AE130: @LK-JPT-WB92 | AF130: @LK-JPE-WB92 | AG130: @LK-JPG-WB92 | AH130: @LK-JSG-WB92 | AI130: @LK-JSP-WB92 | AJ130: @LK-JSB-WB92 | AK130: @LK-JSO-WB92 | AL130: @LK-JSY-WB92 | AM130: @LK-JST-WB92 | AN130: @LK-JTP-WB92 | AO130: @LK-JTK-WB92 | AP130: @LK-JWE-WB92
B131: 1000 285 Bridging Unit | C131: WB12 | D131: @LK-CSJ-WB12 | E131: @LK-DGJ-WB12 | F131: @LK-DSJ-WB12 | G131: @LK-PGJ-WB12 | H131: @LK-WGJ-WB12 | I131: @LK-GPJ-WB12 | J131: @LK-MAJ-WB12 | K131: @LK-JMC-WB12 | L131: @LK-DMJ-WB12 | M131: @LK-DYJ-WB12 | N131: @LK-MGJ-WB12 | O131: @LK-PMJ-WB12 | P131: @LK-JWT-WB12 | Q131: @LK-JAG-WB12 | R131: @LK-JAB-WB12 | S131: @LK-JBR-WB12 | T131: @LK-JBG-WB12 | U131: @LK-JDM-WB12 | V131: @LK-JDP-WB12 | W131: @LK-JHG-WB12 | X131: @LK-JIN-WB12 | Y131: @LK-JIV-WB12 | Z131: @LK-JLN-WB12 | AA131: @LK-JMW-WB12 | AB131: @LK-JMN-WB12 | AC131: @LK-MMJ-WB12 | AD131: @LK-JOV-WB12 | AE131: @LK-JPT-WB12 | AF131: @LK-JPE-WB12 | AG131: @LK-JPG-WB12 | AH131: @LK-JSG-WB12 | AI131: @LK-JSP-WB12 | AJ131: @LK-JSB-WB12 | AK131: @LK-JSO-WB12 | AL131: @LK-JSY-WB12 | AM131: @LK-JST-WB12 | AN131: @LK-JTP-WB12 | AO131: @LK-JTK-WB12 | AP131: @LK-JWE-WB12
B132: 600 355mm Bridging Unit | C132: WB63 | D132: @LK-CSJ-WB63 | E132: @LK-DGJ-WB63 | F132: @LK-DSJ-WB63 | G132: @LK-PGJ-WB63 | H132: @LK-WGJ-WB63 | I132: @LK-GPJ-WB63 | J132: @LK-MAJ-WB63 | K132: @LK-JMC-WB63 | L132: @LK-DMJ-WB63 | M132: @LK-DYJ-WB63 | N132: @LK-MGJ-WB63 | O132: @LK-PMJ-WB63 | P132: @LK-JWT-WB63 | Q132: @LK-JAG-WB63 | R132: @LK-JAB-WB63 | S132: @LK-JBR-WB63 | T132: @LK-JBG-WB63 | U132: @LK-JDM-WB63 | V132: @LK-JDP-WB63 | W132: @LK-JHG-WB63 | X132: @LK-JIN-WB63 | Y132: @LK-JIV-WB63 | Z132: @LK-JLN-WB63 | AA132: @LK-JMW-WB63 | AB132: @LK-JMN-WB63 | AC132: @LK-MMJ-WB63 | AD132: @LK-JOV-WB63 | AE132: @LK-JPT-WB63 | AF132: @LK-JPE-WB63 | AG132: @LK-JPG-WB63 | AH132: @LK-JSG-WB63 | AI132: @LK-JSP-WB63 | AJ132: @LK-JSB-WB63 | AK132: @LK-JSO-WB63 | AL132: @LK-JSY-WB63 | AM132: @LK-JST-WB63 | AN132: @LK-JTP-WB63 | AO132: @LK-JTK-WB63 | AP132: @LK-JWE-WB63
B133: 800 355mm Bridging Unit | C133: WB83 | D133: @LK-CSJ-WB83 | E133: @LK-DGJ-WB83 | F133: @LK-DSJ-WB83 | G133: @LK-PGJ-WB83 | H133: @LK-WGJ-WB83 | I133: @LK-GPJ-WB83 | J133: @LK-MAJ-WB83 | K133: @LK-JMC-WB83 | L133: @LK-DMJ-WB83 | M133: @LK-DYJ-WB83 | N133: @LK-MGJ-WB83 | O133: @LK-PMJ-WB83 | P133: @LK-JWT-WB83 | Q133: @LK-JAG-WB83 | R133: @LK-JAB-WB83 | S133: @LK-JBR-WB83 | T133: @LK-JBG-WB83 | U133: @LK-JDM-WB83 | V133: @LK-JDP-WB83 | W133: @LK-JHG-WB83 | X133: @LK-JIN-WB83 | Y133: @LK-JIV-WB83 | Z133: @LK-JLN-WB83 | AA133: @LK-JMW-WB83 | AB133: @LK-JMN-WB83 | AC133: @LK-MMJ-WB83 | AD133: @LK-JOV-WB83 | AE133: @LK-JPT-WB83 | AF133: @LK-JPE-WB83 | AG133: @LK-JPG-WB83 | AH133: @LK-JSG-WB83 | AI133: @LK-JSP-WB83 | AJ133: @LK-JSB-WB83 | AK133: @LK-JSO-WB83 | AL133: @LK-JSY-WB83 | AM133: @LK-JST-WB83 | AN133: @LK-JTP-WB83 | AO133: @LK-JTK-WB83 | AP133: @LK-JWE-WB83
B134: 900 355mm Bridging Unit | C134: WB93 | D134: @LK-CSJ-WB93 | E134: @LK-DGJ-WB93 | F134: @LK-DSJ-WB93 | G134: @LK-PGJ-WB93 | H134: @LK-WGJ-WB93 | I134: @LK-GPJ-WB93 | J134: @LK-MAJ-WB93 | K134: @LK-JMC-WB93 | L134: @LK-DMJ-WB93 | M134: @LK-DYJ-WB93 | N134: @LK-MGJ-WB93 | O134: @LK-PMJ-WB93 | P134: @LK-JWT-WB93 | Q134: @LK-JAG-WB93 | R134: @LK-JAB-WB93 | S134: @LK-JBR-WB93 | T134: @LK-JBG-WB93 | U134: @LK-JDM-WB93 | V134: @LK-JDP-WB93 | W134: @LK-JHG-WB93 | X134: @LK-JIN-WB93 | Y134: @LK-JIV-WB93 | Z134: @LK-JLN-WB93 | AA134: @LK-JMW-WB93 | AB134: @LK-JMN-WB93 | AC134: @LK-MMJ-WB93 | AD134: @LK-JOV-WB93 | AE134: @LK-JPT-WB93 | AF134: @LK-JPE-WB93 | AG134: @LK-JPG-WB93 | AH134: @LK-JSG-WB93 | AI134: @LK-JSP-WB93 | AJ134: @LK-JSB-WB93 | AK134: @LK-JSO-WB93 | AL134: @LK-JSY-WB93 | AM134: @LK-JST-WB93 | AN134: @LK-JTP-WB93 | AO134: @LK-JTK-WB93 | AP134: @LK-JWE-WB93
B135: 1000 355mm Bridging Unit | C135: WB13 | D135: @LK-CSJ-WB13 | E135: @LK-DGJ-WB13 | F135: @LK-DSJ-WB13 | G135: @LK-PGJ-WB13 | H135: @LK-WGJ-WB13 | I135: @LK-GPJ-WB13 | J135: @LK-MAJ-WB13 | K135: @LK-JMC-WB13 | L135: @LK-DMJ-WB13 | M135: @LK-DYJ-WB13 | N135: @LK-MGJ-WB13 | O135: @LK-PMJ-WB13 | P135: @LK-JWT-WB13 | Q135: @LK-JAG-WB13 | R135: @LK-JAB-WB13 | S135: @LK-JBR-WB13 | T135: @LK-JBG-WB13 | U135: @LK-JDM-WB13 | V135: @LK-JDP-WB13 | W135: @LK-JHG-WB13 | X135: @LK-JIN-WB13 | Y135: @LK-JIV-WB13 | Z135: @LK-JLN-WB13 | AA135: @LK-JMW-WB13 | AB135: @LK-JMN-WB13 | AC135: @LK-MMJ-WB13 | AD135: @LK-JOV-WB13 | AE135: @LK-JPT-WB13 | AF135: @LK-JPE-WB13 | AG135: @LK-JPG-WB13 | AH135: @LK-JSG-WB13 | AI135: @LK-JSP-WB13 | AJ135: @LK-JSB-WB13 | AK135: @LK-JSO-WB13 | AL135: @LK-JSY-WB13 | AM135: @LK-JST-WB13 | AN135: @LK-JTP-WB13 | AO135: @LK-JTK-WB13 | AP135: @LK-JWE-WB13
B136: 600 50/50 FF Housing Unit | C136: AH-F55 | D136: @LK-CSJ-AH-F55 | E136: @LK-DGJ-AH-F55 | F136: @LK-DSJ-AH-F55 | G136: @LK-PGJ-AH-F55 | H136: @LK-WGJ-AH-F55 | I136: @LK-GPJ-AH-F55 | J136: @LK-MAJ-AH-F55 | K136: @LK-JMC-AH-F55 | L136: @LK-DMJ-AH-F55 | M136: @LK-DYJ-AH-F55 | N136: @LK-MGJ-AH-F55 | O136: @LK-PMJ-AH-F55 | P136: @LK-JWT-AH-F55 | Q136: @LK-JAG-AH-F55 | R136: @LK-JAB-AH-F55 | S136: @LK-JBR-AH-F55 | T136: @LK-JBG-AH-F55 | U136: @LK-JDM-AH-F55 | V136: @LK-JDP-AH-F55 | W136: @LK-JHG-AH-F55 | X136: @LK-JIN-AH-F55 | Y136: @LK-JIV-AH-F55 | Z136: @LK-JLN-AH-F55 | AA136: @LK-JMW-AH-F55 | AB136: @LK-JMN-AH-F55 | AC136: @LK-MMJ-AH-F55 | AD136: @LK-JOV-AH-F55 | AE136: @LK-JPT-AH-F55 | AF136: @LK-JPE-AH-F55 | AG136: @LK-JPG-AH-F55 | AH136: @LK-JSG-AH-F55 | AI136: @LK-JSP-AH-F55 | AJ136: @LK-JSB-AH-F55 | AK136: @LK-JSO-AH-F55 | AL136: @LK-JSY-AH-F55 | AM136: @LK-JST-AH-F55 | AN136: @LK-JTP-AH-F55 | AO136: @LK-JTK-AH-F55 | AP136: @LK-JWE-AH-F55
B137: 600 70/30 FF Housing Unit LHH | C137: AH-F73L | D137: @LK-CSJ-AH-F73L | E137: @LK-DGJ-AH-F73L | F137: @LK-DSJ-AH-F73L | G137: @LK-PGJ-AH-F73L | H137: @LK-WGJ-AH-F73L | I137: @LK-GPJ-AH-F73L | J137: @LK-MAJ-AH-F73L | K137: @LK-JMC-AH-F73L | L137: @LK-DMJ-AH-F73L | M137: @LK-DYJ-AH-F73L | N137: @LK-MGJ-AH-F73L | O137: @LK-PMJ-AH-F73L | P137: @LK-JWT-AH-F73L | Q137: @LK-JAG-AH-F73L | R137: @LK-JAB-AH-F73L | S137: @LK-JBR-AH-F73L | T137: @LK-JBG-AH-F73L | U137: @LK-JDM-AH-F73L | V137: @LK-JDP-AH-F73L | W137: @LK-JHG-AH-F73L | X137: @LK-JIN-AH-F73L | Y137: @LK-JIV-AH-F73L | Z137: @LK-JLN-AH-F73L | AA137: @LK-JMW-AH-F73L | AB137: @LK-JMN-AH-F73L | AC137: @LK-MMJ-AH-F73L | AD137: @LK-JOV-AH-F73L | AE137: @LK-JPT-AH-F73L | AF137: @LK-JPE-AH-F73L | AG137: @LK-JPG-AH-F73L | AH137: @LK-JSG-AH-F73L | AI137: @LK-JSP-AH-F73L | AJ137: @LK-JSB-AH-F73L | AK137: @LK-JSO-AH-F73L | AL137: @LK-JSY-AH-F73L | AM137: @LK-JST-AH-F73L | AN137: @LK-JTP-AH-F73L | AO137: @LK-JTK-AH-F73L | AP137: @LK-JWE-AH-F73L
B138: 600 70/30 FF Housing Unit RHH | C138: AH-F73R | D138: @LK-CSJ-AH-F73R | E138: @LK-DGJ-AH-F73R | F138: @LK-DSJ-AH-F73R | G138: @LK-PGJ-AH-F73R | H138: @LK-WGJ-AH-F73R | I138: @LK-GPJ-AH-F73R | J138: @LK-MAJ-AH-F73R | K138: @LK-JMC-AH-F73R | L138: @LK-DMJ-AH-F73R | M138: @LK-DYJ-AH-F73R | N138: @LK-MGJ-AH-F73R | O138: @LK-PMJ-AH-F73R | P138: @LK-JWT-AH-F73R | Q138: @LK-JAG-AH-F73R | R138: @LK-JAB-AH-F73R | S138: @LK-JBR-AH-F73R | T138: @LK-JBG-AH-F73R | U138: @LK-JDM-AH-F73R | V138: @LK-JDP-AH-F73R | W138: @LK-JHG-AH-F73R | X138: @LK-JIN-AH-F73R | Y138: @LK-JIV-AH-F73R | Z138: @LK-JLN-AH-F73R | AA138: @LK-JMW-AH-F73R | AB138: @LK-JMN-AH-F73R | AC138: @LK-MMJ-AH-F73R | AD138: @LK-JOV-AH-F73R | AE138: @LK-JPT-AH-F73R | AF138: @LK-JPE-AH-F73R | AG138: @LK-JPG-AH-F73R | AH138: @LK-JSG-AH-F73R | AI138: @LK-JSP-AH-F73R | AJ138: @LK-JSB-AH-F73R | AK138: @LK-JSO-AH-F73R | AL138: @LK-JSY-AH-F73R | AM138: @LK-JST-AH-F73R | AN138: @LK-JTP-AH-F73R | AO138: @LK-JTK-AH-F73R | AP138: @LK-JWE-AH-F73R
B139: 600 Dble Oven Housing LHH | C139: AH-DOL | D139: @LK-CSJ-AH-DOL | E139: @LK-DGJ-AH-DOL | F139: @LK-DSJ-AH-DOL | G139: @LK-PGJ-AH-DOL | H139: @LK-WGJ-AH-DOL | I139: @LK-GPJ-AH-DOL | J139: @LK-MAJ-AH-DOL | K139: @LK-JMC-AH-DOL | L139: @LK-DMJ-AH-DOL | M139: @LK-DYJ-AH-DOL | N139: @LK-MGJ-AH-DOL | O139: @LK-PMJ-AH-DOL | P139: @LK-JWT-AH-DOL | Q139: @LK-JAG-AH-DOL | R139: @LK-JAB-AH-DOL | S139: @LK-JBR-AH-DOL | T139: @LK-JBG-AH-DOL | U139: @LK-JDM-AH-DOL | V139: @LK-JDP-AH-DOL | W139: @LK-JHG-AH-DOL | X139: @LK-JIN-AH-DOL | Y139: @LK-JIV-AH-DOL | Z139: @LK-JLN-AH-DOL | AA139: @LK-JMW-AH-DOL | AB139: @LK-JMN-AH-DOL | AC139: @LK-MMJ-AH-DOL | AD139: @LK-JOV-AH-DOL | AE139: @LK-JPT-AH-DOL | AF139: @LK-JPE-AH-DOL | AG139: @LK-JPG-AH-DOL | AH139: @LK-JSG-AH-DOL | AI139: @LK-JSP-AH-DOL | AJ139: @LK-JSB-AH-DOL | AK139: @LK-JSO-AH-DOL | AL139: @LK-JSY-AH-DOL | AM139: @LK-JST-AH-DOL | AN139: @LK-JTP-AH-DOL | AO139: @LK-JTK-AH-DOL | AP139: @LK-JWE-AH-DOL
B140: 600 Dble Oven Housing RHH | C140: AH-DOR | D140: @LK-CSJ-AH-DOR | E140: @LK-DGJ-AH-DOR | F140: @LK-DSJ-AH-DOR | G140: @LK-PGJ-AH-DOR | H140: @LK-WGJ-AH-DOR | I140: @LK-GPJ-AH-DOR | J140: @LK-MAJ-AH-DOR | K140: @LK-JMC-AH-DOR | L140: @LK-DMJ-AH-DOR | M140: @LK-DYJ-AH-DOR | N140: @LK-MGJ-AH-DOR | O140: @LK-PMJ-AH-DOR | P140: @LK-JWT-AH-DOR | Q140: @LK-JAG-AH-DOR | R140: @LK-JAB-AH-DOR | S140: @LK-JBR-AH-DOR | T140: @LK-JBG-AH-DOR | U140: @LK-JDM-AH-DOR | V140: @LK-JDP-AH-DOR | W140: @LK-JHG-AH-DOR | X140: @LK-JIN-AH-DOR | Y140: @LK-JIV-AH-DOR | Z140: @LK-JLN-AH-DOR | AA140: @LK-JMW-AH-DOR | AB140: @LK-JMN-AH-DOR | AC140: @LK-MMJ-AH-DOR | AD140: @LK-JOV-AH-DOR | AE140: @LK-JPT-AH-DOR | AF140: @LK-JPE-AH-DOR | AG140: @LK-JPG-AH-DOR | AH140: @LK-JSG-AH-DOR | AI140: @LK-JSP-AH-DOR | AJ140: @LK-JSB-AH-DOR | AK140: @LK-JSO-AH-DOR | AL140: @LK-JSY-AH-DOR | AM140: @LK-JST-AH-DOR | AN140: @LK-JTP-AH-DOR | AO140: @LK-JTK-AH-DOR | AP140: @LK-JWE-AH-DOR
B141: 600 Dble Oven & 2 Drws LHH | C141: AH-DO2DL | D141: @LK-CSJ-AH-DO2DL | E141: @LK-DGJ-AH-DO2DL | F141: @LK-DSJ-AH-DO2DL | G141: @LK-PGJ-AH-DO2DL | H141: @LK-WGJ-AH-DO2DL | I141: @LK-GPJ-AH-DO2DL | J141: @LK-MAJ-AH-DO2DL | K141: @LK-JMC-AH-DO2DL | L141: @LK-DMJ-AH-DO2DL | M141: @LK-DYJ-AH-DO2DL | N141: @LK-MGJ-AH-DO2DL | O141: @LK-PMJ-AH-DO2DL | P141: @LK-JWT-AH-DO2DL | Q141: @LK-JAG-AH-DO2DL | R141: @LK-JAB-AH-DO2DL | S141: @LK-JBR-AH-DO2DL | T141: @LK-JBG-AH-DO2DL | U141: @LK-JDM-AH-DO2DL | V141: @LK-JDP-AH-DO2DL | W141: @LK-JHG-AH-DO2DL | X141: @LK-JIN-AH-DO2DL | Y141: @LK-JIV-AH-DO2DL | Z141: @LK-JLN-AH-DO2DL | AA141: @LK-JMW-AH-DO2DL | AB141: @LK-JMN-AH-DO2DL | AC141: @LK-MMJ-AH-DO2DL | AD141: @LK-JOV-AH-DO2DL | AE141: @LK-JPT-AH-DO2DL | AF141: @LK-JPE-AH-DO2DL | AG141: @LK-JPG-AH-DO2DL | AH141: @LK-JSG-AH-DO2DL | AI141: @LK-JSP-AH-DO2DL | AJ141: @LK-JSB-AH-DO2DL | AK141: @LK-JSO-AH-DO2DL | AL141: @LK-JSY-AH-DO2DL | AM141: @LK-JST-AH-DO2DL | AN141: @LK-JTP-AH-DO2DL | AO141: @LK-JTK-AH-DO2DL | AP141: @LK-JWE-AH-DO2DL
B142: 600 Dble Oven & 2 Drws RHH | C142: AH-DO2DR | D142: @LK-CSJ-AH-DO2DR | E142: @LK-DGJ-AH-DO2DR | F142: @LK-DSJ-AH-DO2DR | G142: @LK-PGJ-AH-DO2DR | H142: @LK-WGJ-AH-DO2DR | I142: @LK-GPJ-AH-DO2DR | J142: @LK-MAJ-AH-DO2DR | K142: @LK-JMC-AH-DO2DR | L142: @LK-DMJ-AH-DO2DR | M142: @LK-DYJ-AH-DO2DR | N142: @LK-MGJ-AH-DO2DR | O142: @LK-PMJ-AH-DO2DR | P142: @LK-JWT-AH-DO2DR | Q142: @LK-JAG-AH-DO2DR | R142: @LK-JAB-AH-DO2DR | S142: @LK-JBR-AH-DO2DR | T142: @LK-JBG-AH-DO2DR | U142: @LK-JDM-AH-DO2DR | V142: @LK-JDP-AH-DO2DR | W142: @LK-JHG-AH-DO2DR | X142: @LK-JIN-AH-DO2DR | Y142: @LK-JIV-AH-DO2DR | Z142: @LK-JLN-AH-DO2DR | AA142: @LK-JMW-AH-DO2DR | AB142: @LK-JMN-AH-DO2DR | AC142: @LK-MMJ-AH-DO2DR | AD142: @LK-JOV-AH-DO2DR | AE142: @LK-JPT-AH-DO2DR | AF142: @LK-JPE-AH-DO2DR | AG142: @LK-JPG-AH-DO2DR | AH142: @LK-JSG-AH-DO2DR | AI142: @LK-JSP-AH-DO2DR | AJ142: @LK-JSB-AH-DO2DR | AK142: @LK-JSO-AH-DO2DR | AL142: @LK-JSY-AH-DO2DR | AM142: @LK-JST-AH-DO2DR | AN142: @LK-JTP-AH-DO2DR | AO142: @LK-JTK-AH-DO2DR | AP142: @LK-JWE-AH-DO2DR
B143: 600 Double Oven & MW unit | C143: AH-DMW | D143: @LK-CSJ-AH-DMW | E143: @LK-DGJ-AH-DMW | F143: @LK-DSJ-AH-DMW | G143: @LK-PGJ-AH-DMW | H143: @LK-WGJ-AH-DMW | I143: @LK-GPJ-AH-DMW | J143: @LK-MAJ-AH-DMW | K143: @LK-JMC-AH-DMW | L143: @LK-DMJ-AH-DMW | M143: @LK-DYJ-AH-DMW | N143: @LK-MGJ-AH-DMW | O143: @LK-PMJ-AH-DMW | P143: @LK-JWT-AH-DMW | Q143: @LK-JAG-AH-DMW | R143: @LK-JAB-AH-DMW | S143: @LK-JBR-AH-DMW | T143: @LK-JBG-AH-DMW | U143: @LK-JDM-AH-DMW | V143: @LK-JDP-AH-DMW | W143: @LK-JHG-AH-DMW | X143: @LK-JIN-AH-DMW | Y143: @LK-JIV-AH-DMW | Z143: @LK-JLN-AH-DMW | AA143: @LK-JMW-AH-DMW | AB143: @LK-JMN-AH-DMW | AC143: @LK-MMJ-AH-DMW | AD143: @LK-JOV-AH-DMW | AE143: @LK-JPT-AH-DMW | AF143: @LK-JPE-AH-DMW | AG143: @LK-JPG-AH-DMW | AH143: @LK-JSG-AH-DMW | AI143: @LK-JSP-AH-DMW | AJ143: @LK-JSB-AH-DMW | AK143: @LK-JSO-AH-DMW | AL143: @LK-JSY-AH-DMW | AM143: @LK-JST-AH-DMW | AN143: @LK-JTP-AH-DMW | AO143: @LK-JTK-AH-DMW | AP143: @LK-JWE-AH-DMW
B144: 600 Single Oven Housing LHH | C144: AH-SOL | D144: @LK-CSJ-AH-SOL | E144: @LK-DGJ-AH-SOL | F144: @LK-DSJ-AH-SOL | G144: @LK-PGJ-AH-SOL | H144: @LK-WGJ-AH-SOL | I144: @LK-GPJ-AH-SOL | J144: @LK-MAJ-AH-SOL | K144: @LK-JMC-AH-SOL | L144: @LK-DMJ-AH-SOL | M144: @LK-DYJ-AH-SOL | N144: @LK-MGJ-AH-SOL | O144: @LK-PMJ-AH-SOL | P144: @LK-JWT-AH-SOL | Q144: @LK-JAG-AH-SOL | R144: @LK-JAB-AH-SOL | S144: @LK-JBR-AH-SOL | T144: @LK-JBG-AH-SOL | U144: @LK-JDM-AH-SOL | V144: @LK-JDP-AH-SOL | W144: @LK-JHG-AH-SOL | X144: @LK-JIN-AH-SOL | Y144: @LK-JIV-AH-SOL | Z144: @LK-JLN-AH-SOL | AA144: @LK-JMW-AH-SOL | AB144: @LK-JMN-AH-SOL | AC144: @LK-MMJ-AH-SOL | AD144: @LK-JOV-AH-SOL | AE144: @LK-JPT-AH-SOL | AF144: @LK-JPE-AH-SOL | AG144: @LK-JPG-AH-SOL | AH144: @LK-JSG-AH-SOL | AI144: @LK-JSP-AH-SOL | AJ144: @LK-JSB-AH-SOL | AK144: @LK-JSO-AH-SOL | AL144: @LK-JSY-AH-SOL | AM144: @LK-JST-AH-SOL | AN144: @LK-JTP-AH-SOL | AO144: @LK-JTK-AH-SOL | AP144: @LK-JWE-AH-SOL
B145: 600 Single Oven Housing RHH | C145: AH-SOR | D145: @LK-CSJ-AH-SOR | E145: @LK-DGJ-AH-SOR | F145: @LK-DSJ-AH-SOR | G145: @LK-PGJ-AH-SOR | H145: @LK-WGJ-AH-SOR | I145: @LK-GPJ-AH-SOR | J145: @LK-MAJ-AH-SOR | K145: @LK-JMC-AH-SOR | L145: @LK-DMJ-AH-SOR | M145: @LK-DYJ-AH-SOR | N145: @LK-MGJ-AH-SOR | O145: @LK-PMJ-AH-SOR | P145: @LK-JWT-AH-SOR | Q145: @LK-JAG-AH-SOR | R145: @LK-JAB-AH-SOR | S145: @LK-JBR-AH-SOR | T145: @LK-JBG-AH-SOR | U145: @LK-JDM-AH-SOR | V145: @LK-JDP-AH-SOR | W145: @LK-JHG-AH-SOR | X145: @LK-JIN-AH-SOR | Y145: @LK-JIV-AH-SOR | Z145: @LK-JLN-AH-SOR | AA145: @LK-JMW-AH-SOR | AB145: @LK-JMN-AH-SOR | AC145: @LK-MMJ-AH-SOR | AD145: @LK-JOV-AH-SOR | AE145: @LK-JPT-AH-SOR | AF145: @LK-JPE-AH-SOR | AG145: @LK-JPG-AH-SOR | AH145: @LK-JSG-AH-SOR | AI145: @LK-JSP-AH-SOR | AJ145: @LK-JSB-AH-SOR | AK145: @LK-JSO-AH-SOR | AL145: @LK-JSY-AH-SOR | AM145: @LK-JST-AH-SOR | AN145: @LK-JTP-AH-SOR | AO145: @LK-JTK-AH-SOR | AP145: @LK-JWE-AH-SOR
B146: 600 Single Oven + 1 Drw Unit LHH | C146: AH-SO1DL | D146: @LK-CSJ-AH-SO1DL | E146: @LK-DGJ-AH-SO1DL | F146: @LK-DSJ-AH-SO1DL | G146: @LK-PGJ-AH-SO1DL | H146: @LK-WGJ-AH-SO1DL | I146: @LK-GPJ-AH-SO1DL | J146: @LK-MAJ-AH-SO1DL | K146: @LK-JMC-AH-SO1DL | L146: @LK-DMJ-AH-SO1DL | M146: @LK-DYJ-AH-SO1DL | N146: @LK-MGJ-AH-SO1DL | O146: @LK-PMJ-AH-SO1DL | P146: @LK-JWT-AH-SO1DL | Q146: @LK-JAG-AH-SO1DL | R146: @LK-JAB-AH-SO1DL | S146: @LK-JBR-AH-SO1DL | T146: @LK-JBG-AH-SO1DL | U146: @LK-JDM-AH-SO1DL | V146: @LK-JDP-AH-SO1DL | W146: @LK-JHG-AH-SO1DL | X146: @LK-JIN-AH-SO1DL | Y146: @LK-JIV-AH-SO1DL | Z146: @LK-JLN-AH-SO1DL | AA146: @LK-JMW-AH-SO1DL | AB146: @LK-JMN-AH-SO1DL | AC146: @LK-MMJ-AH-SO1DL | AD146: @LK-JOV-AH-SO1DL | AE146: @LK-JPT-AH-SO1DL | AF146: @LK-JPE-AH-SO1DL | AG146: @LK-JPG-AH-SO1DL | AH146: @LK-JSG-AH-SO1DL | AI146: @LK-JSP-AH-SO1DL | AJ146: @LK-JSB-AH-SO1DL | AK146: @LK-JSO-AH-SO1DL | AL146: @LK-JSY-AH-SO1DL | AM146: @LK-JST-AH-SO1DL | AN146: @LK-JTP-AH-SO1DL | AO146: @LK-JTK-AH-SO1DL | AP146: @LK-JWE-AH-SO1DL
B147: 600 Single Oven + 1 Drw Unit RHH | C147: AH-SO1DR | D147: @LK-CSJ-AH-SO1DR | E147: @LK-DGJ-AH-SO1DR | F147: @LK-DSJ-AH-SO1DR | G147: @LK-PGJ-AH-SO1DR | H147: @LK-WGJ-AH-SO1DR | I147: @LK-GPJ-AH-SO1DR | J147: @LK-MAJ-AH-SO1DR | K147: @LK-JMC-AH-SO1DR | L147: @LK-DMJ-AH-SO1DR | M147: @LK-DYJ-AH-SO1DR | N147: @LK-MGJ-AH-SO1DR | O147: @LK-PMJ-AH-SO1DR | P147: @LK-JWT-AH-SO1DR | Q147: @LK-JAG-AH-SO1DR | R147: @LK-JAB-AH-SO1DR | S147: @LK-JBR-AH-SO1DR | T147: @LK-JBG-AH-SO1DR | U147: @LK-JDM-AH-SO1DR | V147: @LK-JDP-AH-SO1DR | W147: @LK-JHG-AH-SO1DR | X147: @LK-JIN-AH-SO1DR | Y147: @LK-JIV-AH-SO1DR | Z147: @LK-JLN-AH-SO1DR | AA147: @LK-JMW-AH-SO1DR | AB147: @LK-JMN-AH-SO1DR | AC147: @LK-MMJ-AH-SO1DR | AD147: @LK-JOV-AH-SO1DR | AE147: @LK-JPT-AH-SO1DR | AF147: @LK-JPE-AH-SO1DR | AG147: @LK-JPG-AH-SO1DR | AH147: @LK-JSG-AH-SO1DR | AI147: @LK-JSP-AH-SO1DR | AJ147: @LK-JSB-AH-SO1DR | AK147: @LK-JSO-AH-SO1DR | AL147: @LK-JSY-AH-SO1DR | AM147: @LK-JST-AH-SO1DR | AN147: @LK-JTP-AH-SO1DR | AO147: @LK-JTK-AH-SO1DR | AP147: @LK-JWE-AH-SO1DR
B148: 600 Single Oven + 2 Drws Unit LHH | C148: AH-SO2DL | D148: @LK-CSJ-AH-SO2DL | E148: @LK-DGJ-AH-SO2DL | F148: @LK-DSJ-AH-SO2DL | G148: @LK-PGJ-AH-SO2DL | H148: @LK-WGJ-AH-SO2DL | I148: @LK-GPJ-AH-SO2DL | J148: @LK-MAJ-AH-SO2DL | K148: @LK-JMC-AH-SO2DL | L148: @LK-DMJ-AH-SO2DL | M148: @LK-DYJ-AH-SO2DL | N148: @LK-MGJ-AH-SO2DL | O148: @LK-PMJ-AH-SO2DL | P148: @LK-JWT-AH-SO2DL | Q148: @LK-JAG-AH-SO2DL | R148: @LK-JAB-AH-SO2DL | S148: @LK-JBR-AH-SO2DL | T148: @LK-JBG-AH-SO2DL | U148: @LK-JDM-AH-SO2DL | V148: @LK-JDP-AH-SO2DL | W148: @LK-JHG-AH-SO2DL | X148: @LK-JIN-AH-SO2DL | Y148: @LK-JIV-AH-SO2DL | Z148: @LK-JLN-AH-SO2DL | AA148: @LK-JMW-AH-SO2DL | AB148: @LK-JMN-AH-SO2DL | AC148: @LK-MMJ-AH-SO2DL | AD148: @LK-JOV-AH-SO2DL | AE148: @LK-JPT-AH-SO2DL | AF148: @LK-JPE-AH-SO2DL | AG148: @LK-JPG-AH-SO2DL | AH148: @LK-JSG-AH-SO2DL | AI148: @LK-JSP-AH-SO2DL | AJ148: @LK-JSB-AH-SO2DL | AK148: @LK-JSO-AH-SO2DL | AL148: @LK-JSY-AH-SO2DL | AM148: @LK-JST-AH-SO2DL | AN148: @LK-JTP-AH-SO2DL | AO148: @LK-JTK-AH-SO2DL | AP148: @LK-JWE-AH-SO2DL
B149: 600 Single Oven + 2 Drws Unit RHH | C149: AH-SO2DR | D149: @LK-CSJ-AH-SO2DR | E149: @LK-DGJ-AH-SO2DR | F149: @LK-DSJ-AH-SO2DR | G149: @LK-PGJ-AH-SO2DR | H149: @LK-WGJ-AH-SO2DR | I149: @LK-GPJ-AH-SO2DR | J149: @LK-MAJ-AH-SO2DR | K149: @LK-JMC-AH-SO2DR | L149: @LK-DMJ-AH-SO2DR | M149: @LK-DYJ-AH-SO2DR | N149: @LK-MGJ-AH-SO2DR | O149: @LK-PMJ-AH-SO2DR | P149: @LK-JWT-AH-SO2DR | Q149: @LK-JAG-AH-SO2DR | R149: @LK-JAB-AH-SO2DR | S149: @LK-JBR-AH-SO2DR | T149: @LK-JBG-AH-SO2DR | U149: @LK-JDM-AH-SO2DR | V149: @LK-JDP-AH-SO2DR | W149: @LK-JHG-AH-SO2DR | X149: @LK-JIN-AH-SO2DR | Y149: @LK-JIV-AH-SO2DR | Z149: @LK-JLN-AH-SO2DR | AA149: @LK-JMW-AH-SO2DR | AB149: @LK-JMN-AH-SO2DR | AC149: @LK-MMJ-AH-SO2DR | AD149: @LK-JOV-AH-SO2DR | AE149: @LK-JPT-AH-SO2DR | AF149: @LK-JPE-AH-SO2DR | AG149: @LK-JPG-AH-SO2DR | AH149: @LK-JSG-AH-SO2DR | AI149: @LK-JSP-AH-SO2DR | AJ149: @LK-JSB-AH-SO2DR | AK149: @LK-JSO-AH-SO2DR | AL149: @LK-JSY-AH-SO2DR | AM149: @LK-JST-AH-SO2DR | AN149: @LK-JTP-AH-SO2DR | AO149: @LK-JTK-AH-SO2DR | AP149: @LK-JWE-AH-SO2DR
B150: 600 Single Oven + 3 Drws Unit LHH | C150: AH-SO3DL | D150: @LK-CSJ-AH-SO3DL | E150: @LK-DGJ-AH-SO3DL | F150: @LK-DSJ-AH-SO3DL | G150: @LK-PGJ-AH-SO3DL | H150: @LK-WGJ-AH-SO3DL | I150: @LK-GPJ-AH-SO3DL | J150: @LK-MAJ-AH-SO3DL | K150: @LK-JMC-AH-SO3DL | L150: @LK-DMJ-AH-SO3DL | M150: @LK-DYJ-AH-SO3DL | N150: @LK-MGJ-AH-SO3DL | O150: @LK-PMJ-AH-SO3DL | P150: @LK-JWT-AH-SO3DL | Q150: @LK-JAG-AH-SO3DL | R150: @LK-JAB-AH-SO3DL | S150: @LK-JBR-AH-SO3DL | T150: @LK-JBG-AH-SO3DL | U150: @LK-JDM-AH-SO3DL | V150: @LK-JDP-AH-SO3DL | W150: @LK-JHG-AH-SO3DL | X150: @LK-JIN-AH-SO3DL | Y150: @LK-JIV-AH-SO3DL | Z150: @LK-JLN-AH-SO3DL | AA150: @LK-JMW-AH-SO3DL | AB150: @LK-JMN-AH-SO3DL | AC150: @LK-MMJ-AH-SO3DL | AD150: @LK-JOV-AH-SO3DL | AE150: @LK-JPT-AH-SO3DL | AF150: @LK-JPE-AH-SO3DL | AG150: @LK-JPG-AH-SO3DL | AH150: @LK-JSG-AH-SO3DL | AI150: @LK-JSP-AH-SO3DL | AJ150: @LK-JSB-AH-SO3DL | AK150: @LK-JSO-AH-SO3DL | AL150: @LK-JSY-AH-SO3DL | AM150: @LK-JST-AH-SO3DL | AN150: @LK-JTP-AH-SO3DL | AO150: @LK-JTK-AH-SO3DL | AP150: @LK-JWE-AH-SO3DL
B151: 600 Single Oven + 3 Drws Unit RHH | C151: AH-SO3DR | D151: @LK-CSJ-AH-SO3DR | E151: @LK-DGJ-AH-SO3DR | F151: @LK-DSJ-AH-SO3DR | G151: @LK-PGJ-AH-SO3DR | H151: @LK-WGJ-AH-SO3DR | I151: @LK-GPJ-AH-SO3DR | J151: @LK-MAJ-AH-SO3DR | K151: @LK-JMC-AH-SO3DR | L151: @LK-DMJ-AH-SO3DR | M151: @LK-DYJ-AH-SO3DR | N151: @LK-MGJ-AH-SO3DR | O151: @LK-PMJ-AH-SO3DR | P151: @LK-JWT-AH-SO3DR | Q151: @LK-JAG-AH-SO3DR | R151: @LK-JAB-AH-SO3DR | S151: @LK-JBR-AH-SO3DR | T151: @LK-JBG-AH-SO3DR | U151: @LK-JDM-AH-SO3DR | V151: @LK-JDP-AH-SO3DR | W151: @LK-JHG-AH-SO3DR | X151: @LK-JIN-AH-SO3DR | Y151: @LK-JIV-AH-SO3DR | Z151: @LK-JLN-AH-SO3DR | AA151: @LK-JMW-AH-SO3DR | AB151: @LK-JMN-AH-SO3DR | AC151: @LK-MMJ-AH-SO3DR | AD151: @LK-JOV-AH-SO3DR | AE151: @LK-JPT-AH-SO3DR | AF151: @LK-JPE-AH-SO3DR | AG151: @LK-JPG-AH-SO3DR | AH151: @LK-JSG-AH-SO3DR | AI151: @LK-JSP-AH-SO3DR | AJ151: @LK-JSB-AH-SO3DR | AK151: @LK-JSO-AH-SO3DR | AL151: @LK-JSY-AH-SO3DR | AM151: @LK-JST-AH-SO3DR | AN151: @LK-JTP-AH-SO3DR | AO151: @LK-JTK-AH-SO3DR | AP151: @LK-JWE-AH-SO3DR
B152: 600 Sgle Oven & MW 2 Door unit | C152: AH-SMW | D152: @LK-CSJ-AH-SMW | E152: @LK-DGJ-AH-SMW | F152: @LK-DSJ-AH-SMW | G152: @LK-PGJ-AH-SMW | H152: @LK-WGJ-AH-SMW | I152: @LK-GPJ-AH-SMW | J152: @LK-MAJ-AH-SMW | K152: @LK-JMC-AH-SMW | L152: @LK-DMJ-AH-SMW | M152: @LK-DYJ-AH-SMW | N152: @LK-MGJ-AH-SMW | O152: @LK-PMJ-AH-SMW | P152: @LK-JWT-AH-SMW | Q152: @LK-JAG-AH-SMW | R152: @LK-JAB-AH-SMW | S152: @LK-JBR-AH-SMW | T152: @LK-JBG-AH-SMW | U152: @LK-JDM-AH-SMW | V152: @LK-JDP-AH-SMW | W152: @LK-JHG-AH-SMW | X152: @LK-JIN-AH-SMW | Y152: @LK-JIV-AH-SMW | Z152: @LK-JLN-AH-SMW | AA152: @LK-JMW-AH-SMW | AB152: @LK-JMN-AH-SMW | AC152: @LK-MMJ-AH-SMW | AD152: @LK-JOV-AH-SMW | AE152: @LK-JPT-AH-SMW | AF152: @LK-JPE-AH-SMW | AG152: @LK-JPG-AH-SMW | AH152: @LK-JSG-AH-SMW | AI152: @LK-JSP-AH-SMW | AJ152: @LK-JSB-AH-SMW | AK152: @LK-JSO-AH-SMW | AL152: @LK-JSY-AH-SMW | AM152: @LK-JST-AH-SMW | AN152: @LK-JTP-AH-SMW | AO152: @LK-JTK-AH-SMW | AP152: @LK-JWE-AH-SMW
B153: 600 Compact / Microwave Housing | C153: AH-CO | D153: @LK-CSJ-AH-CO | E153: @LK-DGJ-AH-CO | F153: @LK-DSJ-AH-CO | G153: @LK-PGJ-AH-CO | H153: @LK-WGJ-AH-CO | I153: @LK-GPJ-AH-CO | J153: @LK-MAJ-AH-CO | K153: @LK-JMC-AH-CO | L153: @LK-DMJ-AH-CO | M153: @LK-DYJ-AH-CO | N153: @LK-MGJ-AH-CO | O153: @LK-PMJ-AH-CO | P153: @LK-JWT-AH-CO | Q153: @LK-JAG-AH-CO | R153: @LK-JAB-AH-CO | S153: @LK-JBR-AH-CO | T153: @LK-JBG-AH-CO | U153: @LK-JDM-AH-CO | V153: @LK-JDP-AH-CO | W153: @LK-JHG-AH-CO | X153: @LK-JIN-AH-CO | Y153: @LK-JIV-AH-CO | Z153: @LK-JLN-AH-CO | AA153: @LK-JMW-AH-CO | AB153: @LK-JMN-AH-CO | AC153: @LK-MMJ-AH-CO | AD153: @LK-JOV-AH-CO | AE153: @LK-JPT-AH-CO | AF153: @LK-JPE-AH-CO | AG153: @LK-JPG-AH-CO | AH153: @LK-JSG-AH-CO | AI153: @LK-JSP-AH-CO | AJ153: @LK-JSB-AH-CO | AK153: @LK-JSO-AH-CO | AL153: @LK-JSY-AH-CO | AM153: @LK-JST-AH-CO | AN153: @LK-JTP-AH-CO | AO153: @LK-JTK-AH-CO | AP153: @LK-JWE-AH-CO
B154: 600 Single Oven & MW 2 Drw unit LHH | C154: AH-SM2DL | D154: @LK-CSJ-AH-SM2DL | E154: @LK-DGJ-AH-SM2DL | F154: @LK-DSJ-AH-SM2DL | G154: @LK-PGJ-AH-SM2DL | H154: @LK-WGJ-AH-SM2DL | I154: @LK-GPJ-AH-SM2DL | J154: @LK-MAJ-AH-SM2DL | K154: @LK-JMC-AH-SM2DL | L154: @LK-DMJ-AH-SM2DL | M154: @LK-DYJ-AH-SM2DL | N154: @LK-MGJ-AH-SM2DL | O154: @LK-PMJ-AH-SM2DL | P154: @LK-JWT-AH-SM2DL | Q154: @LK-JAG-AH-SM2DL | R154: @LK-JAB-AH-SM2DL | S154: @LK-JBR-AH-SM2DL | T154: @LK-JBG-AH-SM2DL | U154: @LK-JDM-AH-SM2DL | V154: @LK-JDP-AH-SM2DL | W154: @LK-JHG-AH-SM2DL | X154: @LK-JIN-AH-SM2DL | Y154: @LK-JIV-AH-SM2DL | Z154: @LK-JLN-AH-SM2DL | AA154: @LK-JMW-AH-SM2DL | AB154: @LK-JMN-AH-SM2DL | AC154: @LK-MMJ-AH-SM2DL | AD154: @LK-JOV-AH-SM2DL | AE154: @LK-JPT-AH-SM2DL | AF154: @LK-JPE-AH-SM2DL | AG154: @LK-JPG-AH-SM2DL | AH154: @LK-JSG-AH-SM2DL | AI154: @LK-JSP-AH-SM2DL | AJ154: @LK-JSB-AH-SM2DL | AK154: @LK-JSO-AH-SM2DL | AL154: @LK-JSY-AH-SM2DL | AM154: @LK-JST-AH-SM2DL | AN154: @LK-JTP-AH-SM2DL | AO154: @LK-JTK-AH-SM2DL | AP154: @LK-JWE-AH-SM2DL
B155: 600 Single Oven & MW 2 Drw unit RHH | C155: AH-SM2DR | D155: @LK-CSJ-AH-SM2DR | E155: @LK-DGJ-AH-SM2DR | F155: @LK-DSJ-AH-SM2DR | G155: @LK-PGJ-AH-SM2DR | H155: @LK-WGJ-AH-SM2DR | I155: @LK-GPJ-AH-SM2DR | J155: @LK-MAJ-AH-SM2DR | K155: @LK-JMC-AH-SM2DR | L155: @LK-DMJ-AH-SM2DR | M155: @LK-DYJ-AH-SM2DR | N155: @LK-MGJ-AH-SM2DR | O155: @LK-PMJ-AH-SM2DR | P155: @LK-JWT-AH-SM2DR | Q155: @LK-JAG-AH-SM2DR | R155: @LK-JAB-AH-SM2DR | S155: @LK-JBR-AH-SM2DR | T155: @LK-JBG-AH-SM2DR | U155: @LK-JDM-AH-SM2DR | V155: @LK-JDP-AH-SM2DR | W155: @LK-JHG-AH-SM2DR | X155: @LK-JIN-AH-SM2DR | Y155: @LK-JIV-AH-SM2DR | Z155: @LK-JLN-AH-SM2DR | AA155: @LK-JMW-AH-SM2DR | AB155: @LK-JMN-AH-SM2DR | AC155: @LK-MMJ-AH-SM2DR | AD155: @LK-JOV-AH-SM2DR | AE155: @LK-JPT-AH-SM2DR | AF155: @LK-JPE-AH-SM2DR | AG155: @LK-JPG-AH-SM2DR | AH155: @LK-JSG-AH-SM2DR | AI155: @LK-JSP-AH-SM2DR | AJ155: @LK-JSB-AH-SM2DR | AK155: @LK-JSO-AH-SM2DR | AL155: @LK-JSY-AH-SM2DR | AM155: @LK-JST-AH-SM2DR | AN155: @LK-JTP-AH-SM2DR | AO155: @LK-JTK-AH-SM2DR | AP155: @LK-JWE-AH-SM2DR
B156: 600 BU Oven Housing | C156: BOH6 | D156: @LK-CSJ-BOH6 | E156: @LK-DGJ-BOH6 | F156: @LK-DSJ-BOH6 | G156: @LK-PGJ-BOH6 | H156: @LK-WGJ-BOH6 | I156: @LK-GPJ-BOH6 | J156: @LK-MAJ-BOH6 | K156: @LK-JMC-BOH6 | L156: @LK-DMJ-BOH6 | M156: @LK-DYJ-BOH6 | N156: @LK-MGJ-BOH6 | O156: @LK-PMJ-BOH6 | P156: @LK-JWT-BOH6 | Q156: @LK-JAG-BOH6 | R156: @LK-JAB-BOH6 | S156: @LK-JBR-BOH6 | T156: @LK-JBG-BOH6 | U156: @LK-JDM-BOH6 | V156: @LK-JDP-BOH6 | W156: @LK-JHG-BOH6 | X156: @LK-JIN-BOH6 | Y156: @LK-JIV-BOH6 | Z156: @LK-JLN-BOH6 | AA156: @LK-JMW-BOH6 | AB156: @LK-JMN-BOH6 | AC156: @LK-MMJ-BOH6 | AD156: @LK-JOV-BOH6 | AE156: @LK-JPT-BOH6 | AF156: @LK-JPE-BOH6 | AG156: @LK-JPG-BOH6 | AH156: @LK-JSG-BOH6 | AI156: @LK-JSP-BOH6 | AJ156: @LK-JSB-BOH6 | AK156: @LK-JSO-BOH6 | AL156: @LK-JSY-BOH6 | AM156: @LK-JST-BOH6 | AN156: @LK-JTP-BOH6 | AO156: @LK-JTK-BOH6 | AP156: @LK-JWE-BOH6
B157: 600 BU Oven Housing with drawer -18mm | C157: BOHD6 | D157: @LK-CSJ-BOHD6 | E157: @LK-DGJ-BOHD6 | F157: @LK-DSJ-BOHD6 | G157: @LK-PGJ-BOHD6 | H157: @LK-WGJ-BOHD6 | I157: @LK-GPJ-BOHD6 | J157: @LK-MAJ-BOHD6 | K157: @LK-JMC-BOHD6 | L157: @LK-DMJ-BOHD6 | M157: @LK-DYJ-BOHD6 | N157: @LK-MGJ-BOHD6 | O157: @LK-PMJ-BOHD6 | P157: @LK-JWT-BOHD6 | Q157: @LK-JAG-BOHD6 | R157: @LK-JAB-BOHD6 | S157: @LK-JBR-BOHD6 | T157: @LK-JBG-BOHD6 | U157: @LK-JDM-BOHD6 | V157: @LK-JDP-BOHD6 | W157: @LK-JHG-BOHD6 | X157: @LK-JIN-BOHD6 | Y157: @LK-JIV-BOHD6 | Z157: @LK-JLN-BOHD6 | AA157: @LK-JMW-BOHD6 | AB157: @LK-JMN-BOHD6 | AC157: @LK-MMJ-BOHD6 | AD157: @LK-JOV-BOHD6 | AE157: @LK-JPT-BOHD6 | AF157: @LK-JPE-BOHD6 | AG157: @LK-JPG-BOHD6 | AH157: @LK-JSG-BOHD6 | AI157: @LK-JSP-BOHD6 | AJ157: @LK-JSB-BOHD6 | AK157: @LK-JSO-BOHD6 | AL157: @LK-JSY-BOHD6 | AM157: @LK-JST-BOHD6 | AN157: @LK-JTP-BOHD6 | AO157: @LK-JTK-BOHD6 | AP157: @LK-JWE-BOHD6
B158: 300 Larder Unit LHH | C158: L3L | D158: @LK-CSJ-L3L | E158: @LK-DGJ-L3L | F158: @LK-DSJ-L3L | G158: @LK-PGJ-L3L | H158: @LK-WGJ-L3L | I158: @LK-GPJ-L3L | J158: @LK-MAJ-L3L | K158: @LK-JMC-L3L | L158: @LK-DMJ-L3L | M158: @LK-DYJ-L3L | N158: @LK-MGJ-L3L | O158: @LK-PMJ-L3L | P158: @LK-JWT-L3L | Q158: @LK-JAG-L3L | R158: @LK-JAB-L3L | S158: @LK-JBR-L3L | T158: @LK-JBG-L3L | U158: @LK-JDM-L3L | V158: @LK-JDP-L3L | W158: @LK-JHG-L3L | X158: @LK-JIN-L3L | Y158: @LK-JIV-L3L | Z158: @LK-JLN-L3L | AA158: @LK-JMW-L3L | AB158: @LK-JMN-L3L | AC158: @LK-MMJ-L3L | AD158: @LK-JOV-L3L | AE158: @LK-JPT-L3L | AF158: @LK-JPE-L3L | AG158: @LK-JPG-L3L | AH158: @LK-JSG-L3L | AI158: @LK-JSP-L3L | AJ158: @LK-JSB-L3L | AK158: @LK-JSO-L3L | AL158: @LK-JSY-L3L | AM158: @LK-JST-L3L | AN158: @LK-JTP-L3L | AO158: @LK-JTK-L3L | AP158: @LK-JWE-L3L
B159: 300 Larder Unit RHH | C159: L3R | D159: @LK-CSJ-L3R | E159: @LK-DGJ-L3R | F159: @LK-DSJ-L3R | G159: @LK-PGJ-L3R | H159: @LK-WGJ-L3R | I159: @LK-GPJ-L3R | J159: @LK-MAJ-L3R | K159: @LK-JMC-L3R | L159: @LK-DMJ-L3R | M159: @LK-DYJ-L3R | N159: @LK-MGJ-L3R | O159: @LK-PMJ-L3R | P159: @LK-JWT-L3R | Q159: @LK-JAG-L3R | R159: @LK-JAB-L3R | S159: @LK-JBR-L3R | T159: @LK-JBG-L3R | U159: @LK-JDM-L3R | V159: @LK-JDP-L3R | W159: @LK-JHG-L3R | X159: @LK-JIN-L3R | Y159: @LK-JIV-L3R | Z159: @LK-JLN-L3R | AA159: @LK-JMW-L3R | AB159: @LK-JMN-L3R | AC159: @LK-MMJ-L3R | AD159: @LK-JOV-L3R | AE159: @LK-JPT-L3R | AF159: @LK-JPE-L3R | AG159: @LK-JPG-L3R | AH159: @LK-JSG-L3R | AI159: @LK-JSP-L3R | AJ159: @LK-JSB-L3R | AK159: @LK-JSO-L3R | AL159: @LK-JSY-L3R | AM159: @LK-JST-L3R | AN159: @LK-JTP-L3R | AO159: @LK-JTK-L3R | AP159: @LK-JWE-L3R
B160: 400 Larder Unit LHH | C160: L4L | D160: @LK-CSJ-L4L | E160: @LK-DGJ-L4L | F160: @LK-DSJ-L4L | G160: @LK-PGJ-L4L | H160: @LK-WGJ-L4L | I160: @LK-GPJ-L4L | J160: @LK-MAJ-L4L | K160: @LK-JMC-L4L | L160: @LK-DMJ-L4L | M160: @LK-DYJ-L4L | N160: @LK-MGJ-L4L | O160: @LK-PMJ-L4L | P160: @LK-JWT-L4L | Q160: @LK-JAG-L4L | R160: @LK-JAB-L4L | S160: @LK-JBR-L4L | T160: @LK-JBG-L4L | U160: @LK-JDM-L4L | V160: @LK-JDP-L4L | W160: @LK-JHG-L4L | X160: @LK-JIN-L4L | Y160: @LK-JIV-L4L | Z160: @LK-JLN-L4L | AA160: @LK-JMW-L4L | AB160: @LK-JMN-L4L | AC160: @LK-MMJ-L4L | AD160: @LK-JOV-L4L | AE160: @LK-JPT-L4L | AF160: @LK-JPE-L4L | AG160: @LK-JPG-L4L | AH160: @LK-JSG-L4L | AI160: @LK-JSP-L4L | AJ160: @LK-JSB-L4L | AK160: @LK-JSO-L4L | AL160: @LK-JSY-L4L | AM160: @LK-JST-L4L | AN160: @LK-JTP-L4L | AO160: @LK-JTK-L4L | AP160: @LK-JWE-L4L
B161: 400 Larder Unit RHH | C161: L4R | D161: @LK-CSJ-L4R | E161: @LK-DGJ-L4R | F161: @LK-DSJ-L4R | G161: @LK-PGJ-L4R | H161: @LK-WGJ-L4R | I161: @LK-GPJ-L4R | J161: @LK-MAJ-L4R | K161: @LK-JMC-L4R | L161: @LK-DMJ-L4R | M161: @LK-DYJ-L4R | N161: @LK-MGJ-L4R | O161: @LK-PMJ-L4R | P161: @LK-JWT-L4R | Q161: @LK-JAG-L4R | R161: @LK-JAB-L4R | S161: @LK-JBR-L4R | T161: @LK-JBG-L4R | U161: @LK-JDM-L4R | V161: @LK-JDP-L4R | W161: @LK-JHG-L4R | X161: @LK-JIN-L4R | Y161: @LK-JIV-L4R | Z161: @LK-JLN-L4R | AA161: @LK-JMW-L4R | AB161: @LK-JMN-L4R | AC161: @LK-MMJ-L4R | AD161: @LK-JOV-L4R | AE161: @LK-JPT-L4R | AF161: @LK-JPE-L4R | AG161: @LK-JPG-L4R | AH161: @LK-JSG-L4R | AI161: @LK-JSP-L4R | AJ161: @LK-JSB-L4R | AK161: @LK-JSO-L4R | AL161: @LK-JSY-L4R | AM161: @LK-JST-L4R | AN161: @LK-JTP-L4R | AO161: @LK-JTK-L4R | AP161: @LK-JWE-L4R
B162: 500 Larder Unit LHH | C162: L5L | D162: @LK-CSJ-L5L | E162: @LK-DGJ-L5L | F162: @LK-DSJ-L5L | G162: @LK-PGJ-L5L | H162: @LK-WGJ-L5L | I162: @LK-GPJ-L5L | J162: @LK-MAJ-L5L | K162: @LK-JMC-L5L | L162: @LK-DMJ-L5L | M162: @LK-DYJ-L5L | N162: @LK-MGJ-L5L | O162: @LK-PMJ-L5L | P162: @LK-JWT-L5L | Q162: @LK-JAG-L5L | R162: @LK-JAB-L5L | S162: @LK-JBR-L5L | T162: @LK-JBG-L5L | U162: @LK-JDM-L5L | V162: @LK-JDP-L5L | W162: @LK-JHG-L5L | X162: @LK-JIN-L5L | Y162: @LK-JIV-L5L | Z162: @LK-JLN-L5L | AA162: @LK-JMW-L5L | AB162: @LK-JMN-L5L | AC162: @LK-MMJ-L5L | AD162: @LK-JOV-L5L | AE162: @LK-JPT-L5L | AF162: @LK-JPE-L5L | AG162: @LK-JPG-L5L | AH162: @LK-JSG-L5L | AI162: @LK-JSP-L5L | AJ162: @LK-JSB-L5L | AK162: @LK-JSO-L5L | AL162: @LK-JSY-L5L | AM162: @LK-JST-L5L | AN162: @LK-JTP-L5L | AO162: @LK-JTK-L5L | AP162: @LK-JWE-L5L
B163: 500 Larder Unit RHH | C163: L5R | D163: @LK-CSJ-L5R | E163: @LK-DGJ-L5R | F163: @LK-DSJ-L5R | G163: @LK-PGJ-L5R | H163: @LK-WGJ-L5R | I163: @LK-GPJ-L5R | J163: @LK-MAJ-L5R | K163: @LK-JMC-L5R | L163: @LK-DMJ-L5R | M163: @LK-DYJ-L5R | N163: @LK-MGJ-L5R | O163: @LK-PMJ-L5R | P163: @LK-JWT-L5R | Q163: @LK-JAG-L5R | R163: @LK-JAB-L5R | S163: @LK-JBR-L5R | T163: @LK-JBG-L5R | U163: @LK-JDM-L5R | V163: @LK-JDP-L5R | W163: @LK-JHG-L5R | X163: @LK-JIN-L5R | Y163: @LK-JIV-L5R | Z163: @LK-JLN-L5R | AA163: @LK-JMW-L5R | AB163: @LK-JMN-L5R | AC163: @LK-MMJ-L5R | AD163: @LK-JOV-L5R | AE163: @LK-JPT-L5R | AF163: @LK-JPE-L5R | AG163: @LK-JPG-L5R | AH163: @LK-JSG-L5R | AI163: @LK-JSP-L5R | AJ163: @LK-JSB-L5R | AK163: @LK-JSO-L5R | AL163: @LK-JSY-L5R | AM163: @LK-JST-L5R | AN163: @LK-JTP-L5R | AO163: @LK-JTK-L5R | AP163: @LK-JWE-L5R
B164: 500 Full height Larder LHH | C164: L5SDL | D164: @LK-CSJ-L5SDL | E164: @LK-DGJ-L5SDL | F164: @LK-DSJ-L5SDL | G164: @LK-PGJ-L5SDL | H164: @LK-WGJ-L5SDL | I164: @LK-GPJ-L5SDL | J164: @LK-MAJ-L5SDL | K164: @LK-JMC-L5SDL | L164: @LK-DMJ-L5SDL | M164: @LK-DYJ-L5SDL | N164: @LK-MGJ-L5SDL | O164: @LK-PMJ-L5SDL | P164: @LK-JWT-L5SDL | Q164: @LK-JAG-L5SDL | R164: @LK-JAB-L5SDL | S164: @LK-JBR-L5SDL | T164: @LK-JBG-L5SDL | U164: @LK-JDM-L5SDL | V164: @LK-JDP-L5SDL | W164: @LK-JHG-L5SDL | X164: @LK-JIN-L5SDL | Y164: @LK-JIV-L5SDL | Z164: @LK-JLN-L5SDL | AA164: @LK-JMW-L5SDL | AB164: @LK-JMN-L5SDL | AC164: @LK-MMJ-L5SDL | AD164: @LK-JOV-L5SDL | AE164: @LK-JPT-L5SDL | AF164: @LK-JPE-L5SDL | AG164: @LK-JPG-L5SDL | AH164: @LK-JSG-L5SDL | AI164: @LK-JSP-L5SDL | AJ164: @LK-JSB-L5SDL | AK164: @LK-JSO-L5SDL | AL164: @LK-JSY-L5SDL | AM164: @LK-JST-L5SDL | AN164: @LK-JTP-L5SDL | AO164: @LK-JTK-L5SDL | AP164: @LK-JWE-L5SDL
B165: 500 Full height Larder RHH | C165: L5SDR | D165: @LK-CSJ-L5SDR | E165: @LK-DGJ-L5SDR | F165: @LK-DSJ-L5SDR | G165: @LK-PGJ-L5SDR | H165: @LK-WGJ-L5SDR | I165: @LK-GPJ-L5SDR | J165: @LK-MAJ-L5SDR | K165: @LK-JMC-L5SDR | L165: @LK-DMJ-L5SDR | M165: @LK-DYJ-L5SDR | N165: @LK-MGJ-L5SDR | O165: @LK-PMJ-L5SDR | P165: @LK-JWT-L5SDR | Q165: @LK-JAG-L5SDR | R165: @LK-JAB-L5SDR | S165: @LK-JBR-L5SDR | T165: @LK-JBG-L5SDR | U165: @LK-JDM-L5SDR | V165: @LK-JDP-L5SDR | W165: @LK-JHG-L5SDR | X165: @LK-JIN-L5SDR | Y165: @LK-JIV-L5SDR | Z165: @LK-JLN-L5SDR | AA165: @LK-JMW-L5SDR | AB165: @LK-JMN-L5SDR | AC165: @LK-MMJ-L5SDR | AD165: @LK-JOV-L5SDR | AE165: @LK-JPT-L5SDR | AF165: @LK-JPE-L5SDR | AG165: @LK-JPG-L5SDR | AH165: @LK-JSG-L5SDR | AI165: @LK-JSP-L5SDR | AJ165: @LK-JSB-L5SDR | AK165: @LK-JSO-L5SDR | AL165: @LK-JSY-L5SDR | AM165: @LK-JST-L5SDR | AN165: @LK-JTP-L5SDR | AO165: @LK-JTK-L5SDR | AP165: @LK-JWE-L5SDR
B166: 600 Larder Unit LHH | C166: L6L | D166: @LK-CSJ-L6L | E166: @LK-DGJ-L6L | F166: @LK-DSJ-L6L | G166: @LK-PGJ-L6L | H166: @LK-WGJ-L6L | I166: @LK-GPJ-L6L | J166: @LK-MAJ-L6L | K166: @LK-JMC-L6L | L166: @LK-DMJ-L6L | M166: @LK-DYJ-L6L | N166: @LK-MGJ-L6L | O166: @LK-PMJ-L6L | P166: @LK-JWT-L6L | Q166: @LK-JAG-L6L | R166: @LK-JAB-L6L | S166: @LK-JBR-L6L | T166: @LK-JBG-L6L | U166: @LK-JDM-L6L | V166: @LK-JDP-L6L | W166: @LK-JHG-L6L | X166: @LK-JIN-L6L | Y166: @LK-JIV-L6L | Z166: @LK-JLN-L6L | AA166: @LK-JMW-L6L | AB166: @LK-JMN-L6L | AC166: @LK-MMJ-L6L | AD166: @LK-JOV-L6L | AE166: @LK-JPT-L6L | AF166: @LK-JPE-L6L | AG166: @LK-JPG-L6L | AH166: @LK-JSG-L6L | AI166: @LK-JSP-L6L | AJ166: @LK-JSB-L6L | AK166: @LK-JSO-L6L | AL166: @LK-JSY-L6L | AM166: @LK-JST-L6L | AN166: @LK-JTP-L6L | AO166: @LK-JTK-L6L | AP166: @LK-JWE-L6L
B167: 600 Larder Unit RHH | C167: L6R | D167: @LK-CSJ-L6R | E167: @LK-DGJ-L6R | F167: @LK-DSJ-L6R | G167: @LK-PGJ-L6R | H167: @LK-WGJ-L6R | I167: @LK-GPJ-L6R | J167: @LK-MAJ-L6R | K167: @LK-JMC-L6R | L167: @LK-DMJ-L6R | M167: @LK-DYJ-L6R | N167: @LK-MGJ-L6R | O167: @LK-PMJ-L6R | P167: @LK-JWT-L6R | Q167: @LK-JAG-L6R | R167: @LK-JAB-L6R | S167: @LK-JBR-L6R | T167: @LK-JBG-L6R | U167: @LK-JDM-L6R | V167: @LK-JDP-L6R | W167: @LK-JHG-L6R | X167: @LK-JIN-L6R | Y167: @LK-JIV-L6R | Z167: @LK-JLN-L6R | AA167: @LK-JMW-L6R | AB167: @LK-JMN-L6R | AC167: @LK-MMJ-L6R | AD167: @LK-JOV-L6R | AE167: @LK-JPT-L6R | AF167: @LK-JPE-L6R | AG167: @LK-JPG-L6R | AH167: @LK-JSG-L6R | AI167: @LK-JSP-L6R | AJ167: @LK-JSB-L6R | AK167: @LK-JSO-L6R | AL167: @LK-JSY-L6R | AM167: @LK-JST-L6R | AN167: @LK-JTP-L6R | AO167: @LK-JTK-L6R | AP167: @LK-JWE-L6R
B168: 600 Full height Larder LHH | C168: L6SDL | D168: @LK-CSJ-L6SDL | E168: @LK-DGJ-L6SDL | F168: @LK-DSJ-L6SDL | G168: @LK-PGJ-L6SDL | H168: @LK-WGJ-L6SDL | I168: @LK-GPJ-L6SDL | J168: @LK-MAJ-L6SDL | K168: @LK-JMC-L6SDL | L168: @LK-DMJ-L6SDL | M168: @LK-DYJ-L6SDL | N168: @LK-MGJ-L6SDL | O168: @LK-PMJ-L6SDL | P168: @LK-JWT-L6SDL | Q168: @LK-JAG-L6SDL | R168: @LK-JAB-L6SDL | S168: @LK-JBR-L6SDL | T168: @LK-JBG-L6SDL | U168: @LK-JDM-L6SDL | V168: @LK-JDP-L6SDL | W168: @LK-JHG-L6SDL | X168: @LK-JIN-L6SDL | Y168: @LK-JIV-L6SDL | Z168: @LK-JLN-L6SDL | AA168: @LK-JMW-L6SDL | AB168: @LK-JMN-L6SDL | AC168: @LK-MMJ-L6SDL | AD168: @LK-JOV-L6SDL | AE168: @LK-JPT-L6SDL | AF168: @LK-JPE-L6SDL | AG168: @LK-JPG-L6SDL | AH168: @LK-JSG-L6SDL | AI168: @LK-JSP-L6SDL | AJ168: @LK-JSB-L6SDL | AK168: @LK-JSO-L6SDL | AL168: @LK-JSY-L6SDL | AM168: @LK-JST-L6SDL | AN168: @LK-JTP-L6SDL | AO168: @LK-JTK-L6SDL | AP168: @LK-JWE-L6SDL
B169: 600 Full height Larder RHH | C169: L6SDR | D169: @LK-CSJ-L6SDR | E169: @LK-DGJ-L6SDR | F169: @LK-DSJ-L6SDR | G169: @LK-PGJ-L6SDR | H169: @LK-WGJ-L6SDR | I169: @LK-GPJ-L6SDR | J169: @LK-MAJ-L6SDR | K169: @LK-JMC-L6SDR | L169: @LK-DMJ-L6SDR | M169: @LK-DYJ-L6SDR | N169: @LK-MGJ-L6SDR | O169: @LK-PMJ-L6SDR | P169: @LK-JWT-L6SDR | Q169: @LK-JAG-L6SDR | R169: @LK-JAB-L6SDR | S169: @LK-JBR-L6SDR | T169: @LK-JBG-L6SDR | U169: @LK-JDM-L6SDR | V169: @LK-JDP-L6SDR | W169: @LK-JHG-L6SDR | X169: @LK-JIN-L6SDR | Y169: @LK-JIV-L6SDR | Z169: @LK-JLN-L6SDR | AA169: @LK-JMW-L6SDR | AB169: @LK-JMN-L6SDR | AC169: @LK-MMJ-L6SDR | AD169: @LK-JOV-L6SDR | AE169: @LK-JPT-L6SDR | AF169: @LK-JPE-L6SDR | AG169: @LK-JPG-L6SDR | AH169: @LK-JSG-L6SDR | AI169: @LK-JSP-L6SDR | AJ169: @LK-JSB-L6SDR | AK169: @LK-JSO-L6SDR | AL169: @LK-JSY-L6SDR | AM169: @LK-JST-L6SDR | AN169: @LK-JTP-L6SDR | AO169: @LK-JTK-L6SDR | AP169: @LK-JWE-L6SDR
B170: 300 Larder & TAL LARDER Pull Out | C170: LP3 | D170: @LK-CSJ-LP3 | E170: @LK-DGJ-LP3 | F170: @LK-DSJ-LP3 | G170: @LK-PGJ-LP3 | H170: @LK-WGJ-LP3 | I170: @LK-GPJ-LP3 | J170: @LK-MAJ-LP3 | K170: @LK-JMC-LP3 | L170: @LK-DMJ-LP3 | M170: @LK-DYJ-LP3 | N170: @LK-MGJ-LP3 | O170: @LK-PMJ-LP3 | P170: @LK-JWT-LP3 | Q170: @LK-JAG-LP3 | R170: @LK-JAB-LP3 | S170: @LK-JBR-LP3 | T170: @LK-JBG-LP3 | U170: @LK-JDM-LP3 | V170: @LK-JDP-LP3 | W170: @LK-JHG-LP3 | X170: @LK-JIN-LP3 | Y170: @LK-JIV-LP3 | Z170: @LK-JLN-LP3 | AA170: @LK-JMW-LP3 | AB170: @LK-JMN-LP3 | AC170: @LK-MMJ-LP3 | AD170: @LK-JOV-LP3 | AE170: @LK-JPT-LP3 | AF170: @LK-JPE-LP3 | AG170: @LK-JPG-LP3 | AH170: @LK-JSG-LP3 | AI170: @LK-JSP-LP3 | AJ170: @LK-JSB-LP3 | AK170: @LK-JSO-LP3 | AL170: @LK-JSY-LP3 | AM170: @LK-JST-LP3 | AN170: @LK-JTP-LP3 | AO170: @LK-JTK-LP3 | AP170: @LK-JWE-LP3
B171: 400 Larder & TAL LARDER Pull Out | C171: LP4 | D171: @LK-CSJ-LP4 | E171: @LK-DGJ-LP4 | F171: @LK-DSJ-LP4 | G171: @LK-PGJ-LP4 | H171: @LK-WGJ-LP4 | I171: @LK-GPJ-LP4 | J171: @LK-MAJ-LP4 | K171: @LK-JMC-LP4 | L171: @LK-DMJ-LP4 | M171: @LK-DYJ-LP4 | N171: @LK-MGJ-LP4 | O171: @LK-PMJ-LP4 | P171: @LK-JWT-LP4 | Q171: @LK-JAG-LP4 | R171: @LK-JAB-LP4 | S171: @LK-JBR-LP4 | T171: @LK-JBG-LP4 | U171: @LK-JDM-LP4 | V171: @LK-JDP-LP4 | W171: @LK-JHG-LP4 | X171: @LK-JIN-LP4 | Y171: @LK-JIV-LP4 | Z171: @LK-JLN-LP4 | AA171: @LK-JMW-LP4 | AB171: @LK-JMN-LP4 | AC171: @LK-MMJ-LP4 | AD171: @LK-JOV-LP4 | AE171: @LK-JPT-LP4 | AF171: @LK-JPE-LP4 | AG171: @LK-JPG-LP4 | AH171: @LK-JSG-LP4 | AI171: @LK-JSP-LP4 | AJ171: @LK-JSB-LP4 | AK171: @LK-JSO-LP4 | AL171: @LK-JSY-LP4 | AM171: @LK-JST-LP4 | AN171: @LK-JTP-LP4 | AO171: @LK-JTK-LP4 | AP171: @LK-JWE-LP4
B172: 300 Tall Larder & TAL LARDER Pull Out | C172: TLP3 | D172: @LK-CSJ-TLP3 | E172: @LK-DGJ-TLP3 | F172: @LK-DSJ-TLP3 | G172: @LK-PGJ-TLP3 | H172: @LK-WGJ-TLP3 | I172: @LK-GPJ-TLP3 | J172: @LK-MAJ-TLP3 | K172: @LK-JMC-TLP3 | L172: @LK-DMJ-TLP3 | M172: @LK-DYJ-TLP3 | N172: @LK-MGJ-TLP3 | O172: @LK-PMJ-TLP3 | P172: @LK-JWT-TLP3 | Q172: @LK-JAG-TLP3 | R172: @LK-JAB-TLP3 | S172: @LK-JBR-TLP3 | T172: @LK-JBG-TLP3 | U172: @LK-JDM-TLP3 | V172: @LK-JDP-TLP3 | W172: @LK-JHG-TLP3 | X172: @LK-JIN-TLP3 | Y172: @LK-JIV-TLP3 | Z172: @LK-JLN-TLP3 | AA172: @LK-JMW-TLP3 | AB172: @LK-JMN-TLP3 | AC172: @LK-MMJ-TLP3 | AD172: @LK-JOV-TLP3 | AE172: @LK-JPT-TLP3 | AF172: @LK-JPE-TLP3 | AG172: @LK-JPG-TLP3 | AH172: @LK-JSG-TLP3 | AI172: @LK-JSP-TLP3 | AJ172: @LK-JSB-TLP3 | AK172: @LK-JSO-TLP3 | AL172: @LK-JSY-TLP3 | AM172: @LK-JST-TLP3 | AN172: @LK-JTP-TLP3 | AO172: @LK-JTK-TLP3 | AP172: @LK-JWE-TLP3
B173: 400 Tall Larder & TAL LARDER Pull Out | C173: TLP4 | D173: @LK-CSJ-TLP4 | E173: @LK-DGJ-TLP4 | F173: @LK-DSJ-TLP4 | G173: @LK-PGJ-TLP4 | H173: @LK-WGJ-TLP4 | I173: @LK-GPJ-TLP4 | J173: @LK-MAJ-TLP4 | K173: @LK-JMC-TLP4 | L173: @LK-DMJ-TLP4 | M173: @LK-DYJ-TLP4 | N173: @LK-MGJ-TLP4 | O173: @LK-PMJ-TLP4 | P173: @LK-JWT-TLP4 | Q173: @LK-JAG-TLP4 | R173: @LK-JAB-TLP4 | S173: @LK-JBR-TLP4 | T173: @LK-JBG-TLP4 | U173: @LK-JDM-TLP4 | V173: @LK-JDP-TLP4 | W173: @LK-JHG-TLP4 | X173: @LK-JIN-TLP4 | Y173: @LK-JIV-TLP4 | Z173: @LK-JLN-TLP4 | AA173: @LK-JMW-TLP4 | AB173: @LK-JMN-TLP4 | AC173: @LK-MMJ-TLP4 | AD173: @LK-JOV-TLP4 | AE173: @LK-JPT-TLP4 | AF173: @LK-JPE-TLP4 | AG173: @LK-JPG-TLP4 | AH173: @LK-JSG-TLP4 | AI173: @LK-JSP-TLP4 | AJ173: @LK-JSB-TLP4 | AK173: @LK-JSO-TLP4 | AL173: @LK-JSY-TLP4 | AM173: @LK-JST-TLP4 | AN173: @LK-JTP-TLP4 | AO173: @LK-JTK-TLP4 | AP173: @LK-JWE-TLP4
B174: 300 Oak Drawer Larder Pull Out | C174: LPOD3 | D174: @LK-CSJ-LPOD3 | E174: @LK-DGJ-LPOD3 | F174: @LK-DSJ-LPOD3 | G174: @LK-PGJ-LPOD3 | H174: @LK-WGJ-LPOD3 | I174: @LK-GPJ-LPOD3 | J174: @LK-MAJ-LPOD3 | K174: @LK-JMC-LPOD3 | L174: @LK-DMJ-LPOD3 | M174: @LK-DYJ-LPOD3 | N174: @LK-MGJ-LPOD3 | O174: @LK-PMJ-LPOD3 | P174: @LK-JWT-LPOD3 | Q174: @LK-JAG-LPOD3 | R174: @LK-JAB-LPOD3 | S174: @LK-JBR-LPOD3 | T174: @LK-JBG-LPOD3 | U174: @LK-JDM-LPOD3 | V174: @LK-JDP-LPOD3 | W174: @LK-JHG-LPOD3 | X174: @LK-JIN-LPOD3 | Y174: @LK-JIV-LPOD3 | Z174: @LK-JLN-LPOD3 | AA174: @LK-JMW-LPOD3 | AB174: @LK-JMN-LPOD3 | AC174: @LK-MMJ-LPOD3 | AD174: @LK-JOV-LPOD3 | AE174: @LK-JPT-LPOD3 | AF174: @LK-JPE-LPOD3 | AG174: @LK-JPG-LPOD3 | AH174: @LK-JSG-LPOD3 | AI174: @LK-JSP-LPOD3 | AJ174: @LK-JSB-LPOD3 | AK174: @LK-JSO-LPOD3 | AL174: @LK-JSY-LPOD3 | AM174: @LK-JST-LPOD3 | AN174: @LK-JTP-LPOD3 | AO174: @LK-JTK-LPOD3 | AP174: @LK-JWE-LPOD3
B175: 400 Oak Drawer Larder Pull Out | C175: LPOD4 | D175: @LK-CSJ-LPOD4 | E175: @LK-DGJ-LPOD4 | F175: @LK-DSJ-LPOD4 | G175: @LK-PGJ-LPOD4 | H175: @LK-WGJ-LPOD4 | I175: @LK-GPJ-LPOD4 | J175: @LK-MAJ-LPOD4 | K175: @LK-JMC-LPOD4 | L175: @LK-DMJ-LPOD4 | M175: @LK-DYJ-LPOD4 | N175: @LK-MGJ-LPOD4 | O175: @LK-PMJ-LPOD4 | P175: @LK-JWT-LPOD4 | Q175: @LK-JAG-LPOD4 | R175: @LK-JAB-LPOD4 | S175: @LK-JBR-LPOD4 | T175: @LK-JBG-LPOD4 | U175: @LK-JDM-LPOD4 | V175: @LK-JDP-LPOD4 | W175: @LK-JHG-LPOD4 | X175: @LK-JIN-LPOD4 | Y175: @LK-JIV-LPOD4 | Z175: @LK-JLN-LPOD4 | AA175: @LK-JMW-LPOD4 | AB175: @LK-JMN-LPOD4 | AC175: @LK-MMJ-LPOD4 | AD175: @LK-JOV-LPOD4 | AE175: @LK-JPT-LPOD4 | AF175: @LK-JPE-LPOD4 | AG175: @LK-JPG-LPOD4 | AH175: @LK-JSG-LPOD4 | AI175: @LK-JSP-LPOD4 | AJ175: @LK-JSB-LPOD4 | AK175: @LK-JSO-LPOD4 | AL175: @LK-JSY-LPOD4 | AM175: @LK-JST-LPOD4 | AN175: @LK-JTP-LPOD4 | AO175: @LK-JTK-LPOD4 | AP175: @LK-JWE-LPOD4
B176: 500 Oak Drawer Larder Pull Out | C176: LPOD5 | D176: @LK-CSJ-LPOD5 | E176: @LK-DGJ-LPOD5 | F176: @LK-DSJ-LPOD5 | G176: @LK-PGJ-LPOD5 | H176: @LK-WGJ-LPOD5 | I176: @LK-GPJ-LPOD5 | J176: @LK-MAJ-LPOD5 | K176: @LK-JMC-LPOD5 | L176: @LK-DMJ-LPOD5 | M176: @LK-DYJ-LPOD5 | N176: @LK-MGJ-LPOD5 | O176: @LK-PMJ-LPOD5 | P176: @LK-JWT-LPOD5 | Q176: @LK-JAG-LPOD5 | R176: @LK-JAB-LPOD5 | S176: @LK-JBR-LPOD5 | T176: @LK-JBG-LPOD5 | U176: @LK-JDM-LPOD5 | V176: @LK-JDP-LPOD5 | W176: @LK-JHG-LPOD5 | X176: @LK-JIN-LPOD5 | Y176: @LK-JIV-LPOD5 | Z176: @LK-JLN-LPOD5 | AA176: @LK-JMW-LPOD5 | AB176: @LK-JMN-LPOD5 | AC176: @LK-MMJ-LPOD5 | AD176: @LK-JOV-LPOD5 | AE176: @LK-JPT-LPOD5 | AF176: @LK-JPE-LPOD5 | AG176: @LK-JPG-LPOD5 | AH176: @LK-JSG-LPOD5 | AI176: @LK-JSP-LPOD5 | AJ176: @LK-JSB-LPOD5 | AK176: @LK-JSO-LPOD5 | AL176: @LK-JSY-LPOD5 | AM176: @LK-JST-LPOD5 | AN176: @LK-JTP-LPOD5 | AO176: @LK-JTK-LPOD5 | AP176: @LK-JWE-LPOD5
B177: 600 Oak Drawer Larder Pull Out | C177: LPOD6 | D177: @LK-CSJ-LPOD6 | E177: @LK-DGJ-LPOD6 | F177: @LK-DSJ-LPOD6 | G177: @LK-PGJ-LPOD6 | H177: @LK-WGJ-LPOD6 | I177: @LK-GPJ-LPOD6 | J177: @LK-MAJ-LPOD6 | K177: @LK-JMC-LPOD6 | L177: @LK-DMJ-LPOD6 | M177: @LK-DYJ-LPOD6 | N177: @LK-MGJ-LPOD6 | O177: @LK-PMJ-LPOD6 | P177: @LK-JWT-LPOD6 | Q177: @LK-JAG-LPOD6 | R177: @LK-JAB-LPOD6 | S177: @LK-JBR-LPOD6 | T177: @LK-JBG-LPOD6 | U177: @LK-JDM-LPOD6 | V177: @LK-JDP-LPOD6 | W177: @LK-JHG-LPOD6 | X177: @LK-JIN-LPOD6 | Y177: @LK-JIV-LPOD6 | Z177: @LK-JLN-LPOD6 | AA177: @LK-JMW-LPOD6 | AB177: @LK-JMN-LPOD6 | AC177: @LK-MMJ-LPOD6 | AD177: @LK-JOV-LPOD6 | AE177: @LK-JPT-LPOD6 | AF177: @LK-JPE-LPOD6 | AG177: @LK-JPG-LPOD6 | AH177: @LK-JSG-LPOD6 | AI177: @LK-JSP-LPOD6 | AJ177: @LK-JSB-LPOD6 | AK177: @LK-JSO-LPOD6 | AL177: @LK-JSY-LPOD6 | AM177: @LK-JST-LPOD6 | AN177: @LK-JTP-LPOD6 | AO177: @LK-JTK-LPOD6 | AP177: @LK-JWE-LPOD6
B178: 300 Tall Oak Drawer Larder Pull Out | C178: TLPOD3 | D178: @LK-CSJ-TLPOD3 | E178: @LK-DGJ-TLPOD3 | F178: @LK-DSJ-TLPOD3 | G178: @LK-PGJ-TLPOD3 | H178: @LK-WGJ-TLPOD3 | I178: @LK-GPJ-TLPOD3 | J178: @LK-MAJ-TLPOD3 | K178: @LK-JMC-TLPOD3 | L178: @LK-DMJ-TLPOD3 | M178: @LK-DYJ-TLPOD3 | N178: @LK-MGJ-TLPOD3 | O178: @LK-PMJ-TLPOD3 | P178: @LK-JWT-TLPOD3 | Q178: @LK-JAG-TLPOD3 | R178: @LK-JAB-TLPOD3 | S178: @LK-JBR-TLPOD3 | T178: @LK-JBG-TLPOD3 | U178: @LK-JDM-TLPOD3 | V178: @LK-JDP-TLPOD3 | W178: @LK-JHG-TLPOD3 | X178: @LK-JIN-TLPOD3 | Y178: @LK-JIV-TLPOD3 | Z178: @LK-JLN-TLPOD3 | AA178: @LK-JMW-TLPOD3 | AB178: @LK-JMN-TLPOD3 | AC178: @LK-MMJ-TLPOD3 | AD178: @LK-JOV-TLPOD3 | AE178: @LK-JPT-TLPOD3 | AF178: @LK-JPE-TLPOD3 | AG178: @LK-JPG-TLPOD3 | AH178: @LK-JSG-TLPOD3 | AI178: @LK-JSP-TLPOD3 | AJ178: @LK-JSB-TLPOD3 | AK178: @LK-JSO-TLPOD3 | AL178: @LK-JSY-TLPOD3 | AM178: @LK-JST-TLPOD3 | AN178: @LK-JTP-TLPOD3 | AO178: @LK-JTK-TLPOD3 | AP178: @LK-JWE-TLPOD3
B179: 400 Tall Oak Drawer Larder Pull Out | C179: TLPOD4 | D179: @LK-CSJ-TLPOD4 | E179: @LK-DGJ-TLPOD4 | F179: @LK-DSJ-TLPOD4 | G179: @LK-PGJ-TLPOD4 | H179: @LK-WGJ-TLPOD4 | I179: @LK-GPJ-TLPOD4 | J179: @LK-MAJ-TLPOD4 | K179: @LK-JMC-TLPOD4 | L179: @LK-DMJ-TLPOD4 | M179: @LK-DYJ-TLPOD4 | N179: @LK-MGJ-TLPOD4 | O179: @LK-PMJ-TLPOD4 | P179: @LK-JWT-TLPOD4 | Q179: @LK-JAG-TLPOD4 | R179: @LK-JAB-TLPOD4 | S179: @LK-JBR-TLPOD4 | T179: @LK-JBG-TLPOD4 | U179: @LK-JDM-TLPOD4 | V179: @LK-JDP-TLPOD4 | W179: @LK-JHG-TLPOD4 | X179: @LK-JIN-TLPOD4 | Y179: @LK-JIV-TLPOD4 | Z179: @LK-JLN-TLPOD4 | AA179: @LK-JMW-TLPOD4 | AB179: @LK-JMN-TLPOD4 | AC179: @LK-MMJ-TLPOD4 | AD179: @LK-JOV-TLPOD4 | AE179: @LK-JPT-TLPOD4 | AF179: @LK-JPE-TLPOD4 | AG179: @LK-JPG-TLPOD4 | AH179: @LK-JSG-TLPOD4 | AI179: @LK-JSP-TLPOD4 | AJ179: @LK-JSB-TLPOD4 | AK179: @LK-JSO-TLPOD4 | AL179: @LK-JSY-TLPOD4 | AM179: @LK-JST-TLPOD4 | AN179: @LK-JTP-TLPOD4 | AO179: @LK-JTK-TLPOD4 | AP179: @LK-JWE-TLPOD4
B180: 500 Tall Oak Drawer Larder Pull Out | C180: TLPOD5 | D180: @LK-CSJ-TLPOD5 | E180: @LK-DGJ-TLPOD5 | F180: @LK-DSJ-TLPOD5 | G180: @LK-PGJ-TLPOD5 | H180: @LK-WGJ-TLPOD5 | I180: @LK-GPJ-TLPOD5 | J180: @LK-MAJ-TLPOD5 | K180: @LK-JMC-TLPOD5 | L180: @LK-DMJ-TLPOD5 | M180: @LK-DYJ-TLPOD5 | N180: @LK-MGJ-TLPOD5 | O180: @LK-PMJ-TLPOD5 | P180: @LK-JWT-TLPOD5 | Q180: @LK-JAG-TLPOD5 | R180: @LK-JAB-TLPOD5 | S180: @LK-JBR-TLPOD5 | T180: @LK-JBG-TLPOD5 | U180: @LK-JDM-TLPOD5 | V180: @LK-JDP-TLPOD5 | W180: @LK-JHG-TLPOD5 | X180: @LK-JIN-TLPOD5 | Y180: @LK-JIV-TLPOD5 | Z180: @LK-JLN-TLPOD5 | AA180: @LK-JMW-TLPOD5 | AB180: @LK-JMN-TLPOD5 | AC180: @LK-MMJ-TLPOD5 | AD180: @LK-JOV-TLPOD5 | AE180: @LK-JPT-TLPOD5 | AF180: @LK-JPE-TLPOD5 | AG180: @LK-JPG-TLPOD5 | AH180: @LK-JSG-TLPOD5 | AI180: @LK-JSP-TLPOD5 | AJ180: @LK-JSB-TLPOD5 | AK180: @LK-JSO-TLPOD5 | AL180: @LK-JSY-TLPOD5 | AM180: @LK-JST-TLPOD5 | AN180: @LK-JTP-TLPOD5 | AO180: @LK-JTK-TLPOD5 | AP180: @LK-JWE-TLPOD5
B181: 600 Tall Oak Drawer Larder Pull Out | C181: TLPOD6 | D181: @LK-CSJ-TLPOD6 | E181: @LK-DGJ-TLPOD6 | F181: @LK-DSJ-TLPOD6 | G181: @LK-PGJ-TLPOD6 | H181: @LK-WGJ-TLPOD6 | I181: @LK-GPJ-TLPOD6 | J181: @LK-MAJ-TLPOD6 | K181: @LK-JMC-TLPOD6 | L181: @LK-DMJ-TLPOD6 | M181: @LK-DYJ-TLPOD6 | N181: @LK-MGJ-TLPOD6 | O181: @LK-PMJ-TLPOD6 | P181: @LK-JWT-TLPOD6 | Q181: @LK-JAG-TLPOD6 | R181: @LK-JAB-TLPOD6 | S181: @LK-JBR-TLPOD6 | T181: @LK-JBG-TLPOD6 | U181: @LK-JDM-TLPOD6 | V181: @LK-JDP-TLPOD6 | W181: @LK-JHG-TLPOD6 | X181: @LK-JIN-TLPOD6 | Y181: @LK-JIV-TLPOD6 | Z181: @LK-JLN-TLPOD6 | AA181: @LK-JMW-TLPOD6 | AB181: @LK-JMN-TLPOD6 | AC181: @LK-MMJ-TLPOD6 | AD181: @LK-JOV-TLPOD6 | AE181: @LK-JPT-TLPOD6 | AF181: @LK-JPE-TLPOD6 | AG181: @LK-JPG-TLPOD6 | AH181: @LK-JSG-TLPOD6 | AI181: @LK-JSP-TLPOD6 | AJ181: @LK-JSB-TLPOD6 | AK181: @LK-JSO-TLPOD6 | AL181: @LK-JSY-TLPOD6 | AM181: @LK-JST-TLPOD6 | AN181: @LK-JTP-TLPOD6 | AO181: @LK-JTK-TLPOD6 | AP181: @LK-JWE-TLPOD6
B182: 300 Larder Tower LHH | C182: LT3L | D182: @LK-CSJ-LT3L | E182: @LK-DGJ-LT3L | F182: @LK-DSJ-LT3L | G182: @LK-PGJ-LT3L | H182: @LK-WGJ-LT3L | I182: @LK-GPJ-LT3L | J182: @LK-MAJ-LT3L | K182: @LK-JMC-LT3L | L182: @LK-DMJ-LT3L | M182: @LK-DYJ-LT3L | N182: @LK-MGJ-LT3L | O182: @LK-PMJ-LT3L | P182: @LK-JWT-LT3L | Q182: @LK-JAG-LT3L | R182: @LK-JAB-LT3L | S182: @LK-JBR-LT3L | T182: @LK-JBG-LT3L | U182: @LK-JDM-LT3L | V182: @LK-JDP-LT3L | W182: @LK-JHG-LT3L | X182: @LK-JIN-LT3L | Y182: @LK-JIV-LT3L | Z182: @LK-JLN-LT3L | AA182: @LK-JMW-LT3L | AB182: @LK-JMN-LT3L | AC182: @LK-MMJ-LT3L | AD182: @LK-JOV-LT3L | AE182: @LK-JPT-LT3L | AF182: @LK-JPE-LT3L | AG182: @LK-JPG-LT3L | AH182: @LK-JSG-LT3L | AI182: @LK-JSP-LT3L | AJ182: @LK-JSB-LT3L | AK182: @LK-JSO-LT3L | AL182: @LK-JSY-LT3L | AM182: @LK-JST-LT3L | AN182: @LK-JTP-LT3L | AO182: @LK-JTK-LT3L | AP182: @LK-JWE-LT3L
B183: 300 Larder Tower RHH | C183: LT3R | D183: @LK-CSJ-LT3R | E183: @LK-DGJ-LT3R | F183: @LK-DSJ-LT3R | G183: @LK-PGJ-LT3R | H183: @LK-WGJ-LT3R | I183: @LK-GPJ-LT3R | J183: @LK-MAJ-LT3R | K183: @LK-JMC-LT3R | L183: @LK-DMJ-LT3R | M183: @LK-DYJ-LT3R | N183: @LK-MGJ-LT3R | O183: @LK-PMJ-LT3R | P183: @LK-JWT-LT3R | Q183: @LK-JAG-LT3R | R183: @LK-JAB-LT3R | S183: @LK-JBR-LT3R | T183: @LK-JBG-LT3R | U183: @LK-JDM-LT3R | V183: @LK-JDP-LT3R | W183: @LK-JHG-LT3R | X183: @LK-JIN-LT3R | Y183: @LK-JIV-LT3R | Z183: @LK-JLN-LT3R | AA183: @LK-JMW-LT3R | AB183: @LK-JMN-LT3R | AC183: @LK-MMJ-LT3R | AD183: @LK-JOV-LT3R | AE183: @LK-JPT-LT3R | AF183: @LK-JPE-LT3R | AG183: @LK-JPG-LT3R | AH183: @LK-JSG-LT3R | AI183: @LK-JSP-LT3R | AJ183: @LK-JSB-LT3R | AK183: @LK-JSO-LT3R | AL183: @LK-JSY-LT3R | AM183: @LK-JST-LT3R | AN183: @LK-JTP-LT3R | AO183: @LK-JTK-LT3R | AP183: @LK-JWE-LT3R
B184: 500 Larder Tower LHH | C184: LT5L | D184: @LK-CSJ-LT5L | E184: @LK-DGJ-LT5L | F184: @LK-DSJ-LT5L | G184: @LK-PGJ-LT5L | H184: @LK-WGJ-LT5L | I184: @LK-GPJ-LT5L | J184: @LK-MAJ-LT5L | K184: @LK-JMC-LT5L | L184: @LK-DMJ-LT5L | M184: @LK-DYJ-LT5L | N184: @LK-MGJ-LT5L | O184: @LK-PMJ-LT5L | P184: @LK-JWT-LT5L | Q184: @LK-JAG-LT5L | R184: @LK-JAB-LT5L | S184: @LK-JBR-LT5L | T184: @LK-JBG-LT5L | U184: @LK-JDM-LT5L | V184: @LK-JDP-LT5L | W184: @LK-JHG-LT5L | X184: @LK-JIN-LT5L | Y184: @LK-JIV-LT5L | Z184: @LK-JLN-LT5L | AA184: @LK-JMW-LT5L | AB184: @LK-JMN-LT5L | AC184: @LK-MMJ-LT5L | AD184: @LK-JOV-LT5L | AE184: @LK-JPT-LT5L | AF184: @LK-JPE-LT5L | AG184: @LK-JPG-LT5L | AH184: @LK-JSG-LT5L | AI184: @LK-JSP-LT5L | AJ184: @LK-JSB-LT5L | AK184: @LK-JSO-LT5L | AL184: @LK-JSY-LT5L | AM184: @LK-JST-LT5L | AN184: @LK-JTP-LT5L | AO184: @LK-JTK-LT5L | AP184: @LK-JWE-LT5L
B185: 500 Larder Tower RHH | C185: LT5R | D185: @LK-CSJ-LT5R | E185: @LK-DGJ-LT5R | F185: @LK-DSJ-LT5R | G185: @LK-PGJ-LT5R | H185: @LK-WGJ-LT5R | I185: @LK-GPJ-LT5R | J185: @LK-MAJ-LT5R | K185: @LK-JMC-LT5R | L185: @LK-DMJ-LT5R | M185: @LK-DYJ-LT5R | N185: @LK-MGJ-LT5R | O185: @LK-PMJ-LT5R | P185: @LK-JWT-LT5R | Q185: @LK-JAG-LT5R | R185: @LK-JAB-LT5R | S185: @LK-JBR-LT5R | T185: @LK-JBG-LT5R | U185: @LK-JDM-LT5R | V185: @LK-JDP-LT5R | W185: @LK-JHG-LT5R | X185: @LK-JIN-LT5R | Y185: @LK-JIV-LT5R | Z185: @LK-JLN-LT5R | AA185: @LK-JMW-LT5R | AB185: @LK-JMN-LT5R | AC185: @LK-MMJ-LT5R | AD185: @LK-JOV-LT5R | AE185: @LK-JPT-LT5R | AF185: @LK-JPE-LT5R | AG185: @LK-JPG-LT5R | AH185: @LK-JSG-LT5R | AI185: @LK-JSP-LT5R | AJ185: @LK-JSB-LT5R | AK185: @LK-JSO-LT5R | AL185: @LK-JSY-LT5R | AM185: @LK-JST-LT5R | AN185: @LK-JTP-LT5R | AO185: @LK-JTK-LT5R | AP185: @LK-JWE-LT5R
B186: 500 Larder Tower Full Height LHH | C186: LT5SDL | D186: @LK-CSJ-LT5SDL | E186: @LK-DGJ-LT5SDL | F186: @LK-DSJ-LT5SDL | G186: @LK-PGJ-LT5SDL | H186: @LK-WGJ-LT5SDL | I186: @LK-GPJ-LT5SDL | J186: @LK-MAJ-LT5SDL | K186: @LK-JMC-LT5SDL | L186: @LK-DMJ-LT5SDL | M186: @LK-DYJ-LT5SDL | N186: @LK-MGJ-LT5SDL | O186: @LK-PMJ-LT5SDL | P186: @LK-JWT-LT5SDL | Q186: @LK-JAG-LT5SDL | R186: @LK-JAB-LT5SDL | S186: @LK-JBR-LT5SDL | T186: @LK-JBG-LT5SDL | U186: @LK-JDM-LT5SDL | V186: @LK-JDP-LT5SDL | W186: @LK-JHG-LT5SDL | X186: @LK-JIN-LT5SDL | Y186: @LK-JIV-LT5SDL | Z186: @LK-JLN-LT5SDL | AA186: @LK-JMW-LT5SDL | AB186: @LK-JMN-LT5SDL | AC186: @LK-MMJ-LT5SDL | AD186: @LK-JOV-LT5SDL | AE186: @LK-JPT-LT5SDL | AF186: @LK-JPE-LT5SDL | AG186: @LK-JPG-LT5SDL | AH186: @LK-JSG-LT5SDL | AI186: @LK-JSP-LT5SDL | AJ186: @LK-JSB-LT5SDL | AK186: @LK-JSO-LT5SDL | AL186: @LK-JSY-LT5SDL | AM186: @LK-JST-LT5SDL | AN186: @LK-JTP-LT5SDL | AO186: @LK-JTK-LT5SDL | AP186: @LK-JWE-LT5SDL
B187: 500 Larder Tower Full Height RHH | C187: LT5SDR | D187: @LK-CSJ-LT5SDR | E187: @LK-DGJ-LT5SDR | F187: @LK-DSJ-LT5SDR | G187: @LK-PGJ-LT5SDR | H187: @LK-WGJ-LT5SDR | I187: @LK-GPJ-LT5SDR | J187: @LK-MAJ-LT5SDR | K187: @LK-JMC-LT5SDR | L187: @LK-DMJ-LT5SDR | M187: @LK-DYJ-LT5SDR | N187: @LK-MGJ-LT5SDR | O187: @LK-PMJ-LT5SDR | P187: @LK-JWT-LT5SDR | Q187: @LK-JAG-LT5SDR | R187: @LK-JAB-LT5SDR | S187: @LK-JBR-LT5SDR | T187: @LK-JBG-LT5SDR | U187: @LK-JDM-LT5SDR | V187: @LK-JDP-LT5SDR | W187: @LK-JHG-LT5SDR | X187: @LK-JIN-LT5SDR | Y187: @LK-JIV-LT5SDR | Z187: @LK-JLN-LT5SDR | AA187: @LK-JMW-LT5SDR | AB187: @LK-JMN-LT5SDR | AC187: @LK-MMJ-LT5SDR | AD187: @LK-JOV-LT5SDR | AE187: @LK-JPT-LT5SDR | AF187: @LK-JPE-LT5SDR | AG187: @LK-JPG-LT5SDR | AH187: @LK-JSG-LT5SDR | AI187: @LK-JSP-LT5SDR | AJ187: @LK-JSB-LT5SDR | AK187: @LK-JSO-LT5SDR | AL187: @LK-JSY-LT5SDR | AM187: @LK-JST-LT5SDR | AN187: @LK-JTP-LT5SDR | AO187: @LK-JTK-LT5SDR | AP187: @LK-JWE-LT5SDR
B188: 600 Larder Tower LHH | C188: LT6L | D188: @LK-CSJ-LT6L | E188: @LK-DGJ-LT6L | F188: @LK-DSJ-LT6L | G188: @LK-PGJ-LT6L | H188: @LK-WGJ-LT6L | I188: @LK-GPJ-LT6L | J188: @LK-MAJ-LT6L | K188: @LK-JMC-LT6L | L188: @LK-DMJ-LT6L | M188: @LK-DYJ-LT6L | N188: @LK-MGJ-LT6L | O188: @LK-PMJ-LT6L | P188: @LK-JWT-LT6L | Q188: @LK-JAG-LT6L | R188: @LK-JAB-LT6L | S188: @LK-JBR-LT6L | T188: @LK-JBG-LT6L | U188: @LK-JDM-LT6L | V188: @LK-JDP-LT6L | W188: @LK-JHG-LT6L | X188: @LK-JIN-LT6L | Y188: @LK-JIV-LT6L | Z188: @LK-JLN-LT6L | AA188: @LK-JMW-LT6L | AB188: @LK-JMN-LT6L | AC188: @LK-MMJ-LT6L | AD188: @LK-JOV-LT6L | AE188: @LK-JPT-LT6L | AF188: @LK-JPE-LT6L | AG188: @LK-JPG-LT6L | AH188: @LK-JSG-LT6L | AI188: @LK-JSP-LT6L | AJ188: @LK-JSB-LT6L | AK188: @LK-JSO-LT6L | AL188: @LK-JSY-LT6L | AM188: @LK-JST-LT6L | AN188: @LK-JTP-LT6L | AO188: @LK-JTK-LT6L | AP188: @LK-JWE-LT6L
B189: 600 Larder Tower RHH | C189: LT6R | D189: @LK-CSJ-LT6R | E189: @LK-DGJ-LT6R | F189: @LK-DSJ-LT6R | G189: @LK-PGJ-LT6R | H189: @LK-WGJ-LT6R | I189: @LK-GPJ-LT6R | J189: @LK-MAJ-LT6R | K189: @LK-JMC-LT6R | L189: @LK-DMJ-LT6R | M189: @LK-DYJ-LT6R | N189: @LK-MGJ-LT6R | O189: @LK-PMJ-LT6R | P189: @LK-JWT-LT6R | Q189: @LK-JAG-LT6R | R189: @LK-JAB-LT6R | S189: @LK-JBR-LT6R | T189: @LK-JBG-LT6R | U189: @LK-JDM-LT6R | V189: @LK-JDP-LT6R | W189: @LK-JHG-LT6R | X189: @LK-JIN-LT6R | Y189: @LK-JIV-LT6R | Z189: @LK-JLN-LT6R | AA189: @LK-JMW-LT6R | AB189: @LK-JMN-LT6R | AC189: @LK-MMJ-LT6R | AD189: @LK-JOV-LT6R | AE189: @LK-JPT-LT6R | AF189: @LK-JPE-LT6R | AG189: @LK-JPG-LT6R | AH189: @LK-JSG-LT6R | AI189: @LK-JSP-LT6R | AJ189: @LK-JSB-LT6R | AK189: @LK-JSO-LT6R | AL189: @LK-JSY-LT6R | AM189: @LK-JST-LT6R | AN189: @LK-JTP-LT6R | AO189: @LK-JTK-LT6R | AP189: @LK-JWE-LT6R
B190: 600 Larder Tower Full Height LHH | C190: LT6SDL | D190: @LK-CSJ-LT6SDL | E190: @LK-DGJ-LT6SDL | F190: @LK-DSJ-LT6SDL | G190: @LK-PGJ-LT6SDL | H190: @LK-WGJ-LT6SDL | I190: @LK-GPJ-LT6SDL | J190: @LK-MAJ-LT6SDL | K190: @LK-JMC-LT6SDL | L190: @LK-DMJ-LT6SDL | M190: @LK-DYJ-LT6SDL | N190: @LK-MGJ-LT6SDL | O190: @LK-PMJ-LT6SDL | P190: @LK-JWT-LT6SDL | Q190: @LK-JAG-LT6SDL | R190: @LK-JAB-LT6SDL | S190: @LK-JBR-LT6SDL | T190: @LK-JBG-LT6SDL | U190: @LK-JDM-LT6SDL | V190: @LK-JDP-LT6SDL | W190: @LK-JHG-LT6SDL | X190: @LK-JIN-LT6SDL | Y190: @LK-JIV-LT6SDL | Z190: @LK-JLN-LT6SDL | AA190: @LK-JMW-LT6SDL | AB190: @LK-JMN-LT6SDL | AC190: @LK-MMJ-LT6SDL | AD190: @LK-JOV-LT6SDL | AE190: @LK-JPT-LT6SDL | AF190: @LK-JPE-LT6SDL | AG190: @LK-JPG-LT6SDL | AH190: @LK-JSG-LT6SDL | AI190: @LK-JSP-LT6SDL | AJ190: @LK-JSB-LT6SDL | AK190: @LK-JSO-LT6SDL | AL190: @LK-JSY-LT6SDL | AM190: @LK-JST-LT6SDL | AN190: @LK-JTP-LT6SDL | AO190: @LK-JTK-LT6SDL | AP190: @LK-JWE-LT6SDL
B191: 600 Larder Tower Full Height RHH | C191: LT6SDR | D191: @LK-CSJ-LT6SDR | E191: @LK-DGJ-LT6SDR | F191: @LK-DSJ-LT6SDR | G191: @LK-PGJ-LT6SDR | H191: @LK-WGJ-LT6SDR | I191: @LK-GPJ-LT6SDR | J191: @LK-MAJ-LT6SDR | K191: @LK-JMC-LT6SDR | L191: @LK-DMJ-LT6SDR | M191: @LK-DYJ-LT6SDR | N191: @LK-MGJ-LT6SDR | O191: @LK-PMJ-LT6SDR | P191: @LK-JWT-LT6SDR | Q191: @LK-JAG-LT6SDR | R191: @LK-JAB-LT6SDR | S191: @LK-JBR-LT6SDR | T191: @LK-JBG-LT6SDR | U191: @LK-JDM-LT6SDR | V191: @LK-JDP-LT6SDR | W191: @LK-JHG-LT6SDR | X191: @LK-JIN-LT6SDR | Y191: @LK-JIV-LT6SDR | Z191: @LK-JLN-LT6SDR | AA191: @LK-JMW-LT6SDR | AB191: @LK-JMN-LT6SDR | AC191: @LK-MMJ-LT6SDR | AD191: @LK-JOV-LT6SDR | AE191: @LK-JPT-LT6SDR | AF191: @LK-JPE-LT6SDR | AG191: @LK-JPG-LT6SDR | AH191: @LK-JSG-LT6SDR | AI191: @LK-JSP-LT6SDR | AJ191: @LK-JSB-LT6SDR | AK191: @LK-JSO-LT6SDR | AL191: @LK-JSY-LT6SDR | AM191: @LK-JST-LT6SDR | AN191: @LK-JTP-LT6SDR | AO191: @LK-JTK-LT6SDR | AP191: @LK-JWE-LT6SDR
B192: 500 Larder & TAL GATE PRO P/Out LHH | C192: LP5TL | D192: @LK-CSJ-LP5TL | E192: @LK-DGJ-LP5TL | F192: @LK-DSJ-LP5TL | G192: @LK-PGJ-LP5TL | H192: @LK-WGJ-LP5TL | I192: @LK-GPJ-LP5TL | J192: @LK-MAJ-LP5TL | K192: @LK-JMC-LP5TL | L192: @LK-DMJ-LP5TL | M192: @LK-DYJ-LP5TL | N192: @LK-MGJ-LP5TL | O192: @LK-PMJ-LP5TL | P192: @LK-JWT-LP5TL | Q192: @LK-JAG-LP5TL | R192: @LK-JAB-LP5TL | S192: @LK-JBR-LP5TL | T192: @LK-JBG-LP5TL | U192: @LK-JDM-LP5TL | V192: @LK-JDP-LP5TL | W192: @LK-JHG-LP5TL | X192: @LK-JIN-LP5TL | Y192: @LK-JIV-LP5TL | Z192: @LK-JLN-LP5TL | AA192: @LK-JMW-LP5TL | AB192: @LK-JMN-LP5TL | AC192: @LK-MMJ-LP5TL | AD192: @LK-JOV-LP5TL | AE192: @LK-JPT-LP5TL | AF192: @LK-JPE-LP5TL | AG192: @LK-JPG-LP5TL | AH192: @LK-JSG-LP5TL | AI192: @LK-JSP-LP5TL | AJ192: @LK-JSB-LP5TL | AK192: @LK-JSO-LP5TL | AL192: @LK-JSY-LP5TL | AM192: @LK-JST-LP5TL | AN192: @LK-JTP-LP5TL | AO192: @LK-JTK-LP5TL | AP192: @LK-JWE-LP5TL
B193: 500 Larder & TAL GATE PRO P/Out RHH | C193: LP5TR | D193: @LK-CSJ-LP5TR | E193: @LK-DGJ-LP5TR | F193: @LK-DSJ-LP5TR | G193: @LK-PGJ-LP5TR | H193: @LK-WGJ-LP5TR | I193: @LK-GPJ-LP5TR | J193: @LK-MAJ-LP5TR | K193: @LK-JMC-LP5TR | L193: @LK-DMJ-LP5TR | M193: @LK-DYJ-LP5TR | N193: @LK-MGJ-LP5TR | O193: @LK-PMJ-LP5TR | P193: @LK-JWT-LP5TR | Q193: @LK-JAG-LP5TR | R193: @LK-JAB-LP5TR | S193: @LK-JBR-LP5TR | T193: @LK-JBG-LP5TR | U193: @LK-JDM-LP5TR | V193: @LK-JDP-LP5TR | W193: @LK-JHG-LP5TR | X193: @LK-JIN-LP5TR | Y193: @LK-JIV-LP5TR | Z193: @LK-JLN-LP5TR | AA193: @LK-JMW-LP5TR | AB193: @LK-JMN-LP5TR | AC193: @LK-MMJ-LP5TR | AD193: @LK-JOV-LP5TR | AE193: @LK-JPT-LP5TR | AF193: @LK-JPE-LP5TR | AG193: @LK-JPG-LP5TR | AH193: @LK-JSG-LP5TR | AI193: @LK-JSP-LP5TR | AJ193: @LK-JSB-LP5TR | AK193: @LK-JSO-LP5TR | AL193: @LK-JSY-LP5TR | AM193: @LK-JST-LP5TR | AN193: @LK-JTP-LP5TR | AO193: @LK-JTK-LP5TR | AP193: @LK-JWE-LP5TR
B194: 600 Larder & TAL GATE PRO P/Out LHH | C194: LP6TL | D194: @LK-CSJ-LP6TL | E194: @LK-DGJ-LP6TL | F194: @LK-DSJ-LP6TL | G194: @LK-PGJ-LP6TL | H194: @LK-WGJ-LP6TL | I194: @LK-GPJ-LP6TL | J194: @LK-MAJ-LP6TL | K194: @LK-JMC-LP6TL | L194: @LK-DMJ-LP6TL | M194: @LK-DYJ-LP6TL | N194: @LK-MGJ-LP6TL | O194: @LK-PMJ-LP6TL | P194: @LK-JWT-LP6TL | Q194: @LK-JAG-LP6TL | R194: @LK-JAB-LP6TL | S194: @LK-JBR-LP6TL | T194: @LK-JBG-LP6TL | U194: @LK-JDM-LP6TL | V194: @LK-JDP-LP6TL | W194: @LK-JHG-LP6TL | X194: @LK-JIN-LP6TL | Y194: @LK-JIV-LP6TL | Z194: @LK-JLN-LP6TL | AA194: @LK-JMW-LP6TL | AB194: @LK-JMN-LP6TL | AC194: @LK-MMJ-LP6TL | AD194: @LK-JOV-LP6TL | AE194: @LK-JPT-LP6TL | AF194: @LK-JPE-LP6TL | AG194: @LK-JPG-LP6TL | AH194: @LK-JSG-LP6TL | AI194: @LK-JSP-LP6TL | AJ194: @LK-JSB-LP6TL | AK194: @LK-JSO-LP6TL | AL194: @LK-JSY-LP6TL | AM194: @LK-JST-LP6TL | AN194: @LK-JTP-LP6TL | AO194: @LK-JTK-LP6TL | AP194: @LK-JWE-LP6TL
B195: 600 Larder & TAL GATE PRO P/Out RHH | C195: LP6TR | D195: @LK-CSJ-LP6TR | E195: @LK-DGJ-LP6TR | F195: @LK-DSJ-LP6TR | G195: @LK-PGJ-LP6TR | H195: @LK-WGJ-LP6TR | I195: @LK-GPJ-LP6TR | J195: @LK-MAJ-LP6TR | K195: @LK-JMC-LP6TR | L195: @LK-DMJ-LP6TR | M195: @LK-DYJ-LP6TR | N195: @LK-MGJ-LP6TR | O195: @LK-PMJ-LP6TR | P195: @LK-JWT-LP6TR | Q195: @LK-JAG-LP6TR | R195: @LK-JAB-LP6TR | S195: @LK-JBR-LP6TR | T195: @LK-JBG-LP6TR | U195: @LK-JDM-LP6TR | V195: @LK-JDP-LP6TR | W195: @LK-JHG-LP6TR | X195: @LK-JIN-LP6TR | Y195: @LK-JIV-LP6TR | Z195: @LK-JLN-LP6TR | AA195: @LK-JMW-LP6TR | AB195: @LK-JMN-LP6TR | AC195: @LK-MMJ-LP6TR | AD195: @LK-JOV-LP6TR | AE195: @LK-JPT-LP6TR | AF195: @LK-JPE-LP6TR | AG195: @LK-JPG-LP6TR | AH195: @LK-JSG-LP6TR | AI195: @LK-JSP-LP6TR | AJ195: @LK-JSB-LP6TR | AK195: @LK-JSO-LP6TR | AL195: @LK-JSY-LP6TR | AM195: @LK-JST-LP6TR | AN195: @LK-JTP-LP6TR | AO195: @LK-JTK-LP6TR | AP195: @LK-JWE-LP6TR
B196: 500 Larder & TAL GATE P/Out LHH | C196: LP5TSL | D196: @LK-CSJ-LP5TSL | E196: @LK-DGJ-LP5TSL | F196: @LK-DSJ-LP5TSL | G196: @LK-PGJ-LP5TSL | H196: @LK-WGJ-LP5TSL | I196: @LK-GPJ-LP5TSL | J196: @LK-MAJ-LP5TSL | K196: @LK-JMC-LP5TSL | L196: @LK-DMJ-LP5TSL | M196: @LK-DYJ-LP5TSL | N196: @LK-MGJ-LP5TSL | O196: @LK-PMJ-LP5TSL | P196: @LK-JWT-LP5TSL | Q196: @LK-JAG-LP5TSL | R196: @LK-JAB-LP5TSL | S196: @LK-JBR-LP5TSL | T196: @LK-JBG-LP5TSL | U196: @LK-JDM-LP5TSL | V196: @LK-JDP-LP5TSL | W196: @LK-JHG-LP5TSL | X196: @LK-JIN-LP5TSL | Y196: @LK-JIV-LP5TSL | Z196: @LK-JLN-LP5TSL | AA196: @LK-JMW-LP5TSL | AB196: @LK-JMN-LP5TSL | AC196: @LK-MMJ-LP5TSL | AD196: @LK-JOV-LP5TSL | AE196: @LK-JPT-LP5TSL | AF196: @LK-JPE-LP5TSL | AG196: @LK-JPG-LP5TSL | AH196: @LK-JSG-LP5TSL | AI196: @LK-JSP-LP5TSL | AJ196: @LK-JSB-LP5TSL | AK196: @LK-JSO-LP5TSL | AL196: @LK-JSY-LP5TSL | AM196: @LK-JST-LP5TSL | AN196: @LK-JTP-LP5TSL | AO196: @LK-JTK-LP5TSL | AP196: @LK-JWE-LP5TSL
B197: 500 Larder & TAL GATE P/Out RHH | C197: LP5TSR | D197: @LK-CSJ-LP5TSR | E197: @LK-DGJ-LP5TSR | F197: @LK-DSJ-LP5TSR | G197: @LK-PGJ-LP5TSR | H197: @LK-WGJ-LP5TSR | I197: @LK-GPJ-LP5TSR | J197: @LK-MAJ-LP5TSR | K197: @LK-JMC-LP5TSR | L197: @LK-DMJ-LP5TSR | M197: @LK-DYJ-LP5TSR | N197: @LK-MGJ-LP5TSR | O197: @LK-PMJ-LP5TSR | P197: @LK-JWT-LP5TSR | Q197: @LK-JAG-LP5TSR | R197: @LK-JAB-LP5TSR | S197: @LK-JBR-LP5TSR | T197: @LK-JBG-LP5TSR | U197: @LK-JDM-LP5TSR | V197: @LK-JDP-LP5TSR | W197: @LK-JHG-LP5TSR | X197: @LK-JIN-LP5TSR | Y197: @LK-JIV-LP5TSR | Z197: @LK-JLN-LP5TSR | AA197: @LK-JMW-LP5TSR | AB197: @LK-JMN-LP5TSR | AC197: @LK-MMJ-LP5TSR | AD197: @LK-JOV-LP5TSR | AE197: @LK-JPT-LP5TSR | AF197: @LK-JPE-LP5TSR | AG197: @LK-JPG-LP5TSR | AH197: @LK-JSG-LP5TSR | AI197: @LK-JSP-LP5TSR | AJ197: @LK-JSB-LP5TSR | AK197: @LK-JSO-LP5TSR | AL197: @LK-JSY-LP5TSR | AM197: @LK-JST-LP5TSR | AN197: @LK-JTP-LP5TSR | AO197: @LK-JTK-LP5TSR | AP197: @LK-JWE-LP5TSR
B198: 600 Larder & TAL GATE P/Out LHH | C198: LP6TSL | D198: @LK-CSJ-LP6TSL | E198: @LK-DGJ-LP6TSL | F198: @LK-DSJ-LP6TSL | G198: @LK-PGJ-LP6TSL | H198: @LK-WGJ-LP6TSL | I198: @LK-GPJ-LP6TSL | J198: @LK-MAJ-LP6TSL | K198: @LK-JMC-LP6TSL | L198: @LK-DMJ-LP6TSL | M198: @LK-DYJ-LP6TSL | N198: @LK-MGJ-LP6TSL | O198: @LK-PMJ-LP6TSL | P198: @LK-JWT-LP6TSL | Q198: @LK-JAG-LP6TSL | R198: @LK-JAB-LP6TSL | S198: @LK-JBR-LP6TSL | T198: @LK-JBG-LP6TSL | U198: @LK-JDM-LP6TSL | V198: @LK-JDP-LP6TSL | W198: @LK-JHG-LP6TSL | X198: @LK-JIN-LP6TSL | Y198: @LK-JIV-LP6TSL | Z198: @LK-JLN-LP6TSL | AA198: @LK-JMW-LP6TSL | AB198: @LK-JMN-LP6TSL | AC198: @LK-MMJ-LP6TSL | AD198: @LK-JOV-LP6TSL | AE198: @LK-JPT-LP6TSL | AF198: @LK-JPE-LP6TSL | AG198: @LK-JPG-LP6TSL | AH198: @LK-JSG-LP6TSL | AI198: @LK-JSP-LP6TSL | AJ198: @LK-JSB-LP6TSL | AK198: @LK-JSO-LP6TSL | AL198: @LK-JSY-LP6TSL | AM198: @LK-JST-LP6TSL | AN198: @LK-JTP-LP6TSL | AO198: @LK-JTK-LP6TSL | AP198: @LK-JWE-LP6TSL
B199: 600 Larder & TAL GATE P/Out RHH | C199: LP6TSR | D199: @LK-CSJ-LP6TSR | E199: @LK-DGJ-LP6TSR | F199: @LK-DSJ-LP6TSR | G199: @LK-PGJ-LP6TSR | H199: @LK-WGJ-LP6TSR | I199: @LK-GPJ-LP6TSR | J199: @LK-MAJ-LP6TSR | K199: @LK-JMC-LP6TSR | L199: @LK-DMJ-LP6TSR | M199: @LK-DYJ-LP6TSR | N199: @LK-MGJ-LP6TSR | O199: @LK-PMJ-LP6TSR | P199: @LK-JWT-LP6TSR | Q199: @LK-JAG-LP6TSR | R199: @LK-JAB-LP6TSR | S199: @LK-JBR-LP6TSR | T199: @LK-JBG-LP6TSR | U199: @LK-JDM-LP6TSR | V199: @LK-JDP-LP6TSR | W199: @LK-JHG-LP6TSR | X199: @LK-JIN-LP6TSR | Y199: @LK-JIV-LP6TSR | Z199: @LK-JLN-LP6TSR | AA199: @LK-JMW-LP6TSR | AB199: @LK-JMN-LP6TSR | AC199: @LK-MMJ-LP6TSR | AD199: @LK-JOV-LP6TSR | AE199: @LK-JPT-LP6TSR | AF199: @LK-JPE-LP6TSR | AG199: @LK-JPG-LP6TSR | AH199: @LK-JSG-LP6TSR | AI199: @LK-JSP-LP6TSR | AJ199: @LK-JSB-LP6TSR | AK199: @LK-JSO-LP6TSR | AL199: @LK-JSY-LP6TSR | AM199: @LK-JST-LP6TSR | AN199: @LK-JTP-LP6TSR | AO199: @LK-JTK-LP6TSR | AP199: @LK-JWE-LP6TSR
B200: 500 Larder & TAL GATE PRO P/Out Single Door LHH | C200: LP5TSDL | D200: @LK-CSJ-LP5TSDL | E200: @LK-DGJ-LP5TSDL | F200: @LK-DSJ-LP5TSDL | G200: @LK-PGJ-LP5TSDL | H200: @LK-WGJ-LP5TSDL | I200: @LK-GPJ-LP5TSDL | J200: @LK-MAJ-LP5TSDL | K200: @LK-JMC-LP5TSDL | L200: @LK-DMJ-LP5TSDL | M200: @LK-DYJ-LP5TSDL | N200: @LK-MGJ-LP5TSDL | O200: @LK-PMJ-LP5TSDL | P200: @LK-JWT-LP5TSDL | Q200: @LK-JAG-LP5TSDL | R200: @LK-JAB-LP5TSDL | S200: @LK-JBR-LP5TSDL | T200: @LK-JBG-LP5TSDL | U200: @LK-JDM-LP5TSDL | V200: @LK-JDP-LP5TSDL | W200: @LK-JHG-LP5TSDL | X200: @LK-JIN-LP5TSDL | Y200: @LK-JIV-LP5TSDL | Z200: @LK-JLN-LP5TSDL | AA200: @LK-JMW-LP5TSDL | AB200: @LK-JMN-LP5TSDL | AC200: @LK-MMJ-LP5TSDL | AD200: @LK-JOV-LP5TSDL | AE200: @LK-JPT-LP5TSDL | AF200: @LK-JPE-LP5TSDL | AG200: @LK-JPG-LP5TSDL | AH200: @LK-JSG-LP5TSDL | AI200: @LK-JSP-LP5TSDL | AJ200: @LK-JSB-LP5TSDL | AK200: @LK-JSO-LP5TSDL | AL200: @LK-JSY-LP5TSDL | AM200: @LK-JST-LP5TSDL | AN200: @LK-JTP-LP5TSDL | AO200: @LK-JTK-LP5TSDL | AP200: @LK-JWE-LP5TSDL
... 715 more rows

Sheet Prices Furniture (hidden)
A1: Bom Header | B1: Description | C1: Range | F1: RRP
A2: @LK-CSJ-AH-SOTL | B2: 600 Twin Single Oven Housing LH | C2: Profile Cashmere Gloss | E2: =MID(A2,9,15) -> AH-SOTL | F2: 945.01
A3: @LK-CSJ-AH-SOTR | B3: 600 Twin Single Oven Housing RH | C3: Profile Cashmere Gloss | E3: AH-SOTR | F3: 945.01
A4: @LK-CSJ-BBP | B4: Breakfast bar Back Panel (2 x 900x1200) | C4: Profile Cashmere Gloss | E4: BBP | F4: 625.99
A5: @LK-CSJ-BHD3 | B5: 300 Highline Drw Unit 1 Pan 2 Internal | C5: Profile Cashmere Gloss | E5: BHD3 | F5: 678.01
A6: @LK-CSJ-BHD4 | B6: 400 Highline Drw Unit 1 Pan 2 Internal | C6: Profile Cashmere Gloss | E6: BHD4 | F6: 728.02
A7: @LK-CSJ-BHD5 | B7: 500 Highline Drw Unit 1 Pan 2 Internal | C7: Profile Cashmere Gloss | E7: BHD5 | F7: 785
A8: @LK-CSJ-BHD6 | B8: 600 Highline Drw Unit 1 Pan 2 Internal | C8: Profile Cashmere Gloss | E8: BHD6 | F8: 835.01
A9: @LK-CSJ-CH-MWL | B9: Corner Compact Appliance Unit LHH | C9: Profile Cashmere Gloss | E9: CH-MWL | F9: 777
A10: @LK-CSJ-CH-MWR | B10: Corner Compact Appliance Unit RHH | C10: Profile Cashmere Gloss | E10: CH-MWR | F10: 777
A11: @LK-CSJ-CH-SOL | B11: Corner Single Oven Housing Unit LHH | C11: Profile Cashmere Gloss | E11: CH-SOL | F11: 708
A12: @LK-CSJ-CH-SOR | B12: Corner Single Oven Housing Unit RHH | C12: Profile Cashmere Gloss | E12: CH-SOR | F12: 708
A13: @LK-CSJ-CH-STL | B13: Corner Storage Unit LHH | C13: Profile Cashmere Gloss | E13: CH-STL | F13: 985.99
A14: @LK-CSJ-CH-STR | B14: Corner Storage Unit RHH | C14: Profile Cashmere Gloss | E14: CH-STR | F14: 985.99
A15: @LK-CSJ-LL8LS | B15: 800mm Laundry stacker | C15: Profile Cashmere Gloss | E15: LL8LS | F15: 1606.06
A16: @LK-CSJ-LP4 | B16: 400 Larder & TAL LARDER Pull Out | C16: Profile Cashmere Gloss | E16: LP4 | F16: 1722
A17: @LK-CSJ-LP5TL | B17: 500 Larder & TAL GATE PRO Pull Out LH | C17: Profile Cashmere Gloss | E17: LP5TL | F17: 2033.03
A18: @LK-CSJ-LP5TR | B18: 500 Larder & TAL GATE PRO Pull Out RHH | C18: Profile Cashmere Gloss | E18: LP5TR | F18: 2033.03
A19: @LK-CSJ-TAH-SOTL | B19: 600 Tall Twin Single Oven Housing LH | C19: Profile Cashmere Gloss | E19: TAH-SOTL | F19: 775.02
A20: @LK-CSJ-TAH-SOTR | B20: 600 Tall Twin Single Oven Housing RH | C20: Profile Cashmere Gloss | E20: TAH-SOTR | F20: 775.02
A21: @LK-CSJ-TCH-MWL | B21: Tall Corner Compact Appliance Unit LHH | C21: Profile Cashmere Gloss | E21: TCH-MWL | F21: 859.99
A22: @LK-CSJ-TCH-MWR | B22: Tall Corner Compact Appliance Unit RHH | C22: Profile Cashmere Gloss | E22: TCH-MWR | F22: 859.99
A23: @LK-CSJ-TCH-SOL | B23: Tall Corner Single Oven Housing Unit LHH | C23: Profile Cashmere Gloss | E23: TCH-SOL | F23: 919
A24: @LK-CSJ-TCH-SOR | B24: Tall Corner Single Oven Housing Unit RHH | C24: Profile Cashmere Gloss | E24: TCH-SOR | F24: 919
A25: @LK-CSJ-TCH-STL | B25: Tall Corner Storage Unit LHH | C25: Profile Cashmere Gloss | E25: TCH-STL | F25: 1046.99
A26: @LK-CSJ-TCH-STR | B26: Tall Corner Storage Unit RHH | C26: Profile Cashmere Gloss | E26: TCH-STR | F26: 1046.99
A27: @LK-CSJ-TLL8LS | B27: 800mm Tall Laundry stacker | C27: Profile Cashmere Gloss | E27: TLL8LS | F27: 2163.04
A28: @LK-CSJ-TLP4 | B28: 400 Tall Larder & TAL LARDER Pull Out | C28: Profile Cashmere Gloss | E28: TLP4 | F28: 1772.99
A29: @LK-CSJ-TLP5TL | B29: 500 Tall Larder & TAL GATE PRO P/Out LH | C29: Profile Cashmere Gloss | E29: TLP5TL | F29: 2097.02
A30: @LK-CSJ-TLP5TR | B30: 500 Tall Larder & TAL GATE PRO P/Out RH | C30: Profile Cashmere Gloss | E30: TLP5TR | F30: 2097.02
A31: @LK-CSJ-W157 | B31: 1000 Wall Unit 575 High | C31: Profile Cashmere Gloss | E31: W157 | F31: 456.01
A32: @LK-CSJ-W357L | B32: 300 Wall Unit 575 High LH | C32: Profile Cashmere Gloss | E32: W357L | F32: 215.02
A33: @LK-CSJ-W357R | B33: 300 Wall Unit 575 High RH | C33: Profile Cashmere Gloss | E33: W357R | F33: 215.02
A34: @LK-CSJ-W4557L | B34: 450 Wall Unit 575 High LH | C34: Profile Cashmere Gloss | E34: W4557L | F34: 261.01
A35: @LK-CSJ-W4557R | B35: 450 Wall Unit 575 High RH | C35: Profile Cashmere Gloss | E35: W4557R | F35: 261.01
A36: @LK-CSJ-W457L | B36: 400 Wall Unit 575 High LH | C36: Profile Cashmere Gloss | E36: W457L | F36: 245
A37: @LK-CSJ-W457R | B37: 400 Wall Unit 575 High RH | C37: Profile Cashmere Gloss | E37: W457R | F37: 245
A38: @LK-CSJ-W557L | B38: 500 Wall Unit 575 High LH | C38: Profile Cashmere Gloss | E38: W557L | F38: 277.01
A39: @LK-CSJ-W557R | B39: 500 Wall Unit 575 High RH | C39: Profile Cashmere Gloss | E39: W557R | F39: 277.01
A40: @LK-CSJ-W657L | B40: 600 Wall Unit 575 High LH | C40: Profile Cashmere Gloss | E40: W657L | F40: 290.02
A41: @LK-CSJ-W657R | B41: 600 Wall Unit 575 High RH | C41: Profile Cashmere Gloss | E41: W657R | F41: 290.02
A42: @LK-CSJ-W857 | B42: 800 Wall Unit 575 High | C42: Profile Cashmere Gloss | E42: W857 | F42: 409.02
A43: @LK-CSJ-W957 | B43: 900 Wall Unit 575 High | C43: Profile Cashmere Gloss | E43: W957 | F43: 427.02
A44: @LK-CSJ-WC6L | B44: 600 Cnr Wall Unit LHH | C44: Profile Cashmere Gloss | E44: WC6L | F44: 385.99
A45: @LK-CSJ-WC6R | B45: 600 Cnr Wall Unit RHH | C45: Profile Cashmere Gloss | E45: WC6R | F45: 385.99
A46: @LK-CSJ-WC9L | B46: 900 Cnr Wall Unit LHH | C46: Profile Cashmere Gloss | E46: WC9L | F46: 436.99
A47: @LK-CSJ-WC9R | B47: 900 Cnr Wall Unit RHH | C47: Profile Cashmere Gloss | E47: WC9R | F47: 436.99
A48: @LK-DGJ-AH-SOTL | B48: 600 Twin Single Oven Housing LH | C48: J Profile Dove Grey Gloss | E48: AH-SOTL | F48: 945.01
A49: @LK-DGJ-AH-SOTR | B49: 600 Twin Single Oven Housing RH | C49: J Profile Dove Grey Gloss | E49: AH-SOTR | F49: 945.01
A50: @LK-DGJ-BBP | B50: Breakfast bar Back Panel (2 x 900x1200) | C50: J Profile Dove Grey Gloss | E50: BBP | F50: 625.99
A51: @LK-DGJ-BHD3 | B51: 300 Highline Drw Unit 1 Pan 2 Internal | C51: J Profile Dove Grey Gloss | E51: BHD3 | F51: 678.01
A52: @LK-DGJ-BHD4 | B52: 400 Highline Drw Unit 1 Pan 2 Internal | C52: J Profile Dove Grey Gloss | E52: BHD4 | F52: 728.02
A53: @LK-DGJ-BHD5 | B53: 500 Highline Drw Unit 1 Pan 2 Internal | C53: J Profile Dove Grey Gloss | E53: BHD5 | F53: 785
A54: @LK-DGJ-BHD6 | B54: 600 Highline Drw Unit 1 Pan 2 Internal | C54: J Profile Dove Grey Gloss | E54: BHD6 | F54: 835.01
A55: @LK-DGJ-CH-MWL | B55: Corner Compact Appliance Unit LHH | C55: J Profile Dove Grey Gloss | E55: CH-MWL | F55: 777
A56: @LK-DGJ-CH-MWR | B56: Corner Compact Appliance Unit RHH | C56: J Profile Dove Grey Gloss | E56: CH-MWR | F56: 777
A57: @LK-DGJ-CH-SOL | B57: Corner Single Oven Housing Unit LHH | C57: J Profile Dove Grey Gloss | E57: CH-SOL | F57: 708
A58: @LK-DGJ-CH-SOR | B58: Corner Single Oven Housing Unit RHH | C58: J Profile Dove Grey Gloss | E58: CH-SOR | F58: 708
A59: @LK-DGJ-CH-STL | B59: Corner Storage Unit LHH | C59: J Profile Dove Grey Gloss | E59: CH-STL | F59: 985.99
A60: @LK-DGJ-CH-STR | B60: Corner Storage Unit RHH | C60: J Profile Dove Grey Gloss | E60: CH-STR | F60: 985.99
A61: @LK-DGJ-LL8LS | B61: 800mm Laundry stacker | C61: J Profile Dove Grey Gloss | E61: LL8LS | F61: 1606.06
A62: @LK-DGJ-LP4 | B62: 400 Larder & TAL LARDER Pull Out | C62: J Profile Dove Grey Gloss | E62: LP4 | F62: 1722
A63: @LK-DGJ-LP5TL | B63: 500 Larder & TAL GATE PRO Pull Out LH | C63: J Profile Dove Grey Gloss | E63: LP5TL | F63: 2033.03
A64: @LK-DGJ-LP5TR | B64: 500 Larder & TAL GATE PRO Pull Out RHH | C64: J Profile Dove Grey Gloss | E64: LP5TR | F64: 2033.03
A65: @LK-DGJ-TAH-SOTL | B65: 600 Tall Twin Single Oven Housing LH | C65: J Profile Dove Grey Gloss | E65: TAH-SOTL | F65: 775.02
A66: @LK-DGJ-TAH-SOTR | B66: 600 Tall Twin Single Oven Housing RH | C66: J Profile Dove Grey Gloss | E66: =MID(A66,9,15) -> TAH-SOTR | F66: 775.02
A67: @LK-DGJ-TCH-MWL | B67: Tall Corner Compact Appliance Unit LHH | C67: J Profile Dove Grey Gloss | E67: TCH-MWL | F67: 859.99
A68: @LK-DGJ-TCH-MWR | B68: Tall Corner Compact Appliance Unit RHH | C68: J Profile Dove Grey Gloss | E68: TCH-MWR | F68: 859.99
A69: @LK-DGJ-TCH-SOL | B69: Tall Corner Single Oven Housing Unit LHH | C69: J Profile Dove Grey Gloss | E69: TCH-SOL | F69: 919
A70: @LK-DGJ-TCH-SOR | B70: Tall Corner Single Oven Housing Unit RHH | C70: J Profile Dove Grey Gloss | E70: TCH-SOR | F70: 919
A71: @LK-DGJ-TCH-STL | B71: Tall Corner Storage Unit LHH | C71: J Profile Dove Grey Gloss | E71: TCH-STL | F71: 1046.99
A72: @LK-DGJ-TCH-STR | B72: Tall Corner Storage Unit RHH | C72: J Profile Dove Grey Gloss | E72: TCH-STR | F72: 1046.99
A73: @LK-DGJ-TLL8LS | B73: 800mm Tall Laundry stacker | C73: J Profile Dove Grey Gloss | E73: TLL8LS | F73: 2163.04
A74: @LK-DGJ-TLP4 | B74: 400 Tall Larder & TAL LARDER Pull Out | C74: J Profile Dove Grey Gloss | E74: TLP4 | F74: 1772.99
A75: @LK-DGJ-TLP5TL | B75: 500 Tall Larder & TAL GATE PRO P/Out LH | C75: J Profile Dove Grey Gloss | E75: TLP5TL | F75: 2097.02
A76: @LK-DGJ-TLP5TR | B76: 500 Tall Larder & TAL GATE PRO P/Out RH | C76: J Profile Dove Grey Gloss | E76: TLP5TR | F76: 2097.02
A77: @LK-DGJ-W157 | B77: 1000 Wall Unit 575 High | C77: J Profile Dove Grey Gloss | E77: W157 | F77: 456.01
A78: @LK-DGJ-W357L | B78: 300 Wall Unit 575 High LH | C78: J Profile Dove Grey Gloss | E78: W357L | F78: 215.02
A79: @LK-DGJ-W357R | B79: 300 Wall Unit 575 High RH | C79: J Profile Dove Grey Gloss | E79: W357R | F79: 215.02
A80: @LK-DGJ-W4557L | B80: 450 Wall Unit 575 High LH | C80: J Profile Dove Grey Gloss | E80: W4557L | F80: 261.01
A81: @LK-DGJ-W4557R | B81: 450 Wall Unit 575 High RH | C81: J Profile Dove Grey Gloss | E81: W4557R | F81: 261.01
A82: @LK-DGJ-W457L | B82: 400 Wall Unit 575 High LH | C82: J Profile Dove Grey Gloss | E82: W457L | F82: 245
A83: @LK-DGJ-W457R | B83: 400 Wall Unit 575 High RH | C83: J Profile Dove Grey Gloss | E83: W457R | F83: 245
A84: @LK-DGJ-W557L | B84: 500 Wall Unit 575 High LH | C84: J Profile Dove Grey Gloss | E84: W557L | F84: 277.01
A85: @LK-DGJ-W557R | B85: 500 Wall Unit 575 High RH | C85: J Profile Dove Grey Gloss | E85: W557R | F85: 277.01
A86: @LK-DGJ-W657L | B86: 600 Wall Unit 575 High LH | C86: J Profile Dove Grey Gloss | E86: W657L | F86: 290.02
A87: @LK-DGJ-W657R | B87: 600 Wall Unit 575 High RH | C87: J Profile Dove Grey Gloss | E87: W657R | F87: 290.02
A88: @LK-DGJ-W857 | B88: 800 Wall Unit 575 High | C88: J Profile Dove Grey Gloss | E88: W857 | F88: 409.02
A89: @LK-DGJ-W957 | B89: 900 Wall Unit 575 High | C89: J Profile Dove Grey Gloss | E89: W957 | F89: 427.02
A90: @LK-DGJ-WC6L | B90: 600 Cnr Wall Unit LHH | C90: J Profile Dove Grey Gloss | E90: WC6L | F90: 385.99
A91: @LK-DGJ-WC6R | B91: 600 Cnr Wall Unit RHH | C91: J Profile Dove Grey Gloss | E91: WC6R | F91: 385.99
A92: @LK-DGJ-WC9L | B92: 900 Cnr Wall Unit LHH | C92: J Profile Dove Grey Gloss | E92: WC9L | F92: 436.99
A93: @LK-DGJ-WC9R | B93: 900 Cnr Wall Unit RHH | C93: J Profile Dove Grey Gloss | E93: WC9R | F93: 436.99
A94: @LK-DSJ-AH-SOTL | B94: 600 Twin Single Oven Housing LH | C94: J Profile Dust Grey Gloss | E94: AH-SOTL | F94: 945.01
A95: @LK-DSJ-AH-SOTR | B95: 600 Twin Single Oven Housing RH | C95: J Profile Dust Grey Gloss | E95: AH-SOTR | F95: 945.01
A96: @LK-DSJ-BBP | B96: Breakfast bar Back Panel (2 x 900x1200) | C96: J Profile Dust Grey Gloss | E96: BBP | F96: 625.99
A97: @LK-DSJ-BHD3 | B97: 300 Highline Drw Unit 1 Pan 2 Internal | C97: J Profile Dust Grey Gloss | E97: BHD3 | F97: 678.01
A98: @LK-DSJ-BHD4 | B98: 400 Highline Drw Unit 1 Pan 2 Internal | C98: J Profile Dust Grey Gloss | E98: BHD4 | F98: 728.02
A99: @LK-DSJ-BHD5 | B99: 500 Highline Drw Unit 1 Pan 2 Internal | C99: J Profile Dust Grey Gloss | E99: BHD5 | F99: 785
A100: @LK-DSJ-BHD6 | B100: 600 Highline Drw Unit 1 Pan 2 Internal | C100: J Profile Dust Grey Gloss | E100: BHD6 | F100: 835.01
A101: @LK-DSJ-CH-MWL | B101: Corner Compact Appliance Unit LHH | C101: J Profile Dust Grey Gloss | E101: CH-MWL | F101: 777
A102: @LK-DSJ-CH-MWR | B102: Corner Compact Appliance Unit RHH | C102: J Profile Dust Grey Gloss | E102: CH-MWR | F102: 777
A103: @LK-DSJ-CH-SOL | B103: Corner Single Oven Housing Unit LHH | C103: J Profile Dust Grey Gloss | E103: CH-SOL | F103: 708
A104: @LK-DSJ-CH-SOR | B104: Corner Single Oven Housing Unit RHH | C104: J Profile Dust Grey Gloss | E104: CH-SOR | F104: 708
A105: @LK-DSJ-CH-STL | B105: Corner Storage Unit LHH | C105: J Profile Dust Grey Gloss | E105: CH-STL | F105: 985.99
A106: @LK-DSJ-CH-STR | B106: Corner Storage Unit RHH | C106: J Profile Dust Grey Gloss | E106: CH-STR | F106: 985.99
A107: @LK-DSJ-LL8LS | B107: 800mm Laundry stacker | C107: J Profile Dust Grey Gloss | E107: LL8LS | F107: 1606.06
A108: @LK-DSJ-LP4 | B108: 400 Larder & TAL LARDER Pull Out | C108: J Profile Dust Grey Gloss | E108: LP4 | F108: 1722
A109: @LK-DSJ-LP5TL | B109: 500 Larder & TAL GATE PRO Pull Out LH | C109: J Profile Dust Grey Gloss | E109: LP5TL | F109: 2033.03
A110: @LK-DSJ-LP5TR | B110: 500 Larder & TAL GATE PRO Pull Out RHH | C110: J Profile Dust Grey Gloss | E110: LP5TR | F110: 2033.03
A111: @LK-DSJ-TAH-SOTL | B111: 600 Tall Twin Single Oven Housing LH | C111: J Profile Dust Grey Gloss | E111: TAH-SOTL | F111: 775.02
A112: @LK-DSJ-TAH-SOTR | B112: 600 Tall Twin Single Oven Housing RH | C112: J Profile Dust Grey Gloss | E112: TAH-SOTR | F112: 775.02
A113: @LK-DSJ-TCH-MWL | B113: Tall Corner Compact Appliance Unit LHH | C113: J Profile Dust Grey Gloss | E113: TCH-MWL | F113: 859.99
A114: @LK-DSJ-TCH-MWR | B114: Tall Corner Compact Appliance Unit RHH | C114: J Profile Dust Grey Gloss | E114: TCH-MWR | F114: 859.99
A115: @LK-DSJ-TCH-SOL | B115: Tall Corner Single Oven Housing Unit LHH | C115: J Profile Dust Grey Gloss | E115: TCH-SOL | F115: 919
A116: @LK-DSJ-TCH-SOR | B116: Tall Corner Single Oven Housing Unit RHH | C116: J Profile Dust Grey Gloss | E116: TCH-SOR | F116: 919
A117: @LK-DSJ-TCH-STL | B117: Tall Corner Storage Unit LHH | C117: J Profile Dust Grey Gloss | E117: TCH-STL | F117: 1046.99
A118: @LK-DSJ-TCH-STR | B118: Tall Corner Storage Unit RHH | C118: J Profile Dust Grey Gloss | E118: TCH-STR | F118: 1046.99
A119: @LK-DSJ-TLL8LS | B119: 800mm Tall Laundry stacker | C119: J Profile Dust Grey Gloss | E119: TLL8LS | F119: 2163.04
A120: @LK-DSJ-TLP4 | B120: 400 Tall Larder & TAL LARDER Pull Out | C120: J Profile Dust Grey Gloss | E120: TLP4 | F120: 1772.99
A121: @LK-DSJ-TLP5TL | B121: 500 Tall Larder & TAL GATE PRO P/Out LH | C121: J Profile Dust Grey Gloss | E121: TLP5TL | F121: 2097.02
A122: @LK-DSJ-TLP5TR | B122: 500 Tall Larder & TAL GATE PRO P/Out RH | C122: J Profile Dust Grey Gloss | E122: TLP5TR | F122: 2097.02
A123: @LK-DSJ-W157 | B123: 1000 Wall Unit 575 High | C123: J Profile Dust Grey Gloss | E123: W157 | F123: 456.01
A124: @LK-DSJ-W357L | B124: 300 Wall Unit 575 High LH | C124: J Profile Dust Grey Gloss | E124: W357L | F124: 215.02
A125: @LK-DSJ-W357R | B125: 300 Wall Unit 575 High RH | C125: J Profile Dust Grey Gloss | E125: W357R | F125: 215.02
A126: @LK-DSJ-W4557L | B126: 450 Wall Unit 575 High LH | C126: J Profile Dust Grey Gloss | E126: W4557L | F126: 261.01
A127: @LK-DSJ-W4557R | B127: 450 Wall Unit 575 High RH | C127: J Profile Dust Grey Gloss | E127: W4557R | F127: 261.01
A128: @LK-DSJ-W457L | B128: 400 Wall Unit 575 High LH | C128: J Profile Dust Grey Gloss | E128: W457L | F128: 245
A129: @LK-DSJ-W457R | B129: 400 Wall Unit 575 High RH | C129: J Profile Dust Grey Gloss | E129: W457R | F129: 245
A130: @LK-DSJ-W557L | B130: 500 Wall Unit 575 High LH | C130: J Profile Dust Grey Gloss | E130: =MID(A130,9,15) -> W557L | F130: 277.01
A131: @LK-DSJ-W557R | B131: 500 Wall Unit 575 High RH | C131: J Profile Dust Grey Gloss | E131: W557R | F131: 277.01
A132: @LK-DSJ-W657L | B132: 600 Wall Unit 575 High LH | C132: J Profile Dust Grey Gloss | E132: W657L | F132: 290.02
A133: @LK-DSJ-W657R | B133: 600 Wall Unit 575 High RH | C133: J Profile Dust Grey Gloss | E133: W657R | F133: 290.02
A134: @LK-DSJ-W857 | B134: 800 Wall Unit 575 High | C134: J Profile Dust Grey Gloss | E134: W857 | F134: 409.02
A135: @LK-DSJ-W957 | B135: 900 Wall Unit 575 High | C135: J Profile Dust Grey Gloss | E135: W957 | F135: 427.02
A136: @LK-DSJ-WC6L | B136: 600 Cnr Wall Unit LHH | C136: J Profile Dust Grey Gloss | E136: WC6L | F136: 385.99
A137: @LK-DSJ-WC6R | B137: 600 Cnr Wall Unit RHH | C137: J Profile Dust Grey Gloss | E137: WC6R | F137: 385.99
A138: @LK-DSJ-WC9L | B138: 900 Cnr Wall Unit LHH | C138: J Profile Dust Grey Gloss | E138: WC9L | F138: 436.99
A139: @LK-DSJ-WC9R | B139: 900 Cnr Wall Unit RHH | C139: J Profile Dust Grey Gloss | E139: WC9R | F139: 436.99
A140: @LK-GPJ-AH-SOTL | B140: 600 Twin Single Oven Housing LH | C140: J Profile Graphite Gloss | E140: AH-SOTL | F140: 945.01
A141: @LK-GPJ-AH-SOTR | B141: 600 Twin Single Oven Housing RH | C141: J Profile Graphite Gloss | E141: AH-SOTR | F141: 945.01
A142: @LK-GPJ-BBP | B142: Breakfast bar Back Panel (2 x 900x1200) | C142: J Profile Graphite Gloss | E142: BBP | F142: 625.99
A143: @LK-GPJ-BHD3 | B143: 300 Highline Drw Unit 1 Pan 2 Internal | C143: J Profile Graphite Gloss | E143: BHD3 | F143: 678.01
A144: @LK-GPJ-BHD4 | B144: 400 Highline Drw Unit 1 Pan 2 Internal | C144: J Profile Graphite Gloss | E144: BHD4 | F144: 728.02
A145: @LK-GPJ-BHD5 | B145: 500 Highline Drw Unit 1 Pan 2 Internal | C145: J Profile Graphite Gloss | E145: BHD5 | F145: 785
A146: @LK-GPJ-BHD6 | B146: 600 Highline Drw Unit 1 Pan 2 Internal | C146: J Profile Graphite Gloss | E146: BHD6 | F146: 835.01
A147: @LK-GPJ-CH-MWL | B147: Corner Compact Appliance Unit LHH | C147: J Profile Graphite Gloss | E147: CH-MWL | F147: 777
A148: @LK-GPJ-CH-MWR | B148: Corner Compact Appliance Unit RHH | C148: J Profile Graphite Gloss | E148: CH-MWR | F148: 777
A149: @LK-GPJ-CH-SOL | B149: Corner Single Oven Housing Unit LHH | C149: J Profile Graphite Gloss | E149: CH-SOL | F149: 708
A150: @LK-GPJ-CH-SOR | B150: Corner Single Oven Housing Unit RHH | C150: J Profile Graphite Gloss | E150: CH-SOR | F150: 708
A151: @LK-GPJ-CH-STL | B151: Corner Storage Unit LHH | C151: J Profile Graphite Gloss | E151: CH-STL | F151: 985.99
A152: @LK-GPJ-CH-STR | B152: Corner Storage Unit RHH | C152: J Profile Graphite Gloss | E152: CH-STR | F152: 985.99
A153: @LK-GPJ-LL8LS | B153: 800mm Laundry stacker | C153: J Profile Graphite Gloss | E153: LL8LS | F153: 1606.06
A154: @LK-GPJ-LP4 | B154: 400 Larder & TAL LARDER Pull Out | C154: J Profile Graphite Gloss | E154: LP4 | F154: 1722
A155: @LK-GPJ-LP5TL | B155: 500 Larder & TAL GATE PRO Pull Out LH | C155: J Profile Graphite Gloss | E155: LP5TL | F155: 2033.03
A156: @LK-GPJ-LP5TR | B156: 500 Larder & TAL GATE PRO Pull Out RHH | C156: J Profile Graphite Gloss | E156: LP5TR | F156: 2033.03
A157: @LK-GPJ-TAH-SOTL | B157: 600 Tall Twin Single Oven Housing LH | C157: J Profile Graphite Gloss | E157: TAH-SOTL | F157: 775.02
A158: @LK-GPJ-TAH-SOTR | B158: 600 Tall Twin Single Oven Housing RH | C158: J Profile Graphite Gloss | E158: TAH-SOTR | F158: 775.02
A159: @LK-GPJ-TCH-MWL | B159: Tall Corner Compact Appliance Unit LHH | C159: J Profile Graphite Gloss | E159: TCH-MWL | F159: 859.99
A160: @LK-GPJ-TCH-MWR | B160: Tall Corner Compact Appliance Unit RHH | C160: J Profile Graphite Gloss | E160: TCH-MWR | F160: 859.99
A161: @LK-GPJ-TCH-SOL | B161: Tall Corner Single Oven Housing Unit LHH | C161: J Profile Graphite Gloss | E161: TCH-SOL | F161: 919
A162: @LK-GPJ-TCH-SOR | B162: Tall Corner Single Oven Housing Unit RHH | C162: J Profile Graphite Gloss | E162: TCH-SOR | F162: 919
A163: @LK-GPJ-TCH-STL | B163: Tall Corner Storage Unit LHH | C163: J Profile Graphite Gloss | E163: TCH-STL | F163: 1046.99
A164: @LK-GPJ-TCH-STR | B164: Tall Corner Storage Unit RHH | C164: J Profile Graphite Gloss | E164: TCH-STR | F164: 1046.99
A165: @LK-GPJ-TLL8LS | B165: 800mm Tall Laundry stacker | C165: J Profile Graphite Gloss | E165: TLL8LS | F165: 2163.04
A166: @LK-GPJ-TLP4 | B166: 400 Tall Larder & TAL LARDER Pull Out | C166: J Profile Graphite Gloss | E166: TLP4 | F166: 1772.99
A167: @LK-GPJ-TLP5TL | B167: 500 Tall Larder & TAL GATE PRO P/Out LH | C167: J Profile Graphite Gloss | E167: TLP5TL | F167: 2097.02
A168: @LK-GPJ-TLP5TR | B168: 500 Tall Larder & TAL GATE PRO P/Out RH | C168: J Profile Graphite Gloss | E168: TLP5TR | F168: 2097.02
A169: @LK-GPJ-W157 | B169: 1000 Wall Unit 575 High | C169: J Profile Graphite Gloss | E169: W157 | F169: 456.01
A170: @LK-GPJ-W357L | B170: 300 Wall Unit 575 High LH | C170: J Profile Graphite Gloss | E170: W357L | F170: 215.02
A171: @LK-GPJ-W357R | B171: 300 Wall Unit 575 High RH | C171: J Profile Graphite Gloss | E171: W357R | F171: 215.02
A172: @LK-GPJ-W4557L | B172: 450 Wall Unit 575 High LH | C172: J Profile Graphite Gloss | E172: W4557L | F172: 261.01
A173: @LK-GPJ-W4557R | B173: 450 Wall Unit 575 High RH | C173: J Profile Graphite Gloss | E173: W4557R | F173: 261.01
A174: @LK-GPJ-W457L | B174: 400 Wall Unit 575 High LH | C174: J Profile Graphite Gloss | E174: W457L | F174: 245
A175: @LK-GPJ-W457R | B175: 400 Wall Unit 575 High RH | C175: J Profile Graphite Gloss | E175: W457R | F175: 245
A176: @LK-GPJ-W557L | B176: 500 Wall Unit 575 High LH | C176: J Profile Graphite Gloss | E176: W557L | F176: 277.01
A177: @LK-GPJ-W557R | B177: 500 Wall Unit 575 High RH | C177: J Profile Graphite Gloss | E177: W557R | F177: 277.01
A178: @LK-GPJ-W657L | B178: 600 Wall Unit 575 High LH | C178: J Profile Graphite Gloss | E178: W657L | F178: 290.02
A179: @LK-GPJ-W657R | B179: 600 Wall Unit 575 High RH | C179: J Profile Graphite Gloss | E179: W657R | F179: 290.02
A180: @LK-GPJ-W857 | B180: 800 Wall Unit 575 High | C180: J Profile Graphite Gloss | E180: W857 | F180: 409.02
A181: @LK-GPJ-W957 | B181: 900 Wall Unit 575 High | C181: J Profile Graphite Gloss | E181: W957 | F181: 427.02
A182: @LK-GPJ-WC6L | B182: 600 Cnr Wall Unit LHH | C182: J Profile Graphite Gloss | E182: WC6L | F182: 385.99
A183: @LK-GPJ-WC6R | B183: 600 Cnr Wall Unit RHH | C183: J Profile Graphite Gloss | E183: WC6R | F183: 385.99
A184: @LK-GPJ-WC9L | B184: 900 Cnr Wall Unit LHH | C184: J Profile Graphite Gloss | E184: WC9L | F184: 436.99
A185: @LK-GPJ-WC9R | B185: 900 Cnr Wall Unit RHH | C185: J Profile Graphite Gloss | E185: WC9R | F185: 436.99
A186: @LK-JAG-AH-SOTL | B186: 600 Twin Single Oven Housing LH | C186: J Profile Matt Aegean | E186: AH-SOTL | F186: 1025.02
A187: @LK-JAG-AH-SOTR | B187: 600 Twin Single Oven Housing RH | C187: J Profile Matt Aegean | E187: AH-SOTR | F187: 1025.02
A188: @LK-JAG-BHD3 | B188: 300 Highline Drw Unit 1 Pan 2 Internal | C188: J Profile Matt Aegean | E188: BHD3 | F188: 732.01
A189: @LK-JAG-BHD4 | B189: 400 Highline Drw Unit 1 Pan 2 Internal | C189: J Profile Matt Aegean | E189: BHD4 | F189: 783.01
A190: @LK-JAG-BHD5 | B190: 500 Highline Drw Unit 1 Pan 2 Internal | C190: J Profile Matt Aegean | E190: BHD5 | F190: 855.01
A191: @LK-JAG-BHD6 | B191: 600 Highline Drw Unit 1 Pan 2 Internal | C191: J Profile Matt Aegean | E191: BHD6 | F191: 917
A192: @LK-JAG-CH-MWL | B192: Corner Compact Appliance Unit LHH | C192: J Profile Matt Aegean | E192: CH-MWL | F192: 846
A193: @LK-JAG-CH-MWR | B193: Corner Compact Appliance Unit RHH | C193: J Profile Matt Aegean | E193: CH-MWR | F193: 846
A194: @LK-JAG-CH-SOL | B194: Corner Single Oven Housing Unit LHH | C194: J Profile Matt Aegean | E194: =MID(A194,9,15) -> CH-SOL | F194: 765
A195: @LK-JAG-CH-SOR | B195: Corner Single Oven Housing Unit RHH | C195: J Profile Matt Aegean | E195: CH-SOR | F195: 765
A196: @LK-JAG-CH-STL | B196: Corner Storage Unit LHH | C196: J Profile Matt Aegean | E196: CH-STL | F196: 1108
A197: @LK-JAG-CH-STR | B197: Corner Storage Unit RHH | C197: J Profile Matt Aegean | E197: CH-STR | F197: 1108
A198: @LK-JAG-LP4 | B198: 400 Larder & TAL LARDER Pull Out | C198: J Profile Matt Aegean | E198: LP4 | F198: 1834
A199: @LK-JAG-LP5TL | B199: 500 Larder & TAL GATE PRO Pull Out LH | C199: J Profile Matt Aegean | E199: LP5TL | F199: 2184.04
A200: @LK-JAG-LP5TR | B200: 500 Larder & TAL GATE PRO Pull Out RHH | C200: J Profile Matt Aegean | E200: LP5TR | F200: 2184.04
... 14385 more rows

Sheet Minerva Prices (hidden)
A4: @VL-K01-0171NW-3 | B4: Nova Mini 3 Light Kit NW | E4: 45.5 | F4: 54.6
A5: @VL-K01-0171NW-5 | B5: Nova Mini 5 Light Kit NW | E5: 73.5 | F5: 88.2
A6: @VL-K01-0171WW-3 | B6: Nova Mini 3 Light Kit WW | E6: 45.5 | F6: 54.6
A7: @VL-K01-0171WW-5 | B7: Nova Mini 5 Light Kit WW | E7: 73.5 | F7: 88.2
A8: VL-K01-0171NW | B8: Nova Mini LED Ultra Thin Light NW | E8: 12.25 | F8: 14.7
A9: VL-K01-0171WW | B9: Nova Mini LED Ultra Thin Light WW | E9: 12.25 | F9: 14.7
A10: @VL-K01-0120SSNW-3 | B10: Galaxy COB Triangular 3 Light Kit NW | E10: 42 | F10: 50.4
A11: @VL-K01-0120SSNW-5 | B11: Galaxy COB Triangular 5 Light Kit NW | E11: 67.669 | F11: 81.2028
A12: @VL-K01-0120SSWW-3 | B12: Galaxy COB Triangular 3 Light Kit WW | E12: 42 | F12: 50.4
A13: @VL-K01-0120SSWW-5 | B13: Galaxy COB Triangular 5 Light Kit WW | E13: 67.669 | F13: 81.2028
A14: VL-K01-0120SSNW | B14: Galaxy COB LED Triangular Light NW | E14: 11.08333333 | F14: 13.3
A15: VL-K01-0120SSWW | B15: Galaxy COB LED Triangular Light WW | E15: 11.08333333 | F15: 13.3
A16: @VL-K01-0102SSNW-3 | B16: Galaxy COB Round 3 Light Kit NW | E16: 38.5 | F16: 46.2
A17: @VL-K01-0102SSNW-5 | B17: Galaxy COB Round 5 Light Kit NW | E17: 61.831 | F17: 74.1972
A18: @VL-K01-0102SSWW-3 | B18: Galaxy COB Round 3 Light Kit WW | E18: 38.5 | F18: 46.2
A19: @VL-K01-0102SSWW-5 | B19: Galaxy COB Round 5 Light Kit WW | E19: 61.831 | F19: 74.1972
A20: VL-K01-0102SSNW | B20: Galaxy COB LED Round Light NW | E20: 9.916666667 | F20: 11.9
A21: VL-K01-0102SSWW | B21: Galaxy COB LED Round Light WW | E21: 9.916666667 | F21: 11.9
A22: @VL-K01-0190NW-3 | B22: Slim Square Panel 3 Light Kit NW | E22: 50.75 | F22: 60.9
A23: @VL-K01-0190NW-5 | B23: Slim Square Panel 5 Light Kit NW | E23: 76.419 | F23: 91.7028
A24: @VL-K01-0190WW-3 | B24: Slim Square Panel 3 Light Kit WW | E24: 50.75 | F24: 60.9
A25: @VL-K01-0190WW-5 | B25: Slim Square Panel 5 Light Kit WW | E25: 76.419 | F25: 91.7028
A26: VL-K01-0190SLNW | B26: Slim Square Panel Light 100x100 NW | E26: 12.83333333 | F26: 15.4
A27: VL-K01-0190SLWW | B27: Slim Square Panel Light 100x100 WW | E27: 12.83333333 | F27: 15.4
A28: @VL-K01-0191NW-3 | B28: Slim Rectangular Panel 3 Light Kit NW | E28: 66.5 | F28: 79.8
A29: @VL-K01-0191NW-5 | B29: Slim Rectangular Panel 5 Light Kit NW | E29: 98 | F29: 117.6
A30: @VL-K01-0191WW-3 | B30: Slim Rectangular Panel 3 Light Kit WW | E30: 66.5 | F30: 79.8
A31: @VL-K01-0191WW-5 | B31: Slim Rectangular Panel 5 Light Kit WW | E31: 98 | F31: 117.6
A32: VL-K01-0191SLNW | B32: Slim Rectangular Panel Light 200x100 NW | E32: 15.75 | F32: 18.9
A33: VL-K01-0191SLWW | B33: Slim Rectangular Panel Light 200x100 WW | E33: 15.75 | F33: 18.9
A34: VL-R90-0131 | B34: 2 Metre Extension Cable | E34: 2.916666667 | F34: 3.5
A35: VL-K01-0030K4PCNW | B35: Sola Round Plinth 4 Light Kit NW | E35: 22.75 | F35: 27.3
A36: VL-K01-0030K4PCWW | B36: Sola Round Plinth 4 Light Kit WW | E36: 22.75 | F36: 27.3
A37: VL-K01-0030K8PCNW | B37: Sola Round Plinth 8 Light Kit NW | E37: 42 | F37: 50.4
A38: VL-K01-0030K8PCWW | B38: Sola Round Plinth 8 Light Kit WW | E38: 42 | F38: 50.4
A39: VL-K01-0030PNW | B39: Sola Round Plinth Single Light NW | E39: 3.5 | F39: 4.2
A40: VL-K01-0030PWW | B40: Sola Round Plinth Single Light WW | E40: 3.5 | F40: 4.2
A41: VL-K01-0040K4SSNW | B41: Strata Square Plinth 4 Light Kit NW | E41: 25.08333333 | F41: 30.1
A42: VL-K01-0040K4SSWW | B42: Strata Square Plinth 4 Light Kit WW | E42: 25.08333333 | F42: 30.1
A43: VL-K01-0040K8SSNW | B43: Strata Square Plinth 8 Light Kit NW | E43: 42 | F43: 50.4
A44: VL-K01-0040K8SSWW | B44: Strata Square Plinth 8 Light Kit WW | E44: 42 | F44: 50.4
A45: VL-K01-0040SSNW | B45: Strata Square Plinth Single Light NW | E45: 4.083333333 | F45: 4.9
A46: VL-K01-0040SSWW | B46: Strata Square Plinth Single Light WW | E46: 4.083333333 | F46: 4.9
A47: VL-K01-0200NW-462 | B47: Sabre Drawer Light 462mm Natural White | E47: 19.25 | F47: 23.1
A48: VL-K01-0200NW-562 | B48: Sabre Drawer Light 562mm Natural White | E48: 22.16666667 | F48: 26.6
A49: VL-K01-0200NW-762 | B49: Sabre Drawer Light 762mm Natural White | E49: 26.25 | F49: 31.5
A50: VL-K01-0200NW-862 | B50: Sabre Drawer Light 862mm Natural White | E50: 29.16666667 | F50: 35
A51: VL-K01-0200NW-962 | B51: Sabre Drawer Light 962mm Natural White | E51: 32.08333333 | F51: 38.5
A52: VL-K30-1270NW-1M | B52: Dotless Frontview Tape IP65 1 Metre NW | E52: 19.25 | F52: 23.1
A53: VL-K30-1270NW-2M | B53: Dotless Frontview Tape IP65 2 Metre NW | E53: 35 | F53: 42
A54: VL-K30-1270NW-3M | B54: Dotless Frontview Tape IP65 3 Metre NW | E54: 49 | F54: 58.8
A55: VL-K30-1270WW-1M | B55: Dotless Frontview Tape IP65 1 Metre WW | E55: 19.25 | F55: 23.1
A56: VL-K30-1270WW-2M | B56: Dotless Frontview Tape IP65 2 Metre WW | E56: 35 | F56: 42
